Workbook

Sheet Profile
A1: dk;kZy;& | C1: eq[; CykWd f'k{kk vf/kdkjh] lexz f'k{kk] chdkusj | AK1: सीसीए की राशि (रु. प्रति माह)
A2: eksgj& | C2: Budget Estemate | F2: foHkkx dk uke | G2: izkjfEHkd f'k{kk foHkkx
A3: eq[; CykWd f'k{kk vf/kdkjh | C3: 2202-01-197-16-01 | F3: vkWfQl vkbZMh | G3: uke MhMhvks | I3: uEcj | AK3: क्र.सं | AL3: मूल वेतन यानी वेतन मैट्रिक्स में निर्धारित स्तरों में लिया जाने वाला वेतन | AM3: सीसीए की राशि (रु. प्रति माह)
A4: lexz f'k{kk | C4: ctV en eq[; 'kh"kZ | F4: 1451 | G4: euh"kk vjksM+k | I4: 1234567890 | AM4: जयपुर (यूए) | AN4: अजमेर, बीकानेर, जोधपुर और कोटा
A5: chdkusj | F5: dk;kZy; dh nwjHkk"k la[;k dksM lfgr | G5: lgk-ys[kkf/kdkjh f}rh; | J5: ofj"B fyfid@lacfU/kr dkfeZd | AK5: 1 | AL5: वेतन मैट्रिक्स में 23100/- तक मूल वेतन पाने वाले कर्मचारी | AM5: 620/- | AN5: 320/-
C6: UnProtect All Worksheet PASSWORD - sumit | F6: 0151-2226567 | G6: eksgEen vtht HkkVh | I6: 9460701805 | J6: gtkjh jke rMZ | L6: 9667576332 | AK6: 2 | AL6: 23100/- से ऊपर वेतन मैट्रिक्स में मूल वेतन पाने वाला कर्मचारी | AM6: 1000/- | AN6: 620/-
F7: onhZ HkRrk iq:"k dkfeZd la[;k | H7: 0 | I7: jkf'k izfr o"kZ | J7: 2000 | K7: =J7*H7 -> 0 | L7: =K7+K8 -> 0
A8: ihMh [kkrk la[;k %& | C8: 762 | F8: onhZ HkRrk efgyk dkfeZd la[;k | H8: 0 | I8: jkf'k izfr o"kZ | J8: 2350 | K8: =J8*H8 -> 0
A9: vkxkeh osru o`f} fnukad %& | C9: 2026-07-01 | F9: cksul dkfeZdks dh la[;k | H9: 64 | I9: jkf'k izfr o"kZ | J9: 6774 | K9: vf/kd tkudkjh ds fy, bl youtube link ;k JOURNEY SUMIT GIRI youtube channel dk bLrseky djsa
A10: Ldhe dk uke %& | C10: LVsV Q.M | F10: dSf'k;j HkRrk dkfeZd dh la[;k | H10: 0 | I10: jkf'k izfr ekg | J10: 300 | M10: bl fyad dks dkWih djds xqxy esa vkWiu djus ds ckn ;wV~;wc pSuy ij fofM;ks ns[kss
A11: ekax la[;k %& | C11: 24 | F11: f};kax dkfeZdksa dh la[;k | H11: 2 | I11: jkf'k izfr ekg | J11: 1200 | K11: https://youtu.be/dN7M4uHGLqE
A12: ctV Lohd`fr esa dk;kZy; dh Ø-la- | C12: 11 | H12: /kqykbzZ HkRrk jkf'k izfr ekg | J12: 200
A13: foHkkx dk uke %& | F13: (CCA) 'kgjh {kfriwfrZ dkfeZd la[;k | H13: 0 | I13: jkf'k izfr ekg | J13: 320 | K13: =H13*J13 -> 0 | L13: =K13+K14+K15 -> 0 | AL13: JOUREY SUMIT GIRI
C14: =G2 -> izkjfEHkd f'k{kk foHkkx | F14: (CCA) 'kgjh {kfriwfrZ dkfeZd la[;k | H14: 0 | I14: jkf'k izfr ekg | J14: 620 | K14: =H14*J14 -> 0
F15: (CCA) 'kgjh {kfriwfrZ dkfeZd la[;k | H15: 0 | I15: jkf'k izfr ekg | J15: 1000 | K15: 0 | AL15: sumitgiri777
A16: orZeku o"kZ %& | C16: 2025-26
A17: vkxkeh o"kZ %& | C17: 2026-27 | E17: Arear Month | F17: 2 | G17: egaxkbZ HkÙkk nj | H17: 0.55 | I17: DA Arr. | J17: 0 | K17: HRA | L17: 0.1 | AL17: This year
A19: xr rhu o"ksksZa ds vk; ,oa O;; dk fooj.k | B19: gsM | F19: 2022-23 | G19: 2023-24 | H19: 2024-25 | I19: 08/24 to 03/25 | J19: 04/25 to 07/25 | K19: la'kksf/kr vuqeku 08@2025 ls 03@2026 | L19: vk; vuqeku 2026&2027 | AJ19: Ø-la- | AK19: fooj.k | AL19: 12& lgk;rkFkZ vuqnku xSj laosru | AQ19: 92&lgk;rkFkZ vuqnku
A20: vk; | AL20: ;k=k O;; | AM20: fpfdRlk O;; | AN20: dk;kZy; O;; | AO20: ofnZ;k | AP20: ;ksx | AQ20: laosru
A21: f'k{k.k 'kqYd | B21: =$C$3 -> 2202-01-197-16-01 | F21: 0 | G21: 0 | H21: 0 | I21: 0 | J21: 0 | K21: 0 | L21: 0 | AJ21: 1 | AK21: 2 | AL21: 3 | AM21: 4 | AN21: 5 | AO21: 6 | AP21: 7 | AQ21: 8
A22: Vh-lh- | B22: =$C$3 -> 2202-01-197-16-01 | F22: 0 | G22: 0 | H22: 0 | I22: 0 | J22: 0 | K22: 0 | L22: 0 | AJ22: 1 | AK22: 01-04-2025 dk 'ks"k | AL22: =AO35 -> 325437 | AM22: 16424 | AN22: 26483 | AO22: 23000 | AP22: =SUM(AL22:AO22) -> 391344 | AQ22: 2607934
A23: izos'k 'kqYd | B23: 2202-01-197-16-01 | F23: 0 | G23: 0 | H23: 0 | I23: 0 | J23: 0 | K23: 0 | L23: 0 | AJ23: 2 | AK23: foRrh; o"kZ 2025&26 esa izkIr jkf'k | AL23: 0 | AM23: 0 | AN23: 20000 | AO23: 0 | AP23: 20000 | AQ23: 42754470
A24: vuqi;ksxh lkeku ds fuLrkj.k ls vk; | B24: 2202-01-197-16-01 | F24: 0 | G24: 0 | H24: 0 | I24: 0 | J24: 0 | K24: 0 | L24: 0 | AJ24: 3 | AK24: ;ksx | AL24: =SUM(AL22:AL23) -> 325437 | AM24: =SUM(AM22:AM23) -> 16424 | AN24: =SUM(AN22:AN23) -> 46483 | AO24: =SUM(AO22:AO23) -> 23000 | AP24: 411344 | AQ24: =SUM(AQ22:AQ23) -> 45362404
A25: fofo/k | B25: 2202-01-197-16-01 | F25: 0 | G25: 0 | H25: 0 | I25: 0 | J25: 0 | K25: 0 | L25: 0 | AJ25: 4 | AK25: foRrh; o"kZ 2025&26 esa O;; jkf'k | AL25: 0 | AM25: 0 | AN25: 51347 | AO25: 0 | AP25: 51347 | AQ25: 31640346
A26: vU; | B26: 2202-01-197-16-01 | F26: 0 | G26: 0 | H26: 0 | I26: 0 | J26: 0 | K26: 0 | L26: 0 | AJ26: 5 | AK26: 31-08-2025 dks 'ks"k jkf'k | AL26: =AL24-AL25 -> 325437 | AM26: =AM24-AM25 -> 16424 | AN26: =AN24-AN25 -> -4864 | AO26: =AO24-AO25 -> 23000 | AP26: 359997 | AQ26: =AQ24-AQ25 -> 13722058
AR27: LAST Year
A28: O;; | C28: Lohd`r ctV 2025&2026 | F28: [kpksZa dk fooj.k | I28: O;; 04@25 ls 08@25 | K28: yfEcr fcy ¼out standing Liabilities½ | N28: lEHkkfor O;; | O28: vk; vuqeku vkxkeh o"kZ | P28: 04/25 to 08/25 | Q28: yfEcr fcy ¼out standing Liabilities½ | AJ28: dqy ;ksx | AK28: la'kksf/kr vuqeku ¼pkyw o"kZ½ | AL28: vk;&O;; vuqeku ¼vkxkeh o"kZ½ | AM28: Ø-la- | AN28: fooj.k | AO28: 12& lgk;rkFkZ vuqnku xSj laosru | AT28: 92&lgk;rkFkZ vuqnku
A29: en | B29: lc gsM | C29: dqy ;ksx | D29: jkT; fuf/k | E29: dsUnzh; lgk;rk | F29: =$F$19 -> 2022-23 | G29: =$G$19 -> 2023-24 | H29: =$H$19 -> 2024-25 | I29: jkT; fuf/k | J29: dsUnzh; lgk;rk | K29: jkT; fuf/k | L29: dsUnzh; lgk;rk | AO29: ;k=k O;; | AP29: fpfdRlk O;; | AQ29: dk;kZy; O;; | AR29: ofnZ;k | AS29: ;ksx | AT29: laosru
H30: esa ekpZ dk th-,-19 | AM30: 1 | AN30: 2 | AO30: 3 | AP30: 4 | AQ30: 5 | AR30: 6 | AS30: 7 | AT30: 8
A31: laosru | B31: 1 | C31: =SUM(D31+E31) -> 0 | D31: 0 | E31: 0 | F31: 0 | G31: 0 | H31: 80948599 | I31: 31640346 | J31: 0 | K31: 0 | L31: 0 | N31: =$O$323 -> 84574494 | O31: =N323 -> 86430359 | P31: =I31+J31 -> 31640346 | Q31: =K31+L31 -> 0 | AJ31: =SUM(Q31+N31) -> 84574494 | AK31: =$O$323 -> 84574494 | AL31: =$N$323 -> 86430359 | AM31: 1 | AN31: 01-04-2024 dk 'ks"k | AO31: 255437 | AP31: 16424 | AQ31: 54070 | AR31: 23000 | AS31: =SUM(AO31:AR31) -> 348931 | AT31: 8733197
A32: ;k=k O;; | B32: 3 | C32: =SUM(D32+E32) -> 0 | D32: 0 | E32: 0 | F32: 0 | G32: 0 | H32: 0 | I32: 0 | J32: 0 | K32: 0 | L32: 0 | N32: =AK32 -> 0 | O32: =AL32 -> 0 | P32: =I32+J32 -> 0 | Q32: =K32+L32 -> 0 | AJ32: 0 | AM32: 2 | AN32: foRrh; o"kZ 2024&25 esa izkIr jkf'k | AO32: 70000 | AP32: 0 | AQ32: 60000 | AR32: 0 | AS32: =SUM(AO32:AR32) -> 130000 | AT32: 74823336
A33: fpfdRlk O;; | B33: 4 | C33: 0 | D33: 0 | E33: 0 | F33: 0 | G33: 0 | H33: 0 | I33: 0 | J33: 0 | K33: 0 | L33: 0 | N33: =AK33 -> 0 | O33: =AL33 -> 0 | P33: 0 | Q33: 0 | AJ33: 0 | AK33: 0 | AL33: 0 | AM33: 3 | AN33: ;ksx | AO33: =SUM(AO31:AO32) -> 325437 | AP33: =SUM(AP31:AP32) -> 16424 | AQ33: =SUM(AQ31:AQ32) -> 114070 | AR33: =SUM(AR31:AR32) -> 23000 | AS33: 478931 | AT33: =SUM(AT31:AT32) -> 83556533
A34: dk;kZy; O;; ¼,eMh,e½ | B34: 5 | C34: 0 | D34: 0 | E34: 0 | F34: 0 | G34: 0 | H34: 103940 | I34: 63142 | J34: 0 | K34: 0 | L34: 0 | N34: 0 | O34: 0 | P34: 63142 | Q34: 0 | AJ34: 0 | AK34: 0 | AL34: 0 | AM34: 4 | AN34: foRrh; o"kZ 2024&25 esa O;; jkf'k | AO34: 0 | AP34: 0 | AQ34: 87587 | AR34: 0 | AS34: 87587 | AT34: 80948599
A35: fdjk;k dj jk;fYV | B35: 9 | C35: 0 | D35: 0 | E35: 0 | F35: 0 | G35: 0 | H35: 0 | I35: 0 | J35: 0 | K35: 0 | L35: 0 | N35: 0 | O35: 0 | P35: 0 | Q35: 0 | AJ35: 0 | AK35: 0 | AL35: 0 | AM35: 5 | AN35: 31-03-2025 dks 'ks"k jkf'k | AO35: =AO33-AO34 -> 325437 | AP35: =AP33-AP34 -> 16424 | AQ35: =AQ33-AQ34 -> 26483 | AR35: =AR33-AR34 -> 23000 | AS35: 391344 | AT35: =AT33-AT34 -> 2607934
A36: fo|qr izFkkj ,oa ty O;; | B36: 19 | C36: 0 | D36: 0 | E36: 0 | F36: 0 | G36: 0 | H36: 0 | I36: 0 | J36: 0 | K36: 0 | L36: 0 | N36: 0 | O36: 0 | P36: 0 | Q36: 0 | AJ36: 0 | AK36: 0 | AL36: 0
A37: iqLrdky; | B37: 31 | C37: 0 | D37: 0 | E37: 0 | F37: 0 | G37: 0 | H37: 0 | I37: 0 | J37: 0 | K37: 0 | L37: 0 | N37: 0 | O37: 0 | P37: 0 | Q37: 0 | AJ37: 0 | AK37: 0 | AL37: 0
A38: iz;ksx'kkyk | B38: 33 | C38: 0 | D38: 0 | E38: 0 | F38: 0 | G38: 0 | H38: 0 | I38: 0 | J38: 0 | K38: 0 | L38: 0 | N38: 0 | O38: 0 | P38: 0 | Q38: 0 | AJ38: 0 | AK38: 0 | AL38: 0
A39: ofnZ;ka | B39: 37 | C39: 0 | E39: 0 | F39: 0 | G39: 0 | J39: 0 | K39: 0 | L39: 0 | N39: =$L$7 -> 0 | P39: 0 | Q39: 0 | AJ39: 0 | AK39: =$L$7 -> 0 | AL39: =$L$7 -> 0
A40: vU; izHkkj | B40: 28 | C40: 0 | D40: 0 | E40: 0 | F40: 0 | G40: 0 | H40: 0 | I40: 0 | J40: 0 | K40: 0 | L40: 0 | N40: =AK40 -> 0 | O40: 0 | P40: 0 | Q40: 0 | AJ40: 0 | AK40: 0 | AL40: 0
A41: foHkkxh;lsokvksa ij fof'k"V O;; | B41: 57 | C41: 0 | D41: 0 | E41: 0 | F41: 0 | G41: 0 | H41: 0 | I41: 0 | J41: 0 | K41: 0 | L41: 0 | N41: =AK41 -> 0 | O41: 0 | P41: 0 | Q41: 0 | AJ41: 0 | AK41: 0 | AL41: 0
A42: ;ksx | C42: =SUM(C31:C41) -> 0 | D42: =SUM(D31:D41) -> 0 | E42: 0 | F42: 0 | G42: 0 | H42: 81052539 | I42: 31703488 | J42: 0 | K42: 0 | L42: 0 | AK42: =SUM(AK31:AK41) -> 84574494 | AL42: 86430359
A43: o"kZ 2026&2027 ds fy, jsUt ds vuqlkj laosru dh jkf'k | F43: OID | G43: =$F$4 -> 1451 | N43: BE 202-2026
A44: dk;kZy; %& | D44: =$C$1 -> eq[; CykWd f'k{kk vf/kdkjh] lexz f'k{kk] chdkusj | H44: =$C$3 -> 2202-01-197-16-01 | K44: =$C$10 -> LVsV Q.M | M44: 2026&2027 | O44: RE 2024-2025
A46: ys[kk 'kh"kZd ¼foLr`r 'kh"kZ½ | B46: Øe la[;k | C46: dkfeZd dk uke | E46: deZpkjh vkbZ Mh | F46: thih,Q@,uih,l@izku uEcj | G46: in | H46: in dk Lohd`r osru | J46: ctV dh izkjfEHkd frfFk ;kfu 1ekpZ 2026 dks deZpkjh dk osru | K46: igyh ekpZ ls vfUre Qjojh ds fy;s fu/kkZfjr jde | L46: o`f) tks bl vof/k esa gksxh | N46: vkxkeh o"kZ ds fy;s jde ¼dkye 8$10½ | O46: pkyw o"kZ ds fy;s la'kksf/kr vuqeku | P46: fo'ks"k fooj.k | R46: vkxkeh osru o`f) fnukad | AK46: la'kksf/kr vuqeku pkyw o"kZ | AL46: vk; O;;d vuqeku vkxkeh o"kZ
C47: Jh@ Jherh@ lqJh | D47: osruHkksxh deZpkjh dk uke | H47: xzsM is@ ysoy | L47: frfFk o`f) | M47: jde o`f) | R47: =$C$9 -> 2026-07-01 | AM47: 05& adk;kZy; O;;
B48: 1 | D48: 2 | E48: 3 | F48: 14 | G48: 4 | H48: 5 | I48: 6 | J48: 7 | K48: 8 | L48: 9 | M48: 10 | N48: 11 | O48: 12 | P48: 13 | AK48: 0 | AL48: 0 | AM48: ¼1½& Mkd rkj
A49: jktif=r | B49: 1 | G49: ,lhchbZvks&1 | H49: ysoy | I49: 16 | J49: 0 | K49: =J49*12 -> 0 | L49: =R47 -> 2026-07-01 | M49: =P49*8 -> 0 | N49: =K49+M49 -> 0 | O49: =N49-P49*12 -> 0 | P49: =S49 -> 0 | S49: =ROUND(T49,-2) -> 0 | T49: =J49*3/100 -> 0 | V49: =Y49-X49 -> -16 | W49: =IF(R47>=DATE(2017,7,1),CEILING(Y49*3%,10)+V49,V49) -> -16 | X49: =I49 -> 16 | Y49: =J49 -> 0 | Z49: =SUM(W49:X49) -> 0 | AA49: =Z49-Y49 -> 0 | AC49: =J49 -> 0 | AD49: =AC49*3/100 -> 0 | AE49: =ROUNDUP(AD49,-1) -> 0 | AF49: =AC49+AE49 -> 0 | AI49: =AF49-J49 -> 0 | AK49: 0 | AL49: 0 | AM49: ¼2½& VsyhQksu
A50: jktif=r | B50: 2 | G50: l0ys0v0&k | H50: ysoy | I50: 12 | J50: 0 | K50: =J50*12 -> 0 | L50: =L49 -> 2026-07-01 | M50: =P50*8 -> 0 | N50: =K50+M50 -> 0 | O50: =N50-P50*12 -> 0 | P50: =S50 -> 0 | S50: =ROUND(T50,-2) -> 0 | T50: =J50*3/100 -> 0 | V50: =Y50-X50 -> -12 | W50: =IF(R47>=DATE(2017,7,1),CEILING(Y50*3%,10)+V50,V50) -> -12 | X50: =I50 -> 12 | Y50: =J50 -> 0 | Z50: =SUM(W50:X50) -> 0 | AA50: =Z50-Y50 -> 0 | AC50: =J50 -> 0 | AD50: =AC50*3/100 -> 0 | AE50: =ROUNDUP(AD50,-1) -> 0 | AF50: =AC50+AE50 -> 0 | AI50: =AF50-J50 -> 0 | AK50: 0 | AL50: 0 | AM50: ¼3½& ikuh fctyh
A51: jktif=r | B51: 3 | G51: O;k[;krk | H51: ysoy | I51: 12 | J51: 0 | K51: 0 | L51: =L49 -> 2026-07-01 | M51: 0 | N51: 0 | O51: =N51-P51*12 -> 0 | P51: 0 | S51: 0 | T51: 0 | V51: -12 | W51: =IF(R47>=DATE(2017,7,1),CEILING(Y51*3%,10)+V51,V51) -> -12 | X51: 12 | Y51: 0 | Z51: 0 | AA51: 0 | AC51: 0 | AD51: 0 | AE51: 0 | AF51: 0 | AI51: 0 | AK51: 0 | AL51: 0 | AM51: ¼4½& QuhZpj ejEer
A52: jktif=r | B52: 4 | G52: O;k[;krk | H52: ysoy | I52: 12 | J52: 0 | K52: 0 | L52: =L51 -> 2026-07-01 | M52: =P52*8 -> 0 | N52: =K52+M52 -> 0 | O52: 0 | P52: 0 | S52: 0 | T52: 0 | V52: -12 | W52: =IF(R47>=DATE(2017,7,1),CEILING(Y52*3%,10)+V52,V52) -> -12 | X52: 12 | Y52: 0 | Z52: 0 | AA52: 0 | AC52: 0 | AD52: 0 | AE52: 0 | AF52: 0 | AI52: 0 | AK52: 0 | AL52: 0 | AM52: ¼5½& dEI;wVj lsok ,oa j[kj[kko
A53: jktif=r | B53: 5 | G53: O;k[;krk | H53: ysoy | I53: 12 | J53: 0 | K53: 0 | L53: =L51 -> 2026-07-01 | M53: 0 | N53: 0 | O53: 0 | P53: 0 | S53: 0 | T53: 0 | V53: -12 | W53: =IF(R47>=DATE(2017,7,1),CEILING(Y53*3%,10)+V53,V53) -> -12 | X53: 12 | Y53: 0 | Z53: 0 | AA53: =Z53-Y53 -> 0 | AC53: 0 | AD53: 0 | AE53: 0 | AF53: 0 | AI53: 0 | AK53: 0 | AL53: 0 | AM53: ¼6½ ys[ku@eqnz.k O;;
A54: jktif=r | B54: 6 | G54: O;k[;krk | H54: ysoy | I54: 12 | J54: 0 | K54: 0 | L54: =L53 -> 2026-07-01 | M54: 0 | N54: 0 | O54: 0 | P54: 0 | S54: 0 | T54: 0 | V54: -12 | W54: =IF(R47>=DATE(2017,7,1),CEILING(Y54*3%,10)+V54,V54) -> -12 | X54: 12 | Y54: =J54 -> 0 | Z54: =SUM(W54:X54) -> 0 | AA54: 0 | AC54: 0 | AD54: 0 | AE54: 0 | AF54: 0 | AI54: 0 | AK54: 0 | AL54: 0 | AM54: ¼7½ nSfud osruHkksxh ¼U;k;ky; vkns'k ij½
A55: jktif=r | B55: 7 | G55: iz'kklfud vf/kdkjh | H55: ysoy | I55: 12 | J55: 0 | K55: 0 | L55: =L53 -> 2026-07-01 | M55: 0 | N55: 0 | O55: 0 | P55: 0 | S55: 0 | T55: 0 | V55: =Y55-X55 -> -12 | W55: =IF(R47>=DATE(2017,7,1),CEILING(Y55*3%,10)+V55,V55) -> -12 | X55: =I55 -> 12 | Y55: 0 | Z55: 0 | AA55: 0 | AC55: 0 | AD55: 0 | AE55: 0 | AF55: 0 | AI55: 0 | AK55: 0 | AL55: 0 | AM55: ¼8½ vU;
A56: vjktif=r | B56: 1 | D56: ANITA SHARMA | E56: RJBI201709025912 | F56: 556254 | G56: v/;kid | H56: ysoy | I56: 10 | J56: 42700 | K56: 512400 | L56: =L55 -> 2026-07-01 | M56: =P56*8 -> 10400 | N56: =K56+M56 -> 522800 | O56: =N56-P56*12 -> 507200 | P56: 1300 | S56: 1300 | T56: 1281 | V56: 42690 | W56: =IF(R47>=DATE(2017,7,1),CEILING(Y56*3%,10)+V56,V56) -> 43980 | X56: 10 | Y56: 42700 | Z56: 43990 | AA56: 1290 | AC56: 42700 | AD56: 1281 | AE56: 1290 | AF56: 43990 | AI56: 1290 | AK56: =SUM(AK48:AK55) -> 0 | AL56: =SUM(AL48:AL55) -> 0 | AM56: ;ksx dk;kZy; O;;
A57: vjktif=r | B57: 2 | D57: ANITA YADAV | E57: RJGA201235035721 | G57: v/;kid | H57: ysoy | I57: 10 | J57: 47900 | K57: 574800 | L57: 2026-07-01 | M57: 11200 | N57: 586000 | O57: 569200 | P57: 1400 | S57: 1400 | T57: 1437 | V57: 47890 | W57: =IF(R47>=DATE(2017,7,1),CEILING(Y57*3%,10)+V57,V57) -> 49330 | X57: 10 | Y57: 47900 | Z57: 49340 | AA57: 1440 | AC57: 47900 | AD57: 1437 | AE57: 1440 | AF57: 49340 | AI57: 1440 | AK57: 0 | AL57: 0 | AM57: 08& o`fÙkd ,oa fof'k"B lsokvksa ij lank; ¼dksVZ dsl vkfn ij O;;½
A58: vjktif=r | B58: 3 | D58: ARPANA YADAV | E58: RJJL201921009195 | F58: 632389 | G58: v/;kid | H58: ysoy | I58: 10 | J58: 38000 | K58: 456000 | L58: 2026-07-01 | M58: 8800 | N58: 464800 | O58: 451600 | P58: 1100 | S58: 1100 | T58: 1140 | V58: 37990 | W58: =IF(R47>=DATE(2017,7,1),CEILING(Y58*3%,10)+V58,V58) -> 39130 | X58: 10 | Y58: 38000 | Z58: 39140 | AA58: 1140 | AC58: 38000 | AD58: 1140 | AE58: 1140 | AF58: 39140 | AI58: 1140 | AK58: 0 | AL58: 0 | AM58: 09& fdjk;k jsV]dj@jk;YVh
A59: vjktif=r | B59: 4 | D59: ARUNA SWAMI | E59: RJBI201309018501 | G59: v/;kid | H59: ysoy | I59: 10 | J59: 46500 | K59: 558000 | L59: 2026-07-01 | M59: 11200 | N59: 569200 | O59: 552400 | P59: 1400 | S59: 1400 | T59: 1395 | V59: =Y59-X59 -> 46490 | W59: =IF(R47>=DATE(2017,7,1),CEILING(Y59*3%,10)+V59,V59) -> 47890 | X59: 10 | Y59: 46500 | Z59: =SUM(W59:X59) -> 47900 | AA59: 1400 | AC59: 46500 | AD59: 1395 | AE59: 1400 | AF59: 47900 | AI59: 1400 | AK59: 0 | AL59: 0 | AM59: 11& foKkiu
A60: vjktif=r | B60: 5 | D60: ASHA KUMARI | E60: RJBM201905006981 | G60: v/;kid | H60: ysoy | I60: 10 | J60: 38000 | K60: 456000 | L60: 2026-07-01 | M60: 8800 | N60: 464800 | O60: 451600 | P60: 1100 | S60: 1100 | T60: 1140 | V60: =Y60-X60 -> 37990 | W60: =IF(R47>=DATE(2017,7,1),CEILING(Y60*3%,10)+V60,V60) -> 39130 | X60: 10 | Y60: 38000 | Z60: =SUM(W60:X60) -> 39140 | AA60: 1140 | AC60: 38000 | AD60: 1140 | AE60: 1140 | AF60: 39140 | AI60: 1140 | AK60: 0 | AL60: 0 | AM60: 28& fofo/k O;;@57-fof'k"V lasok,sa
A61: vjktif=r | B61: 6 | D61: ASHOK KUMAR TANWAR | E61: RJBI199509008339 | F61: 346443 | G61: v/;kid | H61: ysoy | I61: 10 | J61: 75400 | K61: 904800 | L61: 2026-07-01 | M61: 18400 | N61: 923200 | O61: 895600 | P61: 2300 | S61: 2300 | T61: 2262 | V61: =Y61-X61 -> 75390 | W61: =IF(R47>=DATE(2017,7,1),CEILING(Y61*3%,10)+V61,V61) -> 77660 | X61: 10 | Y61: 75400 | Z61: =SUM(W61:X61) -> 77670 | AA61: 2270 | AC61: 75400 | AD61: 2262 | AE61: 2270 | AF61: 77670 | AI61: 2270 | AK61: 0 | AL61: 0 | AM61: 31& iqLrdky; ,oa i= if=dkvksa ij O;;
A62: vjktif=r | B62: 7 | D62: BABITA SHARMA | E62: RJRA201231034753 | G62: v/;kid | H62: ysoy | I62: 10 | J62: 47900 | K62: 574800 | L62: 2026-07-01 | M62: 11200 | N62: 586000 | O62: 569200 | P62: 1400 | S62: 1400 | T62: 1437 | V62: =Y62-X62 -> 47890 | W62: =IF(R47>=DATE(2017,7,1),CEILING(Y62*3%,10)+V62,V62) -> 49330 | X62: 10 | Y62: 47900 | Z62: =SUM(W62:X62) -> 49340 | AA62: =Z62-Y62 -> 1440 | AC62: 47900 | AD62: 1437 | AE62: 1440 | AF62: 49340 | AI62: 1440 | AK62: 0 | AL62: 0 | AM62: 36& okgu fdjk;k
A63: vjktif=r | B63: 8 | D63: BABULAL KUMHAR | E63: RJBI201209020700 | F63: 547277 | G63: v/;kid | H63: ysoy | I63: 10 | J63: 47900 | K63: =J63*12 -> 574800 | L63: 2026-07-01 | M63: =P63*8 -> 11200 | N63: =K63+M63 -> 586000 | O63: =N63-P63*12 -> 569200 | P63: 1400 | S63: 1400 | T63: 1437 | V63: =Y63-X63 -> 47890 | W63: =IF(R47>=DATE(2017,7,1),CEILING(Y63*3%,10)+V63,V63) -> 49330 | X63: =I63 -> 10 | Y63: =J63 -> 47900 | Z63: =SUM(W63:X63) -> 49340 | AA63: =Z63-Y63 -> 1440 | AC63: =J63 -> 47900 | AD63: =AC63*3/100 -> 1437 | AE63: =ROUNDUP(AD63,-1) -> 1440 | AF63: =AC63+AE63 -> 49340 | AI63: =AF63-J63 -> 1440 | AK63: =L7 -> 0 | AL63: =AK63 -> 0 | AM63: 37& ofnZ;ka
A64: vjktif=r | B64: 9 | D64: BABURAM DANWA | E64: RJBI200509009391 | G64: v/;kid | H64: ysoy | I64: 10 | J64: 61300 | K64: 735600 | L64: 2026-07-01 | M64: =P64*8 -> 14400 | N64: 750000 | O64: =N64-P64*12 -> 728400 | P64: 1800 | S64: 1800 | T64: 1839 | V64: 61290 | W64: =IF(R47>=DATE(2017,7,1),CEILING(Y64*3%,10)+V64,V64) -> 63130 | X64: 10 | Y64: 61300 | Z64: 63140 | AA64: 1840 | AC64: 61300 | AD64: 1839 | AE64: 1840 | AF64: 63140 | AI64: 1840 | AK64: 0 | AL64: 0 | AM64: 41& lafonk ij O;;
A65: vjktif=r | B65: 10 | D65: BAJRANG LAL KUMHAR | E65: RJBI201709001567 | F65: 542161 | G65: v/;kid | H65: ysoy | I65: 10 | J65: 50800 | K65: =J65*12 -> 609600 | L65: 2026-07-01 | M65: =P65*8 -> 12000 | N65: =K65+M65 -> 621600 | O65: =N65-P65*12 -> 603600 | P65: 1500 | S65: 1500 | T65: 1524 | V65: =Y65-X65 -> 50790 | W65: =IF(R47>=DATE(2017,7,1),CEILING(Y65*3%,10)+V65,V65) -> 52320 | X65: =I65 -> 10 | Y65: =J65 -> 50800 | Z65: =SUM(W65:X65) -> 52330 | AA65: =Z65-Y65 -> 1530 | AC65: =J65 -> 50800 | AD65: =AC65*3/100 -> 1524 | AE65: =ROUNDUP(AD65,-1) -> 1530 | AF65: =AC65+AE65 -> 52330 | AI65: =AF65-J65 -> 1530 | AK65: 0 | AL65: 0 | AM65: 62& dEI;wVjkbZts'ku ,oa rRlaca/kh lapkj O;;
A66: vjktif=r | B66: 11 | D66: BASANT KUMAR GIRI | E66: RJBI201809009748 | F66: 568725 | G66: v/;kid | H66: ysoy | I66: 10 | J66: 39100 | K66: 469200 | L66: 2026-07-01 | M66: 9600 | N66: 478800 | O66: 464400 | P66: 1200 | S66: 1200 | T66: 1173 | V66: =Y66-X66 -> 39090 | W66: =IF(R47>=DATE(2017,7,1),CEILING(Y66*3%,10)+V66,V66) -> 40270 | X66: 10 | Y66: 39100 | Z66: =SUM(W66:X66) -> 40280 | AA66: 1180 | AC66: 39100 | AD66: 1173 | AE66: 1180 | AF66: 40280 | AI66: 1180 | AK66: =SUM(AK57:AK65) -> 0 | AL66: =SUM(AL57:AL65) -> 0 | AM66: ;ksx
A67: vjktif=r | B67: 12 | D67: BHARTI PUROHIT | E67: RJBI200109000410 | F67: 335938 | G67: v/;kid | H67: ysoy | I67: 10 | J67: 49300 | K67: =J67*12 -> 591600 | L67: 2026-07-01 | M67: =P67*8 -> 12000 | N67: =K67+M67 -> 603600 | O67: =N67-P67*12 -> 585600 | P67: 1500 | S67: 1500 | T67: 1479 | V67: =Y67-X67 -> 49290 | W67: =IF(R47>=DATE(2017,7,1),CEILING(Y67*3%,10)+V67,V67) -> 50770 | X67: =I67 -> 10 | Y67: =J67 -> 49300 | Z67: =SUM(W67:X67) -> 50780 | AA67: =Z67-Y67 -> 1480 | AC67: =J67 -> 49300 | AD67: =AC67*3/100 -> 1479 | AE67: =ROUNDUP(AD67,-1) -> 1480 | AF67: =AC67+AE67 -> 50780 | AI67: =AF67-J67 -> 1480
A68: vjktif=r | B68: 13 | D68: CHNDU KUMARI | E68: RJBI201209019224 | G68: v/;kid | H68: ysoy | I68: 10 | J68: 47900 | K68: =J68*12 -> 574800 | L68: 2026-07-01 | M68: =P68*8 -> 11200 | N68: =K68+M68 -> 586000 | O68: =N68-P68*12 -> 569200 | P68: 1400 | S68: 1400 | T68: 1437 | V68: =Y68-X68 -> 47890 | W68: =IF(R47>=DATE(2017,7,1),CEILING(Y68*3%,10)+V68,V68) -> 49330 | X68: =I68 -> 10 | Y68: =J68 -> 47900 | Z68: =SUM(W68:X68) -> 49340 | AA68: =Z68-Y68 -> 1440 | AC68: =J68 -> 47900 | AD68: =AC68*3/100 -> 1437 | AE68: =ROUNDUP(AD68,-1) -> 1440 | AF68: =AC68+AE68 -> 49340 | AI68: =AF68-J68 -> 1440
A69: vjktif=r | B69: 14 | D69: CHUNNA SARAN | E69: RJBI201509034080 | F69: 377519 | G69: 'kk-f'k- | H69: ysoy | I69: 10 | J69: 42700 | K69: 512400 | L69: 2026-07-01 | M69: 10400 | N69: 522800 | O69: 507200 | P69: 1300 | S69: 1300 | T69: 1281 | V69: 42690 | W69: =IF(R47>=DATE(2017,7,1),CEILING(Y69*3%,10)+V69,V69) -> 43980 | X69: 10 | Y69: 42700 | Z69: 43990 | AA69: 1290 | AC69: 42700 | AD69: 1281 | AE69: 1290 | AF69: 43990 | AI69: 1290
A70: vjktif=r | B70: 15 | D70: DEEPA BAMNIYA | E70: RJBI201209031330 | F70: 364589 | G70: v/;kid | H70: ysoy | I70: 10 | J70: 47900 | K70: 574800 | L70: 2026-07-01 | M70: 11200 | N70: 586000 | O70: 569200 | P70: 1400 | S70: 1400 | T70: 1437 | V70: 47890 | W70: =IF(R47>=DATE(2017,7,1),CEILING(Y70*3%,10)+V70,V70) -> 49330 | X70: 10 | Y70: 47900 | Z70: 49340 | AA70: 1440 | AC70: 47900 | AD70: 1437 | AE70: 1440 | AF70: 49340 | AI70: 1440
A71: vjktif=r | B71: 16 | D71: DEVENDER KUMAR GAHALOT | E71: RJBI201309026808 | F71: 633508 | G71: v/;kid | H71: ysoy | I71: 10 | J71: 47900 | K71: 574800 | L71: 2026-07-01 | M71: 11200 | N71: 586000 | O71: 569200 | P71: 1400 | S71: 1400 | T71: 1437 | V71: 47890 | W71: =IF(R47>=DATE(2017,7,1),CEILING(Y71*3%,10)+V71,V71) -> 49330 | X71: 10 | Y71: 47900 | Z71: 49340 | AA71: 1440 | AC71: 47900 | AD71: 1437 | AE71: 1440 | AF71: 49340 | AI71: 1440
A72: vjktif=r | B72: 17 | D72: DURGA OJHA | E72: RJBI201909003344 | G72: v/;kid | H72: ysoy | I72: 10 | J72: 38000 | K72: 456000 | L72: 2026-07-01 | M72: 8800 | N72: 464800 | O72: 451600 | P72: 1100 | S72: 1100 | T72: 1140 | V72: 37990 | W72: =IF(R47>=DATE(2017,7,1),CEILING(Y72*3%,10)+V72,V72) -> 39130 | X72: 10 | Y72: 38000 | Z72: 39140 | AA72: 1140 | AC72: 38000 | AD72: 1140 | AE72: 1140 | AF72: 39140 | AI72: 1140
A73: vjktif=r | B73: 18 | D73: FIZA FATMA | E73: RJBI201709020349 | F73: 550946 | G73: v/;kid | H73: ysoy | I73: 10 | J73: 39100 | K73: =J73*12 -> 469200 | L73: 2026-07-01 | M73: =P73*8 -> 9600 | N73: =K73+M73 -> 478800 | O73: =N73-P73*12 -> 464400 | P73: =S73 -> 1200 | S73: =ROUND(T73,-2) -> 1200 | T73: =J73*3/100 -> 1173 | V73: =Y73-X73 -> 39090 | W73: =IF(R47>=DATE(2017,7,1),CEILING(Y73*3%,10)+V73,V73) -> 40270 | X73: =I73 -> 10 | Y73: =J73 -> 39100 | Z73: =SUM(W73:X73) -> 40280 | AA73: 1180 | AC73: =J73 -> 39100 | AD73: =AC73*3/100 -> 1173 | AE73: =ROUNDUP(AD73,-1) -> 1180 | AF73: =AC73+AE73 -> 40280 | AI73: =AF73-J73 -> 1180
A74: vjktif=r | B74: 19 | D74: GANESH NARAYAN HARITWAL | E74: RJBI202009025005 | G74: v/;kid | H74: ysoy | I74: 10 | J74: 35800 | K74: 429600 | L74: 2026-07-01 | M74: 8800 | N74: 438400 | O74: 425200 | P74: 1100 | S74: 1100 | T74: 1074 | V74: 35790 | W74: =IF(R47>=DATE(2017,7,1),CEILING(Y74*3%,10)+V74,V74) -> 36870 | X74: 10 | Y74: 35800 | Z74: 36880 | AA74: 1080 | AC74: 35800 | AD74: 1074 | AE74: 1080 | AF74: 36880 | AI74: 1080
A75: vjktif=r | B75: 20 | D75: GAUTAM JAJRA | E75: RJBI201209022599 | F75: 377279 | G75: v/;kid | H75: ysoy | I75: 10 | J75: 47900 | K75: 574800 | L75: 2026-07-01 | M75: 11200 | N75: 586000 | O75: 569200 | P75: 1400 | S75: 1400 | T75: 1437 | V75: 47890 | W75: =IF(R47>=DATE(2017,7,1),CEILING(Y75*3%,10)+V75,V75) -> 49330 | X75: 10 | Y75: 47900 | Z75: 49340 | AA75: 1440 | AC75: 47900 | AD75: 1437 | AE75: 1440 | AF75: 49340 | AI75: 1440
A76: vjktif=r | B76: 21 | D76: INDU BALA | E76: RJBI201909033830 | G76: v/;kid | H76: ysoy | I76: 10 | J76: 36900 | K76: 442800 | L76: 2026-07-01 | M76: 8800 | N76: 451600 | O76: 438400 | P76: 1100 | S76: 1100 | T76: 1107 | V76: 36890 | W76: =IF(R47>=DATE(2017,7,1),CEILING(Y76*3%,10)+V76,V76) -> 38000 | X76: 10 | Y76: 36900 | Z76: 38010 | AA76: =Z76-Y76 -> 1110 | AC76: 36900 | AD76: 1107 | AE76: 1110 | AF76: 38010 | AI76: 1110
A77: vjktif=r | B77: 22 | D77: JAGDISH PRASAD | E77: RJJL201221024594 | F77: 557865 | G77: v/;kid | H77: ysoy | I77: 10 | J77: 42700 | K77: 512400 | L77: 2026-07-01 | M77: 10400 | N77: 522800 | O77: 507200 | P77: 1300 | S77: 1300 | T77: 1281 | V77: 42690 | W77: =IF(R47>=DATE(2017,7,1),CEILING(Y77*3%,10)+V77,V77) -> 43980 | X77: 10 | Y77: 42700 | Z77: 43990 | AA77: 1290 | AC77: 42700 | AD77: 1281 | AE77: 1290 | AF77: 43990 | AI77: 1290
A78: vjktif=r | B78: 23 | D78: KAMLA NAYAK | E78: RJJS200720011537 | F78: 358515 | G78: v/;kid | H78: ysoy | I78: 10 | J78: 52300 | K78: 627600 | L78: 2026-07-01 | M78: 12800 | N78: 640400 | O78: 621200 | P78: 1600 | S78: 1600 | T78: 1569 | V78: 52290 | W78: =IF(R47>=DATE(2017,7,1),CEILING(Y78*3%,10)+V78,V78) -> 53860 | X78: 10 | Y78: 52300 | Z78: 53870 | AA78: 1570 | AC78: 52300 | AD78: 1569 | AE78: 1570 | AF78: 53870 | AI78: 1570
A79: vjktif=r | B79: 24 | D79: KAUSHALYA SAINI | E79: RJBM201905011981 | F79: 632428 | G79: v/;kid | H79: ysoy | I79: 10 | J79: 38000 | K79: 456000 | L79: 2026-07-01 | M79: 8800 | N79: 464800 | O79: 451600 | P79: 1100 | S79: 1100 | T79: 1140 | V79: 37990 | W79: =IF(R47>=DATE(2017,7,1),CEILING(Y79*3%,10)+V79,V79) -> 39130 | X79: 10 | Y79: 38000 | Z79: 39140 | AA79: 1140 | AC79: 38000 | AD79: 1140 | AE79: 1140 | AF79: 39140 | AI79: 1140
A80: vjktif=r | B80: 25 | D80: KAVITA RANI | E80: RJBI200809006536 | F80: 377192 | G80: v/;kid | H80: ysoy | I80: 10 | J80: 50800 | K80: 609600 | L80: 2026-07-01 | M80: 12000 | N80: 621600 | O80: 603600 | P80: 1500 | S80: 1500 | T80: 1524 | V80: 50790 | W80: =IF(R47>=DATE(2017,7,1),CEILING(Y80*3%,10)+V80,V80) -> 52320 | X80: 10 | Y80: 50800 | Z80: 52330 | AA80: 1530 | AC80: 50800 | AD80: 1524 | AE80: 1530 | AF80: 52330 | AI80: 1530
A81: vjktif=r | B81: 26 | D81: KAVITA YADAV | E81: RJBM201905011901 | F81: 632166 | G81: v/;kid | H81: ysoy | I81: 10 | J81: 36900 | K81: 442800 | L81: 2026-07-01 | M81: 8800 | N81: 451600 | O81: 438400 | P81: 1100 | S81: 1100 | T81: 1107 | V81: =Y81-X81 -> 36890 | W81: =IF(R47>=DATE(2017,7,1),CEILING(Y81*3%,10)+V81,V81) -> 38000 | X81: =I81 -> 10 | Y81: =J81 -> 36900 | Z81: =SUM(W81:X81) -> 38010 | AA81: =Z81-Y81 -> 1110 | AC81: 36900 | AD81: 1107 | AE81: 1110 | AF81: 38010 | AI81: 1110
A82: vjktif=r | B82: 27 | D82: KHUSHBOO | E82: RJBM200705007645 | F82: 403195 | G82: v/;kid | H82: ysoy | I82: 10 | J82: 52300 | K82: 627600 | L82: 2026-07-01 | M82: 12800 | N82: 640400 | O82: 621200 | P82: 1600 | S82: 1600 | T82: 1569 | V82: 52290 | W82: =IF(R47>=DATE(2017,7,1),CEILING(Y82*3%,10)+V82,V82) -> 53860 | X82: 10 | Y82: 52300 | Z82: 53870 | AA82: 1570 | AC82: 52300 | AD82: 1569 | AE82: 1570 | AF82: 53870 | AI82: 1570
A83: vjktif=r | B83: 28 | D83: KRISHAN KUMAR KHATRI | E83: RJBI199509008763 | G83: v/;kid | H83: ysoy | I83: 10 | J83: 75400 | K83: 904800 | L83: 2026-07-01 | M83: 18400 | N83: 923200 | O83: 895600 | P83: 2300 | S83: 2300 | T83: 2262 | V83: 75390 | W83: =IF(R47>=DATE(2017,7,1),CEILING(Y83*3%,10)+V83,V83) -> 77660 | X83: 10 | Y83: 75400 | Z83: 77670 | AA83: 2270 | AC83: 75400 | AD83: 2262 | AE83: 2270 | AF83: 77670 | AI83: 2270
A84: vjktif=r | B84: 29 | D84: LALITA PARIHAR | E84: RJBI201209019214 | G84: v/;kid | H84: ysoy | I84: 10 | J84: 47900 | K84: 574800 | L84: 2026-07-01 | M84: 11200 | N84: 586000 | O84: 569200 | P84: 1400 | S84: 1400 | T84: 1437 | V84: 47890 | W84: =IF(R47>=DATE(2017,7,1),CEILING(Y84*3%,10)+V84,V84) -> 49330 | X84: 10 | Y84: 47900 | Z84: 49340 | AA84: 1440 | AC84: 47900 | AD84: 1437 | AE84: 1440 | AF84: 49340 | AI84: 1440
A85: vjktif=r | B85: 30 | D85: LALITA SANKHALA | E85: RJBI201909016012 | F85: 599151 | G85: v/;kid | H85: ysoy | I85: 10 | J85: 38000 | K85: 456000 | L85: 2026-07-01 | M85: 8800 | N85: 464800 | O85: 451600 | P85: 1100 | S85: 1100 | T85: 1140 | V85: 37990 | W85: =IF(R47>=DATE(2017,7,1),CEILING(Y85*3%,10)+V85,V85) -> 39130 | X85: 10 | Y85: 38000 | Z85: 39140 | AA85: 1140 | AC85: 38000 | AD85: 1140 | AE85: 1140 | AF85: 39140 | AI85: 1140
A86: vjktif=r | B86: 31 | D86: LAXMAN SINGH SANKHLA | E86: RJBI200509015139 | G86: v/;kid | H86: ysoy | I86: 10 | J86: 61300 | K86: 735600 | L86: 2026-07-01 | M86: 14400 | N86: 750000 | O86: 728400 | P86: 1800 | S86: 1800 | T86: 1839 | V86: 61290 | W86: =IF(R47>=DATE(2017,7,1),CEILING(Y86*3%,10)+V86,V86) -> 63130 | X86: 10 | Y86: 61300 | Z86: 63140 | AA86: 1840 | AC86: 61300 | AD86: 1839 | AE86: 1840 | AF86: 63140 | AI86: 1840
A87: vjktif=r | B87: 32 | D87: LAXMI BENIWAL | E87: RJBI201709041566 | F87: 556231 | G87: v/;kid | H87: ysoy | I87: 10 | J87: 42700 | K87: 512400 | L87: 2026-07-01 | M87: 10400 | N87: 522800 | O87: 507200 | P87: 1300 | S87: 1300 | T87: 1281 | V87: 42690 | W87: =IF(R47>=DATE(2017,7,1),CEILING(Y87*3%,10)+V87,V87) -> 43980 | X87: 10 | Y87: 42700 | Z87: 43990 | AA87: 1290 | AC87: 42700 | AD87: 1281 | AE87: 1290 | AF87: 43990 | AI87: 1290
A88: vjktif=r | B88: 33 | D88: LEKHNATH SIDH | E88: RJBI202009025020 | G88: v/;kid | H88: ysoy | I88: 10 | J88: 35800 | K88: 429600 | L88: 2026-07-01 | M88: 8800 | N88: 438400 | O88: 425200 | P88: 1100 | S88: 1100 | T88: 1074 | V88: 35790 | W88: =IF(R47>=DATE(2017,7,1),CEILING(Y88*3%,10)+V88,V88) -> 36870 | X88: 10 | Y88: 35800 | Z88: 36880 | AA88: 1080 | AC88: 35800 | AD88: 1074 | AE88: 1080 | AF88: 36880 | AI88: 1080
A89: vjktif=r | B89: 34 | D89: MANGI LAL | E89: RJJS200720011017 | F89: 338313 | G89: v/;kid | H89: ysoy | I89: 10 | J89: 52300 | K89: 627600 | L89: 2026-07-01 | M89: 12800 | N89: 640400 | O89: 621200 | P89: 1600 | S89: 1600 | T89: 1569 | V89: 52290 | W89: =IF(R47>=DATE(2017,7,1),CEILING(Y89*3%,10)+V89,V89) -> 53860 | X89: 10 | Y89: 52300 | Z89: 53870 | AA89: 1570 | AC89: 52300 | AD89: 1569 | AE89: 1570 | AF89: 53870 | AI89: 1570
A90: vjktif=r | B90: 35 | D90: MANJU CHAUDHARI | E90: RJBI201709025922 | F90: 556241 | G90: v/;kid | H90: ysoy | I90: 10 | J90: 42700 | K90: 512400 | L90: 2026-07-01 | M90: 10400 | N90: 522800 | O90: 507200 | P90: 1300 | S90: 1300 | T90: 1281 | V90: 42690 | W90: =IF(R47>=DATE(2017,7,1),CEILING(Y90*3%,10)+V90,V90) -> 43980 | X90: 10 | Y90: 42700 | Z90: 43990 | AA90: 1290 | AC90: 42700 | AD90: 1281 | AE90: 1290 | AF90: 43990 | AI90: 1290
A91: vjktif=r | B91: 36 | D91: MEENA PUNJABI | E91: RJBI199609003728 | F91: 532729 | G91: v/;kid | H91: ysoy | I91: 10 | J91: 67000 | K91: 804000 | L91: 2026-07-01 | M91: 16000 | N91: 820000 | O91: 796000 | P91: 2000 | S91: 2000 | T91: 2010 | V91: 66990 | W91: =IF(R47>=DATE(2017,7,1),CEILING(Y91*3%,10)+V91,V91) -> 69000 | X91: 10 | Y91: 67000 | Z91: 69010 | AA91: 2010 | AC91: 67000 | AD91: 2010 | AE91: 2010 | AF91: 69010 | AI91: 2010
A92: vjktif=r | B92: 37 | D92: MINAKSHI | E92: RJBI201509005231 | F92: 502709 | G92: v/;kid | H92: ysoy | I92: 10 | J92: 45100 | K92: 541200 | L92: 2026-07-01 | M92: 11200 | N92: 552400 | O92: 535600 | P92: 1400 | S92: 1400 | T92: 1353 | V92: 45090 | W92: =IF(R47>=DATE(2017,7,1),CEILING(Y92*3%,10)+V92,V92) -> 46450 | X92: 10 | Y92: 45100 | Z92: 46460 | AA92: 1360 | AC92: 45100 | AD92: 1353 | AE92: 1360 | AF92: 46460 | AI92: 1360
A93: vjktif=r | B93: 38 | D93: MINAKSHI SANKHLA | E93: RJJO200725006788 | F93: 496421 | G93: v/;kid | H93: ysoy | I93: 10 | J93: 52300 | K93: 627600 | L93: 2026-07-01 | M93: 12800 | N93: 640400 | O93: 621200 | P93: 1600 | S93: 1600 | T93: 1569 | V93: 52290 | W93: =IF(R47>=DATE(2017,7,1),CEILING(Y93*3%,10)+V93,V93) -> 53860 | X93: 10 | Y93: 52300 | Z93: 53870 | AA93: 1570 | AC93: 52300 | AD93: 1569 | AE93: 1570 | AF93: 53870 | AI93: 1570
A94: vjktif=r | B94: 39 | D94: MINAXI TANWAR | E94: RJJL201921002461 | G94: v/;kid | H94: ysoy | I94: 10 | J94: 38000 | K94: 456000 | L94: 2026-07-01 | M94: 8800 | N94: 464800 | O94: 451600 | P94: 1100 | S94: 1100 | T94: 1140 | V94: 37990 | W94: =IF(R47>=DATE(2017,7,1),CEILING(Y94*3%,10)+V94,V94) -> 39130 | X94: 10 | Y94: 38000 | Z94: 39140 | AA94: 1140 | AC94: 38000 | AD94: 1140 | AE94: 1140 | AF94: 39140 | AI94: 1140
A95: vjktif=r | B95: 40 | D95: MUKTA RANI | E95: RJBI201709039550 | F95: 563425 | G95: 'kk-f'k- | H95: ysoy | I95: 10 | J95: 45100 | K95: 541200 | L95: 2026-07-01 | M95: 11200 | N95: 552400 | O95: 535600 | P95: 1400 | S95: 1400 | T95: 1353 | V95: 45090 | W95: =IF(R47>=DATE(2017,7,1),CEILING(Y95*3%,10)+V95,V95) -> 46450 | X95: 10 | Y95: 45100 | Z95: 46460 | AA95: 1360 | AC95: 45100 | AD95: 1353 | AE95: 1360 | AF95: 46460 | AI95: 1360
A96: vjktif=r | B96: 41 | D96: ONKAR SINGH RATHORE | E96: RJBI199309008951 | F96: 359704 | G96: v/;kid | H96: ysoy | I96: 10 | J96: 71100 | K96: 853200 | L96: 2026-07-01 | M96: 16800 | N96: 870000 | O96: 844800 | P96: 2100 | S96: 2100 | T96: 2133 | V96: 71090 | W96: =IF(R47>=DATE(2017,7,1),CEILING(Y96*3%,10)+V96,V96) -> 73230 | X96: 10 | Y96: 71100 | Z96: 73240 | AA96: 2140 | AC96: 71100 | AD96: 2133 | AE96: 2140 | AF96: 73240 | AI96: 2140
A97: vjktif=r | B97: 42 | D97: PRAVEEN SINGH SHEKHAWAT | E97: RJJL201521004887 | G97: v/;kid | H97: ysoy | I97: 10 | J97: 45100 | K97: 541200 | L97: 2026-07-01 | M97: 11200 | N97: 552400 | O97: 535600 | P97: 1400 | S97: 1400 | T97: 1353 | V97: 45090 | W97: =IF(R47>=DATE(2017,7,1),CEILING(Y97*3%,10)+V97,V97) -> 46450 | X97: 10 | Y97: =J97 -> 45100 | Z97: =SUM(W97:X97) -> 46460 | AA97: 1360 | AC97: 45100 | AD97: 1353 | AE97: 1360 | AF97: 46460 | AI97: 1360
A98: vjktif=r | B98: 43 | D98: PUNAM KUMARI RAO | E98: RJBI201709037445 | F98: 564123 | G98: v/;kid | H98: ysoy | I98: 10 | J98: 42700 | K98: 512400 | L98: 2026-07-01 | M98: 10400 | N98: 522800 | O98: 507200 | P98: 1300 | S98: 1300 | T98: 1281 | V98: 42690 | W98: =IF(R48>=DATE(2017,7,1),CEILING(Y98*3%,10)+V98,V98) -> 42690 | X98: 10 | Y98: 42700 | Z98: 42700 | AA98: 0 | AC98: 42700 | AD98: 1281 | AE98: 1290 | AF98: 43990 | AI98: 1290
A99: vjktif=r | B99: 44 | D99: RAJA RAM | E99: RJBM200705007810 | F99: 505952 | G99: v/;kid | H99: ysoy | I99: 10 | J99: 52300 | K99: 627600 | L99: 2026-07-01 | M99: 12800 | N99: 640400 | O99: 621200 | P99: 1600 | S99: 1600 | T99: 1569 | V99: 52290 | W99: 52290 | X99: 10 | Y99: 52300 | Z99: 52300 | AA99: 0 | AC99: 52300 | AD99: 1569 | AE99: 1570 | AF99: 53870 | AI99: 1570
A100: vjktif=r | B100: 45 | D100: RAJENDRA KUMAR JANAGAL | E100: RJBI200809002855 | F100: 398773 | G100: v/;kid | H100: ysoy | I100: 10 | J100: 50800 | K100: 609600 | L100: 2026-07-01 | M100: 12000 | N100: 621600 | O100: 603600 | P100: 1500 | S100: 1500 | T100: 1524 | V100: 50790 | W100: 50790 | X100: 10 | Y100: 50800 | Z100: 50800 | AA100: 0 | AC100: 50800 | AD100: 1524 | AE100: 1530 | AF100: 52330 | AI100: 1530
A101: vjktif=r | B101: 46 | D101: RAJLAXMI MODI | E101: RJBM200705003128 | F101: 542309 | G101: v/;kid | H101: ysoy | I101: 10 | J101: 52300 | K101: 627600 | L101: 2026-07-01 | M101: 12800 | N101: 640400 | O101: 621200 | P101: 1600 | S101: 1600 | T101: 1569 | V101: 52290 | W101: 52290 | X101: 10 | Y101: 52300 | Z101: 52300 | AA101: 0 | AC101: 52300 | AD101: 1569 | AE101: 1570 | AF101: 53870 | AI101: 1570
A102: vjktif=r | B102: 47 | D102: RAKHI DADHICH | E102: RJBI201309034482 | F102: 532945 | G102: v/;kid | H102: ysoy | I102: 10 | J102: 46500 | K102: 558000 | L102: 2026-07-01 | M102: 11200 | N102: 569200 | O102: 552400 | P102: 1400 | S102: 1400 | T102: 1395 | V102: 46490 | W102: 46490 | X102: 10 | Y102: 46500 | Z102: 46500 | AA102: 0 | AC102: 46500 | AD102: 1395 | AE102: 1400 | AF102: 47900 | AI102: 1400
A103: vjktif=r | B103: 48 | D103: RAM DAYAL JAKHAR | E103: RJBI201509031406 | F103: 377835 | G103: v/;kid | H103: ysoy | I103: 10 | J103: 45100 | K103: 541200 | L103: 2026-07-01 | M103: 11200 | N103: 552400 | O103: 535600 | P103: 1400 | S103: 1400 | T103: 1353 | V103: 45090 | W103: 45090 | X103: 10 | Y103: 45100 | Z103: 45100 | AA103: 0 | AC103: 45100 | AD103: 1353 | AE103: 1360 | AF103: 46460 | AI103: 1360
A104: vjktif=r | B104: 49 | D104: RENU KUMARI | E104: RJBI201709020304 | F104: 550940 | G104: v/;kid | H104: ysoy | I104: 10 | J104: 39100 | K104: 469200 | L104: 2026-07-01 | M104: 9600 | N104: 478800 | O104: 464400 | P104: 1200 | S104: 1200 | T104: 1173 | V104: 39090 | W104: 39090 | X104: 10 | Y104: 39100 | Z104: 39100 | AA104: 0 | AC104: 39100 | AD104: 1173 | AE104: 1180 | AF104: 40280 | AI104: 1180
A105: vjktif=r | B105: 50 | D105: RUCHI BHARDWAJ | E105: RJBI201809047210 | F105: 587691 | G105: v/;kid | H105: ysoy | I105: 10 | J105: 38000 | K105: 456000 | L105: 2026-07-01 | M105: 8800 | N105: 464800 | O105: 451600 | P105: 1100 | S105: 1100 | T105: 1140 | V105: 37990 | W105: 37990 | X105: 10 | Y105: 38000 | Z105: 38000 | AA105: 0 | AC105: 38000 | AD105: 1140 | AE105: 1140 | AF105: 39140 | AI105: 1140
A106: vjktif=r | B106: 51 | D106: RUPALI TYAGI | E106: RJBI201909014914 | F106: 610256 | G106: v/;kid | H106: ysoy | I106: 10 | J106: 38000 | K106: 456000 | L106: 2026-07-01 | M106: 8800 | N106: 464800 | O106: 451600 | P106: 1100 | S106: 1100 | T106: 1140 | V106: 37990 | W106: 37990 | X106: 10 | Y106: 38000 | Z106: 38000 | AA106: 0 | AC106: 38000 | AD106: 1140 | AE106: 1140 | AF106: 39140 | AI106: 1140
A107: vjktif=r | B107: 52 | D107: SAHI RAM | E107: RJJW20122200570 | G107: v/;kid | H107: ysoy | I107: 10 | J107: 47900 | K107: 574800 | L107: 2026-07-01 | M107: 11200 | N107: 586000 | O107: 569200 | P107: 1400 | S107: 1400 | T107: 1437 | V107: 47890 | W107: 47890 | X107: 10 | Y107: 47900 | Z107: 47900 | AA107: 0 | AC107: 47900 | AD107: 1437 | AE107: 1440 | AF107: 49340 | AI107: 1440
A108: vjktif=r | B108: 53 | D108: SANJANA TANWAR | E108: RJBI201809008928 | F108: 566535 | G108: v/;kid | H108: ysoy | I108: 10 | J108: 39100 | K108: 469200 | L108: 2026-07-01 | M108: 9600 | N108: 478800 | O108: 464400 | P108: 1200 | S108: 1200 | T108: 1173 | V108: 39090 | W108: 39090 | X108: 10 | Y108: 39100 | Z108: 39100 | AA108: 0 | AC108: 39100 | AD108: 1173 | AE108: 1180 | AF108: 40280 | AI108: 1180
A109: vjktif=r | B109: 54 | D109: SARITA SHARMA | E109: RJBI201209019229 | F109: 526037 | G109: v/;kid | H109: ysoy | I109: 10 | J109: 47900 | K109: 574800 | L109: 2026-07-01 | M109: 11200 | N109: 586000 | O109: 569200 | P109: 1400 | S109: 1400 | T109: 1437 | V109: 47890 | W109: 47890 | X109: 10 | Y109: 47900 | Z109: 47900 | AA109: 0 | AC109: 47900 | AD109: 1437 | AE109: 1440 | AF109: 49340 | AI109: 1440
A110: vjktif=r | B110: 55 | D110: SAZIDA JOIYA | E110: RJBI201209028116 | F110: 526048 | G110: v/;kid | H110: ysoy | I110: 10 | J110: 47900 | K110: 574800 | L110: 2026-07-01 | M110: 11200 | N110: 586000 | O110: 569200 | P110: 1400 | S110: 1400 | T110: 1437 | V110: 47890 | W110: 47890 | X110: 10 | Y110: 47900 | Z110: 47900 | AA110: 0 | AC110: 47900 | AD110: 1437 | AE110: 1440 | AF110: 49340 | AI110: 1440
A111: vjktif=r | B111: 56 | D111: SHISHRAM DHAYAL | E111: RJBI199709011109 | F111: 359833 | G111: v/;kid | H111: ysoy | I111: 10 | J111: 69000 | K111: 828000 | L111: 2026-07-01 | M111: 16800 | N111: 844800 | O111: 819600 | P111: 2100 | S111: 2100 | T111: 2070 | V111: 68990 | W111: 68990 | X111: 10 | Y111: 69000 | Z111: 69000 | AA111: 0 | AC111: 69000 | AD111: 2070 | AE111: 2070 | AF111: 71070 | AI111: 2070
A112: vjktif=r | B112: 57 | D112: SHOBHANA | E112: RJBI201709021435 | F112: 550935 | G112: v/;kid | H112: ysoy | I112: 10 | J112: 39100 | K112: 469200 | L112: 2026-07-01 | M112: 9600 | N112: 478800 | O112: 464400 | P112: 1200 | S112: 1200 | T112: 1173 | V112: 39090 | W112: 39090 | X112: 10 | Y112: 39100 | Z112: 39100 | AA112: 0 | AC112: 39100 | AD112: 1173 | AE112: 1180 | AF112: 40280 | AI112: 1180
A113: vjktif=r | B113: 58 | D113: SITARAM | E113: RJBI200809012267 | G113: v/;kid | H113: ysoy | I113: 10 | J113: 50800 | K113: 609600 | L113: 2026-07-01 | M113: 12000 | N113: 621600 | O113: 603600 | P113: 1500 | S113: 1500 | T113: 1524 | V113: 50790 | W113: 50790 | X113: 10 | Y113: 50800 | Z113: 50800 | AA113: 0 | AC113: 50800 | AD113: 1524 | AE113: 1530 | AF113: 52330 | AI113: 1530
A114: vjktif=r | B114: 59 | D114: SULOCHANA | E114: RJBI200809048981 | F114: 429387 | G114: v/;kid | H114: ysoy | I114: 10 | J114: 50800 | K114: 609600 | L114: 2026-07-01 | M114: 12000 | N114: 621600 | O114: 603600 | P114: 1500 | S114: 1500 | T114: 1524 | V114: 50790 | W114: 50790 | X114: 10 | Y114: 50800 | Z114: 50800 | AA114: 0 | AC114: 50800 | AD114: 1524 | AE114: 1530 | AF114: 52330 | AI114: 1530
A115: vjktif=r | B115: 60 | D115: SUMAN RAMAVAT | E115: RJBI200809012629 | G115: v/;kid | H115: ysoy | I115: 10 | J115: 50800 | K115: 609600 | L115: 2026-07-01 | M115: 12000 | N115: 621600 | O115: 603600 | P115: 1500 | S115: 1500 | T115: 1524 | V115: 50790 | W115: 50790 | X115: 10 | Y115: 50800 | Z115: 50800 | AA115: 0 | AC115: 50800 | AD115: 1524 | AE115: 1530 | AF115: 52330 | AI115: 1530
A116: vjktif=r | B116: 61 | D116: SUNITA CHOUDHARY | E116: RJBI201209028120 | G116: v/;kid | H116: ysoy | I116: 10 | J116: 47900 | K116: 574800 | L116: 2026-07-01 | M116: 11200 | N116: 586000 | O116: 569200 | P116: 1400 | S116: 1400 | T116: 1437 | V116: 47890 | W116: 47890 | X116: 10 | Y116: 47900 | Z116: 47900 | AA116: 0 | AC116: 47900 | AD116: 1437 | AE116: 1440 | AF116: 49340 | AI116: 1440
A117: vjktif=r | B117: 62 | D117: SURENDER SINGH | E117: RJBI201709038693 | G117: v/;kid | H117: ysoy | I117: 10 | J117: 38000 | K117: 456000 | L117: 2026-07-01 | M117: 8800 | N117: 464800 | O117: 451600 | P117: 1100 | S117: 1100 | T117: 1140 | V117: 37990 | W117: 37990 | X117: 10 | Y117: 38000 | Z117: 38000 | AA117: 0 | AC117: 38000 | AD117: 1140 | AE117: 1140 | AF117: 39140 | AI117: 1140
A118: vjktif=r | B118: 63 | D118: SUSHEEL KUMAR SHARMA | E118: RJBI202109001584 | F118: 653540 | G118: v/;kid | H118: ysoy | I118: 10 | J118: 34800 | K118: 417600 | L118: 2026-07-01 | M118: 8000 | N118: 425600 | O118: 413600 | P118: 1000 | S118: 1000 | T118: 1044 | V118: 34790 | W118: 34790 | X118: 10 | Y118: =J118 -> 34800 | Z118: =SUM(W118:X118) -> 34800 | AA118: 0 | AC118: 34800 | AD118: 1044 | AE118: 1050 | AF118: 35850 | AI118: 1050
A119: vjktif=r | B119: 64 | D119: VISHNU KUMAR CHANDAN | E119: RJBI201209049614 | F119: 492297 | G119: v/;kid | H119: ysoy | I119: 10 | J119: 47900 | K119: 574800 | L119: 2026-07-01 | M119: 11200 | N119: 586000 | O119: 569200 | P119: 1400 | S119: 1400 | T119: 1437 | V119: 47890 | W119: 47890 | X119: 10 | Y119: 47900 | Z119: 47900 | AA119: 0 | AC119: 47900 | AD119: 1437 | AE119: 1440 | AF119: 49340 | AI119: 1440
A120: vjktif=r | B120: 65 | G120: v/;kid | H120: ysoy | I120: 10 | K120: 0 | L120: 2026-07-01 | M120: 0 | N120: 0 | O120: 0 | P120: 0 | S120: 0 | T120: 0 | V120: -10 | W120: -10 | X120: 10 | Y120: 0 | Z120: 0 | AA120: 0 | AC120: 0 | AD120: 0 | AE120: 0 | AF120: 0 | AI120: 0
A121: vjktif=r | B121: 66 | G121: v/;kid | H121: ysoy | I121: 10 | K121: 0 | L121: 2026-07-01 | M121: 0 | N121: 0 | O121: 0 | P121: 0 | S121: 0 | T121: 0 | V121: -10 | W121: -10 | X121: 10 | Y121: 0 | Z121: 0 | AA121: 0 | AC121: 0 | AD121: 0 | AE121: 0 | AF121: 0 | AI121: 0
A122: vjktif=r | B122: 67 | G122: v/;kid | H122: ysoy | I122: 10 | K122: 0 | L122: 2026-07-01 | M122: 0 | N122: 0 | O122: 0 | P122: 0 | S122: 0 | T122: 0 | V122: -10 | W122: =IF(R47>=DATE(2017,7,1),CEILING(Y122*3%,10)+V122,V122) -> -10 | X122: 10 | Y122: 0 | Z122: 0 | AA122: 0 | AC122: 0 | AD122: 0 | AE122: 0 | AF122: 0 | AI122: 0
A123: vjktif=r | B123: 68 | G123: v/;kid | H123: ysoy | I123: 10 | K123: =J123*12 -> 0 | L123: 2026-07-01 | M123: =P123*8 -> 0 | N123: =K123+M123 -> 0 | O123: =N123-P123*12 -> 0 | P123: =S123 -> 0 | S123: =ROUND(T123,-2) -> 0 | T123: =J123*3/100 -> 0 | V123: =Y123-X123 -> -10 | W123: =IF(R73>=DATE(2017,7,1),CEILING(Y123*3%,10)+V123,V123) -> -10 | X123: =I123 -> 10 | Y123: =J123 -> 0 | Z123: =SUM(W123:X123) -> 0 | AA123: =Z123-Y123 -> 0 | AC123: =J123 -> 0 | AD123: =AC123*3/100 -> 0 | AE123: =ROUNDUP(AD123,-1) -> 0 | AF123: =AC123+AE123 -> 0 | AI123: =AF123-J123 -> 0
A124: vjktif=r | B124: 69 | G124: v/;kid | H124: ysoy | I124: 10 | K124: 0 | L124: 2026-07-01 | M124: 0 | N124: 0 | O124: 0 | P124: 0 | S124: 0 | T124: 0 | V124: -10 | W124: =IF(R49>=DATE(2017,7,1),CEILING(Y124*3%,10)+V124,V124) -> -10 | X124: 10 | Y124: 0 | Z124: 0 | AA124: 0 | AC124: 0 | AD124: 0 | AE124: 0 | AF124: 0 | AI124: 0
A125: vjktif=r | B125: 70 | G125: v/;kid | H125: ysoy | I125: 10 | K125: 0 | L125: 2026-07-01 | M125: 0 | N125: 0 | O125: 0 | P125: 0 | S125: 0 | T125: 0 | V125: -10 | W125: =IF(R75>=DATE(2017,7,1),CEILING(Y125*3%,10)+V125,V125) -> -10 | X125: 10 | Y125: 0 | Z125: 0 | AA125: 0 | AC125: 0 | AD125: 0 | AE125: 0 | AF125: 0 | AI125: 0
A126: vjktif=r | B126: 71 | G126: v/;kid | H126: ysoy | I126: 10 | K126: 0 | L126: 2026-07-01 | M126: 0 | N126: 0 | O126: 0 | P126: 0 | S126: 0 | T126: 0 | V126: -10 | W126: =IF(R51>=DATE(2017,7,1),CEILING(Y126*3%,10)+V126,V126) -> -10 | X126: 10 | Y126: 0 | Z126: 0 | AA126: 0 | AC126: 0 | AD126: 0 | AE126: 0 | AF126: 0 | AI126: 0
A127: vjktif=r | B127: 72 | G127: v/;kid | H127: ysoy | I127: 10 | K127: 0 | L127: 2026-07-01 | M127: 0 | N127: 0 | O127: 0 | P127: 0 | S127: 0 | T127: 0 | V127: -10 | W127: =IF(R77>=DATE(2017,7,1),CEILING(Y127*3%,10)+V127,V127) -> -10 | X127: 10 | Y127: 0 | Z127: 0 | AA127: 0 | AC127: 0 | AD127: 0 | AE127: 0 | AF127: 0 | AI127: 0
A128: vjktif=r | B128: 73 | G128: v/;kid | H128: ysoy | I128: 10 | K128: 0 | L128: 2026-07-01 | M128: 0 | N128: 0 | O128: 0 | P128: 0 | S128: 0 | T128: 0 | V128: -10 | W128: =IF(R53>=DATE(2017,7,1),CEILING(Y128*3%,10)+V128,V128) -> -10 | X128: 10 | Y128: 0 | Z128: 0 | AA128: 0 | AC128: 0 | AD128: 0 | AE128: 0 | AF128: 0 | AI128: 0
A129: vjktif=r | B129: 74 | G129: v/;kid | H129: ysoy | I129: 10 | K129: 0 | L129: 2026-07-01 | M129: 0 | N129: 0 | O129: 0 | P129: 0 | S129: 0 | T129: 0 | V129: -10 | W129: =IF(R79>=DATE(2017,7,1),CEILING(Y129*3%,10)+V129,V129) -> -10 | X129: 10 | Y129: 0 | Z129: 0 | AA129: 0 | AC129: 0 | AD129: 0 | AE129: 0 | AF129: 0 | AI129: 0
A130: vjktif=r | B130: 75 | G130: v/;kid | H130: ysoy | I130: 10 | K130: 0 | L130: 2026-07-01 | M130: 0 | N130: 0 | O130: 0 | P130: 0 | S130: 0 | T130: 0 | V130: -10 | W130: =IF(R55>=DATE(2017,7,1),CEILING(Y130*3%,10)+V130,V130) -> -10 | X130: 10 | Y130: 0 | Z130: 0 | AA130: 0 | AC130: 0 | AD130: 0 | AE130: 0 | AF130: 0 | AI130: 0
A131: vjktif=r | B131: 76 | G131: v/;kid | H131: ysoy | I131: 10 | K131: 0 | L131: 2026-07-01 | M131: 0 | N131: 0 | O131: 0 | P131: 0 | S131: 0 | T131: 0 | V131: -10 | W131: =IF(R81>=DATE(2017,7,1),CEILING(Y131*3%,10)+V131,V131) -> -10 | X131: 10 | Y131: 0 | Z131: 0 | AA131: 0 | AC131: 0 | AD131: 0 | AE131: 0 | AF131: 0 | AI131: 0
A132: vjktif=r | B132: 77 | G132: v/;kid | H132: ysoy | I132: 10 | K132: 0 | L132: 2026-07-01 | M132: 0 | N132: 0 | O132: 0 | P132: 0 | S132: 0 | T132: 0 | V132: -10 | W132: =IF(R57>=DATE(2017,7,1),CEILING(Y132*3%,10)+V132,V132) -> -10 | X132: 10 | Y132: 0 | Z132: 0 | AA132: 0 | AC132: 0 | AD132: 0 | AE132: 0 | AF132: 0 | AI132: 0
A133: vjktif=r | B133: 78 | G133: v/;kid | H133: ysoy | I133: 10 | K133: 0 | L133: 2026-07-01 | M133: 0 | N133: 0 | O133: 0 | P133: 0 | S133: 0 | T133: 0 | V133: -10 | W133: =IF(R83>=DATE(2017,7,1),CEILING(Y133*3%,10)+V133,V133) -> -10 | X133: 10 | Y133: 0 | Z133: 0 | AA133: 0 | AC133: 0 | AD133: 0 | AE133: 0 | AF133: 0 | AI133: 0
A134: vjktif=r | B134: 79 | G134: v/;kid | H134: ysoy | I134: 10 | K134: 0 | L134: 2026-07-01 | M134: 0 | N134: 0 | O134: 0 | P134: 0 | S134: 0 | T134: 0 | V134: -10 | W134: =IF(R59>=DATE(2017,7,1),CEILING(Y134*3%,10)+V134,V134) -> -10 | X134: 10 | Y134: 0 | Z134: 0 | AA134: 0 | AC134: 0 | AD134: 0 | AE134: 0 | AF134: 0 | AI134: 0
A135: vjktif=r | B135: 80 | G135: v/;kid | H135: ysoy | I135: 10 | K135: 0 | L135: 2026-07-01 | M135: 0 | N135: 0 | O135: 0 | P135: 0 | S135: 0 | T135: 0 | V135: -10 | W135: =IF(R85>=DATE(2017,7,1),CEILING(Y135*3%,10)+V135,V135) -> -10 | X135: 10 | Y135: 0 | Z135: 0 | AA135: 0 | AC135: 0 | AD135: 0 | AE135: 0 | AF135: 0 | AI135: 0
A136: vjktif=r | B136: 81 | G136: v/;kid | H136: ysoy | I136: 10 | K136: 0 | L136: 2026-07-01 | M136: 0 | N136: 0 | O136: 0 | P136: 0 | S136: 0 | T136: 0 | V136: -10 | W136: =IF(R61>=DATE(2017,7,1),CEILING(Y136*3%,10)+V136,V136) -> -10 | X136: 10 | Y136: 0 | Z136: 0 | AA136: 0 | AC136: 0 | AD136: 0 | AE136: 0 | AF136: 0 | AI136: 0
A137: vjktif=r | B137: 82 | G137: v/;kid | H137: ysoy | I137: 10 | K137: 0 | L137: 2026-07-01 | M137: 0 | N137: 0 | O137: 0 | P137: 0 | S137: 0 | T137: 0 | V137: -10 | W137: =IF(R87>=DATE(2017,7,1),CEILING(Y137*3%,10)+V137,V137) -> -10 | X137: 10 | Y137: 0 | Z137: 0 | AA137: 0 | AC137: 0 | AD137: 0 | AE137: 0 | AF137: 0 | AI137: 0
A138: vjktif=r | B138: 83 | G138: v/;kid | H138: ysoy | I138: 10 | K138: 0 | L138: 2026-07-01 | M138: 0 | N138: 0 | O138: 0 | P138: 0 | S138: 0 | T138: 0 | V138: -10 | W138: =IF(R63>=DATE(2017,7,1),CEILING(Y138*3%,10)+V138,V138) -> -10 | X138: 10 | Y138: 0 | Z138: 0 | AA138: 0 | AC138: 0 | AD138: 0 | AE138: 0 | AF138: 0 | AI138: 0
A139: vjktif=r | B139: 84 | G139: v/;kid | H139: ysoy | I139: 10 | K139: 0 | L139: 2026-07-01 | M139: 0 | N139: 0 | O139: 0 | P139: 0 | S139: 0 | T139: 0 | V139: -10 | W139: =IF(R89>=DATE(2017,7,1),CEILING(Y139*3%,10)+V139,V139) -> -10 | X139: 10 | Y139: 0 | Z139: 0 | AA139: 0 | AC139: 0 | AD139: 0 | AE139: 0 | AF139: 0 | AI139: 0
A140: vjktif=r | B140: 85 | G140: v/;kid | H140: ysoy | I140: 10 | K140: 0 | L140: 2026-07-01 | M140: 0 | N140: 0 | O140: 0 | P140: 0 | S140: 0 | T140: 0 | V140: -10 | W140: =IF(R65>=DATE(2017,7,1),CEILING(Y140*3%,10)+V140,V140) -> -10 | X140: 10 | Y140: 0 | Z140: 0 | AA140: 0 | AC140: 0 | AD140: 0 | AE140: 0 | AF140: 0 | AI140: 0
A141: vjktif=r | B141: 86 | G141: v/;kid | H141: ysoy | I141: 10 | K141: 0 | L141: 2026-07-01 | M141: 0 | N141: 0 | O141: 0 | P141: 0 | S141: 0 | T141: 0 | V141: -10 | W141: =IF(R91>=DATE(2017,7,1),CEILING(Y141*3%,10)+V141,V141) -> -10 | X141: 10 | Y141: 0 | Z141: 0 | AA141: 0 | AC141: 0 | AD141: 0 | AE141: 0 | AF141: 0 | AI141: 0
A142: vjktif=r | B142: 87 | G142: v/;kid | H142: ysoy | I142: 10 | K142: 0 | L142: 2026-07-01 | M142: 0 | N142: 0 | O142: 0 | P142: 0 | S142: 0 | T142: 0 | V142: -10 | W142: =IF(R67>=DATE(2017,7,1),CEILING(Y142*3%,10)+V142,V142) -> -10 | X142: 10 | Y142: 0 | Z142: 0 | AA142: 0 | AC142: 0 | AD142: 0 | AE142: 0 | AF142: 0 | AI142: 0
A143: vjktif=r | B143: 88 | G143: v/;kid | H143: ysoy | I143: 10 | K143: 0 | L143: 2026-07-01 | M143: 0 | N143: 0 | O143: 0 | P143: 0 | S143: 0 | T143: 0 | V143: -10 | W143: =IF(R93>=DATE(2017,7,1),CEILING(Y143*3%,10)+V143,V143) -> -10 | X143: 10 | Y143: 0 | Z143: 0 | AA143: 0 | AC143: 0 | AD143: 0 | AE143: 0 | AF143: 0 | AI143: 0
A144: vjktif=r | B144: 89 | G144: v/;kid | H144: ysoy | I144: 10 | K144: 0 | L144: 2026-07-01 | M144: 0 | N144: 0 | O144: 0 | P144: 0 | S144: 0 | T144: 0 | V144: -10 | W144: =IF(R69>=DATE(2017,7,1),CEILING(Y144*3%,10)+V144,V144) -> -10 | X144: 10 | Y144: 0 | Z144: 0 | AA144: 0 | AC144: 0 | AD144: 0 | AE144: 0 | AF144: 0 | AI144: 0
A145: vjktif=r | B145: 90 | G145: v/;kid | H145: ysoy | I145: 10 | K145: 0 | L145: 2026-07-01 | M145: 0 | N145: 0 | O145: 0 | P145: 0 | S145: 0 | T145: 0 | V145: -10 | W145: =IF(R95>=DATE(2017,7,1),CEILING(Y145*3%,10)+V145,V145) -> -10 | X145: 10 | Y145: 0 | Z145: 0 | AA145: 0 | AC145: 0 | AD145: 0 | AE145: 0 | AF145: 0 | AI145: 0
A146: vjktif=r | B146: 91 | G146: v/;kid | H146: ysoy | I146: 10 | K146: 0 | L146: 2026-07-01 | M146: 0 | N146: 0 | O146: 0 | P146: 0 | S146: 0 | T146: 0 | V146: -10 | W146: =IF(R71>=DATE(2017,7,1),CEILING(Y146*3%,10)+V146,V146) -> -10 | X146: 10 | Y146: 0 | Z146: 0 | AA146: 0 | AC146: 0 | AD146: 0 | AE146: 0 | AF146: 0 | AI146: 0
A147: vjktif=r | B147: 92 | G147: v/;kid | H147: ysoy | I147: 10 | K147: 0 | L147: 2026-07-01 | M147: 0 | N147: 0 | O147: 0 | P147: 0 | S147: 0 | T147: 0 | V147: -10 | W147: =IF(R97>=DATE(2017,7,1),CEILING(Y147*3%,10)+V147,V147) -> -10 | X147: 10 | Y147: 0 | Z147: 0 | AA147: 0 | AC147: 0 | AD147: 0 | AE147: 0 | AF147: 0 | AI147: 0
A148: vjktif=r | B148: 93 | G148: v/;kid | H148: ysoy | I148: 10 | K148: 0 | L148: 2026-07-01 | M148: 0 | N148: 0 | O148: 0 | P148: 0 | S148: 0 | T148: 0 | V148: -10 | W148: =IF(R73>=DATE(2017,7,1),CEILING(Y148*3%,10)+V148,V148) -> -10 | X148: 10 | Y148: 0 | Z148: 0 | AA148: 0 | AC148: 0 | AD148: 0 | AE148: 0 | AF148: 0 | AI148: 0
A149: vjktif=r | B149: 94 | G149: v/;kid | H149: ysoy | I149: 10 | K149: 0 | L149: 2026-07-01 | M149: 0 | N149: 0 | O149: 0 | P149: 0 | S149: 0 | T149: 0 | V149: -10 | W149: =IF(R99>=DATE(2017,7,1),CEILING(Y149*3%,10)+V149,V149) -> -10 | X149: 10 | Y149: 0 | Z149: 0 | AA149: 0 | AC149: 0 | AD149: 0 | AE149: 0 | AF149: 0 | AI149: 0
A150: vjktif=r | B150: 95 | G150: v/;kid | H150: ysoy | I150: 10 | K150: 0 | L150: 2026-07-01 | M150: 0 | N150: 0 | O150: 0 | P150: 0 | S150: 0 | T150: 0 | V150: -10 | W150: =IF(R75>=DATE(2017,7,1),CEILING(Y150*3%,10)+V150,V150) -> -10 | X150: 10 | Y150: 0 | Z150: 0 | AA150: 0 | AC150: 0 | AD150: 0 | AE150: 0 | AF150: 0 | AI150: 0
A151: vjktif=r | B151: 96 | G151: v/;kid | H151: ysoy | I151: 10 | K151: 0 | L151: 2026-07-01 | M151: 0 | N151: 0 | O151: 0 | P151: 0 | S151: 0 | T151: 0 | V151: -10 | W151: =IF(R101>=DATE(2017,7,1),CEILING(Y151*3%,10)+V151,V151) -> -10 | X151: 10 | Y151: 0 | Z151: 0 | AA151: 0 | AC151: 0 | AD151: 0 | AE151: 0 | AF151: 0 | AI151: 0
A152: vjktif=r | B152: 97 | G152: v/;kid | H152: ysoy | I152: 10 | K152: 0 | L152: 2026-07-01 | M152: 0 | N152: 0 | O152: 0 | P152: 0 | S152: 0 | T152: 0 | V152: -10 | W152: =IF(R77>=DATE(2017,7,1),CEILING(Y152*3%,10)+V152,V152) -> -10 | X152: 10 | Y152: 0 | Z152: 0 | AA152: 0 | AC152: 0 | AD152: 0 | AE152: 0 | AF152: 0 | AI152: 0
A153: vjktif=r | B153: 98 | G153: v/;kid | H153: ysoy | I153: 10 | K153: 0 | L153: 2026-07-01 | M153: 0 | N153: 0 | O153: 0 | P153: 0 | S153: 0 | T153: 0 | V153: -10 | W153: =IF(R103>=DATE(2017,7,1),CEILING(Y153*3%,10)+V153,V153) -> -10 | X153: 10 | Y153: 0 | Z153: 0 | AA153: 0 | AC153: 0 | AD153: 0 | AE153: 0 | AF153: 0 | AI153: 0
A154: vjktif=r | B154: 99 | G154: v/;kid | H154: ysoy | I154: 10 | K154: 0 | L154: 2026-07-01 | M154: 0 | N154: 0 | O154: 0 | P154: 0 | S154: 0 | T154: 0 | V154: -10 | W154: =IF(R79>=DATE(2017,7,1),CEILING(Y154*3%,10)+V154,V154) -> -10 | X154: 10 | Y154: 0 | Z154: 0 | AA154: 0 | AC154: 0 | AD154: 0 | AE154: 0 | AF154: 0 | AI154: 0
A155: vjktif=r | B155: 100 | G155: v/;kid | H155: ysoy | I155: 10 | K155: 0 | L155: 2026-07-01 | M155: 0 | N155: 0 | O155: 0 | P155: 0 | S155: 0 | T155: 0 | V155: -10 | W155: =IF(R105>=DATE(2017,7,1),CEILING(Y155*3%,10)+V155,V155) -> -10 | X155: 10 | Y155: 0 | Z155: 0 | AA155: 0 | AC155: 0 | AD155: 0 | AE155: 0 | AF155: 0 | AI155: 0
A156: vjktif=r | B156: 101 | G156: v/;kid | H156: ysoy | I156: 10 | K156: 0 | L156: 2026-07-01 | M156: 0 | N156: 0 | O156: 0 | P156: 0 | S156: 0 | T156: 0 | V156: -10 | W156: =IF(R81>=DATE(2017,7,1),CEILING(Y156*3%,10)+V156,V156) -> -10 | X156: 10 | Y156: 0 | Z156: 0 | AA156: 0 | AC156: 0 | AD156: 0 | AE156: 0 | AF156: 0 | AI156: 0
A157: vjktif=r | B157: 102 | G157: v/;kid | H157: ysoy | I157: 10 | K157: 0 | L157: 2026-07-01 | M157: 0 | N157: 0 | O157: 0 | P157: 0 | S157: 0 | T157: 0 | V157: -10 | W157: =IF(R107>=DATE(2017,7,1),CEILING(Y157*3%,10)+V157,V157) -> -10 | X157: 10 | Y157: 0 | Z157: 0 | AA157: 0 | AC157: 0 | AD157: 0 | AE157: 0 | AF157: 0 | AI157: 0
A158: vjktif=r | B158: 103 | G158: v/;kid | H158: ysoy | I158: 10 | K158: 0 | L158: =L157 -> 2026-07-01 | M158: 0 | N158: 0 | O158: 0 | P158: 0 | S158: 0 | T158: 0 | V158: -10 | W158: =IF(R83>=DATE(2017,7,1),CEILING(Y158*3%,10)+V158,V158) -> -10 | X158: 10 | Y158: 0 | Z158: 0 | AA158: 0 | AC158: 0 | AD158: 0 | AE158: 0 | AF158: 0 | AI158: 0
A159: vjktif=r | B159: 104 | G159: v/;kid | H159: ysoy | I159: 10 | K159: 0 | L159: 2026-07-01 | M159: 0 | N159: 0 | O159: 0 | P159: 0 | S159: 0 | T159: 0 | V159: -10 | W159: =IF(R109>=DATE(2017,7,1),CEILING(Y159*3%,10)+V159,V159) -> -10 | X159: 10 | Y159: 0 | Z159: 0 | AA159: 0 | AC159: 0 | AD159: 0 | AE159: 0 | AF159: 0 | AI159: 0
A160: vjktif=r | B160: 105 | G160: v/;kid | H160: ysoy | I160: 10 | K160: 0 | L160: 2026-07-01 | M160: 0 | N160: 0 | O160: 0 | P160: 0 | S160: 0 | T160: 0 | V160: -10 | W160: =IF(R85>=DATE(2017,7,1),CEILING(Y160*3%,10)+V160,V160) -> -10 | X160: 10 | Y160: 0 | Z160: 0 | AA160: 0 | AC160: 0 | AD160: 0 | AE160: 0 | AF160: 0 | AI160: 0
A161: vjktif=r | B161: 106 | G161: v/;kid | H161: ysoy | I161: 10 | K161: 0 | L161: 2026-07-01 | M161: 0 | N161: 0 | O161: 0 | P161: 0 | S161: 0 | T161: 0 | V161: -10 | W161: =IF(R111>=DATE(2017,7,1),CEILING(Y161*3%,10)+V161,V161) -> -10 | X161: 10 | Y161: 0 | Z161: 0 | AA161: 0 | AC161: 0 | AD161: 0 | AE161: 0 | AF161: 0 | AI161: 0
A162: vjktif=r | B162: 107 | G162: v/;kid | H162: ysoy | I162: 10 | K162: 0 | L162: 2026-07-01 | M162: 0 | N162: 0 | O162: 0 | P162: 0 | S162: 0 | T162: 0 | V162: -10 | W162: =IF(R87>=DATE(2017,7,1),CEILING(Y162*3%,10)+V162,V162) -> -10 | X162: 10 | Y162: 0 | Z162: 0 | AA162: 0 | AC162: 0 | AD162: 0 | AE162: 0 | AF162: 0 | AI162: 0
A163: vjktif=r | B163: 108 | G163: v/;kid | H163: ysoy | I163: 10 | K163: 0 | L163: 2026-07-01 | M163: 0 | N163: 0 | O163: 0 | P163: 0 | S163: 0 | T163: 0 | V163: -10 | W163: =IF(R113>=DATE(2017,7,1),CEILING(Y163*3%,10)+V163,V163) -> -10 | X163: 10 | Y163: 0 | Z163: 0 | AA163: 0 | AC163: 0 | AD163: 0 | AE163: 0 | AF163: 0 | AI163: 0
A164: vjktif=r | B164: 109 | G164: v/;kid | H164: ysoy | I164: 10 | K164: 0 | L164: 2026-07-01 | M164: 0 | N164: 0 | O164: 0 | P164: 0 | S164: 0 | T164: 0 | V164: -10 | W164: =IF(R89>=DATE(2017,7,1),CEILING(Y164*3%,10)+V164,V164) -> -10 | X164: 10 | Y164: 0 | Z164: 0 | AA164: 0 | AC164: 0 | AD164: 0 | AE164: 0 | AF164: 0 | AI164: 0
A165: vjktif=r | B165: 110 | G165: v/;kid | H165: ysoy | I165: 10 | K165: 0 | L165: 2026-07-01 | M165: 0 | N165: 0 | O165: 0 | P165: 0 | S165: 0 | T165: 0 | V165: -10 | W165: =IF(R115>=DATE(2017,7,1),CEILING(Y165*3%,10)+V165,V165) -> -10 | X165: 10 | Y165: 0 | Z165: 0 | AA165: 0 | AC165: 0 | AD165: 0 | AE165: 0 | AF165: 0 | AI165: 0
A166: vjktif=r | B166: 111 | G166: v/;kid | H166: ysoy | I166: 10 | K166: 0 | L166: 2026-07-01 | M166: 0 | N166: 0 | O166: 0 | P166: 0 | S166: 0 | T166: 0 | V166: -10 | W166: =IF(R91>=DATE(2017,7,1),CEILING(Y166*3%,10)+V166,V166) -> -10 | X166: 10 | Y166: 0 | Z166: 0 | AA166: 0 | AC166: 0 | AD166: 0 | AE166: 0 | AF166: 0 | AI166: 0
A167: vjktif=r | B167: 112 | G167: v/;kid | H167: ysoy | I167: 10 | K167: 0 | L167: 2026-07-01 | M167: 0 | N167: 0 | O167: 0 | P167: 0 | S167: 0 | T167: 0 | V167: -10 | W167: =IF(R117>=DATE(2017,7,1),CEILING(Y167*3%,10)+V167,V167) -> -10 | X167: 10 | Y167: 0 | Z167: 0 | AA167: 0 | AC167: 0 | AD167: 0 | AE167: 0 | AF167: 0 | AI167: 0
A168: vjktif=r | B168: 113 | G168: v/;kid | H168: ysoy | I168: 10 | K168: 0 | L168: 2026-07-01 | M168: 0 | N168: 0 | O168: 0 | P168: 0 | S168: 0 | T168: 0 | V168: -10 | W168: =IF(R93>=DATE(2017,7,1),CEILING(Y168*3%,10)+V168,V168) -> -10 | X168: 10 | Y168: 0 | Z168: 0 | AA168: 0 | AC168: 0 | AD168: 0 | AE168: 0 | AF168: 0 | AI168: 0
A169: vjktif=r | B169: 114 | G169: v/;kid | H169: ysoy | I169: 10 | K169: 0 | L169: 2026-07-01 | M169: 0 | N169: 0 | O169: 0 | P169: 0 | S169: 0 | T169: 0 | V169: -10 | W169: =IF(R119>=DATE(2017,7,1),CEILING(Y169*3%,10)+V169,V169) -> -10 | X169: 10 | Y169: 0 | Z169: 0 | AA169: 0 | AC169: 0 | AD169: 0 | AE169: 0 | AF169: 0 | AI169: 0
A170: vjktif=r | B170: 115 | G170: v/;kid | H170: ysoy | I170: 10 | K170: 0 | L170: 2026-07-01 | M170: 0 | N170: 0 | O170: 0 | P170: 0 | S170: 0 | T170: 0 | V170: -10 | W170: =IF(R95>=DATE(2017,7,1),CEILING(Y170*3%,10)+V170,V170) -> -10 | X170: 10 | Y170: 0 | Z170: 0 | AA170: 0 | AC170: 0 | AD170: 0 | AE170: 0 | AF170: 0 | AI170: 0
A171: vjktif=r | B171: 116 | G171: v/;kid | H171: ysoy | I171: 10 | K171: 0 | L171: 2026-07-01 | M171: 0 | N171: 0 | O171: 0 | P171: 0 | S171: 0 | T171: 0 | V171: -10 | W171: =IF(R121>=DATE(2017,7,1),CEILING(Y171*3%,10)+V171,V171) -> -10 | X171: 10 | Y171: 0 | Z171: 0 | AA171: 0 | AC171: 0 | AD171: 0 | AE171: 0 | AF171: 0 | AI171: 0
A172: vjktif=r | B172: 117 | G172: v/;kid | H172: ysoy | I172: 10 | K172: 0 | L172: 2026-07-01 | M172: 0 | N172: 0 | O172: 0 | P172: 0 | S172: 0 | T172: 0 | V172: -10 | W172: =IF(R97>=DATE(2017,7,1),CEILING(Y172*3%,10)+V172,V172) -> -10 | X172: 10 | Y172: 0 | Z172: 0 | AA172: 0 | AC172: 0 | AD172: 0 | AE172: 0 | AF172: 0 | AI172: 0
A173: vjktif=r | B173: 118 | G173: v/;kid | H173: ysoy | I173: 10 | K173: 0 | L173: 2026-07-01 | M173: 0 | N173: 0 | O173: 0 | P173: 0 | S173: 0 | T173: 0 | V173: -10 | W173: =IF(R123>=DATE(2017,7,1),CEILING(Y173*3%,10)+V173,V173) -> -10 | X173: 10 | Y173: 0 | Z173: 0 | AA173: 0 | AC173: 0 | AD173: 0 | AE173: 0 | AF173: 0 | AI173: 0
A174: vjktif=r | B174: 119 | G174: v/;kid | H174: ysoy | I174: 10 | K174: 0 | L174: 2026-07-01 | M174: 0 | N174: 0 | O174: 0 | P174: 0 | S174: 0 | T174: 0 | V174: -10 | W174: =IF(R99>=DATE(2017,7,1),CEILING(Y174*3%,10)+V174,V174) -> -10 | X174: 10 | Y174: 0 | Z174: 0 | AA174: 0 | AC174: 0 | AD174: 0 | AE174: 0 | AF174: 0 | AI174: 0
A175: vjktif=r | B175: 120 | G175: v/;kid | H175: ysoy | I175: 10 | K175: 0 | L175: 2026-07-01 | M175: 0 | N175: 0 | O175: 0 | P175: 0 | S175: 0 | T175: 0 | V175: -10 | W175: =IF(R125>=DATE(2017,7,1),CEILING(Y175*3%,10)+V175,V175) -> -10 | X175: 10 | Y175: 0 | Z175: 0 | AA175: 0 | AC175: 0 | AD175: 0 | AE175: 0 | AF175: 0 | AI175: 0
A176: vjktif=r | B176: 121 | G176: v/;kid | H176: ysoy | I176: 10 | K176: 0 | L176: 2026-07-01 | M176: 0 | N176: 0 | O176: 0 | P176: 0 | S176: 0 | T176: 0 | V176: -10 | W176: =IF(R101>=DATE(2017,7,1),CEILING(Y176*3%,10)+V176,V176) -> -10 | X176: 10 | Y176: 0 | Z176: 0 | AA176: 0 | AC176: 0 | AD176: 0 | AE176: 0 | AF176: 0 | AI176: 0
A177: vjktif=r | B177: 122 | G177: v/;kid | H177: ysoy | I177: 10 | K177: 0 | L177: 2026-07-01 | M177: 0 | N177: 0 | O177: 0 | P177: 0 | S177: 0 | T177: 0 | V177: -10 | W177: =IF(R127>=DATE(2017,7,1),CEILING(Y177*3%,10)+V177,V177) -> -10 | X177: 10 | Y177: 0 | Z177: 0 | AA177: 0 | AC177: 0 | AD177: 0 | AE177: 0 | AF177: 0 | AI177: 0
A178: vjktif=r | B178: 123 | G178: v/;kid | H178: ysoy | I178: 10 | K178: 0 | L178: 2026-07-01 | M178: 0 | N178: 0 | O178: 0 | P178: 0 | S178: 0 | T178: 0 | V178: -10 | W178: =IF(R103>=DATE(2017,7,1),CEILING(Y178*3%,10)+V178,V178) -> -10 | X178: 10 | Y178: 0 | Z178: 0 | AA178: 0 | AC178: 0 | AD178: 0 | AE178: 0 | AF178: 0 | AI178: 0
A179: vjktif=r | B179: 124 | G179: v/;kid | H179: ysoy | I179: 10 | K179: 0 | L179: 2026-07-01 | M179: 0 | N179: 0 | O179: 0 | P179: 0 | S179: 0 | T179: 0 | V179: -10 | W179: =IF(R129>=DATE(2017,7,1),CEILING(Y179*3%,10)+V179,V179) -> -10 | X179: 10 | Y179: 0 | Z179: 0 | AA179: 0 | AC179: 0 | AD179: 0 | AE179: 0 | AF179: 0 | AI179: 0
A180: vjktif=r | B180: 125 | G180: v/;kid | H180: ysoy | I180: 10 | K180: 0 | L180: 2026-07-01 | M180: 0 | N180: 0 | O180: 0 | P180: 0 | S180: 0 | T180: 0 | V180: -10 | W180: =IF(R105>=DATE(2017,7,1),CEILING(Y180*3%,10)+V180,V180) -> -10 | X180: 10 | Y180: 0 | Z180: 0 | AA180: 0 | AC180: 0 | AD180: 0 | AE180: 0 | AF180: 0 | AI180: 0
A181: vjktif=r | B181: 126 | G181: v/;kid | H181: ysoy | I181: 10 | K181: 0 | L181: 2026-07-01 | M181: 0 | N181: 0 | O181: 0 | P181: 0 | S181: 0 | T181: 0 | V181: -10 | W181: =IF(R131>=DATE(2017,7,1),CEILING(Y181*3%,10)+V181,V181) -> -10 | X181: 10 | Y181: 0 | Z181: 0 | AA181: 0 | AC181: 0 | AD181: 0 | AE181: 0 | AF181: 0 | AI181: 0
A182: vjktif=r | B182: 127 | G182: v/;kid | H182: ysoy | I182: 10 | K182: 0 | L182: 2026-07-01 | M182: 0 | N182: 0 | O182: 0 | P182: 0 | S182: 0 | T182: 0 | V182: -10 | W182: =IF(R107>=DATE(2017,7,1),CEILING(Y182*3%,10)+V182,V182) -> -10 | X182: 10 | Y182: 0 | Z182: 0 | AA182: 0 | AC182: 0 | AD182: 0 | AE182: 0 | AF182: 0 | AI182: 0
A183: vjktif=r | B183: 128 | G183: v/;kid | H183: ysoy | I183: 10 | K183: 0 | L183: 2026-07-01 | M183: 0 | N183: 0 | O183: 0 | P183: 0 | S183: 0 | T183: 0 | V183: -10 | W183: =IF(R133>=DATE(2017,7,1),CEILING(Y183*3%,10)+V183,V183) -> -10 | X183: 10 | Y183: 0 | Z183: 0 | AA183: 0 | AC183: 0 | AD183: 0 | AE183: 0 | AF183: 0 | AI183: 0
A184: vjktif=r | B184: 129 | G184: v/;kid | H184: ysoy | I184: 10 | K184: 0 | L184: 2026-07-01 | M184: 0 | N184: 0 | O184: 0 | P184: 0 | S184: 0 | T184: 0 | V184: -10 | W184: =IF(R109>=DATE(2017,7,1),CEILING(Y184*3%,10)+V184,V184) -> -10 | X184: 10 | Y184: 0 | Z184: 0 | AA184: 0 | AC184: 0 | AD184: 0 | AE184: 0 | AF184: 0 | AI184: 0
A185: vjktif=r | B185: 130 | G185: v/;kid | H185: ysoy | I185: 10 | K185: 0 | L185: 2026-07-01 | M185: 0 | N185: 0 | O185: 0 | P185: 0 | S185: 0 | T185: 0 | V185: -10 | W185: =IF(R135>=DATE(2017,7,1),CEILING(Y185*3%,10)+V185,V185) -> -10 | X185: 10 | Y185: 0 | Z185: 0 | AA185: 0 | AC185: 0 | AD185: 0 | AE185: 0 | AF185: 0 | AI185: 0
A186: vjktif=r | B186: 131 | G186: v/;kid | H186: ysoy | I186: 10 | K186: 0 | L186: 2026-07-01 | M186: 0 | N186: 0 | O186: 0 | P186: 0 | S186: 0 | T186: 0 | V186: -10 | W186: =IF(R111>=DATE(2017,7,1),CEILING(Y186*3%,10)+V186,V186) -> -10 | X186: 10 | Y186: 0 | Z186: 0 | AA186: 0 | AC186: 0 | AD186: 0 | AE186: 0 | AF186: 0 | AI186: 0
A187: vjktif=r | B187: 132 | G187: v/;kid | H187: ysoy | I187: 10 | K187: =J187*12 -> 0 | L187: 2026-07-01 | M187: =P187*8 -> 0 | N187: =K187+M187 -> 0 | O187: =N187-P187*12 -> 0 | P187: =S187 -> 0 | S187: =ROUND(T187,-2) -> 0 | T187: =J187*3/100 -> 0 | V187: =Y187-X187 -> -10 | W187: =IF(R137>=DATE(2017,7,1),CEILING(Y187*3%,10)+V187,V187) -> -10 | X187: =I187 -> 10 | Y187: =J187 -> 0 | Z187: =SUM(W187:X187) -> 0 | AA187: =Z187-Y187 -> 0 | AC187: =J187 -> 0 | AD187: =AC187*3/100 -> 0 | AE187: =ROUNDUP(AD187,-1) -> 0 | AF187: =AC187+AE187 -> 0 | AI187: =AF187-J187 -> 0
A188: vjktif=r | B188: 133 | G188: v/;kid | H188: ysoy | I188: 10 | K188: 0 | L188: 2026-07-01 | M188: 0 | N188: 0 | O188: 0 | P188: 0 | S188: 0 | T188: 0 | V188: -10 | W188: =IF(R113>=DATE(2017,7,1),CEILING(Y188*3%,10)+V188,V188) -> -10 | X188: 10 | Y188: 0 | Z188: 0 | AA188: 0 | AC188: 0 | AD188: 0 | AE188: 0 | AF188: 0 | AI188: 0
A189: vjktif=r | B189: 134 | G189: v/;kid | H189: ysoy | I189: 10 | K189: 0 | L189: 2026-07-01 | M189: 0 | N189: 0 | O189: 0 | P189: 0 | S189: 0 | T189: 0 | V189: -10 | W189: =IF(R139>=DATE(2017,7,1),CEILING(Y189*3%,10)+V189,V189) -> -10 | X189: 10 | Y189: 0 | Z189: 0 | AA189: 0 | AC189: 0 | AD189: 0 | AE189: 0 | AF189: 0 | AI189: 0
A190: vjktif=r | B190: 135 | G190: v/;kid | H190: ysoy | I190: 10 | K190: 0 | L190: 2026-07-01 | M190: 0 | N190: 0 | O190: 0 | P190: 0 | S190: 0 | T190: 0 | V190: -10 | W190: =IF(R115>=DATE(2017,7,1),CEILING(Y190*3%,10)+V190,V190) -> -10 | X190: 10 | Y190: 0 | Z190: 0 | AA190: 0 | AC190: 0 | AD190: 0 | AE190: 0 | AF190: 0 | AI190: 0
A191: vjktif=r | B191: 136 | G191: v/;kid | H191: ysoy | I191: 10 | K191: 0 | L191: 2026-07-01 | M191: 0 | N191: 0 | O191: 0 | P191: 0 | S191: 0 | T191: 0 | V191: -10 | W191: =IF(R141>=DATE(2017,7,1),CEILING(Y191*3%,10)+V191,V191) -> -10 | X191: 10 | Y191: 0 | Z191: 0 | AA191: 0 | AC191: 0 | AD191: 0 | AE191: 0 | AF191: 0 | AI191: 0
A192: vjktif=r | B192: 137 | G192: v/;kid | H192: ysoy | I192: 10 | K192: 0 | L192: 2026-07-01 | M192: 0 | N192: 0 | O192: 0 | P192: 0 | S192: 0 | T192: 0 | V192: -10 | W192: =IF(R117>=DATE(2017,7,1),CEILING(Y192*3%,10)+V192,V192) -> -10 | X192: 10 | Y192: 0 | Z192: 0 | AA192: 0 | AC192: 0 | AD192: 0 | AE192: 0 | AF192: 0 | AI192: 0
A193: vjktif=r | B193: 138 | G193: v/;kid | H193: ysoy | I193: 10 | K193: 0 | L193: 2026-07-01 | M193: 0 | N193: 0 | O193: 0 | P193: 0 | S193: 0 | T193: 0 | V193: -10 | W193: =IF(R143>=DATE(2017,7,1),CEILING(Y193*3%,10)+V193,V193) -> -10 | X193: 10 | Y193: 0 | Z193: 0 | AA193: 0 | AC193: 0 | AD193: 0 | AE193: 0 | AF193: 0 | AI193: 0
A194: vjktif=r | B194: 139 | G194: v/;kid | H194: ysoy | I194: 10 | K194: 0 | L194: 2026-07-01 | M194: 0 | N194: 0 | O194: 0 | P194: 0 | S194: 0 | T194: 0 | V194: -10 | W194: =IF(R119>=DATE(2017,7,1),CEILING(Y194*3%,10)+V194,V194) -> -10 | X194: 10 | Y194: 0 | Z194: 0 | AA194: 0 | AC194: 0 | AD194: 0 | AE194: 0 | AF194: 0 | AI194: 0
A195: vjktif=r | B195: 140 | G195: v/;kid | H195: ysoy | I195: 10 | K195: 0 | L195: 2026-07-01 | M195: 0 | N195: 0 | O195: 0 | P195: 0 | S195: 0 | T195: 0 | V195: -10 | W195: =IF(R145>=DATE(2017,7,1),CEILING(Y195*3%,10)+V195,V195) -> -10 | X195: 10 | Y195: 0 | Z195: 0 | AA195: 0 | AC195: 0 | AD195: 0 | AE195: 0 | AF195: 0 | AI195: 0
A196: vjktif=r | B196: 141 | G196: v/;kid | H196: ysoy | I196: 10 | K196: 0 | L196: 2026-07-01 | M196: 0 | N196: 0 | O196: 0 | P196: 0 | S196: 0 | T196: 0 | V196: -10 | W196: =IF(R121>=DATE(2017,7,1),CEILING(Y196*3%,10)+V196,V196) -> -10 | X196: 10 | Y196: 0 | Z196: 0 | AA196: 0 | AC196: 0 | AD196: 0 | AE196: 0 | AF196: 0 | AI196: 0
A197: vjktif=r | B197: 142 | G197: v/;kid | H197: ysoy | I197: 10 | K197: 0 | L197: 2026-07-01 | M197: 0 | N197: 0 | O197: 0 | P197: 0 | S197: 0 | T197: 0 | V197: -10 | W197: =IF(R147>=DATE(2017,7,1),CEILING(Y197*3%,10)+V197,V197) -> -10 | X197: 10 | Y197: 0 | Z197: 0 | AA197: 0 | AC197: 0 | AD197: 0 | AE197: 0 | AF197: 0 | AI197: 0
A198: vjktif=r | B198: 143 | G198: v/;kid | H198: ysoy | I198: 10 | K198: 0 | L198: 2026-07-01 | M198: 0 | N198: 0 | O198: 0 | P198: 0 | S198: 0 | T198: 0 | V198: -10 | W198: =IF(R123>=DATE(2017,7,1),CEILING(Y198*3%,10)+V198,V198) -> -10 | X198: 10 | Y198: 0 | Z198: 0 | AA198: 0 | AC198: 0 | AD198: 0 | AE198: 0 | AF198: 0 | AI198: 0
A199: vjktif=r | B199: 144 | G199: v/;kid | H199: ysoy | I199: 10 | K199: 0 | L199: 2026-07-01 | M199: 0 | N199: 0 | O199: 0 | P199: 0 | S199: 0 | T199: 0 | V199: -10 | W199: =IF(R149>=DATE(2017,7,1),CEILING(Y199*3%,10)+V199,V199) -> -10 | X199: 10 | Y199: 0 | Z199: 0 | AA199: 0 | AC199: 0 | AD199: 0 | AE199: 0 | AF199: 0 | AI199: 0
A200: vjktif=r | B200: 145 | G200: v/;kid | H200: ysoy | I200: 10 | K200: 0 | L200: 2026-07-01 | M200: 0 | N200: 0 | O200: 0 | P200: 0 | S200: 0 | T200: 0 | V200: -10 | W200: =IF(R125>=DATE(2017,7,1),CEILING(Y200*3%,10)+V200,V200) -> -10 | X200: 10 | Y200: 0 | Z200: 0 | AA200: 0 | AC200: 0 | AD200: 0 | AE200: 0 | AF200: 0 | AI200: 0
A201: vjktif=r | B201: 146 | G201: v/;kid | H201: ysoy | I201: 10 | K201: 0 | L201: 2026-07-01 | M201: 0 | N201: 0 | O201: 0 | P201: 0 | S201: 0 | T201: 0 | V201: -10 | W201: =IF(R151>=DATE(2017,7,1),CEILING(Y201*3%,10)+V201,V201) -> -10 | X201: 10 | Y201: 0 | Z201: 0 | AA201: 0 | AC201: 0 | AD201: 0 | AE201: 0 | AF201: 0 | AI201: 0
A202: vjktif=r | B202: 147 | G202: v/;kid | H202: ysoy | I202: 10 | K202: 0 | L202: 2026-07-01 | M202: 0 | N202: 0 | O202: 0 | P202: 0 | S202: 0 | T202: 0 | V202: -10 | W202: =IF(R127>=DATE(2017,7,1),CEILING(Y202*3%,10)+V202,V202) -> -10 | X202: 10 | Y202: 0 | Z202: 0 | AA202: 0 | AC202: 0 | AD202: 0 | AE202: 0 | AF202: 0 | AI202: 0
... 295 more rows

Sheet rrr 08
A1: izi= 8 | L1: ctV gSM | M1: =Profile!$C$3 -> 2202-01-197-16-01
A2: fuf'pr O;;ksa ds foLr`r vuqeku vFkkZr~ vf/kdkfj;ksa o deZpkfj;ksa ds osru vuqeku o"kZ ¼vizSy ls ekpZ rd½ | M2: =Profile!$A$8 -> ihMh [kkrk la[;k %& | N2: =Profile!$C$8 -> 762 | P2: =Profile!$M$44 -> 2026&2027
A3: ¼ctV vuqeku vf/kdkfj;ksa }kjk foHkkxk/;{k dks izLrqr djus gsrq½ ys[kk dk 'kh"kZ % eq[; 'kh"kZ@minh?kZ 'kh"kZ@y?kq'kh"kZ@mi'kh"kZ xzqi 'kh"kZ--------------vk;kstuk fHkUu@vk;kstuk@dsUnz izofrZr ;kstuk
A4: dk;kZy; %& | D4: =Profile!$D$44 -> eq[; CykWd f'k{kk vf/kdkjh] lexz f'k{kk] chdkusj | I4: foHkkx dk uke %& | K4: =Profile!$G$2 -> izkjfEHkd f'k{kk foHkkx | M4: =Profile!$K$44 -> LVsV Q.M | N4: ekax la[;k& | O4: =Profile!$C$11 -> 24 | P4: =Profile!$G$43 -> 1451
B5: ctV Lohd`fr esa fo|ky;@dk;kZy; dh Ø-la- %& | E5: =Profile!$C$12 -> 11 | F5: dk;kZy; v/;{k MhMhvks uke %& | I5: =Profile!$G$4 -> euh"kk vjksM+k | K5: =Profile!$I$4 -> 1234567890 | N5: j lgL=ksa esa
B6: Øe la[;k | C6: uke | E6: =Profile!$F$46 -> thih,Q@,uih,l@izku uEcj | F6: in | G6: in dk Lohd`r osru | I6: =Profile!$J$46 -> ctV dh izkjfEHkd frfFk ;kfu 1ekpZ 2026 dks deZpkjh dk osru | J6: igyh ekpZ ls vfUre Qjojh ds fy;s fu/kkZfjr jde | K6: o`f) tks bl vof/k esa gksxh | M6: =Profile!$N$46 -> vkxkeh o"kZ ds fy;s jde ¼dkye 8$10½ | N6: =Profile!$O$46 -> pkyw o"kZ ds fy;s la'kksf/kr vuqeku | O6: fo'ks"k fooj.k ¼osru o`f)½ | P6: deZpkjh vkbZ Mh
G7: =Profile!$H$47 -> xzsM is@ ysoy | K7: frfFk o`f) | L7: jde o`f)
B8: 1 | C8: 2 | E8: 3 | F8: 4 | G8: 5 | H8: 6 | I8: 7 | J8: 8 | K8: 9 | L8: 10 | M8: 11 | N8: 12 | O8: 13 | P8: 14
A9: =Profile!A49 -> jktif=r | B9: =Profile!B49 -> 1 | C9: =Profile!C49 -> 0 | D9: =Profile!D49 -> 0 | E9: =Profile!F49 -> 0 | F9: =Profile!G49 -> ,lhchbZvks&1 | G9: =Profile!H49 -> ysoy | H9: =Profile!I49 -> 16 | I9: =Profile!J49 -> 0 | J9: =I9*12 -> 0 | K9: =Profile!L49 -> 2026-07-01 | L9: =O9*8 -> 0 | M9: =J9+L9 -> 0 | N9: =M9-O9*12 -> 0 | O9: =Profile!P49 -> 0 | P9: =Profile!E49 -> 0
A10: =Profile!A50 -> jktif=r | B10: =Profile!B50 -> 2 | C10: =Profile!C50 -> 0 | D10: =Profile!D50 -> 0 | E10: =Profile!F50 -> 0 | F10: =Profile!G50 -> l0ys0v0&k | G10: =Profile!H50 -> ysoy | H10: =Profile!I50 -> 12 | I10: =Profile!J50 -> 0 | J10: =I10*12 -> 0 | K10: =Profile!L50 -> 2026-07-01 | L10: =O10*8 -> 0 | M10: =J10+L10 -> 0 | N10: =M10-O10*12 -> 0 | O10: =Profile!P50 -> 0 | P10: =Profile!E50 -> 0
A11: =Profile!A51 -> jktif=r | B11: =Profile!B51 -> 3 | C11: =Profile!C51 -> 0 | D11: =Profile!D51 -> 0 | E11: =Profile!F51 -> 0 | F11: =Profile!G51 -> O;k[;krk | G11: =Profile!H51 -> ysoy | H11: =Profile!I51 -> 12 | I11: =Profile!J51 -> 0 | J11: 0 | K11: =Profile!L51 -> 2026-07-01 | L11: 0 | M11: 0 | N11: =M11-O11*12 -> 0 | O11: =Profile!P51 -> 0 | P11: =Profile!E51 -> 0
A12: =Profile!A52 -> jktif=r | B12: =Profile!B52 -> 4 | C12: =Profile!C52 -> 0 | D12: =Profile!D52 -> 0 | E12: =Profile!F52 -> 0 | F12: =Profile!G52 -> O;k[;krk | G12: =Profile!H52 -> ysoy | H12: =Profile!I52 -> 12 | I12: =Profile!J52 -> 0 | J12: 0 | K12: =Profile!L52 -> 2026-07-01 | L12: 0 | M12: 0 | N12: 0 | O12: =Profile!P52 -> 0 | P12: =Profile!E52 -> 0
A13: =Profile!A53 -> jktif=r | B13: =Profile!B53 -> 5 | C13: =Profile!C53 -> 0 | D13: =Profile!D53 -> 0 | E13: =Profile!F53 -> 0 | F13: =Profile!G53 -> O;k[;krk | G13: =Profile!H53 -> ysoy | H13: =Profile!I53 -> 12 | I13: =Profile!J53 -> 0 | J13: 0 | K13: =Profile!L53 -> 2026-07-01 | L13: 0 | M13: 0 | N13: 0 | O13: =Profile!P53 -> 0 | P13: =Profile!E53 -> 0
A14: =Profile!A54 -> jktif=r | B14: =Profile!B54 -> 6 | C14: =Profile!C54 -> 0 | D14: =Profile!D54 -> 0 | E14: =Profile!F54 -> 0 | F14: =Profile!G54 -> O;k[;krk | G14: =Profile!H54 -> ysoy | H14: =Profile!I54 -> 12 | I14: =Profile!J54 -> 0 | J14: 0 | K14: =Profile!L54 -> 2026-07-01 | L14: 0 | M14: 0 | N14: 0 | O14: =Profile!P54 -> 0 | P14: =Profile!E54 -> 0
A15: =Profile!A55 -> jktif=r | B15: =Profile!B55 -> 7 | C15: =Profile!C55 -> 0 | D15: =Profile!D55 -> 0 | E15: =Profile!F55 -> 0 | F15: =Profile!G55 -> iz'kklfud vf/kdkjh | G15: =Profile!H55 -> ysoy | H15: =Profile!I55 -> 12 | I15: =Profile!J55 -> 0 | J15: 0 | K15: =Profile!L55 -> 2026-07-01 | L15: 0 | M15: 0 | N15: 0 | O15: =Profile!P55 -> 0 | P15: =Profile!E55 -> 0
A16: =Profile!A56 -> vjktif=r | B16: =Profile!B56 -> 1 | C16: =Profile!C56 -> 0 | D16: =Profile!D56 -> ANITA SHARMA | E16: =Profile!F56 -> 556254 | F16: =Profile!G56 -> v/;kid | G16: =Profile!H56 -> ysoy | H16: =Profile!I56 -> 10 | I16: =Profile!J56 -> 42700 | J16: 512400 | K16: =Profile!L56 -> 2026-07-01 | L16: 10400 | M16: 522800 | N16: 507200 | O16: =Profile!P56 -> 1300 | P16: =Profile!E56 -> RJBI201709025912
A17: =Profile!A57 -> vjktif=r | B17: =Profile!B57 -> 2 | C17: =Profile!C57 -> 0 | D17: =Profile!D57 -> ANITA YADAV | E17: =Profile!F57 -> 0 | F17: =Profile!G57 -> v/;kid | G17: =Profile!H57 -> ysoy | H17: =Profile!I57 -> 10 | I17: =Profile!J57 -> 47900 | J17: =I17*12 -> 574800 | K17: =Profile!L57 -> 2026-07-01 | L17: 11200 | M17: 586000 | N17: 569200 | O17: =Profile!P57 -> 1400 | P17: =Profile!E57 -> RJGA201235035721
A18: =Profile!A58 -> vjktif=r | B18: =Profile!B58 -> 3 | C18: =Profile!C58 -> 0 | D18: =Profile!D58 -> ARPANA YADAV | E18: =Profile!F58 -> 632389 | F18: =Profile!G58 -> v/;kid | G18: =Profile!H58 -> ysoy | H18: =Profile!I58 -> 10 | I18: =Profile!J58 -> 38000 | J18: =I18*12 -> 456000 | K18: =Profile!L58 -> 2026-07-01 | L18: =O18*8 -> 8800 | M18: =J18+L18 -> 464800 | N18: =M18-O18*12 -> 451600 | O18: =Profile!P58 -> 1100 | P18: =Profile!E58 -> RJJL201921009195
A19: =Profile!A59 -> vjktif=r | B19: =Profile!B59 -> 4 | C19: =Profile!C59 -> 0 | D19: =Profile!D59 -> ARUNA SWAMI | E19: =Profile!F59 -> 0 | F19: =Profile!G59 -> v/;kid | G19: =Profile!H59 -> ysoy | H19: =Profile!I59 -> 10 | I19: =Profile!J59 -> 46500 | J19: 558000 | K19: =Profile!L59 -> 2026-07-01 | L19: 11200 | M19: 569200 | N19: 552400 | O19: =Profile!P59 -> 1400 | P19: =Profile!E59 -> RJBI201309018501
A20: =Profile!A60 -> vjktif=r | B20: =Profile!B60 -> 5 | C20: =Profile!C60 -> 0 | D20: =Profile!D60 -> ASHA KUMARI | E20: =Profile!F60 -> 0 | F20: =Profile!G60 -> v/;kid | G20: =Profile!H60 -> ysoy | H20: =Profile!I60 -> 10 | I20: =Profile!J60 -> 38000 | J20: 456000 | K20: =Profile!L60 -> 2026-07-01 | L20: 8800 | M20: 464800 | N20: 451600 | O20: =Profile!P60 -> 1100 | P20: =Profile!E60 -> RJBM201905006981
A21: =Profile!A61 -> vjktif=r | B21: =Profile!B61 -> 6 | C21: =Profile!C61 -> 0 | D21: =Profile!D61 -> ASHOK KUMAR TANWAR | E21: =Profile!F61 -> 346443 | F21: =Profile!G61 -> v/;kid | G21: =Profile!H61 -> ysoy | H21: =Profile!I61 -> 10 | I21: =Profile!J61 -> 75400 | J21: 904800 | K21: =Profile!L61 -> 2026-07-01 | L21: 18400 | M21: 923200 | N21: 895600 | O21: =Profile!P61 -> 2300 | P21: =Profile!E61 -> RJBI199509008339
A22: =Profile!A62 -> vjktif=r | B22: =Profile!B62 -> 7 | C22: =Profile!C62 -> 0 | D22: =Profile!D62 -> BABITA SHARMA | E22: =Profile!F62 -> 0 | F22: =Profile!G62 -> v/;kid | G22: =Profile!H62 -> ysoy | H22: =Profile!I62 -> 10 | I22: =Profile!J62 -> 47900 | J22: 574800 | K22: =Profile!L62 -> 2026-07-01 | L22: 11200 | M22: 586000 | N22: 569200 | O22: =Profile!P62 -> 1400 | P22: =Profile!E62 -> RJRA201231034753
A23: =Profile!A63 -> vjktif=r | B23: =Profile!B63 -> 8 | C23: =Profile!C63 -> 0 | D23: =Profile!D63 -> BABULAL KUMHAR | E23: =Profile!F63 -> 547277 | F23: =Profile!G63 -> v/;kid | G23: =Profile!H63 -> ysoy | H23: =Profile!I63 -> 10 | I23: =Profile!J63 -> 47900 | J23: 574800 | K23: =Profile!L63 -> 2026-07-01 | L23: 11200 | M23: 586000 | N23: 569200 | O23: =Profile!P63 -> 1400 | P23: =Profile!E63 -> RJBI201209020700
A24: =Profile!A64 -> vjktif=r | B24: =Profile!B64 -> 9 | C24: =Profile!C64 -> 0 | D24: =Profile!D64 -> BABURAM DANWA | E24: =Profile!F64 -> 0 | F24: =Profile!G64 -> v/;kid | G24: =Profile!H64 -> ysoy | H24: =Profile!I64 -> 10 | I24: =Profile!J64 -> 61300 | J24: 735600 | K24: =Profile!L64 -> 2026-07-01 | L24: 14400 | M24: 750000 | N24: 728400 | O24: =Profile!P64 -> 1800 | P24: =Profile!E64 -> RJBI200509009391
A25: =Profile!A65 -> vjktif=r | B25: =Profile!B65 -> 10 | C25: =Profile!C65 -> 0 | D25: =Profile!D65 -> BAJRANG LAL KUMHAR | E25: =Profile!F65 -> 542161 | F25: =Profile!G65 -> v/;kid | G25: =Profile!H65 -> ysoy | H25: =Profile!I65 -> 10 | I25: =Profile!J65 -> 50800 | J25: 609600 | K25: =Profile!L65 -> 2026-07-01 | L25: 12000 | M25: 621600 | N25: 603600 | O25: =Profile!P65 -> 1500 | P25: =Profile!E65 -> RJBI201709001567
A26: =Profile!A66 -> vjktif=r | B26: =Profile!B66 -> 11 | C26: =Profile!C66 -> 0 | D26: =Profile!D66 -> BASANT KUMAR GIRI | E26: =Profile!F66 -> 568725 | F26: =Profile!G66 -> v/;kid | G26: =Profile!H66 -> ysoy | H26: =Profile!I66 -> 10 | I26: =Profile!J66 -> 39100 | J26: 469200 | K26: =Profile!L66 -> 2026-07-01 | L26: 9600 | M26: 478800 | N26: 464400 | O26: =Profile!P66 -> 1200 | P26: =Profile!E66 -> RJBI201809009748
A27: =Profile!A67 -> vjktif=r | B27: =Profile!B67 -> 12 | C27: =Profile!C67 -> 0 | D27: =Profile!D67 -> BHARTI PUROHIT | E27: =Profile!F67 -> 335938 | F27: =Profile!G67 -> v/;kid | G27: =Profile!H67 -> ysoy | H27: =Profile!I67 -> 10 | I27: =Profile!J67 -> 49300 | J27: 591600 | K27: =Profile!L67 -> 2026-07-01 | L27: 12000 | M27: 603600 | N27: 585600 | O27: =Profile!P67 -> 1500 | P27: =Profile!E67 -> RJBI200109000410
A28: =Profile!A68 -> vjktif=r | B28: =Profile!B68 -> 13 | C28: =Profile!C68 -> 0 | D28: =Profile!D68 -> CHNDU KUMARI | E28: =Profile!F68 -> 0 | F28: =Profile!G68 -> v/;kid | G28: =Profile!H68 -> ysoy | H28: =Profile!I68 -> 10 | I28: =Profile!J68 -> 47900 | J28: 574800 | K28: =Profile!L68 -> 2026-07-01 | L28: 11200 | M28: 586000 | N28: 569200 | O28: =Profile!P68 -> 1400 | P28: =Profile!E68 -> RJBI201209019224
A29: =Profile!A69 -> vjktif=r | B29: =Profile!B69 -> 14 | C29: =Profile!C69 -> 0 | D29: =Profile!D69 -> CHUNNA SARAN | E29: =Profile!F69 -> 377519 | F29: =Profile!G69 -> 'kk-f'k- | G29: =Profile!H69 -> ysoy | H29: =Profile!I69 -> 10 | I29: =Profile!J69 -> 42700 | J29: 512400 | K29: =Profile!L69 -> 2026-07-01 | L29: 10400 | M29: 522800 | N29: 507200 | O29: =Profile!P69 -> 1300 | P29: =Profile!E69 -> RJBI201509034080
A30: =Profile!A70 -> vjktif=r | B30: =Profile!B70 -> 15 | C30: =Profile!C70 -> 0 | D30: =Profile!D70 -> DEEPA BAMNIYA | E30: =Profile!F70 -> 364589 | F30: =Profile!G70 -> v/;kid | G30: =Profile!H70 -> ysoy | H30: =Profile!I70 -> 10 | I30: =Profile!J70 -> 47900 | J30: 574800 | K30: =Profile!L70 -> 2026-07-01 | L30: 11200 | M30: 586000 | N30: 569200 | O30: =Profile!P70 -> 1400 | P30: =Profile!E70 -> RJBI201209031330
A31: =Profile!A71 -> vjktif=r | B31: =Profile!B71 -> 16 | C31: =Profile!C71 -> 0 | D31: =Profile!D71 -> DEVENDER KUMAR GAHALOT | E31: =Profile!F71 -> 633508 | F31: =Profile!G71 -> v/;kid | G31: =Profile!H71 -> ysoy | H31: =Profile!I71 -> 10 | I31: =Profile!J71 -> 47900 | J31: 574800 | K31: =Profile!L71 -> 2026-07-01 | L31: 11200 | M31: 586000 | N31: 569200 | O31: =Profile!P71 -> 1400 | P31: =Profile!E71 -> RJBI201309026808
A32: =Profile!A72 -> vjktif=r | B32: =Profile!B72 -> 17 | C32: =Profile!C72 -> 0 | D32: =Profile!D72 -> DURGA OJHA | E32: =Profile!F72 -> 0 | F32: =Profile!G72 -> v/;kid | G32: =Profile!H72 -> ysoy | H32: =Profile!I72 -> 10 | I32: =Profile!J72 -> 38000 | J32: 456000 | K32: =Profile!L72 -> 2026-07-01 | L32: 8800 | M32: 464800 | N32: 451600 | O32: =Profile!P72 -> 1100 | P32: =Profile!E72 -> RJBI201909003344
A33: =Profile!A73 -> vjktif=r | B33: =Profile!B73 -> 18 | C33: =Profile!C73 -> 0 | D33: =Profile!D73 -> FIZA FATMA | E33: =Profile!F73 -> 550946 | F33: =Profile!G73 -> v/;kid | G33: =Profile!H73 -> ysoy | H33: =Profile!I73 -> 10 | I33: =Profile!J73 -> 39100 | J33: 469200 | K33: =Profile!L73 -> 2026-07-01 | L33: 9600 | M33: 478800 | N33: 464400 | O33: =Profile!P73 -> 1200 | P33: =Profile!E73 -> RJBI201709020349
A34: =Profile!A74 -> vjktif=r | B34: =Profile!B74 -> 19 | C34: =Profile!C74 -> 0 | D34: =Profile!D74 -> GANESH NARAYAN HARITWAL | E34: =Profile!F74 -> 0 | F34: =Profile!G74 -> v/;kid | G34: =Profile!H74 -> ysoy | H34: =Profile!I74 -> 10 | I34: =Profile!J74 -> 35800 | J34: 429600 | K34: =Profile!L74 -> 2026-07-01 | L34: 8800 | M34: 438400 | N34: 425200 | O34: =Profile!P74 -> 1100 | P34: =Profile!E74 -> RJBI202009025005
A35: =Profile!A75 -> vjktif=r | B35: =Profile!B75 -> 20 | C35: =Profile!C75 -> 0 | D35: =Profile!D75 -> GAUTAM JAJRA | E35: =Profile!F75 -> 377279 | F35: =Profile!G75 -> v/;kid | G35: =Profile!H75 -> ysoy | H35: =Profile!I75 -> 10 | I35: =Profile!J75 -> 47900 | J35: 574800 | K35: =Profile!L75 -> 2026-07-01 | L35: 11200 | M35: 586000 | N35: 569200 | O35: =Profile!P75 -> 1400 | P35: =Profile!E75 -> RJBI201209022599
A36: =Profile!A76 -> vjktif=r | B36: =Profile!B76 -> 21 | C36: =Profile!C76 -> 0 | D36: =Profile!D76 -> INDU BALA | E36: =Profile!F76 -> 0 | F36: =Profile!G76 -> v/;kid | G36: =Profile!H76 -> ysoy | H36: =Profile!I76 -> 10 | I36: =Profile!J76 -> 36900 | J36: 442800 | K36: =Profile!L76 -> 2026-07-01 | L36: 8800 | M36: 451600 | N36: 438400 | O36: =Profile!P76 -> 1100 | P36: =Profile!E76 -> RJBI201909033830
A37: =Profile!A77 -> vjktif=r | B37: =Profile!B77 -> 22 | C37: =Profile!C77 -> 0 | D37: =Profile!D77 -> JAGDISH PRASAD | E37: =Profile!F77 -> 557865 | F37: =Profile!G77 -> v/;kid | G37: =Profile!H77 -> ysoy | H37: =Profile!I77 -> 10 | I37: =Profile!J77 -> 42700 | J37: 512400 | K37: =Profile!L77 -> 2026-07-01 | L37: 10400 | M37: 522800 | N37: 507200 | O37: =Profile!P77 -> 1300 | P37: =Profile!E77 -> RJJL201221024594
A38: =Profile!A78 -> vjktif=r | B38: =Profile!B78 -> 23 | C38: =Profile!C78 -> 0 | D38: =Profile!D78 -> KAMLA NAYAK | E38: =Profile!F78 -> 358515 | F38: =Profile!G78 -> v/;kid | G38: =Profile!H78 -> ysoy | H38: =Profile!I78 -> 10 | I38: =Profile!J78 -> 52300 | J38: 627600 | K38: =Profile!L78 -> 2026-07-01 | L38: 12800 | M38: 640400 | N38: 621200 | O38: =Profile!P78 -> 1600 | P38: =Profile!E78 -> RJJS200720011537
A39: =Profile!A79 -> vjktif=r | B39: =Profile!B79 -> 24 | C39: =Profile!C79 -> 0 | D39: =Profile!D79 -> KAUSHALYA SAINI | E39: =Profile!F79 -> 632428 | F39: =Profile!G79 -> v/;kid | G39: =Profile!H79 -> ysoy | H39: =Profile!I79 -> 10 | I39: =Profile!J79 -> 38000 | J39: 456000 | K39: =Profile!L79 -> 2026-07-01 | L39: 8800 | M39: 464800 | N39: 451600 | O39: =Profile!P79 -> 1100 | P39: =Profile!E79 -> RJBM201905011981
A40: =Profile!A80 -> vjktif=r | B40: =Profile!B80 -> 25 | C40: =Profile!C80 -> 0 | D40: =Profile!D80 -> KAVITA RANI | E40: =Profile!F80 -> 377192 | F40: =Profile!G80 -> v/;kid | G40: =Profile!H80 -> ysoy | H40: =Profile!I80 -> 10 | I40: =Profile!J80 -> 50800 | J40: 609600 | K40: =Profile!L80 -> 2026-07-01 | L40: 12000 | M40: 621600 | N40: 603600 | O40: =Profile!P80 -> 1500 | P40: =Profile!E80 -> RJBI200809006536
A41: =Profile!A81 -> vjktif=r | B41: =Profile!B81 -> 26 | C41: =Profile!C81 -> 0 | D41: =Profile!D81 -> KAVITA YADAV | E41: =Profile!F81 -> 632166 | F41: =Profile!G81 -> v/;kid | G41: =Profile!H81 -> ysoy | H41: =Profile!I81 -> 10 | I41: =Profile!J81 -> 36900 | J41: 442800 | K41: =Profile!L81 -> 2026-07-01 | L41: 8800 | M41: 451600 | N41: 438400 | O41: =Profile!P81 -> 1100 | P41: =Profile!E81 -> RJBM201905011901
A42: =Profile!A82 -> vjktif=r | B42: =Profile!B82 -> 27 | C42: =Profile!C82 -> 0 | D42: =Profile!D82 -> KHUSHBOO | E42: =Profile!F82 -> 403195 | F42: =Profile!G82 -> v/;kid | G42: =Profile!H82 -> ysoy | H42: =Profile!I82 -> 10 | I42: =Profile!J82 -> 52300 | J42: 627600 | K42: =Profile!L82 -> 2026-07-01 | L42: 12800 | M42: 640400 | N42: 621200 | O42: =Profile!P82 -> 1600 | P42: =Profile!E82 -> RJBM200705007645
A43: =Profile!A83 -> vjktif=r | B43: =Profile!B83 -> 28 | C43: =Profile!C83 -> 0 | D43: =Profile!D83 -> KRISHAN KUMAR KHATRI | E43: =Profile!F83 -> 0 | F43: =Profile!G83 -> v/;kid | G43: =Profile!H83 -> ysoy | H43: =Profile!I83 -> 10 | I43: =Profile!J83 -> 75400 | J43: 904800 | K43: =Profile!L83 -> 2026-07-01 | L43: 18400 | M43: 923200 | N43: 895600 | O43: =Profile!P83 -> 2300 | P43: =Profile!E83 -> RJBI199509008763
A44: =Profile!A84 -> vjktif=r | B44: =Profile!B84 -> 29 | C44: =Profile!C84 -> 0 | D44: =Profile!D84 -> LALITA PARIHAR | E44: =Profile!F84 -> 0 | F44: =Profile!G84 -> v/;kid | G44: =Profile!H84 -> ysoy | H44: =Profile!I84 -> 10 | I44: =Profile!J84 -> 47900 | J44: 574800 | K44: =Profile!L84 -> 2026-07-01 | L44: 11200 | M44: 586000 | N44: 569200 | O44: =Profile!P84 -> 1400 | P44: =Profile!E84 -> RJBI201209019214
A45: =Profile!A85 -> vjktif=r | B45: =Profile!B85 -> 30 | C45: =Profile!C85 -> 0 | D45: =Profile!D85 -> LALITA SANKHALA | E45: =Profile!F85 -> 599151 | F45: =Profile!G85 -> v/;kid | G45: =Profile!H85 -> ysoy | H45: =Profile!I85 -> 10 | I45: =Profile!J85 -> 38000 | J45: 456000 | K45: =Profile!L85 -> 2026-07-01 | L45: 8800 | M45: 464800 | N45: 451600 | O45: =Profile!P85 -> 1100 | P45: =Profile!E85 -> RJBI201909016012
A46: =Profile!A86 -> vjktif=r | B46: =Profile!B86 -> 31 | C46: =Profile!C86 -> 0 | D46: =Profile!D86 -> LAXMAN SINGH SANKHLA | E46: =Profile!F86 -> 0 | F46: =Profile!G86 -> v/;kid | G46: =Profile!H86 -> ysoy | H46: =Profile!I86 -> 10 | I46: =Profile!J86 -> 61300 | J46: 735600 | K46: =Profile!L86 -> 2026-07-01 | L46: 14400 | M46: 750000 | N46: 728400 | O46: =Profile!P86 -> 1800 | P46: =Profile!E86 -> RJBI200509015139
A47: =Profile!A87 -> vjktif=r | B47: =Profile!B87 -> 32 | C47: =Profile!C87 -> 0 | D47: =Profile!D87 -> LAXMI BENIWAL | E47: =Profile!F87 -> 556231 | F47: =Profile!G87 -> v/;kid | G47: =Profile!H87 -> ysoy | H47: =Profile!I87 -> 10 | I47: =Profile!J87 -> 42700 | J47: 512400 | K47: =Profile!L87 -> 2026-07-01 | L47: 10400 | M47: 522800 | N47: 507200 | O47: =Profile!P87 -> 1300 | P47: =Profile!E87 -> RJBI201709041566
A48: =Profile!A88 -> vjktif=r | B48: =Profile!B88 -> 33 | C48: =Profile!C88 -> 0 | D48: =Profile!D88 -> LEKHNATH SIDH | E48: =Profile!F88 -> 0 | F48: =Profile!G88 -> v/;kid | G48: =Profile!H88 -> ysoy | H48: =Profile!I88 -> 10 | I48: =Profile!J88 -> 35800 | J48: 429600 | K48: =Profile!L88 -> 2026-07-01 | L48: 8800 | M48: 438400 | N48: 425200 | O48: =Profile!P88 -> 1100 | P48: =Profile!E88 -> RJBI202009025020
A49: =Profile!A89 -> vjktif=r | B49: =Profile!B89 -> 34 | C49: =Profile!C89 -> 0 | D49: =Profile!D89 -> MANGI LAL | E49: =Profile!F89 -> 338313 | F49: =Profile!G89 -> v/;kid | G49: =Profile!H89 -> ysoy | H49: =Profile!I89 -> 10 | I49: =Profile!J89 -> 52300 | J49: 627600 | K49: =Profile!L89 -> 2026-07-01 | L49: 12800 | M49: 640400 | N49: 621200 | O49: =Profile!P89 -> 1600 | P49: =Profile!E89 -> RJJS200720011017
A50: =Profile!A90 -> vjktif=r | B50: =Profile!B90 -> 35 | C50: =Profile!C90 -> 0 | D50: =Profile!D90 -> MANJU CHAUDHARI | E50: =Profile!F90 -> 556241 | F50: =Profile!G90 -> v/;kid | G50: =Profile!H90 -> ysoy | H50: =Profile!I90 -> 10 | I50: =Profile!J90 -> 42700 | J50: 512400 | K50: =Profile!L90 -> 2026-07-01 | L50: 10400 | M50: 522800 | N50: 507200 | O50: =Profile!P90 -> 1300 | P50: =Profile!E90 -> RJBI201709025922
A51: =Profile!A91 -> vjktif=r | B51: =Profile!B91 -> 36 | C51: =Profile!C91 -> 0 | D51: =Profile!D91 -> MEENA PUNJABI | E51: =Profile!F91 -> 532729 | F51: =Profile!G91 -> v/;kid | G51: =Profile!H91 -> ysoy | H51: =Profile!I91 -> 10 | I51: =Profile!J91 -> 67000 | J51: 804000 | K51: =Profile!L91 -> 2026-07-01 | L51: 16000 | M51: 820000 | N51: 796000 | O51: =Profile!P91 -> 2000 | P51: =Profile!E91 -> RJBI199609003728
A52: =Profile!A92 -> vjktif=r | B52: =Profile!B92 -> 37 | C52: =Profile!C92 -> 0 | D52: =Profile!D92 -> MINAKSHI | E52: =Profile!F92 -> 502709 | F52: =Profile!G92 -> v/;kid | G52: =Profile!H92 -> ysoy | H52: =Profile!I92 -> 10 | I52: =Profile!J92 -> 45100 | J52: 541200 | K52: =Profile!L92 -> 2026-07-01 | L52: 11200 | M52: 552400 | N52: 535600 | O52: =Profile!P92 -> 1400 | P52: =Profile!E92 -> RJBI201509005231
A53: =Profile!A93 -> vjktif=r | B53: =Profile!B93 -> 38 | C53: =Profile!C93 -> 0 | D53: =Profile!D93 -> MINAKSHI SANKHLA | E53: =Profile!F93 -> 496421 | F53: =Profile!G93 -> v/;kid | G53: =Profile!H93 -> ysoy | H53: =Profile!I93 -> 10 | I53: =Profile!J93 -> 52300 | J53: 627600 | K53: =Profile!L93 -> 2026-07-01 | L53: 12800 | M53: 640400 | N53: 621200 | O53: =Profile!P93 -> 1600 | P53: =Profile!E93 -> RJJO200725006788
A54: =Profile!A94 -> vjktif=r | B54: =Profile!B94 -> 39 | C54: =Profile!C94 -> 0 | D54: =Profile!D94 -> MINAXI TANWAR | E54: =Profile!F94 -> 0 | F54: =Profile!G94 -> v/;kid | G54: =Profile!H94 -> ysoy | H54: =Profile!I94 -> 10 | I54: =Profile!J94 -> 38000 | J54: 456000 | K54: =Profile!L94 -> 2026-07-01 | L54: 8800 | M54: 464800 | N54: 451600 | O54: =Profile!P94 -> 1100 | P54: =Profile!E94 -> RJJL201921002461
A55: =Profile!A95 -> vjktif=r | B55: =Profile!B95 -> 40 | C55: =Profile!C95 -> 0 | D55: =Profile!D95 -> MUKTA RANI | E55: =Profile!F95 -> 563425 | F55: =Profile!G95 -> 'kk-f'k- | G55: =Profile!H95 -> ysoy | H55: =Profile!I95 -> 10 | I55: =Profile!J95 -> 45100 | J55: 541200 | K55: =Profile!L95 -> 2026-07-01 | L55: 11200 | M55: 552400 | N55: 535600 | O55: =Profile!P95 -> 1400 | P55: =Profile!E95 -> RJBI201709039550
A56: =Profile!A96 -> vjktif=r | B56: =Profile!B96 -> 41 | C56: =Profile!C96 -> 0 | D56: =Profile!D96 -> ONKAR SINGH RATHORE | E56: =Profile!F96 -> 359704 | F56: =Profile!G96 -> v/;kid | G56: =Profile!H96 -> ysoy | H56: =Profile!I96 -> 10 | I56: =Profile!J96 -> 71100 | J56: 853200 | K56: =Profile!L96 -> 2026-07-01 | L56: 16800 | M56: 870000 | N56: 844800 | O56: =Profile!P96 -> 2100 | P56: =Profile!E96 -> RJBI199309008951
A57: =Profile!A97 -> vjktif=r | B57: =Profile!B97 -> 42 | C57: =Profile!C97 -> 0 | D57: =Profile!D97 -> PRAVEEN SINGH SHEKHAWAT | E57: =Profile!F97 -> 0 | F57: =Profile!G97 -> v/;kid | G57: =Profile!H97 -> ysoy | H57: =Profile!I97 -> 10 | I57: =Profile!J97 -> 45100 | J57: 541200 | K57: =Profile!L97 -> 2026-07-01 | L57: 11200 | M57: 552400 | N57: 535600 | O57: =Profile!P97 -> 1400 | P57: =Profile!E97 -> RJJL201521004887
A58: =Profile!A98 -> vjktif=r | B58: =Profile!B98 -> 43 | C58: =Profile!C98 -> 0 | D58: =Profile!D98 -> PUNAM KUMARI RAO | E58: =Profile!F98 -> 564123 | F58: =Profile!G98 -> v/;kid | G58: =Profile!H98 -> ysoy | H58: =Profile!I98 -> 10 | I58: =Profile!J98 -> 42700 | J58: 512400 | K58: =Profile!L98 -> 2026-07-01 | L58: 10400 | M58: 522800 | N58: 507200 | O58: =Profile!P98 -> 1300 | P58: =Profile!E98 -> RJBI201709037445
A59: =Profile!A99 -> vjktif=r | B59: =Profile!B99 -> 44 | C59: =Profile!C99 -> 0 | D59: =Profile!D99 -> RAJA RAM | E59: =Profile!F99 -> 505952 | F59: =Profile!G99 -> v/;kid | G59: =Profile!H99 -> ysoy | H59: =Profile!I99 -> 10 | I59: =Profile!J99 -> 52300 | J59: 627600 | K59: =Profile!L99 -> 2026-07-01 | L59: 12800 | M59: 640400 | N59: 621200 | O59: =Profile!P99 -> 1600 | P59: =Profile!E99 -> RJBM200705007810
A60: =Profile!A100 -> vjktif=r | B60: =Profile!B100 -> 45 | C60: =Profile!C100 -> 0 | D60: =Profile!D100 -> RAJENDRA KUMAR JANAGAL | E60: =Profile!F100 -> 398773 | F60: =Profile!G100 -> v/;kid | G60: =Profile!H100 -> ysoy | H60: =Profile!I100 -> 10 | I60: =Profile!J100 -> 50800 | J60: 609600 | K60: =Profile!L100 -> 2026-07-01 | L60: 12000 | M60: 621600 | N60: 603600 | O60: =Profile!P100 -> 1500 | P60: =Profile!E100 -> RJBI200809002855
A61: =Profile!A101 -> vjktif=r | B61: =Profile!B101 -> 46 | C61: =Profile!C101 -> 0 | D61: =Profile!D101 -> RAJLAXMI MODI | E61: =Profile!F101 -> 542309 | F61: =Profile!G101 -> v/;kid | G61: =Profile!H101 -> ysoy | H61: =Profile!I101 -> 10 | I61: =Profile!J101 -> 52300 | J61: 627600 | K61: =Profile!L101 -> 2026-07-01 | L61: 12800 | M61: 640400 | N61: 621200 | O61: =Profile!P101 -> 1600 | P61: =Profile!E101 -> RJBM200705003128
A62: =Profile!A102 -> vjktif=r | B62: =Profile!B102 -> 47 | C62: =Profile!C102 -> 0 | D62: =Profile!D102 -> RAKHI DADHICH | E62: =Profile!F102 -> 532945 | F62: =Profile!G102 -> v/;kid | G62: =Profile!H102 -> ysoy | H62: =Profile!I102 -> 10 | I62: =Profile!J102 -> 46500 | J62: 558000 | K62: =Profile!L102 -> 2026-07-01 | L62: 11200 | M62: 569200 | N62: 552400 | O62: =Profile!P102 -> 1400 | P62: =Profile!E102 -> RJBI201309034482
A63: =Profile!A103 -> vjktif=r | B63: =Profile!B103 -> 48 | C63: =Profile!C103 -> 0 | D63: =Profile!D103 -> RAM DAYAL JAKHAR | E63: =Profile!F103 -> 377835 | F63: =Profile!G103 -> v/;kid | G63: =Profile!H103 -> ysoy | H63: =Profile!I103 -> 10 | I63: =Profile!J103 -> 45100 | J63: 541200 | K63: =Profile!L103 -> 2026-07-01 | L63: 11200 | M63: 552400 | N63: 535600 | O63: =Profile!P103 -> 1400 | P63: =Profile!E103 -> RJBI201509031406
A64: =Profile!A104 -> vjktif=r | B64: =Profile!B104 -> 49 | C64: =Profile!C104 -> 0 | D64: =Profile!D104 -> RENU KUMARI | E64: =Profile!F104 -> 550940 | F64: =Profile!G104 -> v/;kid | G64: =Profile!H104 -> ysoy | H64: =Profile!I104 -> 10 | I64: =Profile!J104 -> 39100 | J64: 469200 | K64: =Profile!L104 -> 2026-07-01 | L64: 9600 | M64: 478800 | N64: 464400 | O64: =Profile!P104 -> 1200 | P64: =Profile!E104 -> RJBI201709020304
A65: =Profile!A105 -> vjktif=r | B65: =Profile!B105 -> 50 | C65: =Profile!C105 -> 0 | D65: =Profile!D105 -> RUCHI BHARDWAJ | E65: =Profile!F105 -> 587691 | F65: =Profile!G105 -> v/;kid | G65: =Profile!H105 -> ysoy | H65: =Profile!I105 -> 10 | I65: =Profile!J105 -> 38000 | J65: 456000 | K65: =Profile!L105 -> 2026-07-01 | L65: 8800 | M65: 464800 | N65: 451600 | O65: =Profile!P105 -> 1100 | P65: =Profile!E105 -> RJBI201809047210
A66: =Profile!A106 -> vjktif=r | B66: =Profile!B106 -> 51 | C66: =Profile!C106 -> 0 | D66: =Profile!D106 -> RUPALI TYAGI | E66: =Profile!F106 -> 610256 | F66: =Profile!G106 -> v/;kid | G66: =Profile!H106 -> ysoy | H66: =Profile!I106 -> 10 | I66: =Profile!J106 -> 38000 | J66: 456000 | K66: =Profile!L106 -> 2026-07-01 | L66: 8800 | M66: 464800 | N66: 451600 | O66: =Profile!P106 -> 1100 | P66: =Profile!E106 -> RJBI201909014914
A67: =Profile!A107 -> vjktif=r | B67: =Profile!B107 -> 52 | C67: =Profile!C107 -> 0 | D67: =Profile!D107 -> SAHI RAM | E67: =Profile!F107 -> 0 | F67: =Profile!G107 -> v/;kid | G67: =Profile!H107 -> ysoy | H67: =Profile!I107 -> 10 | I67: =Profile!J107 -> 47900 | J67: 574800 | K67: =Profile!L107 -> 2026-07-01 | L67: 11200 | M67: 586000 | N67: 569200 | O67: =Profile!P107 -> 1400 | P67: =Profile!E107 -> RJJW20122200570
A68: =Profile!A108 -> vjktif=r | B68: =Profile!B108 -> 53 | C68: =Profile!C108 -> 0 | D68: =Profile!D108 -> SANJANA TANWAR | E68: =Profile!F108 -> 566535 | F68: =Profile!G108 -> v/;kid | G68: =Profile!H108 -> ysoy | H68: =Profile!I108 -> 10 | I68: =Profile!J108 -> 39100 | J68: 469200 | K68: =Profile!L108 -> 2026-07-01 | L68: 9600 | M68: 478800 | N68: 464400 | O68: =Profile!P108 -> 1200 | P68: =Profile!E108 -> RJBI201809008928
A69: =Profile!A109 -> vjktif=r | B69: =Profile!B109 -> 54 | C69: =Profile!C109 -> 0 | D69: =Profile!D109 -> SARITA SHARMA | E69: =Profile!F109 -> 526037 | F69: =Profile!G109 -> v/;kid | G69: =Profile!H109 -> ysoy | H69: =Profile!I109 -> 10 | I69: =Profile!J109 -> 47900 | J69: 574800 | K69: =Profile!L109 -> 2026-07-01 | L69: 11200 | M69: 586000 | N69: 569200 | O69: =Profile!P109 -> 1400 | P69: =Profile!E109 -> RJBI201209019229
A70: =Profile!A110 -> vjktif=r | B70: =Profile!B110 -> 55 | C70: =Profile!C110 -> 0 | D70: =Profile!D110 -> SAZIDA JOIYA | E70: =Profile!F110 -> 526048 | F70: =Profile!G110 -> v/;kid | G70: =Profile!H110 -> ysoy | H70: =Profile!I110 -> 10 | I70: =Profile!J110 -> 47900 | J70: 574800 | K70: =Profile!L110 -> 2026-07-01 | L70: 11200 | M70: 586000 | N70: 569200 | O70: =Profile!P110 -> 1400 | P70: =Profile!E110 -> RJBI201209028116
A71: =Profile!A111 -> vjktif=r | B71: =Profile!B111 -> 56 | C71: =Profile!C111 -> 0 | D71: =Profile!D111 -> SHISHRAM DHAYAL | E71: =Profile!F111 -> 359833 | F71: =Profile!G111 -> v/;kid | G71: =Profile!H111 -> ysoy | H71: =Profile!I111 -> 10 | I71: =Profile!J111 -> 69000 | J71: 828000 | K71: =Profile!L111 -> 2026-07-01 | L71: 16800 | M71: 844800 | N71: 819600 | O71: =Profile!P111 -> 2100 | P71: =Profile!E111 -> RJBI199709011109
A72: =Profile!A112 -> vjktif=r | B72: =Profile!B112 -> 57 | C72: =Profile!C112 -> 0 | D72: =Profile!D112 -> SHOBHANA | E72: =Profile!F112 -> 550935 | F72: =Profile!G112 -> v/;kid | G72: =Profile!H112 -> ysoy | H72: =Profile!I112 -> 10 | I72: =Profile!J112 -> 39100 | J72: 469200 | K72: =Profile!L112 -> 2026-07-01 | L72: 9600 | M72: 478800 | N72: 464400 | O72: =Profile!P112 -> 1200 | P72: =Profile!E112 -> RJBI201709021435
A73: =Profile!A113 -> vjktif=r | B73: =Profile!B113 -> 58 | C73: =Profile!C113 -> 0 | D73: =Profile!D113 -> SITARAM | E73: =Profile!F113 -> 0 | F73: =Profile!G113 -> v/;kid | G73: =Profile!H113 -> ysoy | H73: =Profile!I113 -> 10 | I73: =Profile!J113 -> 50800 | J73: 609600 | K73: =Profile!L113 -> 2026-07-01 | L73: 12000 | M73: 621600 | N73: 603600 | O73: =Profile!P113 -> 1500 | P73: =Profile!E113 -> RJBI200809012267
A74: =Profile!A114 -> vjktif=r | B74: =Profile!B114 -> 59 | C74: =Profile!C114 -> 0 | D74: =Profile!D114 -> SULOCHANA | E74: =Profile!F114 -> 429387 | F74: =Profile!G114 -> v/;kid | G74: =Profile!H114 -> ysoy | H74: =Profile!I114 -> 10 | I74: =Profile!J114 -> 50800 | J74: 609600 | K74: =Profile!L114 -> 2026-07-01 | L74: 12000 | M74: 621600 | N74: 603600 | O74: =Profile!P114 -> 1500 | P74: =Profile!E114 -> RJBI200809048981
A75: =Profile!A115 -> vjktif=r | B75: =Profile!B115 -> 60 | C75: =Profile!C115 -> 0 | D75: =Profile!D115 -> SUMAN RAMAVAT | E75: =Profile!F115 -> 0 | F75: =Profile!G115 -> v/;kid | G75: =Profile!H115 -> ysoy | H75: =Profile!I115 -> 10 | I75: =Profile!J115 -> 50800 | J75: 609600 | K75: =Profile!L115 -> 2026-07-01 | L75: 12000 | M75: 621600 | N75: 603600 | O75: =Profile!P115 -> 1500 | P75: =Profile!E115 -> RJBI200809012629
A76: =Profile!A116 -> vjktif=r | B76: =Profile!B116 -> 61 | C76: =Profile!C116 -> 0 | D76: =Profile!D116 -> SUNITA CHOUDHARY | E76: =Profile!F116 -> 0 | F76: =Profile!G116 -> v/;kid | G76: =Profile!H116 -> ysoy | H76: =Profile!I116 -> 10 | I76: =Profile!J116 -> 47900 | J76: 574800 | K76: =Profile!L116 -> 2026-07-01 | L76: 11200 | M76: 586000 | N76: 569200 | O76: =Profile!P116 -> 1400 | P76: =Profile!E116 -> RJBI201209028120
A77: =Profile!A117 -> vjktif=r | B77: =Profile!B117 -> 62 | C77: =Profile!C117 -> 0 | D77: =Profile!D117 -> SURENDER SINGH | E77: =Profile!F117 -> 0 | F77: =Profile!G117 -> v/;kid | G77: =Profile!H117 -> ysoy | H77: =Profile!I117 -> 10 | I77: =Profile!J117 -> 38000 | J77: 456000 | K77: =Profile!L117 -> 2026-07-01 | L77: 8800 | M77: 464800 | N77: 451600 | O77: =Profile!P117 -> 1100 | P77: =Profile!E117 -> RJBI201709038693
A78: =Profile!A118 -> vjktif=r | B78: =Profile!B118 -> 63 | C78: =Profile!C118 -> 0 | D78: =Profile!D118 -> SUSHEEL KUMAR SHARMA | E78: =Profile!F118 -> 653540 | F78: =Profile!G118 -> v/;kid | G78: =Profile!H118 -> ysoy | H78: =Profile!I118 -> 10 | I78: =Profile!J118 -> 34800 | J78: 417600 | K78: =Profile!L118 -> 2026-07-01 | L78: 8000 | M78: 425600 | N78: 413600 | O78: =Profile!P118 -> 1000 | P78: =Profile!E118 -> RJBI202109001584
A79: =Profile!A119 -> vjktif=r | B79: =Profile!B119 -> 64 | C79: =Profile!C119 -> 0 | D79: =Profile!D119 -> VISHNU KUMAR CHANDAN | E79: =Profile!F119 -> 492297 | F79: =Profile!G119 -> v/;kid | G79: =Profile!H119 -> ysoy | H79: =Profile!I119 -> 10 | I79: =Profile!J119 -> 47900 | J79: 574800 | K79: =Profile!L119 -> 2026-07-01 | L79: 11200 | M79: 586000 | N79: 569200 | O79: =Profile!P119 -> 1400 | P79: =Profile!E119 -> RJBI201209049614
A80: =Profile!A120 -> vjktif=r | B80: =Profile!B120 -> 65 | C80: =Profile!C120 -> 0 | D80: =Profile!D120 -> 0 | E80: =Profile!F120 -> 0 | F80: =Profile!G120 -> v/;kid | G80: =Profile!H120 -> ysoy | H80: =Profile!I120 -> 10 | I80: =Profile!J120 -> 0 | J80: 0 | K80: =Profile!L120 -> 2026-07-01 | L80: 0 | M80: 0 | N80: 0 | O80: =Profile!P120 -> 0 | P80: =Profile!E120 -> 0
A81: =Profile!A121 -> vjktif=r | B81: =Profile!B121 -> 66 | C81: =Profile!C121 -> 0 | D81: =Profile!D121 -> 0 | E81: =Profile!F121 -> 0 | F81: =Profile!G121 -> v/;kid | G81: =Profile!H121 -> ysoy | H81: =Profile!I121 -> 10 | I81: =Profile!J121 -> 0 | J81: 0 | K81: =Profile!L121 -> 2026-07-01 | L81: 0 | M81: 0 | N81: 0 | O81: =Profile!P121 -> 0 | P81: =Profile!E121 -> 0
A82: =Profile!A122 -> vjktif=r | B82: =Profile!B122 -> 67 | C82: =Profile!C122 -> 0 | D82: =Profile!D122 -> 0 | E82: =Profile!F122 -> 0 | F82: =Profile!G122 -> v/;kid | G82: =Profile!H122 -> ysoy | H82: =Profile!I122 -> 10 | I82: =Profile!J122 -> 0 | J82: =I82*12 -> 0 | K82: =Profile!L122 -> 2026-07-01 | L82: =O82*8 -> 0 | M82: =J82+L82 -> 0 | N82: =M82-O82*12 -> 0 | O82: =Profile!P122 -> 0 | P82: =Profile!E122 -> 0
A83: =Profile!A123 -> vjktif=r | B83: =Profile!B123 -> 68 | C83: =Profile!C123 -> 0 | D83: =Profile!D123 -> 0 | E83: =Profile!F123 -> 0 | F83: =Profile!G123 -> v/;kid | G83: =Profile!H123 -> ysoy | H83: =Profile!I123 -> 10 | I83: =Profile!J123 -> 0 | J83: 0 | K83: =Profile!L123 -> 2026-07-01 | L83: 0 | M83: 0 | N83: 0 | O83: =Profile!P123 -> 0 | P83: =Profile!E123 -> 0
A84: =Profile!A124 -> vjktif=r | B84: =Profile!B124 -> 69 | C84: =Profile!C124 -> 0 | D84: =Profile!D124 -> 0 | E84: =Profile!F124 -> 0 | F84: =Profile!G124 -> v/;kid | G84: =Profile!H124 -> ysoy | H84: =Profile!I124 -> 10 | I84: =Profile!J124 -> 0 | J84: 0 | K84: =Profile!L124 -> 2026-07-01 | L84: 0 | M84: 0 | N84: 0 | O84: =Profile!P124 -> 0 | P84: =Profile!E124 -> 0
A85: =Profile!A125 -> vjktif=r | B85: =Profile!B125 -> 70 | C85: =Profile!C125 -> 0 | D85: =Profile!D125 -> 0 | E85: =Profile!F125 -> 0 | F85: =Profile!G125 -> v/;kid | G85: =Profile!H125 -> ysoy | H85: =Profile!I125 -> 10 | I85: =Profile!J125 -> 0 | J85: 0 | K85: =Profile!L125 -> 2026-07-01 | L85: 0 | M85: 0 | N85: 0 | O85: =Profile!P125 -> 0 | P85: =Profile!E125 -> 0
A86: =Profile!A126 -> vjktif=r | B86: =Profile!B126 -> 71 | C86: =Profile!C126 -> 0 | D86: =Profile!D126 -> 0 | E86: =Profile!F126 -> 0 | F86: =Profile!G126 -> v/;kid | G86: =Profile!H126 -> ysoy | H86: =Profile!I126 -> 10 | I86: =Profile!J126 -> 0 | J86: 0 | K86: =Profile!L126 -> 2026-07-01 | L86: 0 | M86: 0 | N86: 0 | O86: =Profile!P126 -> 0 | P86: =Profile!E126 -> 0
A87: =Profile!A127 -> vjktif=r | B87: =Profile!B127 -> 72 | C87: =Profile!C127 -> 0 | D87: =Profile!D127 -> 0 | E87: =Profile!F127 -> 0 | F87: =Profile!G127 -> v/;kid | G87: =Profile!H127 -> ysoy | H87: =Profile!I127 -> 10 | I87: =Profile!J127 -> 0 | J87: =I87*12 -> 0 | K87: =Profile!L127 -> 2026-07-01 | L87: =O87*8 -> 0 | M87: =J87+L87 -> 0 | N87: =M87-O87*12 -> 0 | O87: =Profile!P127 -> 0 | P87: =Profile!E127 -> 0
A88: =Profile!A128 -> vjktif=r | B88: =Profile!B128 -> 73 | C88: =Profile!C128 -> 0 | D88: =Profile!D128 -> 0 | E88: =Profile!F128 -> 0 | F88: =Profile!G128 -> v/;kid | G88: =Profile!H128 -> ysoy | H88: =Profile!I128 -> 10 | I88: =Profile!J128 -> 0 | J88: 0 | K88: =Profile!L128 -> 2026-07-01 | L88: 0 | M88: 0 | N88: 0 | O88: =Profile!P128 -> 0 | P88: =Profile!E128 -> 0
A89: =Profile!A129 -> vjktif=r | B89: =Profile!B129 -> 74 | C89: =Profile!C129 -> 0 | D89: =Profile!D129 -> 0 | E89: =Profile!F129 -> 0 | F89: =Profile!G129 -> v/;kid | G89: =Profile!H129 -> ysoy | H89: =Profile!I129 -> 10 | I89: =Profile!J129 -> 0 | J89: 0 | K89: =Profile!L129 -> 2026-07-01 | L89: 0 | M89: 0 | N89: 0 | O89: =Profile!P129 -> 0 | P89: =Profile!E129 -> 0
A90: =Profile!A130 -> vjktif=r | B90: =Profile!B130 -> 75 | C90: =Profile!C130 -> 0 | D90: =Profile!D130 -> 0 | E90: =Profile!F130 -> 0 | F90: =Profile!G130 -> v/;kid | G90: =Profile!H130 -> ysoy | H90: =Profile!I130 -> 10 | I90: =Profile!J130 -> 0 | J90: 0 | K90: =Profile!L130 -> 2026-07-01 | L90: 0 | M90: 0 | N90: 0 | O90: =Profile!P130 -> 0 | P90: =Profile!E130 -> 0
A91: =Profile!A131 -> vjktif=r | B91: =Profile!B131 -> 76 | C91: =Profile!C131 -> 0 | D91: =Profile!D131 -> 0 | E91: =Profile!F131 -> 0 | F91: =Profile!G131 -> v/;kid | G91: =Profile!H131 -> ysoy | H91: =Profile!I131 -> 10 | I91: =Profile!J131 -> 0 | J91: 0 | K91: =Profile!L131 -> 2026-07-01 | L91: 0 | M91: 0 | N91: 0 | O91: =Profile!P131 -> 0 | P91: =Profile!E131 -> 0
A92: =Profile!A132 -> vjktif=r | B92: =Profile!B132 -> 77 | C92: =Profile!C132 -> 0 | D92: =Profile!D132 -> 0 | E92: =Profile!F132 -> 0 | F92: =Profile!G132 -> v/;kid | G92: =Profile!H132 -> ysoy | H92: =Profile!I132 -> 10 | I92: =Profile!J132 -> 0 | J92: 0 | K92: =Profile!L132 -> 2026-07-01 | L92: 0 | M92: 0 | N92: 0 | O92: =Profile!P132 -> 0 | P92: =Profile!E132 -> 0
A93: =Profile!A133 -> vjktif=r | B93: =Profile!B133 -> 78 | C93: =Profile!C133 -> 0 | D93: =Profile!D133 -> 0 | E93: =Profile!F133 -> 0 | F93: =Profile!G133 -> v/;kid | G93: =Profile!H133 -> ysoy | H93: =Profile!I133 -> 10 | I93: =Profile!J133 -> 0 | J93: 0 | K93: =Profile!L133 -> 2026-07-01 | L93: 0 | M93: 0 | N93: 0 | O93: =Profile!P133 -> 0 | P93: =Profile!E133 -> 0
A94: =Profile!A134 -> vjktif=r | B94: =Profile!B134 -> 79 | C94: =Profile!C134 -> 0 | D94: =Profile!D134 -> 0 | E94: =Profile!F134 -> 0 | F94: =Profile!G134 -> v/;kid | G94: =Profile!H134 -> ysoy | H94: =Profile!I134 -> 10 | I94: =Profile!J134 -> 0 | J94: 0 | K94: =Profile!L134 -> 2026-07-01 | L94: 0 | M94: 0 | N94: 0 | O94: =Profile!P134 -> 0 | P94: =Profile!E134 -> 0
A95: =Profile!A135 -> vjktif=r | B95: =Profile!B135 -> 80 | C95: =Profile!C135 -> 0 | D95: =Profile!D135 -> 0 | E95: =Profile!F135 -> 0 | F95: =Profile!G135 -> v/;kid | G95: =Profile!H135 -> ysoy | H95: =Profile!I135 -> 10 | I95: =Profile!J135 -> 0 | J95: 0 | K95: =Profile!L135 -> 2026-07-01 | L95: 0 | M95: 0 | N95: 0 | O95: =Profile!P135 -> 0 | P95: =Profile!E135 -> 0
A96: =Profile!A136 -> vjktif=r | B96: =Profile!B136 -> 81 | C96: =Profile!C136 -> 0 | D96: =Profile!D136 -> 0 | E96: =Profile!F136 -> 0 | F96: =Profile!G136 -> v/;kid | G96: =Profile!H136 -> ysoy | H96: =Profile!I136 -> 10 | I96: =Profile!J136 -> 0 | J96: 0 | K96: =Profile!L136 -> 2026-07-01 | L96: 0 | M96: 0 | N96: 0 | O96: =Profile!P136 -> 0 | P96: =Profile!E136 -> 0
A97: =Profile!A137 -> vjktif=r | B97: =Profile!B137 -> 82 | C97: =Profile!C137 -> 0 | D97: =Profile!D137 -> 0 | E97: =Profile!F137 -> 0 | F97: =Profile!G137 -> v/;kid | G97: =Profile!H137 -> ysoy | H97: =Profile!I137 -> 10 | I97: =Profile!J137 -> 0 | J97: 0 | K97: =Profile!L137 -> 2026-07-01 | L97: 0 | M97: 0 | N97: 0 | O97: =Profile!P137 -> 0 | P97: =Profile!E137 -> 0
A98: =Profile!A138 -> vjktif=r | B98: =Profile!B138 -> 83 | C98: =Profile!C138 -> 0 | D98: =Profile!D138 -> 0 | E98: =Profile!F138 -> 0 | F98: =Profile!G138 -> v/;kid | G98: =Profile!H138 -> ysoy | H98: =Profile!I138 -> 10 | I98: =Profile!J138 -> 0 | J98: 0 | K98: =Profile!L138 -> 2026-07-01 | L98: 0 | M98: 0 | N98: 0 | O98: =Profile!P138 -> 0 | P98: =Profile!E138 -> 0
A99: =Profile!A139 -> vjktif=r | B99: =Profile!B139 -> 84 | C99: =Profile!C139 -> 0 | D99: =Profile!D139 -> 0 | E99: =Profile!F139 -> 0 | F99: =Profile!G139 -> v/;kid | G99: =Profile!H139 -> ysoy | H99: =Profile!I139 -> 10 | I99: =Profile!J139 -> 0 | J99: 0 | K99: =Profile!L139 -> 2026-07-01 | L99: 0 | M99: 0 | N99: 0 | O99: =Profile!P139 -> 0 | P99: =Profile!E139 -> 0
A100: =Profile!A140 -> vjktif=r | B100: =Profile!B140 -> 85 | C100: =Profile!C140 -> 0 | D100: =Profile!D140 -> 0 | E100: =Profile!F140 -> 0 | F100: =Profile!G140 -> v/;kid | G100: =Profile!H140 -> ysoy | H100: =Profile!I140 -> 10 | I100: =Profile!J140 -> 0 | J100: 0 | K100: =Profile!L140 -> 2026-07-01 | L100: 0 | M100: 0 | N100: 0 | O100: =Profile!P140 -> 0 | P100: =Profile!E140 -> 0
A101: =Profile!A141 -> vjktif=r | B101: =Profile!B141 -> 86 | C101: =Profile!C141 -> 0 | D101: =Profile!D141 -> 0 | E101: =Profile!F141 -> 0 | F101: =Profile!G141 -> v/;kid | G101: =Profile!H141 -> ysoy | H101: =Profile!I141 -> 10 | I101: =Profile!J141 -> 0 | J101: 0 | K101: =Profile!L141 -> 2026-07-01 | L101: 0 | M101: 0 | N101: 0 | O101: =Profile!P141 -> 0 | P101: =Profile!E141 -> 0
A102: =Profile!A142 -> vjktif=r | B102: =Profile!B142 -> 87 | C102: =Profile!C142 -> 0 | D102: =Profile!D142 -> 0 | E102: =Profile!F142 -> 0 | F102: =Profile!G142 -> v/;kid | G102: =Profile!H142 -> ysoy | H102: =Profile!I142 -> 10 | I102: =Profile!J142 -> 0 | J102: 0 | K102: =Profile!L142 -> 2026-07-01 | L102: 0 | M102: 0 | N102: 0 | O102: =Profile!P142 -> 0 | P102: =Profile!E142 -> 0
A103: =Profile!A143 -> vjktif=r | B103: =Profile!B143 -> 88 | C103: =Profile!C143 -> 0 | D103: =Profile!D143 -> 0 | E103: =Profile!F143 -> 0 | F103: =Profile!G143 -> v/;kid | G103: =Profile!H143 -> ysoy | H103: =Profile!I143 -> 10 | I103: =Profile!J143 -> 0 | J103: 0 | K103: =Profile!L143 -> 2026-07-01 | L103: 0 | M103: 0 | N103: 0 | O103: =Profile!P143 -> 0 | P103: =Profile!E143 -> 0
A104: =Profile!A144 -> vjktif=r | B104: =Profile!B144 -> 89 | C104: =Profile!C144 -> 0 | D104: =Profile!D144 -> 0 | E104: =Profile!F144 -> 0 | F104: =Profile!G144 -> v/;kid | G104: =Profile!H144 -> ysoy | H104: =Profile!I144 -> 10 | I104: =Profile!J144 -> 0 | J104: 0 | K104: =Profile!L144 -> 2026-07-01 | L104: 0 | M104: 0 | N104: 0 | O104: =Profile!P144 -> 0 | P104: =Profile!E144 -> 0
A105: =Profile!A145 -> vjktif=r | B105: =Profile!B145 -> 90 | C105: =Profile!C145 -> 0 | D105: =Profile!D145 -> 0 | E105: =Profile!F145 -> 0 | F105: =Profile!G145 -> v/;kid | G105: =Profile!H145 -> ysoy | H105: =Profile!I145 -> 10 | I105: =Profile!J145 -> 0 | J105: 0 | K105: =Profile!L145 -> 2026-07-01 | L105: 0 | M105: 0 | N105: 0 | O105: =Profile!P145 -> 0 | P105: =Profile!E145 -> 0
A106: =Profile!A146 -> vjktif=r | B106: =Profile!B146 -> 91 | C106: =Profile!C146 -> 0 | D106: =Profile!D146 -> 0 | E106: =Profile!F146 -> 0 | F106: =Profile!G146 -> v/;kid | G106: =Profile!H146 -> ysoy | H106: =Profile!I146 -> 10 | I106: =Profile!J146 -> 0 | J106: 0 | K106: =Profile!L146 -> 2026-07-01 | L106: 0 | M106: 0 | N106: 0 | O106: =Profile!P146 -> 0 | P106: =Profile!E146 -> 0
A107: =Profile!A147 -> vjktif=r | B107: =Profile!B147 -> 92 | C107: =Profile!C147 -> 0 | D107: =Profile!D147 -> 0 | E107: =Profile!F147 -> 0 | F107: =Profile!G147 -> v/;kid | G107: =Profile!H147 -> ysoy | H107: =Profile!I147 -> 10 | I107: =Profile!J147 -> 0 | J107: 0 | K107: =Profile!L147 -> 2026-07-01 | L107: 0 | M107: 0 | N107: 0 | O107: =Profile!P147 -> 0 | P107: =Profile!E147 -> 0
A108: =Profile!A148 -> vjktif=r | B108: =Profile!B148 -> 93 | C108: =Profile!C148 -> 0 | D108: =Profile!D148 -> 0 | E108: =Profile!F148 -> 0 | F108: =Profile!G148 -> v/;kid | G108: =Profile!H148 -> ysoy | H108: =Profile!I148 -> 10 | I108: =Profile!J148 -> 0 | J108: 0 | K108: =Profile!L148 -> 2026-07-01 | L108: 0 | M108: 0 | N108: 0 | O108: =Profile!P148 -> 0 | P108: =Profile!E148 -> 0
A109: =Profile!A149 -> vjktif=r | B109: =Profile!B149 -> 94 | C109: =Profile!C149 -> 0 | D109: =Profile!D149 -> 0 | E109: =Profile!F149 -> 0 | F109: =Profile!G149 -> v/;kid | G109: =Profile!H149 -> ysoy | H109: =Profile!I149 -> 10 | I109: =Profile!J149 -> 0 | J109: 0 | K109: =Profile!L149 -> 2026-07-01 | L109: 0 | M109: 0 | N109: 0 | O109: =Profile!P149 -> 0 | P109: =Profile!E149 -> 0
A110: =Profile!A150 -> vjktif=r | B110: =Profile!B150 -> 95 | C110: =Profile!C150 -> 0 | D110: =Profile!D150 -> 0 | E110: =Profile!F150 -> 0 | F110: =Profile!G150 -> v/;kid | G110: =Profile!H150 -> ysoy | H110: =Profile!I150 -> 10 | I110: =Profile!J150 -> 0 | J110: 0 | K110: =Profile!L150 -> 2026-07-01 | L110: 0 | M110: 0 | N110: 0 | O110: =Profile!P150 -> 0 | P110: =Profile!E150 -> 0
A111: =Profile!A151 -> vjktif=r | B111: =Profile!B151 -> 96 | C111: =Profile!C151 -> 0 | D111: =Profile!D151 -> 0 | E111: =Profile!F151 -> 0 | F111: =Profile!G151 -> v/;kid | G111: =Profile!H151 -> ysoy | H111: =Profile!I151 -> 10 | I111: =Profile!J151 -> 0 | J111: 0 | K111: =Profile!L151 -> 2026-07-01 | L111: 0 | M111: 0 | N111: 0 | O111: =Profile!P151 -> 0 | P111: =Profile!E151 -> 0
A112: =Profile!A152 -> vjktif=r | B112: =Profile!B152 -> 97 | C112: =Profile!C152 -> 0 | D112: =Profile!D152 -> 0 | E112: =Profile!F152 -> 0 | F112: =Profile!G152 -> v/;kid | G112: =Profile!H152 -> ysoy | H112: =Profile!I152 -> 10 | I112: =Profile!J152 -> 0 | J112: 0 | K112: =Profile!L152 -> 2026-07-01 | L112: 0 | M112: 0 | N112: 0 | O112: =Profile!P152 -> 0 | P112: =Profile!E152 -> 0
A113: =Profile!A153 -> vjktif=r | B113: =Profile!B153 -> 98 | C113: =Profile!C153 -> 0 | D113: =Profile!D153 -> 0 | E113: =Profile!F153 -> 0 | F113: =Profile!G153 -> v/;kid | G113: =Profile!H153 -> ysoy | H113: =Profile!I153 -> 10 | I113: =Profile!J153 -> 0 | J113: 0 | K113: =Profile!L153 -> 2026-07-01 | L113: 0 | M113: 0 | N113: 0 | O113: =Profile!P153 -> 0 | P113: =Profile!E153 -> 0
A114: =Profile!A154 -> vjktif=r | B114: =Profile!B154 -> 99 | C114: =Profile!C154 -> 0 | D114: =Profile!D154 -> 0 | E114: =Profile!F154 -> 0 | F114: =Profile!G154 -> v/;kid | G114: =Profile!H154 -> ysoy | H114: =Profile!I154 -> 10 | I114: =Profile!J154 -> 0 | J114: 0 | K114: =Profile!L154 -> 2026-07-01 | L114: 0 | M114: 0 | N114: 0 | O114: =Profile!P154 -> 0 | P114: =Profile!E154 -> 0
A115: =Profile!A155 -> vjktif=r | B115: =Profile!B155 -> 100 | C115: =Profile!C155 -> 0 | D115: =Profile!D155 -> 0 | E115: =Profile!F155 -> 0 | F115: =Profile!G155 -> v/;kid | G115: =Profile!H155 -> ysoy | H115: =Profile!I155 -> 10 | I115: =Profile!J155 -> 0 | J115: 0 | K115: =Profile!L155 -> 2026-07-01 | L115: 0 | M115: 0 | N115: 0 | O115: =Profile!P155 -> 0 | P115: =Profile!E155 -> 0
A116: =Profile!A156 -> vjktif=r | B116: =Profile!B156 -> 101 | C116: =Profile!C156 -> 0 | D116: =Profile!D156 -> 0 | E116: =Profile!F156 -> 0 | F116: =Profile!G156 -> v/;kid | G116: =Profile!H156 -> ysoy | H116: =Profile!I156 -> 10 | I116: =Profile!J156 -> 0 | J116: 0 | K116: =Profile!L156 -> 2026-07-01 | L116: 0 | M116: 0 | N116: 0 | O116: =Profile!P156 -> 0 | P116: =Profile!E156 -> 0
A117: =Profile!A157 -> vjktif=r | B117: =Profile!B157 -> 102 | C117: =Profile!C157 -> 0 | D117: =Profile!D157 -> 0 | E117: =Profile!F157 -> 0 | F117: =Profile!G157 -> v/;kid | G117: =Profile!H157 -> ysoy | H117: =Profile!I157 -> 10 | I117: =Profile!J157 -> 0 | J117: 0 | K117: =Profile!L157 -> 2026-07-01 | L117: 0 | M117: 0 | N117: 0 | O117: =Profile!P157 -> 0 | P117: =Profile!E157 -> 0
A118: =Profile!A158 -> vjktif=r | B118: =Profile!B158 -> 103 | C118: =Profile!C158 -> 0 | D118: =Profile!D158 -> 0 | E118: =Profile!F158 -> 0 | F118: =Profile!G158 -> v/;kid | G118: =Profile!H158 -> ysoy | H118: =Profile!I158 -> 10 | I118: =Profile!J158 -> 0 | J118: 0 | K118: =Profile!L158 -> 2026-07-01 | L118: 0 | M118: 0 | N118: 0 | O118: =Profile!P158 -> 0 | P118: =Profile!E158 -> 0
A119: =Profile!A159 -> vjktif=r | B119: =Profile!B159 -> 104 | C119: =Profile!C159 -> 0 | D119: =Profile!D159 -> 0 | E119: =Profile!F159 -> 0 | F119: =Profile!G159 -> v/;kid | G119: =Profile!H159 -> ysoy | H119: =Profile!I159 -> 10 | I119: =Profile!J159 -> 0 | J119: 0 | K119: =Profile!L159 -> 2026-07-01 | L119: 0 | M119: 0 | N119: 0 | O119: =Profile!P159 -> 0 | P119: =Profile!E159 -> 0
A120: =Profile!A160 -> vjktif=r | B120: =Profile!B160 -> 105 | C120: =Profile!C160 -> 0 | D120: =Profile!D160 -> 0 | E120: =Profile!F160 -> 0 | F120: =Profile!G160 -> v/;kid | G120: =Profile!H160 -> ysoy | H120: =Profile!I160 -> 10 | I120: =Profile!J160 -> 0 | J120: 0 | K120: =Profile!L160 -> 2026-07-01 | L120: 0 | M120: 0 | N120: 0 | O120: =Profile!P160 -> 0 | P120: =Profile!E160 -> 0
A121: =Profile!A161 -> vjktif=r | B121: =Profile!B161 -> 106 | C121: =Profile!C161 -> 0 | D121: =Profile!D161 -> 0 | E121: =Profile!F161 -> 0 | F121: =Profile!G161 -> v/;kid | G121: =Profile!H161 -> ysoy | H121: =Profile!I161 -> 10 | I121: =Profile!J161 -> 0 | J121: 0 | K121: =Profile!L161 -> 2026-07-01 | L121: 0 | M121: 0 | N121: 0 | O121: =Profile!P161 -> 0 | P121: =Profile!E161 -> 0
A122: =Profile!A162 -> vjktif=r | B122: =Profile!B162 -> 107 | C122: =Profile!C162 -> 0 | D122: =Profile!D162 -> 0 | E122: =Profile!F162 -> 0 | F122: =Profile!G162 -> v/;kid | G122: =Profile!H162 -> ysoy | H122: =Profile!I162 -> 10 | I122: =Profile!J162 -> 0 | J122: 0 | K122: =Profile!L162 -> 2026-07-01 | L122: 0 | M122: 0 | N122: 0 | O122: =Profile!P162 -> 0 | P122: =Profile!E162 -> 0
A123: =Profile!A163 -> vjktif=r | B123: =Profile!B163 -> 108 | C123: =Profile!C163 -> 0 | D123: =Profile!D163 -> 0 | E123: =Profile!F163 -> 0 | F123: =Profile!G163 -> v/;kid | G123: =Profile!H163 -> ysoy | H123: =Profile!I163 -> 10 | I123: =Profile!J163 -> 0 | J123: 0 | K123: =Profile!L163 -> 2026-07-01 | L123: 0 | M123: 0 | N123: 0 | O123: =Profile!P163 -> 0 | P123: =Profile!E163 -> 0
A124: =Profile!A164 -> vjktif=r | B124: =Profile!B164 -> 109 | C124: =Profile!C164 -> 0 | D124: =Profile!D164 -> 0 | E124: =Profile!F164 -> 0 | F124: =Profile!G164 -> v/;kid | G124: =Profile!H164 -> ysoy | H124: =Profile!I164 -> 10 | I124: =Profile!J164 -> 0 | J124: 0 | K124: =Profile!L164 -> 2026-07-01 | L124: 0 | M124: 0 | N124: 0 | O124: =Profile!P164 -> 0 | P124: =Profile!E164 -> 0
A125: =Profile!A165 -> vjktif=r | B125: =Profile!B165 -> 110 | C125: =Profile!C165 -> 0 | D125: =Profile!D165 -> 0 | E125: =Profile!F165 -> 0 | F125: =Profile!G165 -> v/;kid | G125: =Profile!H165 -> ysoy | H125: =Profile!I165 -> 10 | I125: =Profile!J165 -> 0 | J125: 0 | K125: =Profile!L165 -> 2026-07-01 | L125: 0 | M125: 0 | N125: 0 | O125: =Profile!P165 -> 0 | P125: =Profile!E165 -> 0
A126: =Profile!A166 -> vjktif=r | B126: =Profile!B166 -> 111 | C126: =Profile!C166 -> 0 | D126: =Profile!D166 -> 0 | E126: =Profile!F166 -> 0 | F126: =Profile!G166 -> v/;kid | G126: =Profile!H166 -> ysoy | H126: =Profile!I166 -> 10 | I126: =Profile!J166 -> 0 | J126: 0 | K126: =Profile!L166 -> 2026-07-01 | L126: 0 | M126: 0 | N126: 0 | O126: =Profile!P166 -> 0 | P126: =Profile!E166 -> 0
A127: =Profile!A167 -> vjktif=r | B127: =Profile!B167 -> 112 | C127: =Profile!C167 -> 0 | D127: =Profile!D167 -> 0 | E127: =Profile!F167 -> 0 | F127: =Profile!G167 -> v/;kid | G127: =Profile!H167 -> ysoy | H127: =Profile!I167 -> 10 | I127: =Profile!J167 -> 0 | J127: 0 | K127: =Profile!L167 -> 2026-07-01 | L127: 0 | M127: 0 | N127: 0 | O127: =Profile!P167 -> 0 | P127: =Profile!E167 -> 0
A128: =Profile!A168 -> vjktif=r | B128: =Profile!B168 -> 113 | C128: =Profile!C168 -> 0 | D128: =Profile!D168 -> 0 | E128: =Profile!F168 -> 0 | F128: =Profile!G168 -> v/;kid | G128: =Profile!H168 -> ysoy | H128: =Profile!I168 -> 10 | I128: =Profile!J168 -> 0 | J128: 0 | K128: =Profile!L168 -> 2026-07-01 | L128: 0 | M128: 0 | N128: 0 | O128: =Profile!P168 -> 0 | P128: =Profile!E168 -> 0
A129: =Profile!A169 -> vjktif=r | B129: =Profile!B169 -> 114 | C129: =Profile!C169 -> 0 | D129: =Profile!D169 -> 0 | E129: =Profile!F169 -> 0 | F129: =Profile!G169 -> v/;kid | G129: =Profile!H169 -> ysoy | H129: =Profile!I169 -> 10 | I129: =Profile!J169 -> 0 | J129: 0 | K129: =Profile!L169 -> 2026-07-01 | L129: 0 | M129: 0 | N129: 0 | O129: =Profile!P169 -> 0 | P129: =Profile!E169 -> 0
A130: =Profile!A170 -> vjktif=r | B130: =Profile!B170 -> 115 | C130: =Profile!C170 -> 0 | D130: =Profile!D170 -> 0 | E130: =Profile!F170 -> 0 | F130: =Profile!G170 -> v/;kid | G130: =Profile!H170 -> ysoy | H130: =Profile!I170 -> 10 | I130: =Profile!J170 -> 0 | J130: 0 | K130: =Profile!L170 -> 2026-07-01 | L130: 0 | M130: 0 | N130: 0 | O130: =Profile!P170 -> 0 | P130: =Profile!E170 -> 0
A131: =Profile!A171 -> vjktif=r | B131: =Profile!B171 -> 116 | C131: =Profile!C171 -> 0 | D131: =Profile!D171 -> 0 | E131: =Profile!F171 -> 0 | F131: =Profile!G171 -> v/;kid | G131: =Profile!H171 -> ysoy | H131: =Profile!I171 -> 10 | I131: =Profile!J171 -> 0 | J131: 0 | K131: =Profile!L171 -> 2026-07-01 | L131: 0 | M131: 0 | N131: 0 | O131: =Profile!P171 -> 0 | P131: =Profile!E171 -> 0
A132: =Profile!A172 -> vjktif=r | B132: =Profile!B172 -> 117 | C132: =Profile!C172 -> 0 | D132: =Profile!D172 -> 0 | E132: =Profile!F172 -> 0 | F132: =Profile!G172 -> v/;kid | G132: =Profile!H172 -> ysoy | H132: =Profile!I172 -> 10 | I132: =Profile!J172 -> 0 | J132: 0 | K132: =Profile!L172 -> 2026-07-01 | L132: 0 | M132: 0 | N132: 0 | O132: =Profile!P172 -> 0 | P132: =Profile!E172 -> 0
A133: =Profile!A173 -> vjktif=r | B133: =Profile!B173 -> 118 | C133: =Profile!C173 -> 0 | D133: =Profile!D173 -> 0 | E133: =Profile!F173 -> 0 | F133: =Profile!G173 -> v/;kid | G133: =Profile!H173 -> ysoy | H133: =Profile!I173 -> 10 | I133: =Profile!J173 -> 0 | J133: 0 | K133: =Profile!L173 -> 2026-07-01 | L133: 0 | M133: 0 | N133: 0 | O133: =Profile!P173 -> 0 | P133: =Profile!E173 -> 0
A134: =Profile!A174 -> vjktif=r | B134: =Profile!B174 -> 119 | C134: =Profile!C174 -> 0 | D134: =Profile!D174 -> 0 | E134: =Profile!F174 -> 0 | F134: =Profile!G174 -> v/;kid | G134: =Profile!H174 -> ysoy | H134: =Profile!I174 -> 10 | I134: =Profile!J174 -> 0 | J134: 0 | K134: =Profile!L174 -> 2026-07-01 | L134: 0 | M134: 0 | N134: 0 | O134: =Profile!P174 -> 0 | P134: =Profile!E174 -> 0
A135: =Profile!A175 -> vjktif=r | B135: =Profile!B175 -> 120 | C135: =Profile!C175 -> 0 | D135: =Profile!D175 -> 0 | E135: =Profile!F175 -> 0 | F135: =Profile!G175 -> v/;kid | G135: =Profile!H175 -> ysoy | H135: =Profile!I175 -> 10 | I135: =Profile!J175 -> 0 | J135: 0 | K135: =Profile!L175 -> 2026-07-01 | L135: 0 | M135: 0 | N135: 0 | O135: =Profile!P175 -> 0 | P135: =Profile!E175 -> 0
A136: =Profile!A176 -> vjktif=r | B136: =Profile!B176 -> 121 | C136: =Profile!C176 -> 0 | D136: =Profile!D176 -> 0 | E136: =Profile!F176 -> 0 | F136: =Profile!G176 -> v/;kid | G136: =Profile!H176 -> ysoy | H136: =Profile!I176 -> 10 | I136: =Profile!J176 -> 0 | J136: 0 | K136: =Profile!L176 -> 2026-07-01 | L136: 0 | M136: 0 | N136: 0 | O136: =Profile!P176 -> 0 | P136: =Profile!E176 -> 0
A137: =Profile!A177 -> vjktif=r | B137: =Profile!B177 -> 122 | C137: =Profile!C177 -> 0 | D137: =Profile!D177 -> 0 | E137: =Profile!F177 -> 0 | F137: =Profile!G177 -> v/;kid | G137: =Profile!H177 -> ysoy | H137: =Profile!I177 -> 10 | I137: =Profile!J177 -> 0 | J137: 0 | K137: =Profile!L177 -> 2026-07-01 | L137: 0 | M137: 0 | N137: 0 | O137: =Profile!P177 -> 0 | P137: =Profile!E177 -> 0
A138: =Profile!A178 -> vjktif=r | B138: =Profile!B178 -> 123 | C138: =Profile!C178 -> 0 | D138: =Profile!D178 -> 0 | E138: =Profile!F178 -> 0 | F138: =Profile!G178 -> v/;kid | G138: =Profile!H178 -> ysoy | H138: =Profile!I178 -> 10 | I138: =Profile!J178 -> 0 | J138: 0 | K138: =Profile!L178 -> 2026-07-01 | L138: 0 | M138: 0 | N138: 0 | O138: =Profile!P178 -> 0 | P138: =Profile!E178 -> 0
A139: =Profile!A179 -> vjktif=r | B139: =Profile!B179 -> 124 | C139: =Profile!C179 -> 0 | D139: =Profile!D179 -> 0 | E139: =Profile!F179 -> 0 | F139: =Profile!G179 -> v/;kid | G139: =Profile!H179 -> ysoy | H139: =Profile!I179 -> 10 | I139: =Profile!J179 -> 0 | J139: 0 | K139: =Profile!L179 -> 2026-07-01 | L139: 0 | M139: 0 | N139: 0 | O139: =Profile!P179 -> 0 | P139: =Profile!E179 -> 0
A140: =Profile!A180 -> vjktif=r | B140: =Profile!B180 -> 125 | C140: =Profile!C180 -> 0 | D140: =Profile!D180 -> 0 | E140: =Profile!F180 -> 0 | F140: =Profile!G180 -> v/;kid | G140: =Profile!H180 -> ysoy | H140: =Profile!I180 -> 10 | I140: =Profile!J180 -> 0 | J140: 0 | K140: =Profile!L180 -> 2026-07-01 | L140: 0 | M140: 0 | N140: 0 | O140: =Profile!P180 -> 0 | P140: =Profile!E180 -> 0
A141: =Profile!A181 -> vjktif=r | B141: =Profile!B181 -> 126 | C141: =Profile!C181 -> 0 | D141: =Profile!D181 -> 0 | E141: =Profile!F181 -> 0 | F141: =Profile!G181 -> v/;kid | G141: =Profile!H181 -> ysoy | H141: =Profile!I181 -> 10 | I141: =Profile!J181 -> 0 | J141: 0 | K141: =Profile!L181 -> 2026-07-01 | L141: 0 | M141: 0 | N141: 0 | O141: =Profile!P181 -> 0 | P141: =Profile!E181 -> 0
A142: =Profile!A182 -> vjktif=r | B142: =Profile!B182 -> 127 | C142: =Profile!C182 -> 0 | D142: =Profile!D182 -> 0 | E142: =Profile!F182 -> 0 | F142: =Profile!G182 -> v/;kid | G142: =Profile!H182 -> ysoy | H142: =Profile!I182 -> 10 | I142: =Profile!J182 -> 0 | J142: 0 | K142: =Profile!L182 -> 2026-07-01 | L142: 0 | M142: 0 | N142: 0 | O142: =Profile!P182 -> 0 | P142: =Profile!E182 -> 0
A143: =Profile!A183 -> vjktif=r | B143: =Profile!B183 -> 128 | C143: =Profile!C183 -> 0 | D143: =Profile!D183 -> 0 | E143: =Profile!F183 -> 0 | F143: =Profile!G183 -> v/;kid | G143: =Profile!H183 -> ysoy | H143: =Profile!I183 -> 10 | I143: =Profile!J183 -> 0 | J143: 0 | K143: =Profile!L183 -> 2026-07-01 | L143: 0 | M143: 0 | N143: 0 | O143: =Profile!P183 -> 0 | P143: =Profile!E183 -> 0
A144: =Profile!A184 -> vjktif=r | B144: =Profile!B184 -> 129 | C144: =Profile!C184 -> 0 | D144: =Profile!D184 -> 0 | E144: =Profile!F184 -> 0 | F144: =Profile!G184 -> v/;kid | G144: =Profile!H184 -> ysoy | H144: =Profile!I184 -> 10 | I144: =Profile!J184 -> 0 | J144: 0 | K144: =Profile!L184 -> 2026-07-01 | L144: 0 | M144: 0 | N144: 0 | O144: =Profile!P184 -> 0 | P144: =Profile!E184 -> 0
A145: =Profile!A185 -> vjktif=r | B145: =Profile!B185 -> 130 | C145: =Profile!C185 -> 0 | D145: =Profile!D185 -> 0 | E145: =Profile!F185 -> 0 | F145: =Profile!G185 -> v/;kid | G145: =Profile!H185 -> ysoy | H145: =Profile!I185 -> 10 | I145: =Profile!J185 -> 0 | J145: 0 | K145: =Profile!L185 -> 2026-07-01 | L145: 0 | M145: 0 | N145: 0 | O145: =Profile!P185 -> 0 | P145: =Profile!E185 -> 0
A146: =Profile!A186 -> vjktif=r | B146: =Profile!B186 -> 131 | C146: =Profile!C186 -> 0 | D146: =Profile!D186 -> 0 | E146: =Profile!F186 -> 0 | F146: =Profile!G186 -> v/;kid | G146: =Profile!H186 -> ysoy | H146: =Profile!I186 -> 10 | I146: =Profile!J186 -> 0 | J146: 0 | K146: =Profile!L186 -> 2026-07-01 | L146: 0 | M146: 0 | N146: 0 | O146: =Profile!P186 -> 0 | P146: =Profile!E186 -> 0
A147: =Profile!A187 -> vjktif=r | B147: =Profile!B187 -> 132 | C147: =Profile!C187 -> 0 | D147: =Profile!D187 -> 0 | E147: =Profile!F187 -> 0 | F147: =Profile!G187 -> v/;kid | G147: =Profile!H187 -> ysoy | H147: =Profile!I187 -> 10 | I147: =Profile!J187 -> 0 | J147: 0 | K147: =Profile!L187 -> 2026-07-01 | L147: 0 | M147: 0 | N147: 0 | O147: =Profile!P187 -> 0 | P147: =Profile!E187 -> 0
A148: =Profile!A188 -> vjktif=r | B148: =Profile!B188 -> 133 | C148: =Profile!C188 -> 0 | D148: =Profile!D188 -> 0 | E148: =Profile!F188 -> 0 | F148: =Profile!G188 -> v/;kid | G148: =Profile!H188 -> ysoy | H148: =Profile!I188 -> 10 | I148: =Profile!J188 -> 0 | J148: 0 | K148: =Profile!L188 -> 2026-07-01 | L148: 0 | M148: 0 | N148: 0 | O148: =Profile!P188 -> 0 | P148: =Profile!E188 -> 0
A149: =Profile!A189 -> vjktif=r | B149: =Profile!B189 -> 134 | C149: =Profile!C189 -> 0 | D149: =Profile!D189 -> 0 | E149: =Profile!F189 -> 0 | F149: =Profile!G189 -> v/;kid | G149: =Profile!H189 -> ysoy | H149: =Profile!I189 -> 10 | I149: =Profile!J189 -> 0 | J149: 0 | K149: =Profile!L189 -> 2026-07-01 | L149: 0 | M149: 0 | N149: 0 | O149: =Profile!P189 -> 0 | P149: =Profile!E189 -> 0
A150: =Profile!A190 -> vjktif=r | B150: =Profile!B190 -> 135 | C150: =Profile!C190 -> 0 | D150: =Profile!D190 -> 0 | E150: =Profile!F190 -> 0 | F150: =Profile!G190 -> v/;kid | G150: =Profile!H190 -> ysoy | H150: =Profile!I190 -> 10 | I150: =Profile!J190 -> 0 | J150: 0 | K150: =Profile!L190 -> 2026-07-01 | L150: 0 | M150: 0 | N150: 0 | O150: =Profile!P190 -> 0 | P150: =Profile!E190 -> 0
A151: =Profile!A191 -> vjktif=r | B151: =Profile!B191 -> 136 | C151: =Profile!C191 -> 0 | D151: =Profile!D191 -> 0 | E151: =Profile!F191 -> 0 | F151: =Profile!G191 -> v/;kid | G151: =Profile!H191 -> ysoy | H151: =Profile!I191 -> 10 | I151: =Profile!J191 -> 0 | J151: =I151*12 -> 0 | K151: =Profile!L191 -> 2026-07-01 | L151: =O151*8 -> 0 | M151: =J151+L151 -> 0 | N151: =M151-O151*12 -> 0 | O151: =Profile!P191 -> 0 | P151: =Profile!E191 -> 0
A152: =Profile!A192 -> vjktif=r | B152: =Profile!B192 -> 137 | C152: =Profile!C192 -> 0 | D152: =Profile!D192 -> 0 | E152: =Profile!F192 -> 0 | F152: =Profile!G192 -> v/;kid | G152: =Profile!H192 -> ysoy | H152: =Profile!I192 -> 10 | I152: =Profile!J192 -> 0 | J152: 0 | K152: =Profile!L192 -> 2026-07-01 | L152: 0 | M152: 0 | N152: 0 | O152: =Profile!P192 -> 0 | P152: =Profile!E192 -> 0
A153: =Profile!A193 -> vjktif=r | B153: =Profile!B193 -> 138 | C153: =Profile!C193 -> 0 | D153: =Profile!D193 -> 0 | E153: =Profile!F193 -> 0 | F153: =Profile!G193 -> v/;kid | G153: =Profile!H193 -> ysoy | H153: =Profile!I193 -> 10 | I153: =Profile!J193 -> 0 | J153: 0 | K153: =Profile!L193 -> 2026-07-01 | L153: 0 | M153: 0 | N153: 0 | O153: =Profile!P193 -> 0 | P153: =Profile!E193 -> 0
A154: =Profile!A194 -> vjktif=r | B154: =Profile!B194 -> 139 | C154: =Profile!C194 -> 0 | D154: =Profile!D194 -> 0 | E154: =Profile!F194 -> 0 | F154: =Profile!G194 -> v/;kid | G154: =Profile!H194 -> ysoy | H154: =Profile!I194 -> 10 | I154: =Profile!J194 -> 0 | J154: 0 | K154: =Profile!L194 -> 2026-07-01 | L154: 0 | M154: 0 | N154: 0 | O154: =Profile!P194 -> 0 | P154: =Profile!E194 -> 0
A155: =Profile!A195 -> vjktif=r | B155: =Profile!B195 -> 140 | C155: =Profile!C195 -> 0 | D155: =Profile!D195 -> 0 | E155: =Profile!F195 -> 0 | F155: =Profile!G195 -> v/;kid | G155: =Profile!H195 -> ysoy | H155: =Profile!I195 -> 10 | I155: =Profile!J195 -> 0 | J155: 0 | K155: =Profile!L195 -> 2026-07-01 | L155: 0 | M155: 0 | N155: 0 | O155: =Profile!P195 -> 0 | P155: =Profile!E195 -> 0
A156: =Profile!A196 -> vjktif=r | B156: =Profile!B196 -> 141 | C156: =Profile!C196 -> 0 | D156: =Profile!D196 -> 0 | E156: =Profile!F196 -> 0 | F156: =Profile!G196 -> v/;kid | G156: =Profile!H196 -> ysoy | H156: =Profile!I196 -> 10 | I156: =Profile!J196 -> 0 | J156: 0 | K156: =Profile!L196 -> 2026-07-01 | L156: 0 | M156: 0 | N156: 0 | O156: =Profile!P196 -> 0 | P156: =Profile!E196 -> 0
A157: =Profile!A197 -> vjktif=r | B157: =Profile!B197 -> 142 | C157: =Profile!C197 -> 0 | D157: =Profile!D197 -> 0 | E157: =Profile!F197 -> 0 | F157: =Profile!G197 -> v/;kid | G157: =Profile!H197 -> ysoy | H157: =Profile!I197 -> 10 | I157: =Profile!J197 -> 0 | J157: 0 | K157: =Profile!L197 -> 2026-07-01 | L157: 0 | M157: 0 | N157: 0 | O157: =Profile!P197 -> 0 | P157: =Profile!E197 -> 0
A158: =Profile!A198 -> vjktif=r | B158: =Profile!B198 -> 143 | C158: =Profile!C198 -> 0 | D158: =Profile!D198 -> 0 | E158: =Profile!F198 -> 0 | F158: =Profile!G198 -> v/;kid | G158: =Profile!H198 -> ysoy | H158: =Profile!I198 -> 10 | I158: =Profile!J198 -> 0 | J158: 0 | K158: =Profile!L198 -> 2026-07-01 | L158: 0 | M158: 0 | N158: 0 | O158: =Profile!P198 -> 0 | P158: =Profile!E198 -> 0
A159: =Profile!A199 -> vjktif=r | B159: =Profile!B199 -> 144 | C159: =Profile!C199 -> 0 | D159: =Profile!D199 -> 0 | E159: =Profile!F199 -> 0 | F159: =Profile!G199 -> v/;kid | G159: =Profile!H199 -> ysoy | H159: =Profile!I199 -> 10 | I159: =Profile!J199 -> 0 | J159: 0 | K159: =Profile!L199 -> 2026-07-01 | L159: 0 | M159: 0 | N159: 0 | O159: =Profile!P199 -> 0 | P159: =Profile!E199 -> 0
A160: =Profile!A200 -> vjktif=r | B160: =Profile!B200 -> 145 | C160: =Profile!C200 -> 0 | D160: =Profile!D200 -> 0 | E160: =Profile!F200 -> 0 | F160: =Profile!G200 -> v/;kid | G160: =Profile!H200 -> ysoy | H160: =Profile!I200 -> 10 | I160: =Profile!J200 -> 0 | J160: 0 | K160: =Profile!L200 -> 2026-07-01 | L160: 0 | M160: 0 | N160: 0 | O160: =Profile!P200 -> 0 | P160: =Profile!E200 -> 0
A161: =Profile!A201 -> vjktif=r | B161: =Profile!B201 -> 146 | C161: =Profile!C201 -> 0 | D161: =Profile!D201 -> 0 | E161: =Profile!F201 -> 0 | F161: =Profile!G201 -> v/;kid | G161: =Profile!H201 -> ysoy | H161: =Profile!I201 -> 10 | I161: =Profile!J201 -> 0 | J161: 0 | K161: =Profile!L201 -> 2026-07-01 | L161: 0 | M161: 0 | N161: 0 | O161: =Profile!P201 -> 0 | P161: =Profile!E201 -> 0
A162: =Profile!A202 -> vjktif=r | B162: =Profile!B202 -> 147 | C162: =Profile!C202 -> 0 | D162: =Profile!D202 -> 0 | E162: =Profile!F202 -> 0 | F162: =Profile!G202 -> v/;kid | G162: =Profile!H202 -> ysoy | H162: =Profile!I202 -> 10 | I162: =Profile!J202 -> 0 | J162: 0 | K162: =Profile!L202 -> 2026-07-01 | L162: 0 | M162: 0 | N162: 0 | O162: =Profile!P202 -> 0 | P162: =Profile!E202 -> 0
A163: =Profile!A203 -> vjktif=r | B163: =Profile!B203 -> 148 | C163: =Profile!C203 -> 0 | D163: =Profile!D203 -> 0 | E163: =Profile!F203 -> 0 | F163: =Profile!G203 -> v/;kid | G163: =Profile!H203 -> ysoy | H163: =Profile!I203 -> 10 | I163: =Profile!J203 -> 0 | J163: 0 | K163: =Profile!L203 -> 2026-07-01 | L163: 0 | M163: 0 | N163: 0 | O163: =Profile!P203 -> 0 | P163: =Profile!E203 -> 0
A164: =Profile!A204 -> vjktif=r | B164: =Profile!B204 -> 149 | C164: =Profile!C204 -> 0 | D164: =Profile!D204 -> 0 | E164: =Profile!F204 -> 0 | F164: =Profile!G204 -> v/;kid | G164: =Profile!H204 -> ysoy | H164: =Profile!I204 -> 10 | I164: =Profile!J204 -> 0 | J164: 0 | K164: =Profile!L204 -> 2026-07-01 | L164: 0 | M164: 0 | N164: 0 | O164: =Profile!P204 -> 0 | P164: =Profile!E204 -> 0
A165: =Profile!A205 -> vjktif=r | B165: =Profile!B205 -> 150 | C165: =Profile!C205 -> 0 | D165: =Profile!D205 -> 0 | E165: =Profile!F205 -> 0 | F165: =Profile!G205 -> v/;kid | G165: =Profile!H205 -> ysoy | H165: =Profile!I205 -> 10 | I165: =Profile!J205 -> 0 | J165: 0 | K165: =Profile!L205 -> 2026-07-01 | L165: 0 | M165: 0 | N165: 0 | O165: =Profile!P205 -> 0 | P165: =Profile!E205 -> 0
A166: =Profile!A206 -> vjktif=r | B166: =Profile!B206 -> 151 | C166: =Profile!C206 -> 0 | D166: =Profile!D206 -> 0 | E166: =Profile!F206 -> 0 | F166: =Profile!G206 -> v/;kid | G166: =Profile!H206 -> ysoy | H166: =Profile!I206 -> 10 | I166: =Profile!J206 -> 0 | J166: 0 | K166: =Profile!L206 -> 2026-07-01 | L166: 0 | M166: 0 | N166: 0 | O166: =Profile!P206 -> 0 | P166: =Profile!E206 -> 0
A167: =Profile!A207 -> vjktif=r | B167: =Profile!B207 -> 152 | C167: =Profile!C207 -> 0 | D167: =Profile!D207 -> 0 | E167: =Profile!F207 -> 0 | F167: =Profile!G207 -> v/;kid | G167: =Profile!H207 -> ysoy | H167: =Profile!I207 -> 10 | I167: =Profile!J207 -> 0 | J167: 0 | K167: =Profile!L207 -> 2026-07-01 | L167: 0 | M167: 0 | N167: 0 | O167: =Profile!P207 -> 0 | P167: =Profile!E207 -> 0
A168: =Profile!A208 -> vjktif=r | B168: =Profile!B208 -> 153 | C168: =Profile!C208 -> 0 | D168: =Profile!D208 -> 0 | E168: =Profile!F208 -> 0 | F168: =Profile!G208 -> v/;kid | G168: =Profile!H208 -> ysoy | H168: =Profile!I208 -> 10 | I168: =Profile!J208 -> 0 | J168: 0 | K168: =Profile!L208 -> 2026-07-01 | L168: 0 | M168: 0 | N168: 0 | O168: =Profile!P208 -> 0 | P168: =Profile!E208 -> 0
A169: =Profile!A209 -> vjktif=r | B169: =Profile!B209 -> 154 | C169: =Profile!C209 -> 0 | D169: =Profile!D209 -> 0 | E169: =Profile!F209 -> 0 | F169: =Profile!G209 -> v/;kid | G169: =Profile!H209 -> ysoy | H169: =Profile!I209 -> 10 | I169: =Profile!J209 -> 0 | J169: 0 | K169: =Profile!L209 -> 2026-07-01 | L169: 0 | M169: 0 | N169: 0 | O169: =Profile!P209 -> 0 | P169: =Profile!E209 -> 0
A170: =Profile!A210 -> vjktif=r | B170: =Profile!B210 -> 155 | C170: =Profile!C210 -> 0 | D170: =Profile!D210 -> 0 | E170: =Profile!F210 -> 0 | F170: =Profile!G210 -> v/;kid | G170: =Profile!H210 -> ysoy | H170: =Profile!I210 -> 10 | I170: =Profile!J210 -> 0 | J170: 0 | K170: =Profile!L210 -> 2026-07-01 | L170: 0 | M170: 0 | N170: 0 | O170: =Profile!P210 -> 0 | P170: =Profile!E210 -> 0
A171: =Profile!A211 -> vjktif=r | B171: =Profile!B211 -> 156 | C171: =Profile!C211 -> 0 | D171: =Profile!D211 -> 0 | E171: =Profile!F211 -> 0 | F171: =Profile!G211 -> v/;kid | G171: =Profile!H211 -> ysoy | H171: =Profile!I211 -> 10 | I171: =Profile!J211 -> 0 | J171: 0 | K171: =Profile!L211 -> 2026-07-01 | L171: 0 | M171: 0 | N171: 0 | O171: =Profile!P211 -> 0 | P171: =Profile!E211 -> 0
A172: =Profile!A212 -> vjktif=r | B172: =Profile!B212 -> 157 | C172: =Profile!C212 -> 0 | D172: =Profile!D212 -> 0 | E172: =Profile!F212 -> 0 | F172: =Profile!G212 -> v/;kid | G172: =Profile!H212 -> ysoy | H172: =Profile!I212 -> 10 | I172: =Profile!J212 -> 0 | J172: 0 | K172: =Profile!L212 -> 2026-07-01 | L172: 0 | M172: 0 | N172: 0 | O172: =Profile!P212 -> 0 | P172: =Profile!E212 -> 0
A173: =Profile!A213 -> vjktif=r | B173: =Profile!B213 -> 158 | C173: =Profile!C213 -> 0 | D173: =Profile!D213 -> 0 | E173: =Profile!F213 -> 0 | F173: =Profile!G213 -> v/;kid | G173: =Profile!H213 -> ysoy | H173: =Profile!I213 -> 10 | I173: =Profile!J213 -> 0 | J173: 0 | K173: =Profile!L213 -> 2026-07-01 | L173: 0 | M173: 0 | N173: 0 | O173: =Profile!P213 -> 0 | P173: =Profile!E213 -> 0
A174: =Profile!A214 -> vjktif=r | B174: =Profile!B214 -> 159 | C174: =Profile!C214 -> 0 | D174: =Profile!D214 -> 0 | E174: =Profile!F214 -> 0 | F174: =Profile!G214 -> v/;kid | G174: =Profile!H214 -> ysoy | H174: =Profile!I214 -> 10 | I174: =Profile!J214 -> 0 | J174: 0 | K174: =Profile!L214 -> 2026-07-01 | L174: 0 | M174: 0 | N174: 0 | O174: =Profile!P214 -> 0 | P174: =Profile!E214 -> 0
A175: =Profile!A215 -> vjktif=r | B175: =Profile!B215 -> 160 | C175: =Profile!C215 -> 0 | D175: =Profile!D215 -> 0 | E175: =Profile!F215 -> 0 | F175: =Profile!G215 -> v/;kid | G175: =Profile!H215 -> ysoy | H175: =Profile!I215 -> 10 | I175: =Profile!J215 -> 0 | J175: 0 | K175: =Profile!L215 -> 2026-07-01 | L175: 0 | M175: 0 | N175: 0 | O175: =Profile!P215 -> 0 | P175: =Profile!E215 -> 0
A176: =Profile!A216 -> vjktif=r | B176: =Profile!B216 -> 161 | C176: =Profile!C216 -> 0 | D176: =Profile!D216 -> 0 | E176: =Profile!F216 -> 0 | F176: =Profile!G216 -> v/;kid | G176: =Profile!H216 -> ysoy | H176: =Profile!I216 -> 10 | I176: =Profile!J216 -> 0 | J176: 0 | K176: =Profile!L216 -> 2026-07-01 | L176: 0 | M176: 0 | N176: 0 | O176: =Profile!P216 -> 0 | P176: =Profile!E216 -> 0
A177: =Profile!A217 -> vjktif=r | B177: =Profile!B217 -> 162 | C177: =Profile!C217 -> 0 | D177: =Profile!D217 -> 0 | E177: =Profile!F217 -> 0 | F177: =Profile!G217 -> v/;kid | G177: =Profile!H217 -> ysoy | H177: =Profile!I217 -> 10 | I177: =Profile!J217 -> 0 | J177: 0 | K177: =Profile!L217 -> 2026-07-01 | L177: 0 | M177: 0 | N177: 0 | O177: =Profile!P217 -> 0 | P177: =Profile!E217 -> 0
A178: =Profile!A218 -> vjktif=r | B178: =Profile!B218 -> 163 | C178: =Profile!C218 -> 0 | D178: =Profile!D218 -> 0 | E178: =Profile!F218 -> 0 | F178: =Profile!G218 -> v/;kid | G178: =Profile!H218 -> ysoy | H178: =Profile!I218 -> 10 | I178: =Profile!J218 -> 0 | J178: 0 | K178: =Profile!L218 -> 2026-07-01 | L178: 0 | M178: 0 | N178: 0 | O178: =Profile!P218 -> 0 | P178: =Profile!E218 -> 0
A179: =Profile!A219 -> vjktif=r | B179: =Profile!B219 -> 164 | C179: =Profile!C219 -> 0 | D179: =Profile!D219 -> 0 | E179: =Profile!F219 -> 0 | F179: =Profile!G219 -> v/;kid | G179: =Profile!H219 -> ysoy | H179: =Profile!I219 -> 10 | I179: =Profile!J219 -> 0 | J179: 0 | K179: =Profile!L219 -> 2026-07-01 | L179: 0 | M179: 0 | N179: 0 | O179: =Profile!P219 -> 0 | P179: =Profile!E219 -> 0
A180: =Profile!A220 -> vjktif=r | B180: =Profile!B220 -> 165 | C180: =Profile!C220 -> 0 | D180: =Profile!D220 -> 0 | E180: =Profile!F220 -> 0 | F180: =Profile!G220 -> v/;kid | G180: =Profile!H220 -> ysoy | H180: =Profile!I220 -> 10 | I180: =Profile!J220 -> 0 | J180: 0 | K180: =Profile!L220 -> 2026-07-01 | L180: 0 | M180: 0 | N180: 0 | O180: =Profile!P220 -> 0 | P180: =Profile!E220 -> 0
A181: =Profile!A221 -> vjktif=r | B181: =Profile!B221 -> 166 | C181: =Profile!C221 -> 0 | D181: =Profile!D221 -> 0 | E181: =Profile!F221 -> 0 | F181: =Profile!G221 -> v/;kid | G181: =Profile!H221 -> ysoy | H181: =Profile!I221 -> 10 | I181: =Profile!J221 -> 0 | J181: 0 | K181: =Profile!L221 -> 2026-07-01 | L181: 0 | M181: 0 | N181: 0 | O181: =Profile!P221 -> 0 | P181: =Profile!E221 -> 0
A182: =Profile!A222 -> vjktif=r | B182: =Profile!B222 -> 167 | C182: =Profile!C222 -> 0 | D182: =Profile!D222 -> 0 | E182: =Profile!F222 -> 0 | F182: =Profile!G222 -> v/;kid | G182: =Profile!H222 -> ysoy | H182: =Profile!I222 -> 10 | I182: =Profile!J222 -> 0 | J182: 0 | K182: =Profile!L222 -> 2026-07-01 | L182: 0 | M182: 0 | N182: 0 | O182: =Profile!P222 -> 0 | P182: =Profile!E222 -> 0
A183: =Profile!A223 -> vjktif=r | B183: =Profile!B223 -> 168 | C183: =Profile!C223 -> 0 | D183: =Profile!D223 -> 0 | E183: =Profile!F223 -> 0 | F183: =Profile!G223 -> v/;kid | G183: =Profile!H223 -> ysoy | H183: =Profile!I223 -> 10 | I183: =Profile!J223 -> 0 | J183: 0 | K183: =Profile!L223 -> 2026-07-01 | L183: 0 | M183: 0 | N183: 0 | O183: =Profile!P223 -> 0 | P183: =Profile!E223 -> 0
A184: =Profile!A224 -> vjktif=r | B184: =Profile!B224 -> 169 | C184: =Profile!C224 -> 0 | D184: =Profile!D224 -> 0 | E184: =Profile!F224 -> 0 | F184: =Profile!G224 -> v/;kid | G184: =Profile!H224 -> ysoy | H184: =Profile!I224 -> 10 | I184: =Profile!J224 -> 0 | J184: 0 | K184: =Profile!L224 -> 2026-07-01 | L184: 0 | M184: 0 | N184: 0 | O184: =Profile!P224 -> 0 | P184: =Profile!E224 -> 0
A185: =Profile!A225 -> vjktif=r | B185: =Profile!B225 -> 170 | C185: =Profile!C225 -> 0 | D185: =Profile!D225 -> 0 | E185: =Profile!F225 -> 0 | F185: =Profile!G225 -> v/;kid | G185: =Profile!H225 -> ysoy | H185: =Profile!I225 -> 10 | I185: =Profile!J225 -> 0 | J185: 0 | K185: =Profile!L225 -> 2026-07-01 | L185: 0 | M185: 0 | N185: 0 | O185: =Profile!P225 -> 0 | P185: =Profile!E225 -> 0
A186: =Profile!A226 -> vjktif=r | B186: =Profile!B226 -> 171 | C186: =Profile!C226 -> 0 | D186: =Profile!D226 -> 0 | E186: =Profile!F226 -> 0 | F186: =Profile!G226 -> v/;kid | G186: =Profile!H226 -> ysoy | H186: =Profile!I226 -> 10 | I186: =Profile!J226 -> 0 | J186: 0 | K186: =Profile!L226 -> 2026-07-01 | L186: 0 | M186: 0 | N186: 0 | O186: =Profile!P226 -> 0 | P186: =Profile!E226 -> 0
A187: =Profile!A227 -> vjktif=r | B187: =Profile!B227 -> 172 | C187: =Profile!C227 -> 0 | D187: =Profile!D227 -> 0 | E187: =Profile!F227 -> 0 | F187: =Profile!G227 -> v/;kid | G187: =Profile!H227 -> ysoy | H187: =Profile!I227 -> 10 | I187: =Profile!J227 -> 0 | J187: 0 | K187: =Profile!L227 -> 2026-07-01 | L187: 0 | M187: 0 | N187: 0 | O187: =Profile!P227 -> 0 | P187: =Profile!E227 -> 0
A188: =Profile!A228 -> vjktif=r | B188: =Profile!B228 -> 173 | C188: =Profile!C228 -> 0 | D188: =Profile!D228 -> 0 | E188: =Profile!F228 -> 0 | F188: =Profile!G228 -> v/;kid | G188: =Profile!H228 -> ysoy | H188: =Profile!I228 -> 10 | I188: =Profile!J228 -> 0 | J188: 0 | K188: =Profile!L228 -> 2026-07-01 | L188: 0 | M188: 0 | N188: 0 | O188: =Profile!P228 -> 0 | P188: =Profile!E228 -> 0
A189: =Profile!A229 -> vjktif=r | B189: =Profile!B229 -> 174 | C189: =Profile!C229 -> 0 | D189: =Profile!D229 -> 0 | E189: =Profile!F229 -> 0 | F189: =Profile!G229 -> v/;kid | G189: =Profile!H229 -> ysoy | H189: =Profile!I229 -> 10 | I189: =Profile!J229 -> 0 | J189: 0 | K189: =Profile!L229 -> 2026-07-01 | L189: 0 | M189: 0 | N189: 0 | O189: =Profile!P229 -> 0 | P189: =Profile!E229 -> 0
A190: =Profile!A230 -> vjktif=r | B190: =Profile!B230 -> 175 | C190: =Profile!C230 -> 0 | D190: =Profile!D230 -> 0 | E190: =Profile!F230 -> 0 | F190: =Profile!G230 -> v/;kid | G190: =Profile!H230 -> ysoy | H190: =Profile!I230 -> 10 | I190: =Profile!J230 -> 0 | J190: 0 | K190: =Profile!L230 -> 2026-07-01 | L190: 0 | M190: 0 | N190: 0 | O190: =Profile!P230 -> 0 | P190: =Profile!E230 -> 0
A191: =Profile!A231 -> vjktif=r | B191: =Profile!B231 -> 176 | C191: =Profile!C231 -> 0 | D191: =Profile!D231 -> 0 | E191: =Profile!F231 -> 0 | F191: =Profile!G231 -> v/;kid | G191: =Profile!H231 -> ysoy | H191: =Profile!I231 -> 10 | I191: =Profile!J231 -> 0 | J191: 0 | K191: =Profile!L231 -> 2026-07-01 | L191: 0 | M191: 0 | N191: 0 | O191: =Profile!P231 -> 0 | P191: =Profile!E231 -> 0
A192: =Profile!A232 -> vjktif=r | B192: =Profile!B232 -> 177 | C192: =Profile!C232 -> 0 | D192: =Profile!D232 -> 0 | E192: =Profile!F232 -> 0 | F192: =Profile!G232 -> v/;kid | G192: =Profile!H232 -> ysoy | H192: =Profile!I232 -> 10 | I192: =Profile!J232 -> 0 | J192: 0 | K192: =Profile!L232 -> 2026-07-01 | L192: 0 | M192: 0 | N192: 0 | O192: =Profile!P232 -> 0 | P192: =Profile!E232 -> 0
A193: =Profile!A233 -> vjktif=r | B193: =Profile!B233 -> 178 | C193: =Profile!C233 -> 0 | D193: =Profile!D233 -> 0 | E193: =Profile!F233 -> 0 | F193: =Profile!G233 -> v/;kid | G193: =Profile!H233 -> ysoy | H193: =Profile!I233 -> 10 | I193: =Profile!J233 -> 0 | J193: 0 | K193: =Profile!L233 -> 2026-07-01 | L193: 0 | M193: 0 | N193: 0 | O193: =Profile!P233 -> 0 | P193: =Profile!E233 -> 0
A194: =Profile!A234 -> vjktif=r | B194: =Profile!B234 -> 179 | C194: =Profile!C234 -> 0 | D194: =Profile!D234 -> 0 | E194: =Profile!F234 -> 0 | F194: =Profile!G234 -> v/;kid | G194: =Profile!H234 -> ysoy | H194: =Profile!I234 -> 10 | I194: =Profile!J234 -> 0 | J194: 0 | K194: =Profile!L234 -> 2026-07-01 | L194: 0 | M194: 0 | N194: 0 | O194: =Profile!P234 -> 0 | P194: =Profile!E234 -> 0
A195: =Profile!A235 -> vjktif=r | B195: =Profile!B235 -> 180 | C195: =Profile!C235 -> 0 | D195: =Profile!D235 -> 0 | E195: =Profile!F235 -> 0 | F195: =Profile!G235 -> v/;kid | G195: =Profile!H235 -> ysoy | H195: =Profile!I235 -> 10 | I195: =Profile!J235 -> 0 | J195: 0 | K195: =Profile!L235 -> 2026-07-01 | L195: 0 | M195: 0 | N195: 0 | O195: =Profile!P235 -> 0 | P195: =Profile!E235 -> 0
A196: =Profile!A236 -> vjktif=r | B196: =Profile!B236 -> 181 | C196: =Profile!C236 -> 0 | D196: =Profile!D236 -> 0 | E196: =Profile!F236 -> 0 | F196: =Profile!G236 -> v/;kid | G196: =Profile!H236 -> ysoy | H196: =Profile!I236 -> 10 | I196: =Profile!J236 -> 0 | J196: 0 | K196: =Profile!L236 -> 2026-07-01 | L196: 0 | M196: 0 | N196: 0 | O196: =Profile!P236 -> 0 | P196: =Profile!E236 -> 0
A197: =Profile!A237 -> vjktif=r | B197: =Profile!B237 -> 182 | C197: =Profile!C237 -> 0 | D197: =Profile!D237 -> 0 | E197: =Profile!F237 -> 0 | F197: =Profile!G237 -> v/;kid | G197: =Profile!H237 -> ysoy | H197: =Profile!I237 -> 10 | I197: =Profile!J237 -> 0 | J197: 0 | K197: =Profile!L237 -> 2026-07-01 | L197: 0 | M197: 0 | N197: 0 | O197: =Profile!P237 -> 0 | P197: =Profile!E237 -> 0
A198: =Profile!A238 -> vjktif=r | B198: =Profile!B238 -> 183 | C198: =Profile!C238 -> 0 | D198: =Profile!D238 -> 0 | E198: =Profile!F238 -> 0 | F198: =Profile!G238 -> v/;kid | G198: =Profile!H238 -> ysoy | H198: =Profile!I238 -> 10 | I198: =Profile!J238 -> 0 | J198: 0 | K198: =Profile!L238 -> 2026-07-01 | L198: 0 | M198: 0 | N198: 0 | O198: =Profile!P238 -> 0 | P198: =Profile!E238 -> 0
A199: =Profile!A239 -> vjktif=r | B199: =Profile!B239 -> 184 | C199: =Profile!C239 -> 0 | D199: =Profile!D239 -> 0 | E199: =Profile!F239 -> 0 | F199: =Profile!G239 -> v/;kid | G199: =Profile!H239 -> ysoy | H199: =Profile!I239 -> 10 | I199: =Profile!J239 -> 0 | J199: 0 | K199: =Profile!L239 -> 2026-07-01 | L199: 0 | M199: 0 | N199: 0 | O199: =Profile!P239 -> 0 | P199: =Profile!E239 -> 0
A200: =Profile!A240 -> vjktif=r | B200: =Profile!B240 -> 185 | C200: =Profile!C240 -> 0 | D200: =Profile!D240 -> 0 | E200: =Profile!F240 -> 0 | F200: =Profile!G240 -> v/;kid | G200: =Profile!H240 -> ysoy | H200: =Profile!I240 -> 10 | I200: =Profile!J240 -> 0 | J200: 0 | K200: =Profile!L240 -> 2026-07-01 | L200: 0 | M200: 0 | N200: 0 | O200: =Profile!P240 -> 0 | P200: =Profile!E240 -> 0
... 92 more rows

Sheet rrr 09
A1: izi= 9 | N1: ctV gSM | O1: =Profile!$C$3 -> 2202-01-197-16-01
A2: fuf'pr O;;ksa ds foLr`r vuqeku vFkkZr~ vf/kdkfj;ksa o deZpkfj;ksa ds osru vuqeku o"kZ ¼vizSy ls ekpZ rd½ | P2: =Profile!$A$8 -> ihMh [kkrk la[;k %& | Q2: =Profile!$C$8 -> 762 | S2: =Profile!$K$44 -> LVsV Q.M
A3: ¼ctV vuqeku vf/kdkfj;ksa }kjk foHkkxk/;{k dks izLrqr djus gsrq½ ys[kk dk 'kh"kZ % eq[; 'kh"kZ@minh?kZ 'kh"kZ@y?kq'kh"kZ@mi'kh"kZ xzqi 'kh"kZ--------------------vk;kstuk fHkUu@vk;kstuk@dsUnz izofrZr ;kstuk
A4: dk;kZy; & | E4: =Profile!$D$44 -> eq[; CykWd f'k{kk vf/kdkjh] lexz f'k{kk] chdkusj | M4: foHkkx dk uke %& | P4: =Profile!$G$2 -> izkjfEHkd f'k{kk foHkkx | S4: =Profile!$G$43 -> 1451
B5: ctV Lohd`fr esa fo|ky; dh Ø-la- %& | F5: =Profile!$C$12 -> 11 | H5: dk;kZy; v/;{k MhMhvks uke %& | L5: =Profile!$G$4 -> euh"kk vjksM+k | O5: =Profile!$I$4 -> 1234567890 | S5: j lgL=ksa esa
A6: Øe l[;k | B6: ys[kk 'kh"kZd ¼foLr`r 'kh"kZ½ | C6: nrer@ ize`r | D6: okLrfod O;; vkadM+s¼xr iwoZ rhu o"kksZ ds½ | G6: =Profile!$C$16 -> 2025-26 | H6: okLrfod O;; vkadM+s | L6: flrEcj ls ekpZ rd laHkkfor O;; o yfEcr fcy ¼pkyw o"kZ½ | M6: la'kksf/kr vuqeku ¼pkyw o"kZ½ 8$10 | N6: vk; O;; ds vuqeku ckcr ¼vkxkeh o"kZ½ | Q6: o`f)¼$½ ;k deh¼&½ | S6: uohu vkbVe | T6: fo'ks"k fooj.k
D7: =Profile!$F$29 -> 2022-23 | E7: =Profile!$G$29 -> 2023-24 | F7: =Profile!$H$29 -> 2024-25 | G7: vk; O;; ds vuqeku ckcr~ pkyw o"kZ vkoaVu | H7: 1vizsy ls vc rd 31vxLr pkyw o"kZ½ | I7: yfEcr fcy ¼out standing Liabilities½ | J7: 'ks"k vof/k ds fy, lEHkkfor O;; | K7: dkye 8]9 o 10 dk ;ksx | N7: dfeVsM | O7: uohu | P7: dqy ¼13+14½ | Q7: 7 vkSj 11 esa | R7: 11 vkSj 14 esa | S7: gka @ ugha | T7: RE | U7: BE
A8: 1 | B8: 2 | C8: 3 | D8: 4 | E8: 5 | F8: 6 | G8: 7 | H8: 8 | I8: 9 | J8: 10 | K8: 11 | M8: 11 | N8: 12 | O8: 13 | P8: 14 | Q8: 15 | R8: 16 | S8: 17 | T8: 18 | U8: 19
B9: ;ksx jk$vjk | M9: ='rrr 08'!$N$271 -> 35860000 | N9: ='rrr 08'!$M$271 -> 36942400 | P9: =N9+O9 -> 36942400
A10: =Profile!A312 -> 0.55 | B10: =Profile!$B$312 -> egaxkbZ HkRrk -------izfr'kr | M10: ='rrr 08'!N272 -> 19723000 | N10: ='rrr 08'!M272 -> 20318320 | P10: =N10+O10 -> 20318320
A11: =Profile!A313 -> 0.1 | B11: ='rrr 08'!$B$273 -> edku fdjk;k10@20@30izfr'kr | M11: ='rrr 08'!N273 -> 3586000 | N11: ='rrr 08'!M273 -> 3694240 | P11: 3694240
A12: =Profile!A314 -> 0 | B12: =Profile!$B$314 -> egaxkbZ HkRRkk ,sfj;j¼----izfr'kr½ | M12: ='rrr 08'!N274 -> 0 | N12: ='rrr 08'!M274 -> 0 | P12: 0
B13: =Profile!B315 -> cksul | M13: ='rrr 08'!N275 -> 433536 | N13: ='rrr 08'!M275 -> 433536 | P13: 433536
B14: =Profile!B316 -> lefiZr vodk'k | M14: ='rrr 08'!N276 -> 2315958 | N14: ='rrr 08'!M276 -> 2385863 | P14: 2385863
B15: =Profile!B317 -> dSf'k;j HkRrk | M15: ='rrr 08'!N277 -> 0 | N15: ='rrr 08'!M277 -> 0 | P15: 0
B16: =Profile!B318 -> f};kax HkRrk | M16: ='rrr 08'!N278 -> 28800 | N16: ='rrr 08'!M278 -> 28800 | P16: 28800
B17: =Profile!B319 -> /kqykbZ HkRrk | M17: ='rrr 08'!N279 -> 0 | N17: ='rrr 08'!M279 -> 0 | P17: 0
B18: =Profile!B320 -> 'kgjh {kfriwfrZ HkRrk | M18: ='rrr 08'!N280 -> 0 | N18: ='rrr 08'!M280 -> 0 | P18: 0
B19: =Profile!B321 -> ¼fQDl is½ vU; HkRRkk | M19: ='rrr 08'!N281 -> 22627200 | N19: ='rrr 08'!M281 -> 22627200 | P19: 22627200
B20: ;ksx laosru | D20: =Profile!F31 -> 0 | E20: =Profile!G31 -> 0 | F20: =Profile!H31 -> 80948599 | G20: ='PD 24-25'!$F$362 -> 16900 | H20: =Profile!P31 -> 31640346 | I20: =Profile!Q31 -> 0 | J20: =M20-H20 -> 52934148 | K20: =H20+I20+J20 -> 84574494 | L20: =M20+I20 -> 84574494 | M20: ='rrr 08'!N283 -> 84574494 | N20: ='rrr 08'!M283 -> 86430359 | P20: 86430359
B21: ;k=k HkRrk | D21: =Profile!F32 -> 0 | E21: =Profile!G32 -> 0 | F21: =Profile!H32 -> 0 | G21: =Profile!C32 -> 0 | H21: =Profile!P32 -> 0 | I21: =Profile!Q32 -> 0 | J21: =Profile!R32 -> 0 | K21: =H21+I21 -> 0 | L21: =M21-I21 -> 325437 | M21: ='rrr 08'!N284 -> 325437 | N21: ='rrr 08'!M284 -> 0 | P21: 0
B22: esfMdy HkRrk | D22: =Profile!F33 -> 0 | E22: =Profile!G33 -> 0 | F22: =Profile!H33 -> 0 | G22: =Profile!C33 -> 0 | H22: =Profile!P33 -> 0 | I22: =Profile!Q33 -> 0 | J22: =Profile!R33 -> 0 | K22: 0 | L22: =M22-I22 -> 16424 | M22: ='rrr 08'!N285 -> 16424 | N22: ='rrr 08'!M285 -> 0 | P22: 0
B23: ;ksx ;k=k esfMdy | D23: =D21+D22 -> 0 | E23: =E21+E22 -> 0 | F23: 0 | G23: =G21+G22 -> 0 | H23: =H21+H22 -> 0 | I23: 0 | J23: =J21+J22 -> 0 | K23: 0 | L23: 341861 | M23: ='rrr 08'!N286 -> 341861 | N23: ='rrr 08'!M286 -> 0 | P23: 0
B24: ;ksx loZ;ksx | D24: =D23+D20 -> 0 | E24: 0 | F24: 80948599 | G24: =G23+G20 -> 16900 | H24: =H23+H20 -> 31640346 | I24: =I23+I20 -> 0 | J24: =J23+J20 -> 52934148 | K24: =K23+K20 -> 84574494 | L24: =L23+L20 -> 84916355 | M24: =M20+M23 -> 84916355 | N24: =N20+N23 -> 86430359 | P24: 86430359
B25: =Profile!A34 -> dk;kZy; O;; ¼,eMh,e½ | D25: =Profile!F34 -> 0 | E25: =Profile!G34 -> 0 | F25: =Profile!$AN$24 -> 46483 | G25: =Profile!C34 -> 0 | H25: =Profile!P34 -> 63142 | I25: =Profile!Q34 -> 0 | J25: =Profile!R34 -> 0 | K25: =H25+I25 -> 63142 | L25: =M25-I25 -> 0 | M25: =Profile!AK34 -> 0 | N25: =Profile!AL34 -> 0 | P25: 0
B26: =Profile!A35 -> fdjk;k dj jk;fYV | D26: =Profile!F35 -> 0 | E26: =Profile!G35 -> 0 | F26: =Profile!H35 -> 0 | G26: =Profile!C35 -> 0 | H26: =Profile!P35 -> 0 | I26: =Profile!Q35 -> 0 | J26: =Profile!R35 -> 0 | K26: =H26+I26 -> 0 | L26: =M26-I26 -> 0 | M26: =Profile!AK35 -> 0 | N26: =Profile!AL35 -> 0 | P26: 0
B27: =Profile!A36 -> fo|qr izFkkj ,oa ty O;; | D27: =Profile!F36 -> 0 | E27: =Profile!G36 -> 0 | F27: =Profile!H36 -> 0 | G27: =Profile!C36 -> 0 | H27: =Profile!P36 -> 0 | I27: =Profile!Q36 -> 0 | J27: =Profile!R36 -> 0 | K27: 0 | L27: 0 | M27: =Profile!AK36 -> 0 | N27: =Profile!AL36 -> 0 | P27: 0
B28: =Profile!A37 -> iqLrdky; | D28: =Profile!F37 -> 0 | E28: =Profile!G37 -> 0 | F28: =Profile!H37 -> 0 | G28: =Profile!C37 -> 0 | H28: =Profile!P37 -> 0 | I28: =Profile!Q37 -> 0 | J28: =Profile!R37 -> 0 | K28: 0 | L28: =M28-I28 -> 0 | M28: =Profile!AK37 -> 0 | N28: =Profile!AL37 -> 0 | P28: 0
B29: =Profile!A38 -> iz;ksx'kkyk | D29: =Profile!F38 -> 0 | E29: =Profile!G38 -> 0 | F29: =Profile!H38 -> 0 | G29: =Profile!C38 -> 0 | H29: =Profile!P38 -> 0 | I29: =Profile!Q38 -> 0 | J29: =Profile!R38 -> 0 | K29: 0 | L29: 0 | M29: =Profile!AK38 -> 0 | N29: =Profile!AL38 -> 0 | P29: 0
B30: =Profile!A39 -> ofnZ;ka | D30: =Profile!F39 -> 0 | E30: =Profile!G39 -> 0 | F30: =Profile!H39 -> 0 | G30: =Profile!C39 -> 0 | H30: =Profile!P39 -> 0 | I30: =Profile!Q39 -> 0 | J30: =Profile!R39 -> 0 | K30: 0 | L30: 0 | M30: =Profile!N39 -> 0 | N30: =Profile!AL39 -> 0 | P30: 0
B31: =Profile!A40 -> vU; izHkkj | D31: =Profile!F40 -> 0 | E31: =Profile!G40 -> 0 | F31: =Profile!H40 -> 0 | G31: =Profile!C40 -> 0 | H31: =Profile!P40 -> 0 | I31: =Profile!Q40 -> 0 | J31: =Profile!R40 -> 0 | K31: 0 | L31: 0 | M31: =Profile!AK40 -> 0 | N31: =Profile!AL40 -> 0 | P31: 0
B32: =Profile!$A$41 -> foHkkxh;lsokvksa ij fof'k"V O;; | D32: =Profile!F41 -> 0 | E32: =Profile!G41 -> 0 | F32: =Profile!H41 -> 0 | G32: =Profile!C41 -> 0 | H32: =Profile!P41 -> 0 | I32: =Profile!Q41 -> 0 | J32: =Profile!R41 -> 0 | K32: 0 | L32: 0 | M32: =Profile!AK41 -> 0 | N32: =Profile!AL41 -> 0 | P32: 0
B33: ;ksx | D33: =D32+D29+D28+D27+D26+D25+D30+D31 -> 0 | E33: =E32+E29+E28+E27+E26+E25+E30+E31 -> 0 | F33: 46483 | G33: 0 | H33: 63142 | I33: 0 | J33: =J32+J29+J28+J27+J26+J25+J30+J31 -> 0 | K33: =K32+K29+K28+K27+K26+K25+K30+K31 -> 63142 | L33: =L32+L29+L28+L27+L26+L25+L30+L31 -> 0 | M33: =M32+M29+M28+M27+M26+M25+M30+M31 -> 0 | N33: =N32+N29+N28+N27+N26+N25+N30+N31 -> 0 | P33: =N33+O33 -> 0
B34: ;ksx egk;ksx | D34: =D33+D24 -> 0 | E34: 0 | F34: 80995082 | G34: 16900 | H34: 31703488 | I34: 0 | J34: =J33+J24 -> 52934148 | K34: 84637636 | L34: 84916355 | M34: 84916355 | N34: 86430359 | P34: 86430359
I35: =Profile!G6 -> eksgEen vtht HkkVh
I36: =Profile!$I$6 -> 9460701805 | P36: =Profile!A3 -> eq[; CykWd f'k{kk vf/kdkjh
H37: rS;kj drkZ %& | I37: ='rrr 08'!J294 -> gtkjh jke rMZ | P37: =Profile!A4 -> lexz f'k{kk | Q37: =Profile!B4 -> 0
I38: ='rrr 08'!J295 -> 9667576332 | P38: =Profile!A5 -> chdkusj | Q38: =Profile!B5 -> 0
C39: izekf.kr fd;k tkrk gS fd mi;qZDr lwpuk dh esjs }kjk O;fDrxr :Ik ls tkap dj yh xbZ gS vksj bls lgh ik;k x;k gSA
B42: Øekad | C42: in uke | F42: u;k@ØekssUu;u | H42: is cSaM | L42: xzsM is | N42: dqy in | P42: fooj.k
B43: 1 | C43: 2 | F43: 3 | H43: 4 | L43: 5 | N43: 6 | P43: 7
B44: 1
B45: 2
B46: 3
B47: 4
B48: 5
B49: 6
B50: 7
B53: vU; uohu vkbVe ds fy, izi=
B54: Øekad | C54: uohu vkbVe izdkj | E54: Ø; @ fdjk;k | G54: vkbVe dk uke | I54: la[;k | L54: vkorhZ O;; ekfld | N54: vukorhZ Hkkj | P54: dqy okf"kZd Hkkj
B55: 1
B56: 2
B57: 3
B58: 4
B59: 5
B60: 6
B62: izekf.kr fd;k tkrk gS fd mi;qZDr lwpuk dh esjs }kjk O;fDrxr :Ik ls tkap dj yh xbZ gS vksj bls lgh ik;k x;k gSA

Sheet P-9
A1: izi=&9 ¼th-,-2½
A2: ='rrr 08'!$A$3 -> ¼ctV vuqeku vf/kdkfj;ksa }kjk foHkkxk/;{k dks izLrqr djus gsrq½ ys[kk dk 'kh"kZ % eq[; 'kh"kZ@minh?kZ 'kh"kZ@y?kq'kh"kZ@mi'kh"kZ xzqi 'kh"kZ--------------vk;kstuk fHkUu@vk;kstuk@dsUnz izofrZr ;kstuk
A3: dk;kZy; dk uke %& | C3: =Profile!$C$1 -> eq[; CykWd f'k{kk vf/kdkjh] lexz f'k{kk] chdkusj | M3: =Profile!$A$8 -> ihMh [kkrk la[;k %& | O3: =Profile!$C$8 -> 762
B4: ='rrr 09'!$A$2 -> fuf'pr O;;ksa ds foLr`r vuqeku vFkkZr~ vf/kdkfj;ksa o deZpkfj;ksa ds osru vuqeku o"kZ ¼vizSy ls ekpZ rd½ | L4: foHkkx dk uke&izkjfEHkd f'k{kk foHkkx
B5: ys[kk 'kh"kZd%& | C5: =Profile!$C$3 -> 2202-01-197-16-01 | H5: LVsV Q.M | L5: vkWfQl vkbZMh& | O5: 1451
A6: Øe l[;k | B6: ys[kk 'kh"kZd ¼foLr`r 'kh"kZ½ | C6: nrer@ ize`r | D6: okLrfod O;; vkadM+s¼xr iwoZ rhu o"kksZ ds½ | G6: =Profile!$C$16 -> 2025-26 | H6: okLrfod O;; vkadM+s | L6: flrEcj ls ekpZ rd dk laHkkfor O;; ¼pkyw o"kZ½ | M6: la'kksf/kr vuqeku ¼pkyw o"kZ½ 8$9$10 | N6: vk; O;; ds vuqeku ckcr +¼vkxkeh o"kZ½ | Q6: o`f)¼$½ ;k deh¼&½ | S6: uohu vkbVe | T6: fo'ks"k fooj.k
D7: =Profile!$F$29 -> 2022-23 | E7: =Profile!$G$29 -> 2023-24 | F7: =Profile!$H$29 -> 2024-25 | G7: vk; O;; ds vuqeku ckcr~ pkyw o"kZ | H7: 1vizsy ls vc rd 31vxLr pkyw o"kZ½ | I7: yfEcr fcy ¼out standing Liabilities½ | J7: 'ks"k vof/k ds fy, lEHkkfor O;; | K7: dkye 8 o 9 dk ;ksx | N7: dfeVsM | O7: uohu | P7: dqy ¼13+14½ | Q7: 7 vkSj 11 esa | R7: 11 vkSj 14 esa | S7: gka @ ugha | T7: RE | U7: BE
A8: 1 | B8: 2 | C8: 3 | D8: 4 | E8: 5 | F8: 6 | G8: 7 | H8: 8 | I8: 9 | J8: 10 | K8: 11 | L8: 12 | M8: 13 | N8: 14 | O8: 15 | P8: 16
A9: 1 | B9: =C5 -> 2202-01-197-16-01 | C9: laosru | F9: ='rrr 09'!$F$20 -> 80948599 | G9: ='rrr 09'!$G$20 -> 16900 | H9: ='rrr 09'!H20 -> 31640346 | I9: ='rrr 09'!I20 -> 0 | J9: ='rrr 09'!J20 -> 52934148 | K9: ='rrr 09'!K20 -> 84574494 | L9: =J9+I9 -> 52934148 | M9: =H9+I9+J9 -> 84574494 | N9: ='rrr 09'!N20 -> 86430359 | O9: ='rrr 09'!O20 -> 0 | P9: ='rrr 09'!P20 -> 86430359
A10: 2 | C10: ;k=k | F10: 0 | G10: ='rrr 09'!G21 -> 0 | H10: ='rrr 09'!H21 -> 0 | I10: ='rrr 09'!I21 -> 0 | J10: ='rrr 09'!J21 -> 0 | K10: ='rrr 09'!K21 -> 0 | L10: ='rrr 09'!L21 -> 325437 | M10: ='rrr 09'!M21 -> 325437 | N10: ='rrr 09'!N21 -> 0 | O10: ='rrr 09'!O21 -> 0 | P10: ='rrr 09'!P21 -> 0
A11: 3 | C11: fpfdRlk | F11: 0 | G11: ='rrr 09'!G22 -> 0 | H11: ='rrr 09'!H22 -> 0 | I11: ='rrr 09'!I22 -> 0 | J11: ='rrr 09'!J22 -> 0 | K11: ='rrr 09'!K22 -> 0 | L11: ='rrr 09'!L22 -> 16424 | M11: ='rrr 09'!M22 -> 16424 | N11: ='rrr 09'!N22 -> 0 | O11: ='rrr 09'!O22 -> 0 | P11: ='rrr 09'!P22 -> 0
A12: 4 | C12: =Profile!$A$34 -> dk;kZy; O;; ¼,eMh,e½ | F12: ='rrr 09'!$F$25 -> 46483 | G12: ='rrr 09'!$G$25 -> 0 | H12: ='rrr 09'!H25 -> 63142 | I12: ='rrr 09'!I25 -> 0 | J12: ='rrr 09'!J25 -> 0 | K12: ='rrr 09'!K25 -> 63142 | L12: ='rrr 09'!L25 -> 0 | M12: ='rrr 09'!M25 -> 0 | N12: ='rrr 09'!N25 -> 0 | O12: ='rrr 09'!O25 -> 0 | P12: ='rrr 09'!P25 -> 0
A13: 5 | C13: onhZ | F13: 0 | G13: ='rrr 09'!$G$30 -> 0 | H13: ='rrr 09'!H30 -> 0 | I13: ='rrr 09'!I30 -> 0 | J13: ='rrr 09'!J30 -> 0 | K13: ='rrr 09'!K30 -> 0 | L13: ='rrr 09'!L30 -> 0 | M13: ='rrr 09'!M30 -> 0 | N13: ='rrr 09'!N30 -> 0 | O13: ='rrr 09'!O30 -> 0 | P13: ='rrr 09'!P30 -> 0
A14: 6 | C14: iqLrdky; ,oa i= if=dk,a | F14: 0 | G14: ='rrr 09'!$G$28 -> 0 | H14: ='rrr 09'!H28 -> 0 | I14: ='rrr 09'!I28 -> 0 | J14: ='rrr 09'!J28 -> 0 | K14: ='rrr 09'!K28 -> 0 | L14: ='rrr 09'!L28 -> 0 | M14: ='rrr 09'!M28 -> 0 | N14: ='rrr 09'!N28 -> 0 | O14: ='rrr 09'!O28 -> 0 | P14: ='rrr 09'!P28 -> 0
A15: 7 | C15: fo|qr izHkkj ,oa ty O;; | F15: 0 | G15: ='rrr 09'!$G$27 -> 0 | H15: ='rrr 09'!H27 -> 0 | I15: ='rrr 09'!I27 -> 0 | J15: ='rrr 09'!J27 -> 0 | K15: ='rrr 09'!K27 -> 0 | L15: ='rrr 09'!L27 -> 0 | M15: ='rrr 09'!M27 -> 0 | N15: ='rrr 09'!N27 -> 0 | O15: ='rrr 09'!O27 -> 0 | P15: ='rrr 09'!P27 -> 0
C16: ;ksx | F16: =SUM(F9:F15) -> 80995082 | G16: =SUM(G9:G15) -> 16900 | H16: 31703488 | I16: 0 | J16: 52934148 | K16: 84637636 | L16: 53276009 | M16: 84916355 | O16: 0 | P16: 86430359
I18: ='rrr 09'!I35 -> eksgEen vtht HkkVh | Q18: ='rrr 09'!P36 -> eq[; CykWd f'k{kk vf/kdkjh
I19: ='rrr 09'!I36 -> 9460701805 | Q19: ='rrr 09'!P37 -> lexz f'k{kk
H20: rS;kj drkZ %& | I20: ='rrr 09'!I37 -> gtkjh jke rMZ | Q20: ='rrr 09'!P38 -> chdkusj
I21: ='rrr 09'!I38 -> 9667576332
D22: izekf.kr fd;k tkrk gS fd mi;qZDr lwpuk dh esjs }kjk O;fDrxr :Ik ls tkap dj yh xbZ gS vksj bls lgh ik;k x;k gSA

Sheet saranas Lekha
B1: lkajk'k ¼nks izfr;ksa esa½ | I1: =Profile!$A$8 -> ihMh [kkrk la[;k %& | J1: =Profile!$C$8 -> 762
B2: ¼dsoy jktdh; dk;kZy;ksa ,oa fo/kky;ksa ds deZpkfj;ksa ls lcaf/kr½ | I2: ='rrr 08'!$P$2 -> 2026&2027
B3: ='rrr 08'!A4 -> dk;kZy; %& | D3: ='rrr 08'!$D$4 -> eq[; CykWd f'k{kk vf/kdkjh] lexz f'k{kk] chdkusj | I3: ='rrr 08'!$M$4 -> LVsV Q.M
B4: IFMS dksM%& | D4: ='rrr 08'!$P$4 -> 1451 | E4: ys[kken%& | F4: ='rrr 08'!$M$1 -> 2202-01-197-16-01 | H4: fooj.k | J4: la[;k
B5: in uke | C5: Lohd`r | D5: dk;Zjr | G5: fjä | H5: p0Js0deZ0 | I5: iq:"k | J5: 0
D6: 01-01-2004 ls iwoZ fu;qDr | E6: 01-01-2004 ds Ik'pkr fu;qDr | F6: ;ksx | I6: efgyk | J6: 0
B7: o-v- | C7: 0 | D7: 0 | E7: 0 | F7: =D7+E7 -> 0 | G7: =C7-F7 -> 0 | H7: teknkj | I7: iq:"k | J7: 0
B8: v/;kid | C8: 98 | D8: 4 | E8: 84 | F8: =D8+E8 -> 88 | G8: =C8-F8 -> 10 | I8: efgyk | J8: 0
B9: 'kk-f'k- | C9: 3 | D9: 0 | E9: 0 | F9: =D9+E9 -> 0 | G9: =C9-F9 -> 3 | H9: fo|ky; izkfo@ mizkfo
B10: p-Js-d- | C10: 0 | D10: 0 | E10: 0 | F10: 0 | G10: 0 | H10: fLFkj osru deZpkjh | J10: 106
B11: teknkj | C11: 0 | D11: 0 | E11: 0 | F11: 0 | G11: 0 | H11: nSfud osru Hkksxh
B12: dfu"B f'k{kd ¼leLr vfrfjDr] efgyk vkSj 'kkjhfjd iSjkVhplZa½ | C12: 17 | D12: 0 | E12: 16 | F12: 16 | G12: 1 | H12: dk;Zjr fo|kFkhZ fe=
B13: iapk;r f'k{kd ¼xzke iapk;r@ fo|ky; lgk;da½ | C13: 67 | D13: 0 | E13: 66 | F13: 66 | G13: 1 | H13: Lohd`fr lafonk deZpkjh ;fn gks
B14: vU; | C14: 0 | D14: 0 | E14: 0 | F14: 0 | G14: 0
B15: ;ksx | C15: =SUM(C7:C14) -> 185 | D15: =SUM(D7:D14) -> 4 | E15: =SUM(E7:E14) -> 166 | F15: =SUM(F7:F14) -> 170 | G15: =C15-F15 -> 15 | H15: fuyfEcr dkfeZd
B16: fooj.k | E16: la'kksf/kr vuqeku 2025&26 | F16: vk; O;;d vuqeku 2026&27 | G16: dk;kZy; dh nwjHkk"k la[;k dksM lfgr | I16: =Profile!$F$6 -> 0151-2226567
B17: ¼d½ laaosru | G17: eq[; CykWd f'k{kk vf/kdkjh | I17: =Profile!$G$4 -> euh"kk vjksM+k
B18: ¼1½ osru | E18: ='rrr 08'!$N$271 -> 35860000 | F18: ='rrr 08'!$M$271 -> 36942400
B19: ¼2½ eagxkbZ HkRrk 55izfr'kr | E19: ='rrr 08'!N272 -> 19723000 | F19: ='rrr 08'!M272 -> 20318320 | G19: lhchbZvks eksckbZy uEcj | I19: =Profile!$I$4 -> 1234567890
B20: ¼3½ edku fdjk;k HkRrk 10@20@30 izfr'kr | E20: ='rrr 08'!N273 -> 3586000 | F20: ='rrr 08'!M273 -> 3694240
B21: ¼4½ 'kgjh HkRrk | E21: ='rrr 08'!$N$280 -> 0 | F21: ='rrr 08'!$M$280 -> 0 | G21: lgk-ys[kkf/kdkjh f}rh; uke | I21: =Profile!$G$6 -> eksgEen vtht HkkVh
B22: ¼5½ | E22: 0 | F22: 0
B23: ¼6½ dSf'k;j | E23: ='rrr 08'!$N$277 -> 0 | F23: ='rrr 08'!$M$277 -> 0 | G23: lgk-ys[kkf/kdkjh f}rh; eksckbZy | I23: =Profile!$I$6 -> 9460701805
B24: ¼7½ lefiZr vodk'k | E24: ='rrr 08'!$N$276 -> 2315958 | F24: ='rrr 08'!$M$276 -> 2385863
B25: ¼8½ cksul @ 6774 | E25: ='rrr 08'!$N$275 -> 433536 | F25: ='rrr 08'!$M$275 -> 433536 | G25: ofj"B lgk;d uke | I25: =Profile!$J$6 -> gtkjh jke rMZ
B26: ¼9½ vU; HkRrk@/kqykbZ HkRrk @ (150 *12) | E26: ='rrr 08'!$N$279 -> 0 | F26: ='rrr 08'!$M$279 -> 0
B27: ¼10½ fLFkj osru jkf'k | C27: 106 dfkeZd | E27: ='rrr 08'!$N$281 -> 22627200 | F27: ='rrr 08'!$M$281 -> 22627200 | G27: ofj"B lgk;d eksckbZy uEcj | I27: =Profile!$L$6 -> 9667576332
B28: ¼11½ fodykax HkRrkk | E28: ='rrr 08'!$N$278 -> 28800 | F28: ='rrr 08'!$M$278 -> 28800
B29: ¼12½ eagxkbZ HkRRkk ,fj;j | E29: ='rrr 08'!$N$274 -> 0 | F29: ='rrr 08'!$M$274 -> 0
B30: ¼13½ fuokZg HkRrk | E30: 0 | F30: 0
B31: ¼14½ fo|kFkhZ fe=ksa gsrq vko';d jkf'k | E31: 0 | F31: 0
B32: loZ;ksx lsoru | E32: =SUM(E18:E30) -> 84574494 | F32: =SUM(F18:F30) -> 86430359
B33: 03& ;k=k O;;
B34: ¼d½ pkyw o"kZ ds cdk;k | E34: ='rrr 08'!$N$284 -> 325437 | F34: 0
B35: ¼[k½ xr o"kksZ ds cdk;k | E35: 0 | F35: 0
B36: ;ksx ;k=k O;; | E36: =E34+E35 -> 325437 | F36: =F34+F35 -> 0
B37: 04& fpfdRlk O;;
B38: ¼d½ pkyw o"kZ ds cdk;k | E38: ='rrr 08'!$N$285 -> 16424 | F38: 0
B39: ¼[k½ xr o"kksZ ds cdk;k | E39: 0 | F39: 0
B40: ;ksx fpfdRlk O;; | E40: =E38+E39 -> 16424 | F40: =F38+F39 -> 0
B41: 05& adk;kZy; O;;
B42: ¼1½& Mkd rkj | E42: =Profile!AK48 -> 0 | F42: =Profile!AL48 -> 0
B43: ¼2½& VsyhQksu | E43: =Profile!AK49 -> 0 | F43: =Profile!AL49 -> 0
B44: ¼3½& ikuh fctyh | E44: =Profile!AK50 -> 0 | F44: =Profile!AL50 -> 0
B45: ¼4½& QuhZpj ejEer | E45: =Profile!AK51 -> 0 | F45: =Profile!AL51 -> 0
B46: ¼5½&dEI;wVj lsok ,oa j[kj[kko | E46: =Profile!AK52 -> 0 | F46: =Profile!AL52 -> 0
B47: ¼6½ ys[ku@eqnz.k O;; | E47: =Profile!AK53 -> 0 | F47: =Profile!AL53 -> 0
B48: ¼7½ nSfud osruHkksxh ¼U;k;ky; vkns'k ij½ | E48: =Profile!AK54 -> 0 | F48: =Profile!AL54 -> 0
B49: ¼8½ vU; ¼yfEcr fcy½ | E49: =Profile!$Q$31 -> 0 | F49: =Profile!AL55 -> 0
B50: ;ksx dk;kZy; O;; | E50: =SUM(E42:E49) -> 0 | F50: =SUM(F42:F49) -> 0
B51: 08& o`fÙkd ,oa fof'k"B lsokvksa ij lank; ¼dksVZ dsl vkfn ij O;;½ | E51: =Profile!AK57 -> 0 | F51: =Profile!AL57 -> 0
B52: 09& fdjk;k jsV]dj@jk;YVh | E52: =Profile!AK58 -> 0 | F52: =Profile!AL58 -> 0
B53: 11&foKkiu | E53: =Profile!AK59 -> 0 | F53: =Profile!AL59 -> 0
B54: 28& fofo/k O;;@57-fof'k"V lasok,sa | E54: =Profile!AK60 -> 0 | F54: =Profile!AL60 -> 0
B55: 31&iqLrdky; ,oa i= if=dkvksa ij O;; | E55: =Profile!AK61 -> 0 | F55: =Profile!AL61 -> 0
B56: 36&okgu fdjk;k | E56: =Profile!AK62 -> 0 | F56: =Profile!AL62 -> 0
B57: 37& ofnZ;ka | E57: =Profile!AK63 -> 0 | F57: =Profile!AL63 -> 0
B58: 41&lafonk ij O;; | E58: =Profile!AK64 -> 0 | F58: =Profile!AL64 -> 0
B59: 62& dEI;wVjkbZts'ku ,oa rRlaca/kh lapkj O;; | E59: =Profile!AK65 -> 0 | F59: =Profile!AL65 -> 0
B60: ;ksx | E60: =SUM(E51+E52+E53+E54+E55+E56+E58+E59) -> 0 | F60: =SUM(F51+F52+F53+F54+F55+F56+F58+F59) -> 0
B61: egk;ksx izi= 9 | E61: =E32+E36+E40+E50+E60 -> 84916355 | F61: =F32+F36+F50+F60 -> 86430359
B62: izekf.kr fd;k tkrk gS fd mDr fooj.k dk O;fDrxr ijh{k.k dj fy;k x;k gS rFkk fooj.k iw.kZ #i ls lgh gSA leLr cdk;k nkf;Roksa dk mDr lwpuk esa 'kkfey dj fy;k x;k gS ftrus Hkh cdk;k nkf;Ro gZS mudk foLr`r enokj fooj.k layXu gSA
B63: g0 lgk- ys[kkf/kdkjh f}rh; | F63: gLrk{kj dk;kZy;/;{k e; eqgj

Sheet Sharans PD
B1: lkajk'k ¼nks izfr;ksa esa½ | I1: =Profile!$A$8 -> ihMh [kkrk la[;k %& | J1: =Profile!$C$8 -> 762
B2: ¼dsoy jktdh; dk;kZy;ksa ,oa fo/kky;ksa ds deZpkfj;ksa ls lcaf/kr½ | I2: ='rrr 08'!$P$2 -> 2026&2027
B3: ='rrr 08'!A4 -> dk;kZy; %& | D3: ='rrr 08'!$D$4 -> eq[; CykWd f'k{kk vf/kdkjh] lexz f'k{kk] chdkusj | I3: ='rrr 08'!$M$4 -> LVsV Q.M
B4: IFMS dksM%& | D4: ='rrr 08'!$P$4 -> 1451 | E4: ys[kken%& | F4: ='rrr 08'!$M$1 -> 2202-01-197-16-01 | H4: fooj.k | J4: la[;k
B5: in uke | C5: Lohd`r | D5: dk;Zjr | G5: fjä
D6: 01-01-2004 ls iwoZ fu;qDr | E6: 01-01-2004 ds Ik'pkr fu;qDr | F6: ;ksx
B7: v/;kid & kkk Js.kh led{k ¼ysoy&k] ysoy&kk] 'kkjhfjd f'k{kd] dyk f'k{kd lfgra½ | C7: 101 | D7: 4 | E7: 84 | F7: =D7+E7 -> 88 | G7: =C7-F7 -> 13 | H7: izkFkfed fo|ky; | I7: iq:"k | J7: 0
B8: dfu"B f'k{kd ¼leLr vfrfjDr] efgyk vkSj 'kkjhfjd iSjkVhplZa½ | C8: 17 | D8: 0 | E8: 16 | F8: =D8+E8 -> 16 | G8: =C8-F8 -> 1 | H8: fLFkj osru deZpkjh | I8: efgyk | J8: 0
B9: iapk;r f'k{kd ¼xzke iapk;r@ fo|ky; lgk;da½ | C9: 67 | D9: 0 | E9: 66 | F9: 66 | G9: =C9-F9 -> 1 | H9: nSfud osru Hkksxh
B10: vU; | C10: 0 | D10: 0 | E10: 0 | F10: 0 | G10: 0 | H10: fuyfEcr dkfeZd
C11: 0 | D11: 0 | E11: 0 | F11: 0 | G11: 0 | H11: lsokfuo`r dkfeZd
B12: ;ksx | C12: =SUM(C7:C11) -> 185 | D12: =SUM(D7:D11) -> 4 | E12: =SUM(E7:E11) -> 166 | F12: =SUM(F7:F11) -> 170 | G12: 15
B13: A
B14: fooj.k | E14: 12 ekg ds fy, ekax jkf'k | G14: dk;kZy; dh nwjHkk"k la[;k dksM lfgr | I14: =Profile!$F$6 -> 0151-2226567
E15: la'kksf/kr vuqeku 2025&26 | F15: vk; O;;d vuqeku 2026&27
B16: ¼d½ laaosru | G16: eq[; CykWd f'k{kk vf/kdkjh | I16: =Profile!$G$4 -> euh"kk vjksM+k
B17: ¼1½ osru | E17: ='rrr 08'!$N$271 -> 35860000 | F17: ='rrr 08'!$M$271 -> 36942400
B18: ¼2½ eagxkbZ HkRrk 42 izfr'kr | E18: ='rrr 08'!N272 -> 19723000 | F18: ='rrr 08'!M272 -> 20318320 | G18: lhchbZvks eksckbZy uEcj | I18: =Profile!$I$4 -> 1234567890
B19: ¼3½ edku fdjk;k HkRrk 9@18@27 izfr'kr | E19: ='rrr 08'!N273 -> 3586000 | F19: ='rrr 08'!M273 -> 3694240
B20: ¼4½ lefiZr vodk'k | E20: ='rrr 08'!$N$276 -> 2315958 | F20: ='rrr 08'!$M$276 -> 2385863 | G20: lgk-ys[kkf/kdkjh f}rh; uke | I20: =Profile!$G$6 -> eksgEen vtht HkkVh
B21: ¼5½ vU; HkRrs & f};kax HkRrk | E21: ='rrr 08'!$N$278 -> 28800 | F21: ='rrr 08'!$M$278 -> 28800
B22: ¼6½ fLFkj osru | E22: 0 | F22: 0 | G22: lgk-ys[kkf/kdkjh f}rh; eksckbZy | I22: =Profile!$I$6 -> 9460701805
B23: ¼7½ Mh, ,fj;j | E23: 0 | F23: 0
B24: ¼8½ fuokZg HkRrk | E24: 0 | F24: 0 | G24: ofj"B lgk;d uke | I24: =Profile!$J$6 -> gtkjh jke rMZ
B25: ¼9½ iSjkVhplZ dk ekuns; | C25: 106 dkfeZd fQDl is | E25: ='rrr 08'!$N$281 -> 22627200 | F25: ='rrr 08'!$M$281 -> 22627200
B26: ¼10½ fo|kFkhZ fe=ksa gsrq jkf'k | E26: ='rrr 08'!$N$277 -> 0 | F26: ='rrr 08'!$M$277 -> 0 | G26: ofj"B lgk;d eksckbZy uEcj | I26: =Profile!$L$6 -> 9667576332
B27: ¼11½ ,lhih ,fj;j | E27: 0 | F27: 0
B28: ¼12½ cksul@6774 | E28: ='rrr 08'!$N$275 -> 433536 | F28: ='rrr 08'!$M$275 -> 433536
B29: ¼13½ fLFkj osru | E29: 0 | F29: 0
B30: ¼14½ fLFkjhdj.k ,fj;j | E30: 0 | F30: 0
B31: ¼15½ yfEcr fcy | E31: 0 | F31: 0
B32: ;ksx A | E32: =SUM(E17:E31) -> 84574494 | F32: =SUM(F17:F31) -> 86430359
B33: B
B34: 1& ;k=k O;; | E34: ='rrr 08'!$N$284 -> 325437 | F34: 100000
B35: 2& adk;kZy; O;; | E35: 150000 | F35: 150000
B36: 3& ofnZ;ka | E36: =Profile!AK63 -> 0 | F36: =Profile!AL63 -> 0
B37: 4& vU; izHkkj lafonk ij O;; | E37: =Profile!AK64 -> 0 | F37: =Profile!AL64 -> 0
E38: =Profile!AK65 -> 0 | F38: =Profile!AL65 -> 0
B39: ;ksx B | E39: =SUM(E34:E38) -> 475437 | F39: =SUM(F34:F38) -> 250000
B40: laosru ekg tuojh & Qjojh 2024 gsrq vfrfjDr ekax | E40: =ROUND(L40,-3) -> 14096000 | K40: ='P1'!$G$8 -> 84574494 | L40: =K40/12*2 -> 14095749
B41: 2025&26 esa ;k=k O;; esa vfrfjDr ekax | E41: 0
B42: 2025&26 esa dk;kZy; O;; esa vfrfjDr ekax | E42: 50000
B43: izekf.kr fd;k tkrk gS fd mDr fooj.k dk O;fDrxr ijh{k.k dj fy;k x;k gS rFkk fooj.k iw.kZ #i ls lgh gSA leLr cdk;k nkf;Roksa dk mDr lwpuk esa 'kkfey dj fy;k x;k gS ftrus Hkh cdk;k nkf;Ro gZS mudk foLr`r enokj fooj.k layXu gSA
B44: g0 lgk- ys[kkf/kdkjh f}rh; | F44: gLrk{kj dk;kZy;/;{k e; eqgj

Sheet FIX
C1: uke dk;kZy;& | D1: =Profile!$C$1 -> eq[; CykWd f'k{kk vf/kdkjh] lexz f'k{kk] chdkusj | I1: =Profile!$C$10 -> LVsV Q.M
E2: lafonk osru ij fu;qä dkfeZdksa dk fooj.k | G2: vkWfQl vkbZMh& | H2: =Profile!$F$4 -> 1451
C3: ys[kk 'kh"kZd& | D3: =Profile!C3 -> 2202-01-197-16-01 | G3: =Profile!$A$8 -> ihMh [kkrk la[;k %& | H3: =Profile!$C$8 -> 762
C4: =Profile!$A$16 -> orZeku o"kZ %& | D4: =Profile!$C$16 -> 2025-26 | E4: laosru | G4: ekax la[;k%& | H4: =Profile!$C$11 -> 24
C5: =Profile!$A$13 -> foHkkx dk uke %& | D5: =Profile!$G$2 -> izkjfEHkd f'k{kk foHkkx | F5: Ldhe dk uke
B6: Ø-la- | C6: uke dkfeZd | D6: in uke | E6: tUe frfFk | F6: fu;qfä frfFk | G6: ekfld ekuns; | H6: 12 ekg dk ekuns; | I6: vkxkeh o"kZ es 12 ekg dk ekuns;
B7: 1 | C7: 2 | D7: 3 | E7: 4 | F7: 5 | G7: 4 | H7: 5 | I7: 6
B8: =Profile!C331 -> 1 | C8: =Profile!D331 -> AJAY KUMAR NAYAK | D8: =Profile!E331 -> KANISHATH SHIKSHAK | E8: =Profile!#REF! ->  | F8: =Profile!G331 -> 00:00:00 | G8: =Profile!H331 -> 17800 | H8: =Profile!I331 -> 213600 | I8: =Profile!J331 -> 213600
B9: =Profile!C332 -> 2 | C9: =Profile!D332 -> AMMANA RAM SIDHU | D9: =Profile!E332 -> PANCHAYAT SHIKSHAK | E9: =Profile!#REF! ->  | F9: =Profile!G332 -> 00:00:00 | G9: =Profile!H332 -> 17800 | H9: =Profile!I332 -> 213600 | I9: =Profile!J332 -> 213600
B10: =Profile!C333 -> 3 | C10: =Profile!D333 -> ANJU BALA SHARMA | D10: =Profile!E333 -> KANISHATH SHIKSHAK | E10: =Profile!#REF! ->  | F10: =Profile!G333 -> 00:00:00 | G10: =Profile!H333 -> 17800 | H10: =Profile!I333 -> 213600 | I10: =Profile!J333 -> 213600
B11: =Profile!C334 -> 4 | C11: =Profile!D334 -> ANTU RAM SHARMA | D11: =Profile!E334 -> PANCHAYAT SHIKSHAK | E11: =Profile!#REF! ->  | F11: =Profile!G334 -> 00:00:00 | G11: =Profile!H334 -> 11000 | H11: =Profile!I334 -> 132000 | I11: =Profile!J334 -> 132000
B12: =Profile!C335 -> 5 | C12: =Profile!D335 -> ARUN KUMAR | D12: =Profile!E335 -> PANCHAYAT SHIKSHAK | E12: =Profile!#REF! ->  | F12: =Profile!G335 -> 00:00:00 | G12: =Profile!H335 -> 17800 | H12: =Profile!I335 -> 213600 | I12: =Profile!J335 -> 213600
B13: =Profile!C336 -> 6 | C13: =Profile!D336 -> BAJARANG LAL DHAKA | D13: =Profile!E336 -> PANCHAYAT SHIKSHAK | E13: =Profile!#REF! ->  | F13: =Profile!G336 -> 00:00:00 | G13: =Profile!H336 -> 11000 | H13: =Profile!I336 -> 132000 | I13: =Profile!J336 -> 132000
B14: =Profile!C337 -> 7 | C14: =Profile!D337 -> BAJRANG SINGH | D14: =Profile!E337 -> KANISHATH SHIKSHAK | E14: =Profile!#REF! ->  | F14: =Profile!G337 -> 00:00:00 | G14: =Profile!H337 -> 17800 | H14: =Profile!I337 -> 213600 | I14: =Profile!J337 -> 213600
B15: =Profile!C338 -> 8 | C15: =Profile!D338 -> BALRAM GODARA | D15: =Profile!E338 -> PANCHAYAT SHIKSHAK | E15: =Profile!#REF! ->  | F15: =Profile!G338 -> 00:00:00 | G15: =Profile!H338 -> 17800 | H15: =Profile!I338 -> 213600 | I15: =Profile!J338 -> 213600
B16: =Profile!C339 -> 9 | C16: =Profile!D339 -> BALRAM SAHAL | D16: =Profile!E339 -> PANCHAYAT SHIKSHAK | E16: =Profile!#REF! ->  | F16: =Profile!G339 -> 00:00:00 | G16: =Profile!H339 -> 17800 | H16: =Profile!I339 -> 213600 | I16: =Profile!J339 -> 213600
B17: =Profile!C340 -> 10 | C17: =Profile!D340 -> BALWANT SINGH | D17: =Profile!E340 -> PANCHAYAT SHIKSHAK | E17: =Profile!#REF! ->  | F17: =Profile!G340 -> 00:00:00 | G17: =Profile!H340 -> 17800 | H17: =Profile!I340 -> 213600 | I17: =Profile!J340 -> 213600
B18: =Profile!C341 -> 11 | C18: =Profile!D341 -> BHANWAR LAL PALIWAL | D18: =Profile!E341 -> PANCHAYAT SHIKSHAK | E18: =Profile!#REF! ->  | F18: =Profile!G341 -> 00:00:00 | G18: =Profile!H341 -> 17800 | H18: =Profile!I341 -> 213600 | I18: =Profile!J341 -> 213600
B19: =Profile!C342 -> 12 | C19: =Profile!D342 -> BHURA RAM JAT_5255831 | D19: =Profile!E342 -> KANISHATH SHIKSHAK | E19: =Profile!#REF! ->  | F19: =Profile!G342 -> 00:00:00 | G19: =Profile!H342 -> 17800 | H19: =Profile!I342 -> 213600 | I19: =Profile!J342 -> 213600
B20: =Profile!C343 -> 13 | C20: =Profile!D343 -> CHANDVEER SINGH | D20: =Profile!E343 -> PANCHAYAT SHIKSHAK | E20: =Profile!#REF! ->  | F20: =Profile!G343 -> 00:00:00 | G20: =Profile!H343 -> 11000 | H20: =Profile!I343 -> 132000 | I20: =Profile!J343 -> 132000
B21: =Profile!C344 -> 14 | C21: =Profile!D344 -> CHETAN PRAKASH BARUPAL | D21: =Profile!E344 -> PANCHAYAT SHIKSHAK | E21: =Profile!#REF! ->  | F21: =Profile!G344 -> 00:00:00 | G21: =Profile!H344 -> 17800 | H21: =Profile!I344 -> 213600 | I21: =Profile!J344 -> 213600
B22: =Profile!C345 -> 15 | C22: =Profile!D345 -> CHITRA SHARMA_5299779 | D22: =Profile!E345 -> PANCHAYAT SHIKSHAK | E22: =Profile!#REF! ->  | F22: =Profile!G345 -> 00:00:00 | G22: =Profile!H345 -> 17800 | H22: =Profile!I345 -> 213600 | I22: =Profile!J345 -> 213600
B23: =Profile!C346 -> 16 | C23: =Profile!D346 -> DEEWAN DAN | D23: =Profile!E346 -> PANCHAYAT SHIKSHAK | E23: =Profile!#REF! ->  | F23: =Profile!G346 -> 00:00:00 | G23: =Profile!H346 -> 17800 | H23: =Profile!I346 -> 213600 | I23: =Profile!J346 -> 213600
B24: =Profile!C347 -> 17 | C24: =Profile!D347 -> GAJENDER KUMAR | D24: =Profile!E347 -> PANCHAYAT SHIKSHAK | E24: =Profile!#REF! ->  | F24: =Profile!G347 -> 00:00:00 | G24: =Profile!H347 -> 17800 | H24: =Profile!I347 -> 213600 | I24: =Profile!J347 -> 213600
B25: =Profile!C348 -> 18 | C25: =Profile!D348 -> GANESHA RAM | D25: =Profile!E348 -> KANISHATH SHIKSHAK | E25: =Profile!F348 -> 5255804 | F25: =Profile!G348 -> 00:00:00 | G25: =Profile!H348 -> 17800 | H25: =Profile!I348 -> 213600 | I25: =Profile!J348 -> 213600
B26: =Profile!C349 -> 19 | C26: =Profile!D349 -> GIRISH CHAND GOYAL | D26: =Profile!E349 -> PANCHAYAT SHIKSHAK | E26: =Profile!F349 -> 5301061 | F26: =Profile!G349 -> 00:00:00 | G26: =Profile!H349 -> 11000 | H26: =Profile!I349 -> 132000 | I26: =Profile!J349 -> 132000
B27: =Profile!C350 -> 20 | C27: =Profile!D350 -> GOPAL RAM | D27: =Profile!E350 -> PANCHAYAT SHIKSHAK | E27: =Profile!F350 -> 5301913 | F27: =Profile!G350 -> 00:00:00 | G27: =Profile!H350 -> 17800 | H27: =Profile!I350 -> 213600 | I27: =Profile!J350 -> 213600
B28: =Profile!C351 -> 21 | C28: =Profile!D351 -> GOPI CHAND SAHARAN | D28: =Profile!E351 -> PANCHAYAT SHIKSHAK | E28: =Profile!F351 -> 5300911 | F28: =Profile!G351 -> 00:00:00 | G28: =Profile!H351 -> 11000 | H28: =Profile!I351 -> 132000 | I28: =Profile!J351 -> 132000
B29: =Profile!C352 -> 22 | C29: =Profile!D352 -> HANUMAN RAM | D29: =Profile!E352 -> PANCHAYAT SHIKSHAK | E29: =Profile!F352 -> 5301024 | F29: =Profile!G352 -> 00:00:00 | G29: =Profile!H352 -> 11000 | H29: =Profile!I352 -> 132000 | I29: =Profile!J352 -> 132000
B30: =Profile!C353 -> 23 | C30: =Profile!D353 -> HARAMANA RAM MEGHWAL | D30: =Profile!E353 -> PANCHAYAT SHIKSHAK | E30: =Profile!F353 -> 5299799 | F30: =Profile!G353 -> 00:00:00 | G30: =Profile!H353 -> 17800 | H30: =Profile!I353 -> 213600 | I30: =Profile!J353 -> 213600
B31: =Profile!C354 -> 24 | C31: =Profile!D354 -> HAZEE SHAH | D31: =Profile!E354 -> PANCHAYAT SHIKSHAK | E31: =Profile!F354 -> 5301053 | F31: =Profile!G354 -> 00:00:00 | G31: =Profile!H354 -> 17800 | H31: =Profile!I354 -> 213600 | I31: =Profile!J354 -> 213600
B32: =Profile!C355 -> 25 | C32: =Profile!D355 -> INDRA BADDER | D32: =Profile!E355 -> PANCHAYAT SHIKSHAK | E32: =Profile!F355 -> 5299825 | F32: =Profile!G355 ->  | G32: =Profile!H355 -> 11000 | H32: =Profile!I355 -> 132000 | I32: =Profile!J355 -> 132000
B33: =Profile!C356 -> 26 | C33: =Profile!D356 -> INDRAJ BHADU | D33: =Profile!E356 -> PANCHAYAT SHIKSHAK | E33: =Profile!F356 -> 5300943 | F33: =Profile!G356 -> 00:00:00 | G33: =Profile!H356 -> 17800 | H33: =Profile!I356 -> 213600 | I33: =Profile!J356 -> 213600
B34: =Profile!C357 -> 27 | C34: =Profile!D357 -> JAGDEESH GODARA | D34: =Profile!E357 -> PANCHAYAT SHIKSHAK | E34: =Profile!F357 -> 5301069 | F34: =Profile!G357 -> 00:00:00 | G34: =Profile!H357 -> 17800 | H34: =Profile!I357 -> 213600 | I34: =Profile!J357 -> 213600
B35: =Profile!C358 -> 28 | C35: =Profile!D358 -> JETHA RAM NAI | D35: =Profile!E358 -> KANISHATH SHIKSHAK | E35: =Profile!F358 -> 5255793 | F35: =Profile!G358 -> 00:00:00 | G35: =Profile!H358 -> 17800 | H35: =Profile!I358 -> 213600 | I35: =Profile!J358 -> 213600
B36: =Profile!C359 -> 29 | C36: =Profile!D359 -> KARNI SINGH | D36: =Profile!E359 -> PANCHAYAT SHIKSHAK | E36: =Profile!F359 -> 5301082 | F36: =Profile!G359 ->  | G36: =Profile!H359 -> 17800 | H36: =Profile!I359 -> 213600 | I36: =Profile!J359 -> 213600
B37: =Profile!C360 -> 30 | C37: =Profile!D360 -> KAUSHALYA | D37: =Profile!E360 -> KANISHATH SHIKSHAK | E37: =Profile!F360 -> 5255825 | F37: =Profile!G360 -> 00:00:00 | G37: =Profile!H360 -> 17800 | H37: =Profile!I360 -> 213600 | I37: =Profile!J360 -> 213600
B38: =Profile!C361 -> 31 | C38: =Profile!D361 -> KESAR DEVI | D38: =Profile!E361 -> KANISHATH SHIKSHAK | E38: =Profile!F361 -> 5255791 | F38: =Profile!G361 -> 00:00:00 | G38: =Profile!H361 -> 17800 | H38: =Profile!I361 -> 213600 | I38: =Profile!J361 -> 213600
B39: =Profile!C362 -> 32 | C39: =Profile!D362 -> KHINYA RAM GODARA_5299844 | D39: =Profile!E362 -> PANCHAYAT SHIKSHAK | E39: =Profile!F362 -> 5299844 | F39: =Profile!G362 -> 00:00:00 | G39: =Profile!H362 -> 11000 | H39: =Profile!I362 -> 132000 | I39: =Profile!J362 -> 132000
B40: =Profile!C363 -> 33 | C40: =Profile!D363 -> KIRAN KUMARI | D40: =Profile!E363 -> PANCHAYAT SHIKSHAK | E40: =Profile!F363 -> 5301057 | F40: =Profile!G363 -> 00:00:00 | G40: =Profile!H363 -> 11000 | H40: =Profile!I363 -> 132000 | I40: =Profile!J363 -> 132000
B41: =Profile!C364 -> 34 | C41: =Profile!D364 -> KIRPAL DAN_5299836 | D41: =Profile!E364 -> PANCHAYAT SHIKSHAK | E41: =Profile!F364 ->  | F41: =Profile!G364 -> 00:00:00 | G41: =Profile!H364 -> 11000 | H41: =Profile!I364 -> 132000 | I41: =Profile!J364 -> 132000
B42: =Profile!C365 -> 35 | C42: =Profile!D365 -> KISHNA RAM | D42: =Profile!E365 -> PANCHAYAT SHIKSHAK | E42: =Profile!F365 -> 5301022 | F42: =Profile!G365 -> 00:00:00 | G42: =Profile!H365 -> 11000 | H42: =Profile!I365 -> 132000 | I42: =Profile!J365 -> 132000
B43: =Profile!C366 -> 36 | C43: =Profile!D366 -> KRIPAL DAN | D43: =Profile!E366 -> PANCHAYAT SHIKSHAK | E43: =Profile!F366 -> 5299836 | F43: =Profile!G366 -> 00:00:00 | G43: =Profile!H366 -> 17800 | H43: =Profile!I366 -> 213600 | I43: =Profile!J366 -> 213600
B44: =Profile!C367 -> 37 | C44: =Profile!D367 -> KRISHANA DONGIWALA_5255792 | D44: =Profile!E367 -> KANISHATH SHIKSHAK | E44: =Profile!F367 -> 5255792 | F44: =Profile!G367 -> 00:00:00 | G44: =Profile!H367 -> 17800 | H44: =Profile!I367 -> 213600 | I44: =Profile!J367 -> 213600
B45: =Profile!C368 -> 38 | C45: =Profile!D368 -> KUSHALA RAM SARAN_5312500 | D45: =Profile!E368 -> PANCHAYAT SHIKSHAK | E45: =Profile!F368 ->  | F45: =Profile!G368 -> 00:00:00 | G45: =Profile!H368 -> 17800 | H45: =Profile!I368 -> 213600 | I45: =Profile!J368 -> 213600
B46: =Profile!C369 -> 39 | C46: =Profile!D369 -> LALCHAND MOOND | D46: =Profile!E369 -> PANCHAYAT SHIKSHAK | E46: =Profile!F369 -> 5300886 | F46: =Profile!G369 -> 00:00:00 | G46: =Profile!H369 -> 17800 | H46: =Profile!I369 -> 213600 | I46: =Profile!J369 -> 213600
B47: =Profile!C370 -> 40 | C47: =Profile!D370 -> LOKENDER SINGH JODHA_5306417 | D47: =Profile!E370 -> PANCHAYAT SHIKSHAK | E47: =Profile!F370 ->  | F47: =Profile!G370 -> 00:00:00 | G47: =Profile!H370 -> 17800 | H47: =Profile!I370 -> 213600 | I47: =Profile!J370 -> 213600
B48: =Profile!C371 -> 41 | C48: =Profile!D371 -> MANGILAL MEGHWAL | D48: =Profile!E371 -> KANISHATH SHIKSHAK | E48: =Profile!F371 -> 5255807 | F48: =Profile!G371 -> 00:00:00 | G48: =Profile!H371 -> 17800 | H48: =Profile!I371 -> 213600 | I48: =Profile!J371 -> 213600
B49: =Profile!C372 -> 42 | C49: =Profile!D372 -> MANJU KAUSHIK | D49: =Profile!E372 -> PANCHAYAT SHIKSHAK | E49: =Profile!F372 -> 5301066 | F49: =Profile!G372 -> 00:00:00 | G49: =Profile!H372 -> 17800 | H49: =Profile!I372 -> 213600 | I49: =Profile!J372 -> 213600
B50: =Profile!C373 -> 43 | C50: =Profile!D373 -> MANOJ KUMAR SUTHAR | D50: =Profile!E373 -> PANCHAYAT SHIKSHAK | E50: =Profile!F373 -> 5301013 | F50: =Profile!G373 -> 00:00:00 | G50: =Profile!H373 -> 17800 | H50: =Profile!I373 -> 213600 | I50: =Profile!J373 -> 213600
B51: =Profile!C374 -> 44 | C51: =Profile!D374 -> MEENAKSHI | D51: =Profile!E374 -> PANCHAYAT SHIKSHAK | E51: =Profile!F374 -> 5301044 | F51: =Profile!G374 -> 00:00:00 | G51: =Profile!H374 -> 17800 | H51: =Profile!I374 -> 213600 | I51: =Profile!J374 -> 213600
B52: =Profile!C375 -> 45 | C52: =Profile!D375 -> MUKESH SAIN | D52: =Profile!E375 -> PANCHAYAT SHIKSHAK | E52: =Profile!F375 -> 5301057 | F52: =Profile!G375 -> 00:00:00 | G52: =Profile!H375 -> 11000 | H52: =Profile!I375 -> 132000 | I52: =Profile!J375 -> 132000
B53: =Profile!C376 -> 46 | C53: =Profile!D376 -> MUSHTAK AHMED | D53: =Profile!E376 -> KANISHATH SHIKSHAK | E53: =Profile!F376 -> 5255788 | F53: =Profile!G376 -> 00:00:00 | G53: =Profile!H376 -> 17800 | H53: =Profile!I376 -> 213600 | I53: =Profile!J376 -> 213600
B54: =Profile!C377 -> 47 | C54: =Profile!D377 -> NAND KISHOR KARELA | D54: =Profile!E377 -> PANCHAYAT SHIKSHAK | E54: =Profile!F377 -> 5301037 | F54: =Profile!G377 -> 00:00:00 | G54: =Profile!H377 -> 17800 | H54: =Profile!I377 -> 213600 | I54: =Profile!J377 -> 213600
B55: =Profile!C378 -> 48 | C55: =Profile!D378 -> NAND KISHOR SHARMA | D55: =Profile!E378 -> PANCHAYAT SHIKSHAK | E55: =Profile!F378 -> 5301036 | F55: =Profile!G378 -> 00:00:00 | G55: =Profile!H378 -> 17800 | H55: =Profile!I378 -> 213600 | I55: =Profile!J378 -> 213600
B56: =Profile!C379 -> 49 | C56: =Profile!D379 -> NARAYAN RAM_5301072 | D56: =Profile!E379 -> PANCHAYAT SHIKSHAK | E56: =Profile!F379 -> 5301077 | F56: =Profile!G379 -> 00:00:00 | G56: =Profile!H379 -> 17800 | H56: =Profile!I379 -> 213600 | I56: =Profile!J379 -> 213600
B57: =Profile!C380 -> 50 | C57: =Profile!D380 -> PAPPURAM MEGHWAL | D57: =Profile!E380 -> KANISHATH SHIKSHAK | E57: =Profile!F380 -> 5255800 | F57: =Profile!G380 -> 00:00:00 | G57: =Profile!H380 -> 17800 | H57: =Profile!I380 -> 213600 | I57: =Profile!J380 -> 213600
B58: =Profile!C381 -> 51 | C58: =Profile!D381 -> PARMESHWARI PRAJAPAT_5301027 | D58: =Profile!E381 -> PANCHAYAT SHIKSHAK | E58: =Profile!F381 -> 5301027 | F58: =Profile!G381 -> 00:00:00 | G58: =Profile!H381 -> 17800 | H58: =Profile!I381 -> 213600 | I58: =Profile!J381 -> 213600
B59: =Profile!C382 -> 52 | C59: =Profile!D382 -> POONAM CHAND MEGHWAL_5299538 | D59: =Profile!E382 -> PANCHAYAT SHIKSHAK | E59: =Profile!F382 -> 5299538 | F59: =Profile!G382 -> 00:00:00 | G59: =Profile!H382 -> 11000 | H59: =Profile!I382 -> 132000 | I59: =Profile!J382 -> 132000
B60: =Profile!C383 -> 53 | C60: =Profile!D383 -> PRABHA KIRADOO_5306670 | D60: =Profile!E383 -> PANCHAYAT SHIKSHAK | E60: =Profile!F383 ->  | F60: =Profile!G383 -> 00:00:00 | G60: =Profile!H383 -> 17800 | H60: =Profile!I383 -> 213600 | I60: =Profile!J383 -> 213600
B61: =Profile!C384 -> 54 | C61: =Profile!D384 -> PRAKASH CHAND GOYAL | D61: =Profile!E384 -> PANCHAYAT SHIKSHAK | E61: =Profile!F384 -> 5301002 | F61: =Profile!G384 -> 00:00:00 | G61: =Profile!H384 -> 17800 | H61: =Profile!I384 -> 213600 | I61: =Profile!J384 -> 213600
B62: =Profile!C385 -> 55 | C62: =Profile!D385 -> PUKHRAJ SHARMA | D62: =Profile!E385 -> PANCHAYAT SHIKSHAK | E62: =Profile!F385 -> 5296153 | F62: =Profile!G385 -> 00:00:00 | G62: =Profile!H385 -> 17800 | H62: =Profile!I385 -> 213600 | I62: =Profile!J385 -> 213600
B63: =Profile!C386 -> 56 | C63: =Profile!D386 -> PUSHPLATA CHOUDHARY_5304422 | D63: =Profile!E386 -> PANCHAYAT SHIKSHAK | E63: =Profile!F386 ->  | F63: =Profile!G386 ->  | G63: =Profile!H386 -> 17800 | H63: =Profile!I386 -> 213600 | I63: =Profile!J386 -> 213600
B64: =Profile!C387 -> 57 | C64: =Profile!D387 -> RADHA UPADHYAY | D64: =Profile!E387 -> KANISHATH SHIKSHAK | E64: =Profile!F387 -> 5255790 | F64: =Profile!G387 -> 00:00:00 | G64: =Profile!H387 -> 17800 | H64: =Profile!I387 -> 213600 | I64: =Profile!J387 -> 213600
B65: =Profile!C388 -> 58 | C65: =Profile!D388 -> RADHE SHYAM | D65: =Profile!E388 -> PANCHAYAT SHIKSHAK | E65: =Profile!F388 -> 5301055 | F65: =Profile!G388 -> 00:00:00 | G65: =Profile!H388 -> 11000 | H65: =Profile!I388 -> 132000 | I65: =Profile!J388 -> 132000
B66: =Profile!C389 -> 59 | C66: =Profile!D389 -> RADHE SHYAM PALIWAL | D66: =Profile!E389 -> PANCHAYAT SHIKSHAK | E66: =Profile!F389 ->  | F66: =Profile!G389 -> 00:00:00 | G66: =Profile!H389 -> 17800 | H66: =Profile!I389 -> 213600 | I66: =Profile!J389 -> 213600
B67: =Profile!C390 -> 60 | C67: =Profile!D390 -> RAJA RAM | D67: =Profile!E390 -> PANCHAYAT SHIKSHAK | E67: =Profile!F390 -> 5299533 | F67: =Profile!G390 -> 00:00:00 | G67: =Profile!H390 -> 17800 | H67: =Profile!I390 -> 213600 | I67: =Profile!J390 -> 213600
B68: =Profile!C391 -> 61 | C68: =Profile!D391 -> RAM SUKH MEGHWAL_5322949 | D68: =Profile!E391 -> PANCHAYAT SHIKSHAK | E68: =Profile!F391 ->  | F68: =Profile!G391 -> 00:00:00 | G68: =Profile!H391 -> 11000 | H68: =Profile!I391 -> 132000 | I68: =Profile!J391 -> 132000
B69: =Profile!C392 -> 62 | C69: =Profile!D392 -> RAMAN LAL BISSA_5311506 | D69: =Profile!E392 -> PANCHAYAT SHIKSHAK | E69: =Profile!F392 -> 5301048 | F69: =Profile!G392 -> 00:00:00 | G69: =Profile!H392 -> 11000 | H69: =Profile!I392 -> 132000 | I69: =Profile!J392 -> 132000
B70: =Profile!C393 -> 63 | C70: =Profile!D393 -> RAMESH BITHU_5304329 | D70: =Profile!E393 -> PANCHAYAT SHIKSHAK | E70: =Profile!F393 ->  | F70: =Profile!G393 -> 00:00:00 | G70: =Profile!H393 -> 17800 | H70: =Profile!I393 -> 213600 | I70: =Profile!J393 -> 213600
B71: =Profile!C394 -> 64 | C71: =Profile!D394 -> RAMESHWAR LAL_5301035 | D71: =Profile!E394 -> PANCHAYAT SHIKSHAK | E71: =Profile!F394 -> 5301035 | F71: =Profile!G394 -> 00:00:00 | G71: =Profile!H394 -> 17800 | H71: =Profile!I394 -> 213600 | I71: =Profile!J394 -> 213600
B72: =Profile!C395 -> 65 | C72: =Profile!D395 -> RATAN LAL | D72: =Profile!E395 -> PANCHAYAT SHIKSHAK | E72: =Profile!F395 -> 5300839 | F72: =Profile!G395 -> 00:00:00 | G72: =Profile!H395 -> 17800 | H72: =Profile!I395 -> 213600 | I72: =Profile!J395 -> 213600
B73: =Profile!C396 -> 66 | C73: =Profile!D396 -> RAVINDER JAIN | D73: =Profile!E396 -> PANCHAYAT SHIKSHAK | E73: =Profile!F396 -> 5301042 | F73: =Profile!G396 -> 00:00:00 | G73: =Profile!H396 -> 17800 | H73: =Profile!I396 -> 213600 | I73: =Profile!J396 -> 213600
B74: =Profile!C397 -> 67 | C74: =Profile!D397 -> RIKTAKMAL SHARMA | D74: =Profile!E397 -> PANCHAYAT SHIKSHAK | E74: =Profile!F397 -> 5300877 | F74: =Profile!G397 -> 00:00:00 | G74: =Profile!H397 -> 17800 | H74: =Profile!I397 -> 213600 | I74: =Profile!J397 -> 213600
B75: =Profile!C398 -> 68 | C75: =Profile!D398 -> SARLA CHOUDHARY | D75: =Profile!E398 -> KANISHATH SHIKSHAK | E75: =Profile!F398 -> 5255803 | F75: =Profile!G398 -> 00:00:00 | G75: =Profile!H398 -> 17800 | H75: =Profile!I398 -> 213600 | I75: =Profile!J398 -> 213600
B76: =Profile!C399 -> 69 | C76: =Profile!D399 -> SAROJ PARIK | D76: =Profile!E399 -> KANISHATH SHIKSHAK | E76: =Profile!F399 -> 5255798 | F76: =Profile!G399 ->  | G76: =Profile!H399 -> 17800 | H76: =Profile!I399 -> 213600 | I76: =Profile!J399 -> 213600
B77: =Profile!C400 -> 70 | C77: =Profile!D400 -> SHANKAR LAL JYANI | D77: =Profile!E400 -> PANCHAYAT SHIKSHAK | E77: =Profile!F400 -> 5300940 | F77: =Profile!G400 -> 00:00:00 | G77: =Profile!H400 -> 17800 | H77: =Profile!I400 -> 213600 | I77: =Profile!J400 -> 213600
B78: =Profile!C401 -> 71 | C78: =Profile!D401 -> SHIV KUMAR BHATI_5301030 | D78: =Profile!E401 -> PANCHAYAT SHIKSHAK | E78: =Profile!F401 -> 5301030 | F78: =Profile!G401 -> 00:00:00 | G78: =Profile!H401 -> 17800 | H78: =Profile!I401 -> 213600 | I78: =Profile!J401 -> 213600
B79: =Profile!C402 -> 72 | C79: =Profile!D402 -> SHIVNARAYAN MOOND | D79: =Profile!E402 -> KANISHATH SHIKSHAK | E79: =Profile!F402 -> 5255783 | F79: =Profile!G402 ->  | G79: =Profile!H402 -> 17800 | H79: =Profile!I402 -> 213600 | I79: =Profile!J402 -> 213600
B80: =Profile!C403 -> 73 | C80: =Profile!D403 -> SOHAN SINGH | D80: =Profile!E403 -> PANCHAYAT SHIKSHAK | E80: =Profile!F403 -> 5301903 | F80: =Profile!G403 ->  | G80: =Profile!H403 -> 11000 | H80: =Profile!I403 -> 132000 | I80: =Profile!J403 -> 132000
B81: =Profile!C404 -> 74 | C81: =Profile!D404 -> SUBASH CHANDER GODARA | D81: =Profile!E404 -> PANCHAYAT SHIKSHAK | E81: =Profile!F404 -> 5299817 | F81: =Profile!G404 ->  | G81: =Profile!H404 -> 17800 | H81: =Profile!I404 -> 213600 | I81: =Profile!J404 -> 213600
B82: =Profile!C405 -> 75 | C82: =Profile!D405 -> SUBHASH NAYAK_5317766 | D82: =Profile!E405 -> PANCHAYAT SHIKSHAK | E82: =Profile!F405 ->  | F82: =Profile!G405 ->  | G82: =Profile!H405 -> 11000 | H82: =Profile!I405 -> 132000 | I82: =Profile!J405 -> 132000
B83: =Profile!C406 -> 76 | C83: =Profile!D406 -> SUMITRA KASWA | D83: =Profile!E406 -> PANCHAYAT SHIKSHAK | E83: =Profile!F406 -> 5299536 | F83: =Profile!G406 ->  | G83: =Profile!H406 -> 17800 | H83: =Profile!I406 -> 213600 | I83: =Profile!J406 -> 213600
B84: =Profile!C407 -> 77 | C84: =Profile!D407 -> SUNITA SHARMA | D84: =Profile!E407 -> PANCHAYAT SHIKSHAK | E84: =Profile!F407 -> 5299522 | F84: =Profile!G407 ->  | G84: =Profile!H407 -> 17800 | H84: =Profile!I407 -> 213600 | I84: =Profile!J407 -> 213600
B85: =Profile!C408 -> 78 | C85: =Profile!D408 -> SURENDER KUMAR KUKNA | D85: =Profile!E408 -> PANCHAYAT SHIKSHAK | E85: =Profile!F408 -> 5301064 | F85: =Profile!G408 ->  | G85: =Profile!H408 -> 17800 | H85: =Profile!I408 -> 213600 | I85: =Profile!J408 -> 213600
B86: =Profile!C409 -> 79 | C86: =Profile!D409 -> VIJAY KUMAR_5307505 | D86: =Profile!E409 -> PANCHAYAT SHIKSHAK | E86: =Profile!F409 ->  | F86: =Profile!G409 ->  | G86: =Profile!H409 -> 11000 | H86: =Profile!I409 -> 132000 | I86: =Profile!J409 -> 132000
B87: =Profile!C410 -> 80 | C87: =Profile!D410 -> VIJAYPAL GODARA_5320450 | D87: =Profile!E410 -> PANCHAYAT SHIKSHAK | E87: =Profile!F410 ->  | F87: =Profile!G410 ->  | G87: =Profile!H410 -> 11000 | H87: =Profile!I410 -> 132000 | I87: =Profile!J410 -> 132000
B88: =Profile!C411 -> 81 | C88: =Profile!D411 -> VIJAYPAL JYANI | D88: =Profile!E411 -> PANCHAYAT SHIKSHAK | E88: =Profile!F411 -> 5300934 | F88: =Profile!G411 ->  | G88: =Profile!H411 -> 17800 | H88: =Profile!I411 -> 213600 | I88: =Profile!J411 -> 213600
B89: =Profile!C412 -> 82 | C89: =Profile!D412 -> ZUBBER MOHAMMAD SHAH_5315244 | D89: =Profile!E412 -> PANCHAYAT SHIKSHAK | E89: =Profile!F412 ->  | F89: =Profile!G412 ->  | G89: =Profile!H412 -> 11000 | H89: =Profile!I412 -> 132000 | I89: =Profile!J412 -> 132000
B90: =Profile!C413 -> 83 | C90: =Profile!D413 -> BHAIRA RAM | D90: =Profile!E413 -> Teacher Level-2 | E90: =Profile!F413 -> RJBI202309078023 | F90: =Profile!G413 -> 00:00:00 | G90: =Profile!H413 -> 23700 | H90: =Profile!I413 -> 284400 | I90: =Profile!J413 -> 284400
B91: =Profile!C414 -> 84 | C91: =Profile!D414 -> BHAWANA KANWAR | D91: =Profile!E414 -> Teacher Level-1 | E91: =Profile!F414 -> RJBI202309040350 | F91: =Profile!G414 -> 00:00:00 | G91: =Profile!H414 -> 23700 | H91: =Profile!I414 -> 284400 | I91: =Profile!J414 -> 284400
B92: =Profile!C415 -> 85 | C92: =Profile!D415 -> BUDHRAM | D92: =Profile!E415 -> TEACHER | E92: =Profile!F415 -> RJBI202309557196 | F92: =Profile!G415 -> 00:00:00 | G92: =Profile!H415 -> 23700 | H92: =Profile!I415 -> 284400 | I92: =Profile!J415 -> 284400
B93: =Profile!C416 -> 86 | C93: =Profile!D416 -> DEVENDRA SINGH | D93: =Profile!E416 -> Teacher Level-1 (Special Education) | E93: =Profile!F416 -> RJBI202209032389 | F93: =Profile!G416 -> 00:00:00 | G93: =Profile!H416 -> 23700 | H93: =Profile!I416 -> 284400 | I93: =Profile!J416 -> 284400
B94: =Profile!C417 -> 87 | C94: =Profile!D417 -> HANSA KUMARI SWAMI | D94: =Profile!E417 -> Teacher Level-2 | E94: =Profile!F417 -> RJBI202309065691 | F94: =Profile!G417 -> 00:00:00 | G94: =Profile!H417 -> 23700 | H94: =Profile!I417 -> 284400 | I94: =Profile!J417 -> 284400
B95: =Profile!C418 -> 88 | C95: =Profile!D418 -> JYOTI RATHORE | D95: =Profile!E418 -> TEACHER | E95: =Profile!F418 -> RJBI202309066458 | F95: =Profile!G418 -> 00:00:00 | G95: =Profile!H418 -> 23700 | H95: =Profile!I418 -> 284400 | I95: =Profile!J418 -> 284400
B96: =Profile!C419 -> 89 | C96: =Profile!D419 -> KHERUNISHA | D96: =Profile!E419 -> Teacher Level-2 | E96: =Profile!F419 -> RJBI202309065639 | F96: =Profile!G419 -> 00:00:00 | G96: =Profile!H419 -> 23700 | H96: =Profile!I419 -> 284400 | I96: =Profile!J419 -> 284400
B97: =Profile!C420 -> 90 | C97: =Profile!D420 -> KHUSHBOO YADAV | D97: =Profile!E420 -> Teacher Level-2 | E97: =Profile!F420 -> RJBI202309073471 | F97: =Profile!G420 -> 00:00:00 | G97: =Profile!H420 -> 23700 | H97: =Profile!I420 -> 284400 | I97: =Profile!J420 -> 284400
B98: =Profile!C421 -> 91 | C98: =Profile!D421 -> MANJU BALA | D98: =Profile!E421 -> Teacher Level-1 (Special Education) | E98: =Profile!F421 -> RJBI202209028546 | F98: =Profile!G421 -> 00:00:00 | G98: =Profile!H421 -> 23700 | H98: =Profile!I421 -> 284400 | I98: =Profile!J421 -> 284400
B99: =Profile!C422 -> 92 | C99: =Profile!D422 -> MONIKA | D99: =Profile!E422 -> Teacher Level-2 | E99: =Profile!F422 -> RJBI202309050858 | F99: =Profile!G422 -> 00:00:00 | G99: =Profile!H422 -> 23700 | H99: =Profile!I422 -> 284400 | I99: =Profile!J422 -> 284400
B100: =Profile!C423 -> 93 | C100: =Profile!D423 -> MOOL SINGH | D100: =Profile!E423 -> TEACHER | E100: =Profile!F423 -> RJBI202309073384 | F100: =Profile!G423 -> 00:00:00 | G100: =Profile!H423 -> 23700 | H100: =Profile!I423 -> 284400 | I100: =Profile!J423 -> 284400
B101: =Profile!C424 -> 94 | C101: =Profile!D424 -> PINKY | D101: =Profile!E424 -> Teacher Level-1 | E101: =Profile!F424 -> RJBI202309083154 | F101: =Profile!G424 -> 00:00:00 | G101: =Profile!H424 -> 23700 | H101: =Profile!I424 -> 284400 | I101: =Profile!J424 -> 284400
B102: =Profile!C425 -> 95 | C102: =Profile!D425 -> POOJA | D102: =Profile!E425 -> Teacher Level-2 | E102: =Profile!F425 -> RJBI202309045038 | F102: =Profile!G425 -> 00:00:00 | G102: =Profile!H425 -> 23700 | H102: =Profile!I425 -> 284400 | I102: =Profile!J425 -> 284400
B103: =Profile!C426 -> 96 | C103: =Profile!D426 -> PREETI TOGASIA | D103: =Profile!E426 -> Teacher Level-1 | E103: =Profile!F426 -> RJBI202309039848 | F103: =Profile!G426 -> 00:00:00 | G103: =Profile!H426 -> 23700 | H103: =Profile!I426 -> 284400 | I103: =Profile!J426 -> 284400
B104: =Profile!C427 -> 97 | C104: =Profile!D427 -> PRITI KUMARI | D104: =Profile!E427 -> Teacher Level-2 | E104: =Profile!F427 -> RJBI202309063488 | F104: =Profile!G427 -> 00:00:00 | G104: =Profile!H427 -> 23700 | H104: =Profile!I427 -> 284400 | I104: =Profile!J427 -> 284400
B105: =Profile!C428 -> 98 | C105: =Profile!D428 -> PRITI SINGH | D105: =Profile!E428 -> Teacher Level-2 | E105: =Profile!F428 -> RJBI202409103538 | F105: =Profile!G428 -> 00:00:00 | G105: =Profile!H428 -> 23700 | H105: =Profile!I428 -> 284400 | I105: =Profile!J428 -> 284400
B106: =Profile!C429 -> 99 | C106: =Profile!D429 -> PUSHPA KUMARI | D106: =Profile!E429 -> TEACHER | E106: =Profile!F429 -> RJBI202309072187 | F106: =Profile!G429 -> 00:00:00 | G106: =Profile!H429 -> 23700 | H106: =Profile!I429 -> 284400 | I106: =Profile!J429 -> 284400
B107: =Profile!C430 -> 100 | C107: =Profile!D430 -> RAJANI MOYAL | D107: =Profile!E430 -> TEACHER | E107: =Profile!F430 -> RJBI202209013008 | F107: =Profile!G430 -> 00:00:00 | G107: =Profile!H430 -> 23700 | H107: =Profile!I430 -> 284400 | I107: =Profile!J430 -> 284400
B108: =Profile!C431 -> 101 | C108: =Profile!D431 -> RAKESH GODARA | D108: =Profile!E431 -> Teacher Level-1 | E108: =Profile!F431 -> RJBI202209029520 | F108: =Profile!G431 -> 00:00:00 | G108: =Profile!H431 -> 23700 | H108: =Profile!I431 -> 284400 | I108: =Profile!J431 -> 284400
B109: =Profile!C432 -> 102 | C109: =Profile!D432 -> RAM CHRAN MAN | D109: =Profile!E432 -> TEACHER | E109: =Profile!F432 -> RJBI202309052725 | F109: =Profile!G432 -> 00:00:00 | G109: =Profile!H432 -> 23700 | H109: =Profile!I432 -> 284400 | I109: =Profile!J432 -> 284400
B110: =Profile!C433 -> 103 | C110: =Profile!D433 -> SUNILA NEHRA | D110: =Profile!E433 -> Teacher Level-1 | E110: =Profile!F433 -> RJBI202309056985 | F110: =Profile!G433 -> 00:00:00 | G110: =Profile!H433 -> 23700 | H110: =Profile!I433 -> 284400 | I110: =Profile!J433 -> 284400
B111: =Profile!C434 -> 104 | C111: =Profile!D434 -> VIMLA MEENA | D111: =Profile!E434 -> Teacher Level-2 | E111: =Profile!F434 -> RJBI202309074987 | F111: =Profile!G434 -> 00:00:00 | G111: =Profile!H434 -> 23700 | H111: =Profile!I434 -> 284400 | I111: =Profile!J434 -> 284400
B112: =Profile!C435 -> 105 | C112: =Profile!D435 -> VIMLA MEGHWAL | D112: =Profile!E435 -> TEACHER | E112: =Profile!F435 -> RJBI202309072138 | F112: =Profile!G435 -> 00:00:00 | G112: =Profile!H435 -> 23700 | H112: =Profile!I435 -> 284400 | I112: =Profile!J435 -> 284400
B113: =Profile!C436 -> 106 | C113: =Profile!D436 -> JAIPAL HUDDA | D113: =Profile!E436 -> Teacher Level-2 (Special Education) | E113: =Profile!F436 -> RJBI202309050864 | F113: =Profile!G436 -> 3850-03-19 | G113: =Profile!H436 -> 23700 | H113: =Profile!I436 -> 284400 | I113: =Profile!J436 -> 284400
B114: =Profile!C437 -> 107 | C114: =Profile!D437 -> 0 | D114: =Profile!E437 -> 0 | E114: =Profile!F437 -> 00:00:00 | F114: =Profile!G437 -> 00:00:00 | G114: =Profile!H437 -> 0 | H114: =Profile!I437 -> 0 | I114: =Profile!J437 -> 0
B115: =Profile!C438 -> 108 | C115: =Profile!D438 -> 0 | D115: =Profile!E438 -> 0 | E115: =Profile!F438 -> 00:00:00 | F115: =Profile!G438 -> 00:00:00 | G115: =Profile!H438 -> 0 | H115: =Profile!I438 -> 0 | I115: =Profile!J438 -> 0
B116: =Profile!C439 -> 109 | C116: =Profile!D439 -> 0 | D116: =Profile!E439 -> 0 | E116: =Profile!F439 -> 00:00:00 | F116: =Profile!G439 -> 00:00:00 | G116: =Profile!H439 -> 0 | H116: =Profile!I439 -> 0 | I116: =Profile!J439 -> 0
B117: =Profile!C440 -> 110 | C117: =Profile!D440 -> 0 | D117: =Profile!E440 -> 0 | E117: =Profile!F440 -> 00:00:00 | F117: =Profile!G440 -> 00:00:00 | G117: =Profile!H440 -> 0 | H117: =Profile!I440 -> 0 | I117: =Profile!J440 -> 0
B118: =Profile!C441 -> 111 | C118: =Profile!D441 -> 0 | D118: =Profile!E441 -> 0 | E118: =Profile!F441 -> 00:00:00 | F118: =Profile!G441 -> 00:00:00 | G118: =Profile!H441 -> 0 | H118: =Profile!I441 -> 0 | I118: =Profile!J441 -> 0
B119: =Profile!C442 -> 112 | C119: =Profile!D442 -> 0 | D119: =Profile!E442 -> 0 | E119: =Profile!F442 -> 00:00:00 | F119: =Profile!G442 -> 00:00:00 | G119: =Profile!H442 -> 0 | H119: =Profile!I442 -> 0 | I119: =Profile!J442 -> 0
B120: =Profile!C443 -> 113 | C120: =Profile!D443 -> 0 | D120: =Profile!E443 -> 0 | E120: =Profile!F443 -> 00:00:00 | F120: =Profile!G443 -> 00:00:00 | G120: =Profile!H443 -> 0 | H120: =Profile!I443 -> 0 | I120: =Profile!J443 -> 0
B121: =Profile!C444 -> 114 | C121: =Profile!D444 -> 0 | D121: =Profile!E444 -> 0 | E121: =Profile!F444 -> 00:00:00 | F121: =Profile!G444 -> 00:00:00 | G121: =Profile!H444 -> 0 | H121: =Profile!I444 -> 0 | I121: =Profile!J444 -> 0
B122: =Profile!C445 -> 115 | C122: =Profile!D445 -> 0 | D122: =Profile!E445 -> 0 | E122: =Profile!F445 -> 00:00:00 | F122: =Profile!G445 -> 00:00:00 | G122: =Profile!H445 -> 0 | H122: =Profile!I445 -> 0 | I122: =Profile!J445 -> 0
B123: =Profile!C446 -> 116 | C123: =Profile!D446 -> 0 | D123: =Profile!E446 -> 0 | E123: =Profile!F446 -> 00:00:00 | F123: =Profile!G446 -> 00:00:00 | G123: =Profile!H446 -> 0 | H123: =Profile!I446 -> 0 | I123: =Profile!J446 -> 0
B124: =Profile!C447 -> 117 | C124: =Profile!D447 -> 0 | D124: =Profile!E447 -> 0 | E124: =Profile!F447 -> 00:00:00 | F124: =Profile!G447 -> 00:00:00 | G124: =Profile!H447 -> 0 | H124: =Profile!I447 -> 0 | I124: =Profile!J447 -> 0
B125: =Profile!C448 -> 118 | C125: =Profile!D448 -> 0 | D125: =Profile!E448 -> 0 | E125: =Profile!F448 -> 00:00:00 | F125: =Profile!G448 -> 00:00:00 | G125: =Profile!H448 -> 0 | H125: =Profile!I448 -> 0 | I125: =Profile!J448 -> 0
B126: =Profile!C449 -> 119 | C126: =Profile!D449 -> 0 | D126: =Profile!E449 -> 0 | E126: =Profile!F449 -> 00:00:00 | F126: =Profile!G449 -> 00:00:00 | G126: =Profile!H449 -> 0 | H126: =Profile!I449 -> 0 | I126: =Profile!J449 -> 0
B127: =Profile!C450 -> 120 | C127: =Profile!D450 -> 0 | D127: =Profile!E450 -> 0 | E127: =Profile!F450 -> 00:00:00 | F127: =Profile!G450 -> 00:00:00 | G127: =Profile!H450 -> 0 | H127: =Profile!I450 -> 0 | I127: =Profile!J450 -> 0
B128: =Profile!C451 -> 121 | C128: =Profile!D451 -> 0 | D128: =Profile!E451 -> 0 | E128: =Profile!F451 -> 00:00:00 | F128: =Profile!G451 -> 00:00:00 | G128: =Profile!H451 -> 0 | H128: =Profile!I451 -> 0 | I128: =Profile!J451 -> 0
B129: =Profile!C452 -> 122 | C129: =Profile!D452 -> 0 | D129: =Profile!E452 -> 0 | E129: =Profile!F452 -> 00:00:00 | F129: =Profile!G452 -> 00:00:00 | G129: =Profile!H452 -> 0 | H129: =Profile!I452 -> 0 | I129: =Profile!J452 -> 0
B130: =Profile!C453 -> 123 | C130: =Profile!D453 -> 0 | D130: =Profile!E453 -> 0 | E130: =Profile!F453 -> 00:00:00 | F130: =Profile!G453 -> 00:00:00 | G130: =Profile!H453 -> 0 | H130: =Profile!I453 -> 0 | I130: =Profile!J453 -> 0
B131: =Profile!C454 -> 124 | C131: =Profile!D454 -> 0 | D131: =Profile!E454 -> 0 | E131: =Profile!F454 -> 00:00:00 | F131: =Profile!G454 -> 00:00:00 | G131: =Profile!H454 -> 0 | H131: =Profile!I454 -> 0 | I131: =Profile!J454 -> 0
B132: =Profile!C455 -> 125 | C132: =Profile!D455 -> 0 | D132: =Profile!E455 -> 0 | E132: =Profile!F455 -> 00:00:00 | F132: =Profile!G455 -> 00:00:00 | G132: =Profile!H455 -> 0 | H132: =Profile!I455 -> 0 | I132: =Profile!J455 -> 0
B133: =Profile!C456 -> 126 | C133: =Profile!D456 -> 0 | D133: =Profile!E456 -> 0 | E133: =Profile!F456 -> 00:00:00 | F133: =Profile!G456 -> 00:00:00 | G133: =Profile!H456 -> 0 | H133: =Profile!I456 -> 0 | I133: =Profile!J456 -> 0
B134: =Profile!C457 -> 127 | C134: =Profile!D457 -> 0 | D134: =Profile!E457 -> 0 | E134: =Profile!F457 -> 00:00:00 | F134: =Profile!G457 -> 00:00:00 | G134: =Profile!H457 -> 0 | H134: =Profile!I457 -> 0 | I134: =Profile!J457 -> 0
B135: =Profile!C458 -> 128 | C135: =Profile!D458 -> 0 | D135: =Profile!E458 -> 0 | E135: =Profile!F458 -> 00:00:00 | F135: =Profile!G458 -> 00:00:00 | G135: =Profile!H458 -> 0 | H135: =Profile!I458 -> 0 | I135: =Profile!J458 -> 0
B136: =Profile!C459 -> 129 | C136: =Profile!D459 -> 0 | D136: =Profile!E459 -> 0 | E136: =Profile!F459 -> 00:00:00 | F136: =Profile!G459 -> 00:00:00 | G136: =Profile!H459 -> 0 | H136: =Profile!I459 -> 0 | I136: =Profile!J459 -> 0
B137: =Profile!C460 -> 130 | C137: =Profile!D460 -> 0 | D137: =Profile!E460 -> 0 | E137: =Profile!F460 -> 00:00:00 | F137: =Profile!G460 -> 00:00:00 | G137: =Profile!H460 -> 0 | H137: =Profile!I460 -> 0 | I137: =Profile!J460 -> 0
B138: =Profile!C461 -> 131 | C138: =Profile!D461 -> 0 | D138: =Profile!E461 -> 0 | E138: =Profile!F461 -> 00:00:00 | F138: =Profile!G461 -> 00:00:00 | G138: =Profile!H461 -> 0 | H138: =Profile!I461 -> 0 | I138: =Profile!J461 -> 0
B139: =Profile!C462 -> 132 | C139: =Profile!D462 -> 0 | D139: =Profile!E462 -> 0 | E139: =Profile!F462 -> 00:00:00 | F139: =Profile!G462 -> 00:00:00 | G139: =Profile!H462 -> 0 | H139: =Profile!I462 -> 0 | I139: =Profile!J462 -> 0
B140: =Profile!C463 -> 133 | C140: =Profile!D463 -> 0 | D140: =Profile!E463 -> 0 | E140: =Profile!F463 -> 00:00:00 | F140: =Profile!G463 -> 00:00:00 | G140: =Profile!H463 -> 0 | H140: =Profile!I463 -> 0 | I140: =Profile!J463 -> 0
B141: =Profile!C464 -> 134 | C141: =Profile!D464 -> 0 | D141: =Profile!E464 -> 0 | E141: =Profile!F464 -> 00:00:00 | F141: =Profile!G464 -> 00:00:00 | G141: =Profile!H464 -> 0 | H141: =Profile!I464 -> 0 | I141: =Profile!J464 -> 0
B142: =Profile!C465 -> 135 | C142: =Profile!D465 -> 0 | D142: =Profile!E465 -> 0 | E142: =Profile!F465 -> 00:00:00 | F142: =Profile!G465 -> 00:00:00 | G142: =Profile!H465 -> 0 | H142: =Profile!I465 -> 0 | I142: =Profile!J465 -> 0
B143: =Profile!C466 -> 136 | C143: =Profile!D466 -> 0 | D143: =Profile!E466 -> 0 | E143: =Profile!F466 -> 00:00:00 | F143: =Profile!G466 -> 00:00:00 | G143: =Profile!H466 -> 0 | H143: =Profile!I466 -> 0 | I143: =Profile!J466 -> 0
B144: =Profile!C467 -> 137 | C144: =Profile!D467 -> 0 | D144: =Profile!E467 -> 0 | E144: =Profile!F467 -> 00:00:00 | F144: =Profile!G467 -> 00:00:00 | G144: =Profile!H467 -> 0 | H144: =Profile!I467 -> 0 | I144: =Profile!J467 -> 0
B145: =Profile!C468 -> 138 | C145: =Profile!D468 -> 0 | D145: =Profile!E468 -> 0 | E145: =Profile!F468 -> 00:00:00 | F145: =Profile!G468 -> 00:00:00 | G145: =Profile!H468 -> 0 | H145: =Profile!I468 -> 0 | I145: =Profile!J468 -> 0
B146: =Profile!C469 -> 139 | C146: =Profile!D469 -> 0 | D146: =Profile!E469 -> 0 | E146: =Profile!F469 -> 00:00:00 | F146: =Profile!G469 -> 00:00:00 | G146: =Profile!H469 -> 0 | H146: =Profile!I469 -> 0 | I146: =Profile!J469 -> 0
B147: =Profile!C470 -> 140 | C147: =Profile!D470 -> 0 | D147: =Profile!E470 -> 0 | E147: =Profile!F470 -> 00:00:00 | F147: =Profile!G470 -> 00:00:00 | G147: =Profile!H470 -> 0 | H147: =Profile!I470 -> 0 | I147: =Profile!J470 -> 0
B148: =Profile!C471 -> 141 | C148: =Profile!D471 -> 0 | D148: =Profile!E471 -> 0 | E148: =Profile!F471 -> 00:00:00 | F148: =Profile!G471 -> 00:00:00 | G148: =Profile!H471 -> 0 | H148: =Profile!I471 -> 0 | I148: =Profile!J471 -> 0
B149: =Profile!C472 -> 142 | C149: =Profile!D472 -> 0 | D149: =Profile!E472 -> 0 | E149: =Profile!F472 -> 00:00:00 | F149: =Profile!G472 -> 00:00:00 | G149: =Profile!H472 -> 0 | H149: =Profile!I472 -> 0 | I149: =Profile!J472 -> 0
B150: =Profile!C473 -> 143 | C150: =Profile!D473 -> 0 | D150: =Profile!E473 -> 0 | E150: =Profile!F473 -> 00:00:00 | F150: =Profile!G473 -> 00:00:00 | G150: =Profile!H473 -> 0 | H150: =Profile!I473 -> 0 | I150: =Profile!J473 -> 0
B151: =Profile!C474 -> 144 | C151: =Profile!D474 -> 0 | D151: =Profile!E474 -> 0 | E151: =Profile!F474 -> 00:00:00 | F151: =Profile!G474 -> 00:00:00 | G151: =Profile!H474 -> 0 | H151: =Profile!I474 -> 0 | I151: =Profile!J474 -> 0
B152: =Profile!C475 -> 145 | C152: =Profile!D475 -> 0 | D152: =Profile!E475 -> 0 | E152: =Profile!F475 -> 00:00:00 | F152: =Profile!G475 -> 00:00:00 | G152: =Profile!H475 -> 0 | H152: =Profile!I475 -> 0 | I152: =Profile!J475 -> 0
B153: =Profile!C476 -> 146 | C153: =Profile!D476 -> 0 | D153: =Profile!E476 -> 0 | E153: =Profile!F476 -> 00:00:00 | F153: =Profile!G476 -> 00:00:00 | G153: =Profile!H476 -> 0 | H153: =Profile!I476 -> 0 | I153: =Profile!J476 -> 0
B154: =Profile!C477 -> 147 | C154: =Profile!D477 -> 0 | D154: =Profile!E477 -> 0 | E154: =Profile!F477 -> 00:00:00 | F154: =Profile!G477 -> 00:00:00 | G154: =Profile!H477 -> 0 | H154: =Profile!I477 -> 0 | I154: =Profile!J477 -> 0
B155: =Profile!C478 -> 148 | C155: =Profile!D478 -> 0 | D155: =Profile!E478 -> 0 | E155: =Profile!F478 -> 00:00:00 | F155: =Profile!G478 -> 00:00:00 | G155: =Profile!H478 -> 0 | H155: =Profile!I478 -> 0 | I155: =Profile!J478 -> 0
B156: =Profile!C479 -> 149 | C156: =Profile!D479 -> 0 | D156: =Profile!E479 -> 0 | E156: =Profile!F479 -> 00:00:00 | F156: =Profile!G479 -> 00:00:00 | G156: =Profile!H479 -> 0 | H156: =Profile!I479 -> 0 | I156: =Profile!J479 -> 0
B157: =Profile!C480 -> 150 | C157: =Profile!D480 -> 0 | D157: =Profile!E480 -> 0 | E157: =Profile!F480 -> 00:00:00 | F157: =Profile!G480 -> 00:00:00 | G157: =Profile!H480 -> 0 | H157: =Profile!I480 -> 0 | I157: =Profile!J480 -> 0
D158: =Profile!E481 -> TOTAL | H158: =Profile!I481 -> 22627200 | I158: =Profile!J481 -> 22627200
C160: ='rrr 08'!J292 -> eksgEen vtht HkkVh | F160: =Profile!A4 -> lexz f'k{kk | H160: ='rrr 08'!M291 -> eq[; CykWd f'k{kk vf/kdkjh
C161: ='rrr 08'!J293 -> 9460701805 | F161: =Profile!A5 -> chdkusj | H161: ='rrr 08'!M292 -> lexz f'k{kk
B162: rS;kj drkZ %& | C162: ='rrr 08'!J294 -> gtkjh jke rMZ | F162: =Profile!$F$4 -> 1451 | H162: ='rrr 08'!M293 -> chdkusj
C163: ='rrr 08'!J295 -> 9667576332 | H163: ='rrr 08'!M294 -> 1451

Sheet P1
A1: =Profile!$A$44 -> dk;kZy; %& | C1: =Profile!$D$44 -> eq[; CykWd f'k{kk vf/kdkjh] lexz f'k{kk] chdkusj
A2: izi= 1 | F2: ctV gSM | G2: =Profile!$C$3 -> 2202-01-197-16-01
A3: dk;kZy; v/;{k MhMhvks uke %& | D3: =Profile!$G$4 -> euh"kk vjksM+k | F3: =Profile!$I$4 -> 1234567890 | H3: =Profile!$A$8 -> ihMh [kkrk la[;k %& | I3: =Profile!$C$8 -> 762
A4: ys[kk en | C4: 01 laosru dk x.ku @ ekax izi= | F4: =Profile!$K$44 -> LVsV Q.M | H4: vkWfQl vkbZMh& | I4: =Profile!$G$43 -> 1451
A5: Ø-la- | B5: vkWfQl vkbZ-Mh- | C5: fo|ky; dk uke | D5: forh; o"kZ pkyw o"kZ esa laosru esa vkaCkfVr jkf'k | E5: 08@25 rd dk okLrfod O;; | F5: 09@25 ls 03@26 rd gksus okyk vuqekfur O;; | G5: forh; o"kZ esa gksus okyk dqy O;; | H5: pkyw o"kZ ds fy, vfrfjDr ctV dh vko';drk | I5: vkxeh o"kZ ds fy, vko';drk
G6: ;ksx dkWye ¼5$6½ | H6: ;ksx dkWye ¼4&7½
A7: 1 | B7: 2 | C7: 3 | D7: 4 | E7: 5 | F7: 6 | G7: 7 | H7: 8 | I7: 9
A8: 1 | B8: =Profile!$G$43 -> 1451 | C8: =Profile!$D$44 -> eq[; CykWd f'k{kk vf/kdkjh] lexz f'k{kk] chdkusj | D8: ='pd 31.08.25'!$F$255 -> 42754470 | E8: =Profile!$I$31 -> 31640346 | F8: ='P-9'!$L$9 -> 52934148 | G8: =E8+F8 -> 84574494 | H8: =D8-G8 -> -41820024 | I8: ='rrr 08'!$M$283 -> 86430359
F11: =Profile!$G$6 -> eksgEen vtht HkkVh | G11: =Profile!A3 -> eq[; CykWd f'k{kk vf/kdkjh
F12: =Profile!$I$6 -> 9460701805 | G12: =Profile!A4 -> lexz f'k{kk | H12: =Profile!B4 -> 0
E13: rS;kj drkZ %& | F13: ='rrr 08'!J294 -> gtkjh jke rMZ | G13: =Profile!A5 -> chdkusj | H13: =Profile!B5 -> 0
F14: ='rrr 08'!J295 -> 9667576332 | G14: =Profile!$F$4 -> 1451

Sheet Sheet1 (hidden)
A1: dk;kZy;& | C1: jktdh; mPp ek/;fed fo|ky; pkSxkbZa Vksad
A2: eksgj& | C2: Budget Estemate
A3: ihZbZbZvks 10tSM ,oa iz/kkukpk;Z | F3: vkWfQl vkbZMh | G3: uke MhMhvks | I3: uEcj
A4: jktdh; mPp ek/;fed fo|ky; | F4: 2405 | G4: izHkkr 'kekZ | I4: 9414318727
A5: 15tSM Jhxaxkuxj | F5: rS;kj drkZ | G5: lqfer fxjh | I5: 9414631519
A6: ctV en eq[; 'kh"kZ | C6: 2202 | D6: lkekU; f'k{kk
C7: 2 | D7: ek/;fed f'k{kk
C8: 109 | D8: jktdh; mPp ek/;fed fo|ky;
C9: 27 | D9: yM+dksa ds fo|ky;
C10: 1 | D10: yM+dksa ds fo|ky;
A13: Ldhe dk uke | F13: LVsV Q.M
A14: ekax la[;k | C14: 24 | H14: Arear Month | I14: 8
A15: ctV Lohd`fr esa fo|ky; dh Ø-la- | F15: 14 | G15: egakbZ HkÙk nj | H15: 17 | I15: DA Arr. | J15: 0 | K15: HRA | L15: 8
A16: xr rhu o"ksksZa ds vk; ,oa O;; dk fooj.k | B16: gsM | F16: 2017-18 | G16: 2018-19 | H16: 2019-20 | I16: 08/19 to 03/20 | J16: 04/20 to 07/20 | K16: la'kksf/kr vuqeku 2020&21 | L16: vk; vuqeku 2021&2022
A17: vk;
A18: f'k{k.k Qhl o vU; Qhl | B18: 0202&02 | C18: 102 | D18: 1 | E18: 0 | F18: 110 | G18: 200 | H18: 210 | I18: 150 | J18: 90 | K18: 220 | L18: 230
A19: ikB~; iqLrdksa ls vk; | B19: 0202&02 | C19: 102 | D19: 2
A20: fofo/k | B20: 0202&02 | C20: 102 | D20: 3 | E20: 1
A21: vf/kd Hkqxrku dh olwyh | B21: 0202&02 | C21: 102 | D21: 3 | E21: 2
A22: vuqi;ksxh lkeku ds fuLrkj.k ls vk; | B22: 0202&02 | C22: 102 | D22: 5 | E22: 2
A23: O;; | C23: Lohd`r ctV 20&21 | F23: [kpksZa dk fooj.k | M23: O;; 04@20 ls 07@20
A24: en | B24: gsM | C24: dqy ;ksx | D24: jkT; fuf/k | E24: dsUnzh; lgk;rk | F24: 2017-18 | G24: 2018-19 | H24: 2019-20 | I24: 08/19 to 03/20 | J24: 04/20 to 07/20 | K24: lEHkkfor O;; 2020&21 | L24: dqy ;ksx | M24: jkT; fuf/k | N24: dsUnzh; lgk;rk
A25: laosru | B25: 1 | C25: =SUM(D25+E25) -> 2384000 | D25: 2384000 | E25: 0 | F25: 3783379 | G25: 4658460 | H25: 4432536 | I25: 2925894 | J25: 289407 | K25: 4652816 | L25: =SUM(J25+K25) -> 4942223 | M25: 289407 | N25: 0
A26: ;k=k O;; | B26: 3 | C26: 0 | D26: 0 | E26: 0 | F26: 0 | G26: 0 | H26: 18750 | I26: 18750 | J26: 0 | K26: 0 | L26: 0 | M26: 0 | N26: 0
A27: fpfdRlk O;; | B27: 4 | C27: 0 | L27: 0 | N27: 0
A28: dk;kZy; O;; | B28: 5 | C28: 0 | L28: 0 | N28: 0
A29: fdjk;k dj jk;fYV | B29: 9 | C29: 0 | L29: 0 | N29: 0
A30: e'khujh lkt lkeku | B30: 20 | C30: 0 | L30: 0 | N30: 0
A31: iqLrdky; | B31: 31 | C31: 0 | L31: 0 | N31: 0
A32: iz;ksx'kkyk | B32: 33 | C32: 0 | L32: 0 | N32: 0
A33: ofnZ;ka | B33: 37 | C33: 0 | L33: 0 | N33: 0
A34: vU; izHkkj | B34: 28 | C34: 0 | L34: 0 | N34: 0
A35: foHkkxh;lsokvksa ij fof'k"V O;; | B35: 57 | C35: 0 | L35: 0 | N35: 0
B37: Developed by- | N37: L-1
B38: Chaturbhuj Jat | F38: प्रधानाचार्य | N38: L-2
B39: Teacher GSSS Chogai | F39: प्रधानाध्यापक | I39: G | J39: M | K39: R | L39: C | M39: S | N39: L-3
F40: व्याख्याता | I40: NG | J40: F | K40: F | L40: W | M40: M | N40: L-4
F41: व्याख्याता शारीरिक शिक्षा | L41: H | N41: L-5
F42: पुस्तकालय अध्यक्ष ग्रेड I | N42: L-6
F43: वरिष्ठ अध्यापक | N43: L-7
F44: वरिष्ठ शारीरिक शिक्षक | N44: L-8
F45: पुस्तकालय अध्यक्ष ग्रेड II | N45: L-9
F46: अध्यापक ग्रेड III | N46: L-10
F47: प्रबोधक | N47: L-11
F48: शारीरिक शिक्षक | N48: L-12
F49: पुस्तकालय अध्यक्ष ग्रेड III | N49: L-13
F50: संस्थापन अधिकारी | N50: L-14
F51: प्रशासनिक अधिकारी | N51: L-15
F52: अतिरिक्त प्रशासनिक अधिकारी | N52: L-16
F53: सहायक प्रशासनिक अधिकारी | N53: L-17
F54: वरिष्ठ सहायक | N54: L-18
F55: कनिष्ठ सहायक | N55: L-19
F56: प्रयोग शाला सहायक | N56: L-20
F57: प्रयोग शाला सेवक | N57: L-21
F58: जमादार | N58: L-22
F59: सहायक कर्मचारी | N59: L-23
F60: ए सी बी ई ओ प्रथम | N60: L-24
F61: सहायक लेखाधिकारी प्रथम
F62: सहायक लेखाधिकारी द्वितीय
F63: कनिष्ठ लेखाकार
F64: अतिरिक्त जिला शिक्षा अधिकारी
F65: मुख्य जिला शिक्षा अधिकारी
F66: संयुक्त निदेशक स्कूल शिक्षा
F67: सी बी ई ओ
F68: प्रबोधक शारीरिक शिक्षक
F69: प्रशिक्षु शिक्षक
F70: व्याख्याता कृषि
F71: कृषि अध्यापक
F72: कृषि प्रमुख
F73: विशेष शिक्षक
F74: ए सी बी ई ओ दवितीय

Sheet P-5 PD
A1: izi=&5¼dsoy iapk;r jkt en gsrq½
A2: v- ihMh- [kkrksa esa gLrkUrfjr jkf'k ,oa mlds mi;ksx dh fLFkfr dk fooj.k
A3: =Profile!$A$44 -> dk;kZy; %& | C3: ='P1'!$C$1 -> eq[; CykWd f'k{kk vf/kdkjh] lexz f'k{kk] chdkusj | I3: =Profile!$A$8 -> ihMh [kkrk la[;k %& | J3: ='rrr 08'!$N$2 -> 762
A4: =Profile!$A$13 -> foHkkx dk uke %& | C4: =Profile!$G$2 -> izkjfEHkd f'k{kk foHkkx | I4: IFMS dksM | J4: ='rrr 08'!$P$4 -> 1451
A5: Ø-l- | B5: futh fu{ksi [kkrk la[;k¼e; lEiw.kZ 'khZ"k lfgr½ ftlesa jkf'k LFkkukUrfjr dh tkrh gSA | C5: [kkrs dk uke | D5: dks"kky; dk uke | E5: foHkkxh;@ xSj foHkkxh; | F5: 01-04-2025 dks izkjfEHkd 'ks"k | G5: =Profile!$C$16 -> 2025-26
G6: iw.kZ 'kh"kZ ftlesa jkf'k gLrkUrfjr dh xbZ ¼ihMh [kkrk l-½ | H6: gLrkUrfjr jkf'k | I6: fnukad 31-08-2025 rd O;; jkf'k | J6: 31-08-2025 dks 'ks"k (6+8-9)
A7: 1 | B7: 2 | C7: 3 | D7: 4 | E7: 5 | F7: 6 | G7: 7 | H7: 8 | I7: 9 | J7: 10
A8: 1 | B8: =J3 -> 762 | C8: futh fu{ksi | D8: chdkusj | E8: foHkkxh; | F8: ='P-14'!$H$9 -> 2607934 | G8: =J3 -> 762 | H8: ='P-14'!$H$10 -> 42754470 | I8: ='P-14'!$H$12 -> 31640346 | J8: =(F8+H8)-I8 -> 13722058
B13: ctV gSM%& | C13: =Profile!$C$3 -> 2202-01-197-16-01 | G13: ='P1'!F11 -> eksgEen vtht HkkVh
G14: ='P1'!F12 -> 9460701805 | I14: gLrk{kj dk;kZy;/;{k
F15: rS;kj drkZ %& | G15: ='P1'!F13 -> gtkjh jke rMZ
G16: ='P1'!F14 -> 9667576332

Sheet P-07
A1: izi=&7
A2: dk;Zy; dk uke& dk;kZy; eq[; CykWd f'k{kk vf/kdkjh] chdkusj ih-Mh-[kkrk la[;k 762
A3: osru en&2202&01&197&16&01
A4: ih-Mh- [kkrs ds 'ks"k dh lwpuk | I4: 01-04-2024 to 31-03-2025
A5: ekax la[;k&24 ys[kken 2202&01&197&16&01 ¼jkT; fuf/k½ vkWfQl vkbZMh 1451
A6: Ø-la- | B6: fooj.k | C6: 12& lgk;rkFkZ vuqnku xSj laosru | H6: 92&lgk;rkFkZ vuqnku | I6: ehM Ms ehy | J6: vU; | K6: egk;ksx dkWye ¼7ls10½
C7: ;k=k O;; | D7: fpfdRlk O;; | E7: dk;kZy; O;; | F7: ofnZ;k | G7: ;ksx | H7: laosru
A8: 1 | B8: 2 | C8: 3 | D8: 4 | E8: 5 | F8: 6 | G8: 7 | H8: 8 | I8: 9 | J8: 10 | K8: 11
A9: 1 | B9: 01-04-2024 dk 'ks"k | C9: =Profile!AO31 -> 255437 | D9: =Profile!AP31 -> 16424 | E9: =Profile!AQ31 -> 54070 | F9: =Profile!AR31 -> 23000 | G9: =C9+D9+E9+F9 -> 348931 | H9: =Profile!AT31 -> 8733197 | I9: ='PD 24-25'!Y697 -> 11579359.82 | J9: ='PD 24-25'!$Z$697 -> -35398 | K9: =G9+H9+I9+J9 -> 20626089.82
A10: 2 | B10: foRrh; o"kZ 2024&25 esa izkIr jkf'k | C10: =Profile!AO32 -> 70000 | D10: =Profile!AP32 -> 0 | E10: =Profile!AQ32 -> 60000 | F10: =Profile!AR32 -> 0 | G10: =C10+D10+E10+F10 -> 130000 | H10: =Profile!AT32 -> 74823336 | I10: ='PD 24-25'!Y698 -> 3617000 | J10: ='PD 24-25'!Z698 -> 9275001 | K10: =G10+H10+I10+J10 -> 87845337
A11: 3 | B11: ;ksx | C11: =SUM(C9:C10) -> 325437 | D11: 16424 | E11: 114070 | F11: 23000 | G11: =C11+D11+E11+F11 -> 478931 | H11: 83556533 | I11: =SUM(I9:I10) -> 15196359.82 | J11: 9239603 | K11: 108471426.8
A12: 4 | B12: foRrh; o"kZ 2024&25 esa O;; jkf'k | C12: =Profile!AO34 -> 0 | D12: =Profile!AP34 -> 0 | E12: =Profile!AQ34 -> 87587 | F12: =Profile!AR34 -> 0 | G12: =C12+D12+E12+F12 -> 87587 | H12: =Profile!$AT$34 -> 80948599 | I12: ='PD 24-25'!Y696 -> 3225354 | J12: ='PD 24-25'!Z696 -> 4279360 | K12: 88540900
A13: 5 | B13: forh; o"kZ 2024&2025 esa vU; lhchbZvks dks gLrkUrfjr@izkIr dqy jkf'k | C13: 0 | D13: 0 | E13: 0 | F13: 0 | G13: =C13+D13+E13+F13 -> 0 | H13: 0 | I13: 0 | J13: 0 | K13: 0
A14: 6 | B14: 31-03-2025 dks 'ks"k jkf'k | C14: =C11-C12+C13 -> 325437 | D14: =D11-D12+D13 -> 16424 | E14: 26483 | F14: 23000 | G14: =G11-G12+G13 -> 391344 | H14: =H11-H12+H13 -> 2607934 | I14: =I11-I12+I13 -> 11971005.82 | J14: 4960243 | K14: =G14+H14+I14+J14 -> 19930526.82
E16: ='P-5 PD'!G13 -> eksgEen vtht HkkVh
E17: ='P-5 PD'!G14 -> 9460701805 | H17: gLrk{kj dk;kZy;/;{k
D18: ='P-5 PD'!F15 -> rS;kj drkZ %& | E18: ='P-5 PD'!G15 -> gtkjh jke rMZ
E19: ='P-5 PD'!G16 -> 9667576332

Sheet P-14
A1: izi=&14
A2: =Profile!$A$1 -> dk;kZy;& | C2: =Profile!$C$1 -> eq[; CykWd f'k{kk vf/kdkjh] lexz f'k{kk] chdkusj
A3: =Profile!$A$13 -> foHkkx dk uke %& | C3: =Profile!$G$2 -> izkjfEHkd f'k{kk foHkkx | F3: =Profile!$A$8 -> ihMh [kkrk la[;k %& | H3: =Profile!$C$8 -> 762
A4: ih-Mh- [kkrs ds 'ks"k dh lwpuk | I4: 01-04-2025 TO 31-08-2025
B5: ctV gSM%& | C5: =Profile!$C$3 -> 2202-01-197-16-01 | G5: =Profile!$F$3 -> vkWfQl vkbZMh | H5: =Profile!$F$4 -> 1451
A6: Ø-la- | B6: fooj.k | C6: 12& lgk;rkFkZ vuqnku xSj laosru | H6: 92&lgk;rkFkZ vuqnku | I6: ehM Ms ehy | J6: vU; | K6: egk;ksx dkWye ¼7ls10½
C7: ;k=kk O;; | D7: fpfdRlk O;; | E7: dk;kZy; O;; | F7: ofnZ;k | G7: ;ksx | H7: laosru
A8: 1 | B8: 2 | C8: 3 | D8: 4 | E8: 5 | F8: 6 | G8: 7 | H8: 8 | I8: 9 | J8: 10 | K8: 11
A9: 1 | B9: 01-04-2025 dk 'ks"k | C9: ='P-07'!C14 -> 325437 | D9: ='P-07'!D14 -> 16424 | E9: ='P-07'!E14 -> 26483 | F9: ='P-07'!F14 -> 23000 | G9: ='P-07'!G14 -> 391344 | H9: ='P-07'!H14 -> 2607934 | I9: ='P-07'!I14 -> 11971005.82 | J9: ='P-07'!J14 -> 4960243 | K9: ='P-07'!K14 -> 19930526.82
A10: 2 | B10: foRrh; o"kZ 2025&26 esa izkIr jkf'k | C10: =Profile!AL23 -> 0 | D10: =Profile!AM23 -> 0 | E10: =Profile!AN23 -> 20000 | F10: =Profile!AO23 -> 0 | G10: =C10+D10+E10+F10 -> 20000 | H10: =Profile!$AQ$23 -> 42754470 | I10: ='pd 31.08.25'!X255 -> 0 | J10: ='pd 31.08.25'!Y255 -> 0 | K10: =G10+H10+I10+J10 -> 42774470
A11: 3 | B11: ;ksx | C11: =SUM(C9:C10) -> 325437 | D11: =SUM(D9:D10) -> 16424 | E11: =SUM(E9:E10) -> 46483 | F11: =SUM(F9:F10) -> 23000 | G11: =C11+D11+E11+F11 -> 411344 | H11: =SUM(H9:H10) -> 45362404 | I11: =SUM(I9:I10) -> 11971005.82 | J11: =SUM(J9:J10) -> 4960243 | K11: 62704996.82
A12: 4 | B12: foRrh; o"kZ 2025&26 esa O;; jkf'k | C12: =Profile!AL25 -> 0 | D12: =Profile!AM25 -> 0 | E12: =Profile!AN25 -> 51347 | F12: =Profile!AO25 -> 0 | G12: =C12+D12+E12+F12 -> 51347 | H12: =Profile!$AQ$25 -> 31640346 | I12: ='pd 31.08.25'!X253 -> 842695 | J12: ='pd 31.08.25'!Y253 -> 2792674 | K12: 35327062
A13: 5 | B13: forh; o"kZ 2024&2025 esa vU; lhchbZvks dks gLrkUrfjr@izkIr dqy jkf'k | C13: 0 | D13: 0 | E13: 0 | F13: 0 | G13: =C13+D13+E13+F13 -> 0 | H13: 0 | I13: 0 | J13: 0 | K13: 0
A14: 6 | B14: 31-08-2025 dks 'ks"k jkf'k | C14: =C11-C12 -> 325437 | D14: =D11-D12 -> 16424 | E14: =E11-E12 -> -4864 | F14: =F11-F12 -> 23000 | G14: =C14+D14+E14+F14 -> 359997 | H14: =H11-H12 -> 13722058 | I14: =I11-I12+I13 -> 11128310.82 | J14: 2167569 | K14: =G14+H14+I14+J14 -> 27377934.82
D16: ='P-07'!E16 -> eksgEen vtht HkkVh
D17: ='P-07'!E17 -> 9460701805 | G17: gLrk{kj dk;kZy;/;{k
C18: ='P-07'!$D$18 -> rS;kj drkZ %& | D18: ='P-07'!E18 -> gtkjh jke rMZ
D19: ='P-07'!E19 -> 9667576332

Sheet PD 24-25
A1: CBEO, BIKANER
A2: PD BUDGET 2024-25 01-04-2024 TO 31-03-2025
A3: s.no. | B3: BT.NO /LATTEAR NO . | C3: DATE | D3: DEEO | E3: RECEIPT | F3: 2202 | G3: 2202 | H3: 2202 | I3: 2202 | J3: 2202 | K3: SSA | L3: MDM | S3: other ex.
F4: SALARY | G4: MEDICAL | H4: TA | I4: VARDI | J4: OE | L4: COOK | M4: iz'kklfud | N4: COLLECATING | O4: MONITRAING | P4: GAS | Q4: COOCK CUM HELPER | R4: crZu Ø; | T4: MILK | U4: SMSA | V4: TOTAL | W4: opening balance | X4: recept | Y4: tot | Z4: expes
A5: BALANCE | D5: 858812 | E5: 0 | F5: 8733197 | G5: 16424 | H5: 255437 | I5: 23000 | J5: 54070 | K5: 0 | L5: 850950.32 | M5: 29732.5 | N5: 55000 | O5: 25000 | P5: 773881 | Q5: 4436508 | R5: 5440 | S5: 691220 | T5: 4711628 | U5: -894210 | V5: 24891666.82 | W5: 110757056.8 | X5: ='[1]2020-21'!X276 -> 0 | Y5: =SUM(W5:X5) -> 110757056.8 | Z5: 0 | AA5: =Y5-Z5 -> 110757056.8
B6: 403/10/04//19 | C6: 2024-04-01 | U6: 102676 | V6: =SUM(F6:U6) -> 102676 | W6: =AA5 -> 110757056.8 | X6: 178700 | Y6: =SUM(W6:X6) -> 110935756.8 | Z6: 0 | AA6: =Y6-Z6 -> 110935756.8
B7: 401/8/4/19 | C7: 2024-04-02 | F7: 191040 | V7: =SUM(F7:U7) -> 191040 | W7: =AA6 -> 110935756.8 | X7: 244819 | Y7: 111180575.8 | Z7: 0 | AA7: 111180575.8
B8: 402/9/4/19 | C8: 2024-04-03 | U8: 185243 | V8: 185243 | W8: 111180575.8 | Y8: 111180575.8 | Z8: 194629 | AA8: 110985946.8
B9: 405/18/4/19 | C9: 2024-04-04 | F9: 380607 | V9: 380607 | W9: 110985946.8 | Y9: 110985946.8 | Z9: 3493200 | AA9: 107492746.8
B10: 40622/4/19 | C10: 2024-04-05 | F10: 157878 | V10: 157878 | W10: 107492746.8 | Y10: 107492746.8 | Z10: 379667 | AA10: 107113079.8
B11: 404/15/4/19 | C11: 2024-04-06 | F11: 72471 | V11: 72471 | W11: 107113079.8 | Y11: 107113079.8 | Z11: 162810 | AA11: 106950269.8
B12: 409/30/4/19 | C12: 2024-04-07 | F12: 1473414 | V12: 1473414 | W12: 106950269.8 | X12: 210160 | Y12: 107160429.8 | Z12: 40775 | AA12: 107119654.8
B13: 40730/4/19 | C13: 2024-04-08 | F13: 452343 | V13: 452343 | W13: 107119654.8 | Y13: 107119654.8 | Z13: 0 | AA13: 107119654.8
B14: 408/30/4/19 | C14: 2024-04-09 | F14: 162729 | V14: 162729 | W14: 107119654.8 | Y14: 107119654.8 | Z14: 824810 | AA14: 106294844.8
C15: 2024-04-10 | F15: 2231151 | V15: 2231151 | W15: 106294844.8 | Y15: 106294844.8 | Z15: 4310492 | AA15: 101984352.8
B16: 411/2/5/19 | C16: 2024-04-11 | F16: 52626 | V16: 52626 | W16: 101984352.8 | Y16: 101984352.8 | Z16: 162810 | AA16: 101821542.8
B17: 410/1/5/19 | C17: 2024-04-12 | F17: 154791 | V17: 154791 | W17: 101821542.8 | Y17: 101821542.8 | Z17: 1804157 | AA17: 100017385.8
B18: 413/9/5/19 | C18: 2024-04-13 | F18: 52626 | V18: 52626 | W18: 100017385.8 | Y18: 100017385.8 | Z18: 320733 | AA18: 99696652.82
B19: 416/13/5/19 | C19: 2024-04-14 | J19: 850 | M19: 0 | V19: 850 | W19: 99696652.82 | X19: 4426074 | Y19: 104122726.8 | Z19: 0 | AA19: 104122726.8
B20: 412/9/5/19 | C20: 2024-04-15 | U20: 102676 | V20: 102676 | W20: 104122726.8 | Y20: 104122726.8 | Z20: 145868 | AA20: 103976858.8
B21: 417/13/5/19 | C21: 2024-04-16 | F21: 191040 | V21: 191040 | W21: 103976858.8 | Y21: 103976858.8 | Z21: 190421 | AA21: 103786437.8
B22: 421/15/5/19 | C22: 2024-04-17 | U22: 185243 | V22: 185243 | W22: 103786437.8 | Y22: 103786437.8 | Z22: 3732346 | AA22: 100054091.8
B23: 420/15/5/19 | C23: 2024-04-18 | F23: 1510660 | V23: 1510660 | W23: 100054091.8 | Y23: 100054091.8 | Z23: 162810 | AA23: 99891281.82
B24: 419/15/5/19 | C24: 2024-04-19 | F24: 1576712 | V24: 1576712 | W24: 99891281.82 | Y24: 99891281.82 | Z24: 145868 | AA24: 99745413.82
B25: 415/10/5/19 | C25: 2024-04-20 | F25: 188307 | V25: 188307 | W25: 99745413.82 | Y25: 99745413.82 | Z25: 3335250 | AA25: 96410163.82
B26: 418/13/5/19 | C26: 2024-04-21 | F26: 569564 | V26: 569564 | W26: 96410163.82 | Y26: 96410163.82 | Z26: 136073 | AA26: 96274090.82
C27: 2024-04-22 | J27: 3628 | M27: 0 | V27: 3628 | W27: 96274090.82 | Y27: 96274090.82 | Z27: 379667 | AA27: 95894423.82
B28: 422/24/5/19 | C28: 2024-04-23 | F28: 54058 | V28: 54058 | W28: 95894423.82 | Y28: 95894423.82 | Z28: 141035 | AA28: 95753388.82
B29: 426/4/6/19 | C29: 2024-04-24 | J29: 2310 | M29: 0 | V29: 2310 | W29: 95753388.82 | Y29: 95753388.82 | Z29: 125323 | AA29: 95628065.82
B30: 436/11/6/19 | C30: 2024-04-25 | J30: 2500 | V30: 2500 | W30: 95628065.82 | Y30: 95628065.82 | Z30: 602165 | AA30: 95025900.82
B31: 434/10/6/19 | C31: 2024-04-26 | F31: 319969 | V31: 319969 | W31: 95025900.82 | Y31: 95025900.82 | Z31: 9870 | AA31: 95016030.82
B32: 439/12/6/19 | C32: 2024-04-27 | F32: 10904 | V32: 10904 | W32: 95016030.82 | Y32: 95016030.82 | Z32: 11340 | AA32: 95004690.82
B33: 431/10/6/19 | C33: 2024-04-28 | F33: 6774 | V33: 6774 | W33: 95004690.82 | Y33: 95004690.82 | Z33: 33488 | AA33: 94971202.82
B34: 427/10/6/19 | C34: 2024-04-29 | F34: 1968857 | V34: 1968857 | W34: 94971202.82 | Y34: 94971202.82 | Z34: 58934 | AA34: 94912268.82
B35: 428/10/6/19 | C35: 2024-04-30 | F35: 9813 | V35: 9813 | W35: 94912268.82 | X35: 1158552 | Y35: 96070820.82 | Z35: 33823 | AA35: 96036997.82
C36: 2024-05-01 | D36: VETAN director 1099 | E36: 25000000
B37: 443/17/6/19 | C37: 2024-05-02 | F37: 17990 | V37: 17990 | W37: =AA35 -> 96036997.82 | X37: 2500000 | Y37: 98536997.82 | Z37: 760765 | AA37: 97776232.82
B38: 429/10/6/19 | C38: 2024-05-03 | F38: 7243 | V38: 7243 | W38: 97776232.82 | Y38: 97776232.82 | Z38: 3709709 | AA38: 94066523.82
B39: 423/1/6/19 | C39: 2024-05-04 | F39: 33800 | V39: 33800 | W39: 94066523.82 | Y39: 94066523.82 | Z39: 145868 | AA39: 93920655.82
C40: 2024-05-05 | F40: 33800 | V40: 33800 | W40: 93920655.82 | Y40: 93920655.82 | Z40: 379667 | AA40: 93540988.82
B41: 414/11/5/19 | C41: 2024-05-06 | F41: 33800 | V41: 33800 | W41: 93540988.82 | Y41: 93540988.82 | Z41: 15750 | AA41: 93525238.82
B42: 425/3/6/19 | C42: 2024-05-07 | F42: 33800 | V42: 33800 | W42: 93525238.82 | Y42: 93525238.82 | Z42: 179100 | AA42: 93346138.82
B43: 424/1/6/19 | C43: 2024-05-08 | F43: 70215 | V43: 70215 | W43: 93346138.82 | Y43: 93346138.82 | Z43: 95144 | AA43: 93250994.82
B44: 440/12/6/19 | C44: 2024-05-09 | F44: 11940 | V44: 11940 | W44: 93250994.82 | Y44: 93250994.82 | Z44: 47572 | AA44: 93203422.82
B45: 444/17/6/19 | C45: 2024-05-10 | F45: 11940 | V45: 11940 | W45: 93203422.82 | Y45: 93203422.82 | Z45: 679974 | AA45: 92523448.82
B46: 445/20/6/19 | C46: 2024-05-11 | F46: 11940 | V46: 11940 | W46: 92523448.82 | Y46: 92523448.82 | Z46: 48761 | AA46: 92474687.82
B47: 446/20/6/19 | C47: 2024-05-12 | F47: 47570 | V47: 47570 | W47: 92474687.82 | Y47: 92474687.82 | Z47: 48761 | AA47: 92425926.82
B48: 438/12/6/19 | C48: 2024-05-13 | F48: 16900 | V48: 16900 | W48: 92425926.82 | Y48: 92425926.82 | Z48: 48761 | AA48: 92377165.82
B49: 433/10/6/19 | C49: 2024-05-14 | F49: 16900 | V49: 16900 | W49: 92377165.82 | Y49: 92377165.82 | Z49: 188607 | AA49: 92188558.82
B50: 435/12/6/19 | C50: 2024-05-15 | F50: 33800 | V50: 33800 | W50: 92188558.82 | Y50: 92188558.82 | Z50: 62500 | AA50: 92126058.82
B51: 447/8/7/19 | C51: 2024-05-16 | F51: 33800 | V51: 33800 | W51: 92126058.82 | Y51: 92126058.82 | Z51: 84101 | AA51: 92041957.82
B52: 432/10/6/19 | C52: 2024-05-17 | F52: 33800 | V52: 33800 | W52: 92041957.82 | Y52: 92041957.82 | Z52: 1157552 | AA52: 90884405.82
B53: 448/8/7/19 | C53: 2024-05-18 | F53: 33800 | V53: 33800 | W53: 90884405.82 | Y53: 90884405.82 | Z53: 635400 | AA53: 90249005.82
B54: 449/9/7/19 | C54: 2024-05-19 | F54: 33800 | V54: 33800 | W54: 90249005.82 | Y54: 90249005.82 | Z54: 184743 | AA54: 90064262.82
C55: 2024-05-20 | F55: 33800 | V55: 33800 | W55: 90064262.82 | Y55: 90064262.82 | Z55: 179100 | AA55: 89885162.82
B56: 450/12/7/19 | C56: 2024-05-21 | F56: 436843 | V56: 436843 | W56: 89885162.82 | Y56: 89885162.82 | Z56: 139420 | AA56: 89745742.82
B57: 464/27/7/19 | C57: 2024-05-22 | F57: 4457 | V57: 4457 | W57: 89745742.82 | Y57: 89745742.82 | Z57: 3390187 | AA57: 86355555.82
B58: 462/19/7/19 | C58: 2024-05-23 | F58: 20758 | V58: 20758 | W58: 86355555.82 | Y58: 86355555.82 | Z58: 1016432 | AA58: 85339123.82
B59: 468/25/7/19 | C59: 2024-05-24 | F59: 27300 | V59: 27300 | W59: 85339123.82 | Y59: 85339123.82 | Z59: 492231 | AA59: 84846892.82
C60: 2024-05-25 | F60: 194488 | V60: 194488 | W60: 84846892.82 | Y60: 84846892.82 | Z60: 209186 | AA60: 84637706.82
C61: 2024-05-26 | F61: 10400 | V61: 10400 | W61: 84637706.82 | Y61: 84637706.82 | Z61: 10494 | AA61: 84627212.82
C62: 2024-05-27 | F62: 10400 | V62: 10400 | W62: 84627212.82 | Y62: 84627212.82 | Z62: 62771 | AA62: 84564441.82
C63: 2024-05-28 | F63: 10400 | V63: 10400 | W63: 84564441.82 | Y63: 84564441.82 | Z63: 48448 | AA63: 84515993.82
C64: 2024-05-29 | F64: 10400 | V64: 10400 | W64: 84515993.82 | Y64: 84515993.82 | Z64: 418453 | AA64: 84097540.82
C65: 2024-05-30 | F65: 10609 | V65: 10609 | W65: 84097540.82 | X65: 10000000 | Y65: 94097540.82 | Z65: 6818 | AA65: 94090722.82
C66: 2024-05-31 | F66: 20322 | V66: 20322 | W66: 94090722.82 | X66: 200000 | Y66: 94290722.82 | Z66: 0 | AA66: 94290722.82
C67: 2024-06-01 | F67: 4829 | V67: 4829 | W67: 94290722.82 | Y67: 94290722.82 | Z67: 83200 | AA67: 94207522.82
C68: 2024-06-02 | F68: 15216 | V68: 15216 | W68: =AA67 -> 94207522.82 | Y68: 94207522.82 | Z68: 7606 | AA68: 94199916.82
C69: 2024-06-03 | F69: 20800 | V69: 20800 | W69: =AA68 -> 94199916.82 | Y69: 94199916.82 | Z69: 33488 | AA69: 94166428.82
C70: 2024-06-04 | F70: 16900 | V70: 16900 | W70: 94166428.82 | Y70: 94166428.82 | Z70: 96351 | AA70: 94070077.82
C71: 2024-06-05 | F71: 44943 | V71: 44943 | W71: 94070077.82 | Y71: 94070077.82 | Z71: 67392 | AA71: 94002685.82
C72: 2024-06-06 | F72: 54600 | V72: =SUM(F72:U72) -> 54600 | W72: 94002685.82 | Z72: 179100 | AA72: -179100
C73: 2024-06-07 | F73: 122701 | V73: 122701 | W73: -179100 | AA73: 0
C74: 2024-06-08 | F74: 21891 | V74: 21891 | W74: 0 | AA74: 0
C75: 2024-06-09 | F75: 312193 | V75: 312193 | W75: 0 | AA75: 0
C76: 2024-06-10 | F76: 27300 | V76: 27300 | W76: 0 | AA76: 0
C77: 2024-06-11 | F77: 27300 | V77: 27300 | W77: 0 | AA77: 0
C78: 2024-06-12 | F78: 27300 | V78: 27300 | W78: 0 | AA78: 0
C79: 2024-06-13 | F79: 27300 | V79: 27300 | W79: 0 | AA79: 0
C80: 2024-06-14 | F80: 16732 | V80: 16732 | W80: 0 | AA80: 0
C81: 2024-06-15 | F81: 22268 | V81: 22268 | W81: 0 | AA81: 0
C82: 2024-06-16 | F82: 27300 | V82: 27300 | W82: 0 | AA82: 0
C83: 2024-06-17 | F83: 27300 | V83: 27300 | W83: 0 | AA83: 0
C84: 2024-06-18 | F84: 27300 | V84: 27300 | W84: 0 | AA84: 0
C85: 2024-06-19 | F85: 20423 | V85: 20423 | W85: 0 | AA85: 0
C86: 2024-06-20 | F86: 27300 | V86: 27300 | W86: 0 | AA86: 0
C87: 2024-06-21 | F87: 27300 | V87: 27300 | W87: 0 | AA87: 0
C88: 2024-06-22 | F88: 27300 | V88: 27300 | W88: 0 | AA88: 0
C89: 2024-06-23 | F89: 27300 | V89: 27300 | W89: 0 | AA89: 0
C90: 2024-06-24 | F90: 16900 | V90: 16900 | W90: 0 | AA90: 0
C91: 2024-06-25 | F91: 16900 | V91: 16900 | W91: 0 | AA91: 0
C92: 2024-06-26 | F92: 16900 | V92: 16900 | W92: 0 | AA92: 0
C93: 2024-06-27 | F93: 16900 | V93: 16900 | W93: 0 | AA93: 0
C94: 2024-06-28 | F94: 10358 | V94: 10358 | W94: 0 | AA94: 0
C95: 2024-06-29 | D95: samasa vetan adpc 33953 | E95: 1500000
C96: 2024-06-30 | F96: 20800 | V96: 20800 | W96: =AA94 -> 0 | AA96: 0
C97: 2024-07-01 | F97: 20800 | V97: 20800 | W97: 0 | AA97: 0
C98: 2024-07-02 | F98: 20800 | V98: 20800 | W98: 0 | AA98: 0
C99: 2024-07-03 | F99: 20800 | V99: 20800 | W99: 0 | AA99: 0
C100: 2024-07-04 | F100: 11742 | V100: 11742 | W100: 0 | AA100: 0
C101: 2024-07-05 | F101: 4829 | V101: 4829 | W101: 0 | AA101: 0
C102: 2024-07-06 | F102: 6374 | V102: 6374 | W102: 0 | AA102: 0
C103: 2024-07-07 | F103: 16732 | V103: 16732 | W103: 0 | AA103: 0
C104: 2024-07-08 | F104: 11700 | V104: 11700 | W104: 0 | AA104: 0
C105: 2024-07-09 | F105: 16900 | V105: 16900 | W105: 0 | AA105: 0
C106: 2024-07-10 | F106: 16900 | V106: 16900 | W106: 0 | AA106: 0
C107: 2024-07-11 | F107: 16900 | V107: 16900 | W107: 0 | AA107: 0
C108: 2024-07-12 | F108: 16900 | V108: 16900 | W108: 0 | AA108: 0
C109: 2024-07-13 | F109: 9268 | V109: 9268 | W109: 0 | AA109: 0
C110: 2024-07-14 | F110: 9813 | V110: 9813 | W110: 0 | AA110: 0
C111: 2024-07-15 | F111: 85644 | V111: 85644 | W111: 0 | AA111: 0
C112: 2024-07-16 | F112: 33800 | V112: 33800 | W112: 0 | AA112: 0
C113: 2024-07-17 | F113: 33800 | V113: 33800 | W113: 0 | AA113: 0
C114: 2024-07-18 | F114: 31200 | V114: 31200 | W114: 0 | AA114: 0
C115: 2024-07-19 | F115: 16900 | V115: 16900 | W115: 0 | AA115: 0
C116: 2024-07-20 | F116: 27300 | V116: 27300 | W116: 0 | AA116: 0
C117: 2024-07-21 | F117: 20800 | V117: 20800 | W117: 0 | AA117: 0
C118: 2024-07-22 | F118: 27300 | V118: 27300 | W118: 0 | AA118: 0
C119: 2024-07-23 | F119: 16900 | V119: 16900 | W119: 0 | AA119: 0
C120: 2024-07-24 | F120: 61100 | V120: 61100 | W120: 0 | AA120: 0
C121: 2024-07-25 | F121: 9268 | V121: 9268 | W121: 0 | AA121: 0
C122: 2024-07-26 | F122: 31200 | V122: 31200 | W122: 0 | AA122: 0
C123: 2024-07-27 | F123: 31200 | V123: 31200 | W123: 0 | AA123: 0
C124: 2024-07-28 | F124: 31200 | V124: 31200 | W124: 0 | AA124: 0
C125: 2024-07-29 | F125: 18787 | V125: 18787 | W125: 0 | AA125: 0
C126: 2024-07-30 | F126: 16900 | V126: 16900 | W126: 0 | AA126: 0
C127: 2024-07-31 | F127: 16900 | V127: 16900 | W127: 0 | AA127: 0
C128: 2024-08-01 | F128: 16900 | V128: 16900 | W128: 0 | AA128: 0
C129: 2024-08-02 | F129: 16900 | V129: 16900 | W129: 0 | AA129: 0
C130: 2024-08-03 | F130: 22471 | V130: 22471 | W130: 0 | AA130: 0
C131: 2024-08-04 | F131: 27300 | V131: 27300 | W131: 0 | AA131: 0
C132: 2024-08-05 | F132: 8177 | V132: 8177 | W132: 0 | AA132: 0
C133: 2024-08-06 | F133: 20800 | V133: 20800 | W133: 0 | AA133: 0
C134: 2024-08-07 | F134: 27300 | V134: 27300 | W134: =AA133 -> 0 | AA134: 0
C135: 2024-08-08 | F135: 16900 | V135: 16900 | W135: 0 | AA135: 0
C136: 2024-08-09 | F136: 16900 | V136: 16900 | W136: 0 | AA136: 0
C137: 2024-08-10 | F137: 16900 | V137: =SUM(F137:U137) -> 16900 | W137: 0 | AA137: 0
C138: 2024-08-11 | F138: 9813 | V138: 9813 | W138: 0 | AA138: 0
C139: 2024-08-12 | F139: 29439 | V139: 29439 | W139: 0
C140: 2024-08-13 | F140: 50700 | V140: 50700 | W140: 0
C141: 2024-08-14 | F141: 53300 | V141: 53300 | W141: 0
C142: 2024-08-15 | F142: 61100 | V142: 61100 | W142: 0
C143: 2024-08-16 | F143: 10400 | V143: 10400 | W143: 0
C144: 2024-08-17 | F144: 10400 | V144: 10400 | W144: 0
C145: 2024-08-18 | F145: 16900 | V145: 16900 | W145: 0
C146: 2024-08-19 | F146: 16900 | V146: 16900 | W146: 0
C147: 2024-08-20 | F147: 33800 | V147: 33800 | W147: 0
C148: 2024-08-21 | F148: 16900 | V148: 16900 | W148: 0
C149: 2024-08-22 | F149: 24746 | V149: 24746 | W149: 0
C150: 2024-08-23 | F150: 33800 | V150: 33800 | W150: 0
C151: 2024-08-24 | F151: 205209 | V151: 205209 | W151: 0
C152: 2024-08-25 | F152: 54058 | V152: 54058 | W152: 0
C153: 2024-08-26 | F153: 467487 | V153: 467487 | W153: 0
C154: 2024-08-27 | F154: 202980 | V154: 202980 | W154: 0
C155: 2024-08-28 | U155: 185243 | V155: 185243 | W155: 0
C156: 2024-08-29 | F156: 1152766 | V156: 1152766 | W156: 0
C157: 2024-08-30 | F157: 1250441 | V157: 1250441 | W157: 0
A158: 0 | C158: 2024-08-31 | F158: 122958 | V158: 122958 | W158: 0
C159: 2024-09-01 | F159: 169844 | V159: 169844 | W159: 0
C160: 2024-09-02 | F160: 486161 | V160: 486161 | W160: 0
C161: 2024-09-03 | F161: 445745 | V161: 445745 | W161: 0
C162: 2024-09-04 | F162: 16900 | V162: 16900 | W162: 0
C163: 2024-09-05 | F163: 10400 | V163: 10400 | W163: 0
C164: 2024-09-06 | F164: 20800 | V164: 20800 | W164: 0
C165: 2024-09-07 | F165: 20800 | V165: 20800 | W165: 0
C166: 2024-09-08 | F166: 10400 | V166: 10400 | W166: 0
C167: 2024-09-09 | J167: 9420 | V167: 9420 | W167: 0
C168: 2024-09-10 | F168: 10400 | V168: 10400 | W168: 0
C169: 2024-09-11 | F169: 4829 | V169: 4829 | W169: 0
C170: 2024-09-12 | F170: 4026 | V170: 4026 | W170: 0
C171: 2024-09-13 | F171: 117605 | V171: 117605 | W171: 0
C172: 2024-09-14 | F172: 439992 | V172: 439992 | W172: 0
C173: 2024-09-15 | F173: 5368 | V173: 5368 | W173: 0
C174: 2024-09-16 | F174: 71426 | V174: 71426 | W174: 0
C175: 2024-09-17 | F175: 27300 | V175: 27300 | W175: 0
C176: 2024-09-18 | F176: 10400 | V176: 10400 | W176: 0
C177: 2024-09-19 | F177: 10400 | V177: 10400 | W177: 0
C178: 2024-09-20 | F178: 10400 | V178: 10400 | W178: 0
C179: 2024-09-21 | F179: 10400 | V179: 10400 | W179: 0
C180: 2024-09-22 | F180: 10400 | V180: 10400 | W180: 0
C181: 2024-09-23 | F181: 61100 | V181: 61100 | W181: 0
C182: 2024-09-24 | F182: 27300 | V182: 27300 | W182: 0
C183: 2024-09-25 | F183: 54058 | V183: 54058 | W183: 0
C184: 2024-09-26 | F184: 399985 | V184: 399985 | W184: 0
C185: 2024-09-27 | U185: 31100 | V185: 31100 | W185: 0
C186: 2024-09-28 | U186: 7216 | V186: 7216 | W186: 0
C187: 2024-09-29 | U187: 73380 | V187: 73380 | W187: 0
C188: 2024-09-30 | F188: 27300 | V188: 27300 | W188: 0
C189: 2024-10-01 | F189: 27300 | V189: 27300 | W189: 0
C190: 2024-10-02 | F190: 27300 | V190: 27300 | W190: 0
C191: 2024-10-03 | F191: 10400 | V191: 10400 | W191: 0
C192: 2024-10-04 | F192: 27300 | V192: 27300 | W192: 0
C193: 2024-10-05 | F193: 66297 | V193: 66297 | W193: 0
C194: 2024-10-06 | F194: 5452 | V194: 5452 | W194: 0
C195: 2024-10-07 | F195: 68101 | V195: 68101 | W195: 0
C196: 2024-10-08 | F196: 33800 | V196: 33800 | W196: 0
C197: 2024-10-09 | F197: 33800 | V197: 33800 | W197: 0
C198: 2024-10-10 | F198: 33800 | V198: 33800 | W198: =AA197 -> 0
C199: 2024-10-11 | F199: 33800 | V199: 33800 | W199: 0
C200: 2024-10-12 | F200: 33800 | V200: 33800 | W200: 0
... 502 more rows

Sheet pd 31.08.25
A1: CBEO, BIKANER
A2: PD BUDGET 2025-26 01-04-2025 TO 31-08-2025
A3: s.no. | B3: BT.NO /LATTEAR NO . | C3: DATE | D3: DEEO | E3: RECEIPT | F3: 2202 | G3: 2202 | H3: 2202 | I3: 2202 | J3: 2202 | K3: SSA | L3: MDM | S3: other ex.
F4: SALARY | G4: MEDICAL | H4: TA | I4: VARDI | J4: OE | L4: COOK | M4: iz'kklfud | N4: COLLECATING | O4: MONITRAING | P4: GAS | Q4: COOCK CUM HELPER | R4: crZu Ø; | T4: MILK | U4: SMSA | V4: TOTAL
A5: BALANCE | D5: 858812 | F5: 2607934 | G5: 16424 | H5: 325437 | I5: 23000 | J5: 26483 | K5: 0 | L5: 850950.32 | M5: 13379.5 | N5: 55000 | O5: 25000 | P5: 773881 | Q5: 4436508 | R5: 5440 | S5: 691220 | T5: 5119627 | U5: 4101431 | V5: 19930526.82
C6: 2025-04-09 | U6: 376317 | V6: =SUM(F6:U6) -> 376317
C7: 2025-04-09 | F7: 23880 | V7: =SUM(F7:U7) -> 23880
C8: 2025-04-09 | F8: 1455814 | V8: 1455814
C9: 2025-04-09 | F9: 862864 | V9: 862864
C10: 2025-04-09 | F10: 1360882 | V10: 1360882
C11: 2025-04-09 | F11: 273600 | V11: 273600
C12: 2025-04-09 | F12: 205000 | V12: 205000
C13: 2025-04-09 | F13: 489018 | V13: 489018
C14: 2025-04-09 | F14: 255135 | V14: 255135
C15: 2025-04-09 | F15: 46600 | V15: 46600
C16: 2025-04-09 | F16: 76498 | V16: 76498
C17: 2025-04-09 | F17: 482661 | V17: 482661
C18: 2025-04-09 | F18: 58671 | V18: 58671
C19: 2025-04-09 | F19: 27545 | V19: 27545
C20: 2025-04-09 | F20: 59300 | V20: 59300
C21: 2025-04-09 | U21: 159134 | V21: 159134
C22: 2025-04-09 | F22: 23880 | V22: 23880
C23: 2025-04-09 | F23: 65985 | V23: 65985
C24: 2025-04-09 | F24: 79500 | V24: 79500
C25: 2025-04-09 | F25: 16900 | V25: 16900
C26: 2025-04-09 | F26: 16900 | V26: 16900
C27: 2025-04-09 | F27: 14719 | V27: 14719
C28: 2025-04-09 | F28: 16900 | V28: 16900
C29: 2025-04-09 | F29: 22000 | V29: 22000
C30: 2025-04-09 | F30: 22000 | V30: 22000
C31: 2025-04-09 | F31: 5738 | V31: 5738
C32: 2025-04-09 | F32: 10400 | V32: 10400
C33: 2025-04-09 | F33: 1923-04-09 | V33: 8500
C34: 2025-04-09 | F34: 93100 | V34: 93100
C35: 2025-04-09 | F35: 665809 | V35: 665809
C36: 2025-04-09 | U36: 376317 | V36: 376317
C37: 2025-04-09 | F37: 23880 | V37: 23880
C38: 2025-04-09 | F38: 668836 | V38: 668836
C39: 2025-04-09 | F39: 309109 | V39: 309109
C40: 2025-04-09 | F40: 1738745 | V40: 1738745
C41: 2025-04-09 | F41: 1035843 | V41: 1035843
C42: 2025-04-09 | F42: 22000 | V42: 22000
C43: 2025-04-09 | F43: 98572 | V43: 98572
C44: 2025-04-09 | F44: 337946 | V44: 337946
C45: 2025-04-09 | F45: 52500 | V45: 52500
C46: 2025-04-09 | F46: 225535 | V46: 225535
C47: 2025-04-09 | F47: 482661 | V47: 482661
C48: 2025-04-09 | F48: 23700 | V48: 23700
C49: 2025-04-09 | F49: 23700 | V49: 23700
C50: 2025-04-09 | F50: 23700 | V50: 23700
C51: 2025-04-09 | M51: 711 | V51: 711
C52: 2025-04-09 | M52: 450 | V52: 450
C53: 2025-04-09 | U53: 159134 | V53: 159134
C54: 2025-04-09 | F54: 59300 | V54: 59300
C55: 2025-04-09 | F55: 57195 | V55: 57195
C56: 2025-04-09 | F56: 57195 | V56: 57195
C57: 2025-04-09 | F57: 7645 | V57: 7645
C58: 2025-04-09 | F58: 76200 | V58: 76200
C59: 2025-04-09 | D59: 1099 director sallary | E59: 20000000 | V59: 0
C60: 2025-04-09 | F60: 2340 | V60: 2340
C61: 2025-04-09 | F61: 23700 | V61: 23700
C62: 2025-04-09 | F62: 64132 | V62: 64132
C63: 2025-04-09 | F63: 44416 | V63: 44416
C64: 2025-04-09 | M64: 2200 | V64: 2200
C65: 2025-04-09 | F65: 986 | V65: 986
C66: 2025-04-09 | F66: 131872 | V66: 131872
C67: 2025-04-09 | U67: 76050 | V67: 76050
C68: 2025-04-09 | D68: 1569 shikshakarmi mandey deo | E68: 117480 | V68: 0
C69: 2025-04-09 | U69: 376317 | V69: 376317
C70: 2025-04-09 | F70: 1099302 | V70: 1099302
C71: 2025-04-09 | F71: 993921 | V71: =SUM(F71:U71) -> 993921
C72: 2025-04-09 | F72: 971185 | V72: 971185
C73: 2025-04-09 | F73: 1124786 | V73: 1124786
C74: 2025-04-09 | F74: 357460 | V74: 357460
C75: 2025-04-09 | F75: 80671 | V75: 80671
C76: 2025-04-09 | F76: 488437 | V76: 488437
C77: 2025-04-09 | F77: 28800 | V77: 28800
C78: 2025-04-09 | F78: 245500 | V78: 245500
C79: 2025-04-09 | F79: 73935 | V79: 73935
C80: 2025-04-09 | J80: 11520 | M80: 0 | V80: 11520
C81: 2025-04-09 | F81: 60132 | V81: 60132
C82: 2025-04-09 | F82: 528701 | V82: 528701
C83: 2025-04-09 | U83: 17656 | V83: 17656
C84: 2025-04-09 | F84: 10360 | V84: 10360
C85: 2025-04-09 | D85: 1099 | E85: 25001 | V85: 0
C86: 2025-04-09 | U86: 159134 | V86: 159134
C87: 2025-04-09 | F87: 6774 | V87: 6774
C88: 2025-04-09 | F88: 78107 | V88: 78107
C89: 2025-04-09 | F89: 33825 | V89: 33825
C90: 2025-04-09 | F90: 54900 | V90: 54900
C91: 2025-04-09 | M91: 2250 | V91: 2250
C92: 2025-04-09 | J92: 7509 | M92: 0 | V92: 7509
C93: 2025-04-09 | J93: 4368 | V93: 4368
C94: 2025-04-09 | U94: 148462 | V94: 148462
C95: 2025-04-09 | F95: 22936 | V95: 22936
C96: 2025-04-09 | D96: 1099 | E96: 38629 | V96: 0
C97: 2025-04-09 | D97: 1099 | E97: 36180 | V97: 0
C98: 2025-04-09 | F98: 376317 | V98: 376317
C99: 2025-04-09 | F99: 76200 | V99: 76200
C100: 2025-04-09 | F100: 1150503 | V100: 1150503
C101: 2025-04-09 | F101: 853031 | V101: 853031
C102: 2025-04-09 | F102: 1155286 | V102: 1155286
C103: 2025-04-09 | F103: 226200 | V103: 226200
C104: 2025-04-09 | F104: 1036470 | V104: 1036470
C105: 2025-04-09 | F105: 94605 | V105: 94605
C106: 2025-04-09 | F106: 35600 | V106: 35600
C107: 2025-04-09 | F107: 23700 | V107: 23700
C108: 2025-04-09 | F108: 134172 | V108: 134172
C109: 2025-04-09 | F109: 301765 | V109: 301765
C110: 2025-04-09 | F110: 221800 | V110: 221800
C111: 2025-04-09 | F111: 528341 | V111: 528341
C112: 2025-04-09 | F112: 16696 | V112: 16696
C113: 2025-04-09 | U113: 160620 | V113: 160620
C114: 2025-04-09 | F114: 24141 | V114: 24141
C115: 2025-04-09 | F115: 28207 | V115: 28207
C116: 2025-04-09 | F116: 17800 | V116: 17800
C117: 2025-04-09 | F117: 17800 | V117: 17800
C118: 2025-04-09 | F118: 29857 | V118: 29857
C119: 2025-04-09 | F119: 4311 | V119: 4311
C120: 2025-04-09 | F120: 20605 | V120: 20605
C121: 2025-04-09 | D121: 1099 director sallary | E121: 7500000 | V121: 0
C122: 2025-04-09 | F122: 85455 | V122: 85455
C123: 2025-04-09 | F123: 798 | V123: 798
C124: 2025-04-09 | F124: 26850 | V124: 26850
C125: 2025-04-09 | F125: 73935 | V125: 73935
C126: 2025-04-09 | J126: 9870 | M126: 0 | V126: 9870
C127: 2025-04-09 | U127: 110771 | V127: 110771
C128: 2025-04-09 | U128: 12107 | V128: 12107
C129: 2025-04-09 | F129: 3193 | V129: 3193
C130: 2025-04-09 | F130: 58671 | V130: 58671
C131: 2025-04-09 | F131: 58671 | V131: 58671
C132: 2025-04-09 | F132: 58671 | V132: 58671
C133: 2025-04-09 | F133: 29112 | V133: 29112
C134: 2025-04-09 | F134: 11000 | V134: 11000
C135: 2025-04-09 | T135: 830900 | V135: =SUM(F135:U135) -> 830900
C136: 2025-04-09 | F136: 76200 | V136: 76200
C137: 2025-04-09 | F137: 76161 | V137: 76161
C138: 2025-04-09 | F138: 967576 | V138: 967576
C139: 2025-04-09 | F139: 1287706 | V139: 1287706
C140: 2025-04-09 | F140: 688438 | V140: 688438
C141: 2025-04-09 | F141: 1550300 | V141: 1550300
C142: 2025-04-09 | F142: 321700 | V142: 321700
C143: 2025-04-09 | F143: 375407 | V143: 375407
C144: 2025-04-09 | J144: 7680 | M144: 0 | V144: 7680
C145: 2025-04-09 | M145: 4344 | V145: 4344
C146: 2025-04-09 | U146: 387246 | V146: 387246
C147: 2025-04-09 | F147: 539753 | V147: 539753
C148: 2025-04-09 | F148: 76161 | V148: 76161
C149: 2025-04-09 | D149: 1569 shikshakarmi mandey deo | E149: 37180 | V149: 0
C150: 2025-04-09 | F150: 59300 | V150: 59300
C151: 2025-04-09 | F151: 19614 | V151: 19614
C152: 2025-04-09 | F152: 23700 | V152: 23700
C153: 2025-04-10 | F153: 60420 | V153: 60420
C154: 2025-04-11 | F154: 22000 | V154: 22000
C155: 2025-04-12 | F155: 22000 | V155: 22000
C156: 2025-04-13 | F156: 23394 | V156: 23394
C157: 2025-04-14 | U157: 106145 | V157: 106145
C158: 2025-04-15 | U158: 160620 | V158: 160620
C159: 2025-04-16 | M159: 1840 | V159: 1840
C160: 2025-04-17 | J160: 10400 | M160: 0 | V160: 10400
C161: 2025-04-18 | F161: 32025 | V161: 32025
C162: 2025-04-19 | F162: 957 | V162: 957
C163: 2025-04-20 | U163: 6644 | V163: 6644
C164: 2025-04-21 | D164: 1099 director OE | E164: 20000 | V164: 0
C165: 2025-04-22 | D165: sallare director | E165: 15000000 | V165: 0
C166: 2025-04-23 | F166: 20800 | V166: 20800
C167: 2025-04-24 | F167: 13548 | V167: 13548
C168: 2025-08-30 | F168: 12184 | V168: 12184 | X168: MDM | Y168: Other
V169: 0
V170: 0
V171: 0
V172: 0
V173: 0
V174: 0
V175: 0
V176: 0
V177: 0
V178: 0
V179: 0
V180: 0
V181: 0
V182: 0
V183: 0
V184: 0
V185: 0
V186: 0
V187: 0
V188: 0
V189: 0
V190: 0
V191: 0
V192: 0
V193: 0
V194: 0
V195: 0
V196: 0
V197: 0
V198: 0
V199: =SUM(F199:U199) -> 0
V200: 0
... 118 more rows

Sheet EPI-A
A1: izi=&1
A2: v-fu;fer@dk;Z izHkkfjr Lohd`r inksa dk fooj.k
A3: =Profile!$A$44 -> dk;kZy; %& | C3: ='P1'!$C$1 -> eq[; CykWd f'k{kk vf/kdkjh] lexz f'k{kk] chdkusj
G4: =Profile!$A$13 -> foHkkx dk uke %& | I4: =Profile!$C$14 -> izkjfEHkd f'k{kk foHkkx
A5: ctV gSM%& | B5: =Profile!$C$3 -> 2202-01-197-16-01 | F5: =Profile!$A$8 -> ihMh [kkrk la[;k %& | H5: ='rrr 08'!$N$2 -> 762 | I5: =Profile!$F$3 -> vkWfQl vkbZMh | K5: =Profile!$F$4 -> 1451
A6: ys[kk dk 'kh"kZ nh?kZ 'kh"kZ@minh?kZk 'kh"kZ@y?kq 'kh"kZ@mi'kh"kZ | B6: in uke | C6: ysoy | D6: orZeku Lohd`r inksa dh la[;k ¼fnukad 01-04-2025 dh fLFkfr½ | E6: pkyw o"kZ esa Lohd`r u;s inksa dh la[;k | F6: pkyw o"kZ esa lekIr fd;s x;s inksa dh la[;k | G6: orZeku inksa dh la[;k (4+5-6) | H6: fu;fer dk;Zjr deZpkjh | J6: fnukad 31-08-2025 dks fjZDr inksa dh la[;k | K6: fnukad ftlls in fjDr gS
H7: 1 tuojh 2004 ls iwoZ fu;qDr | I7: 1 tuojh 2004 ds Ik'pkr fu;qDr
A8: 1 | B8: 2 | C8: 3 | D8: 4 | E8: 5 | F8: 6 | G8: 7 | H8: 8 | I8: 9 | J8: 10 | K8: 11
A9: =B5 -> 2202-01-197-16-01 | B9: v/;kid&III | C9: L-10 | D9: 98 | E9: 0 | F9: 0 | G9: =D9+E9-F9 -> 98 | H9: ='saranas Lekha'!$D$8 -> 4 | I9: ='saranas Lekha'!$E$8 -> 84 | J9: =G9-H9-I9 -> 10
B10: 'kkjhfjd f'k{kd | C10: L-10 | D10: 3 | E10: 0 | F10: 0 | G10: =D10+E10-F10 -> 3 | H10: 0 | I10: 0 | J10: =G10-H10-I10 -> 3
B11: iSjk Vhpj | C11: FIX | D11: 11 | E11: 0 | F11: 0 | G11: 11 | H11: 0 | I11: 10 | J11: 1
B12: efgyk iSjk Vhpj | C12: FIX | D12: 6 | E12: 0 | F12: 0 | G12: 6 | H12: 0 | I12: 6 | J12: 0
B13: iapk;r f'k{kd ¼xzke iapk;r@ fo|ky; lgk;da½ | C13: FIX | D13: 67 | E13: 0 | F13: 0 | G13: 67 | H13: =D13-G13 -> 0 | I13: 66 | J13: 1
B14: f'k{kkdehZ | C14: FIX | D14: 0 | E14: 0 | F14: 0 | G14: =D14+E14-F14 -> 0 | H14: =D14-G14 -> 0 | I14: 0 | J14: =G14-H14-I14 -> 0
A15: egk;ksx | D15: =SUM(D9:D14) -> 185 | E15: =SUM(E9:E14) -> 0 | F15: 0 | G15: 185 | H15: 4 | I15: 166 | J15: 15
A16: izekf.kr fd;k tkrk gS fd inksa ds lUnHkZ esa mDr lwpuk esjs }kjk O;fDrxr #i ls tkap dj yh xbZ gS vkSj bls lgh ik;k x;k gSA
F18: ='P-07'!E16 -> eksgEen vtht HkkVh
F19: ='P-07'!E17 -> 9460701805 | I19: gLrk{kj dk;kZy;/;{k
E20: ='P-14'!$C$18 -> rS;kj drkZ %& | F20: ='P-07'!E18 -> gtkjh jke rMZ
F21: ='P-07'!E19 -> 9667576332

Sheet EPI-B
B1: izi=&1
B2: c foHkkx esa dk;Zjr vU; dkfeZd dk fooj.k
B3: =Profile!$A$44 -> dk;kZy; %& | D3: ='P1'!$C$1 -> eq[; CykWd f'k{kk vf/kdkjh] lexz f'k{kk] chdkusj
I4: =Profile!$A$13 -> foHkkx dk uke %& | K4: =Profile!$C$14 -> izkjfEHkd f'k{kk foHkkx | O4: =Profile!$F$4 -> 1451
B5: ctV gSM | C5: =Profile!$C$3 -> 2202-01-197-16-01 | I5: =Profile!$A$8 -> ihMh [kkrk la[;k %& | K5: ='rrr 08'!$N$2 -> 762 | M5: =Profile!$F$3 -> vkWfQl vkbZMh
B6: ys[kk dk 'kh"kZ nh?kZ 'kh"kZ@minh?kZk 'kh"kZ@y?kq 'kh"kZ@mi'kh"kZ | C6: uku Iyku@Iyku@lh,l,l | D6: in uke | E6: ysoy | F6: fnukad 31-08-2025 dks fjDr inksa dh la[;k | G6: fjDr inksa ds fo#n dk;Zjr | M6: Lohd`r inksa ds vfrfjDr dk;Zjr dkfeZd
G7: Urgent temporary Appointment | H7: Reappointment | I7: On Contract ( Consolidated Amount) | M7: in uke | N7: la[;k | O7: okf"kZd foRrh; Hkkj
I8: Through Agency | J8: Direct | K8: AS per DOP Circular | L8: Others
B9: 1 | C9: 2 | D9: 3 | E9: 4 | F9: 5 | G9: 6 | H9: 7 | I9: 8 | J9: 9 | K9: 10 | L9: 11 | M9: 12 | N9: 13 | O9: 14
B10: =C5 -> 2202-01-197-16-01 | C10: SF | D10: NIL | E10: NIL | F10: NIL | G10: NIL | H10: NIL | I10: NIL | J10: NIL | K10: NIL | L10: NIL | M10: NIL | N10: NIL | O10: NIL
B19: egk;ksx | F19: =SUM(F10:F18) -> 0 | G19: =SUM(G10:G18) -> 0 | H19: 0 | I19: 0 | J19: 0 | K19: 0 | N19: 0
B20: izekf.kr fd;k tkrk gS fd inksa ds lUnHkZ esa mDr lwpuk esjs }kjk O;fDrxr #i ls tkap dj yh xbZ gS vkSj bls lgh ik;k x;k gSA
H22: ='P-07'!E16 -> eksgEen vtht HkkVh
H23: ='P-07'!E17 -> 9460701805 | M23: gLrk{kj dk;kZy;/;{k
G24: ='EPI-A'!$E$20 -> rS;kj drkZ %& | H24: ='P-07'!E18 -> gtkjh jke rMZ
H25: ='P-07'!E19 -> 9667576332

Sheet P-04
A1: izi=&4¼v½
A2: =Profile!$A$1 -> dk;kZy;& | C2: =Profile!$C$1 -> eq[; CykWd f'k{kk vf/kdkjh] lexz f'k{kk] chdkusj | H2: =Profile!$F$4 -> 1451
A3: foHkkx esa miyC/k okguks dh lwph
A4: =Profile!$A$13 -> foHkkx dk uke %& | C4: =Profile!$G$2 -> izkjfEHkd f'k{kk foHkkx | G4: =Profile!$A$8 -> ihMh [kkrk la[;k %& | H4: =Profile!$C$8 -> 762
A5: Ø-la- | B5: ys[kks dk 'kh"kZ | C5: jkT; fuf/k@dsUnzh; lgk;rk | D5: dk;kZy; dk uke | E5: in uke | F5: okguks dk fooj.k
F6: okgu dk izdkj thi@dkj@vU; | G6: jftLV~s'ku la[;k | H6: dz; dk o"kZ
A7: 1 | B7: 2 | C7: 3 | D7: 4 | E7: 5 | F7: 6 | G7: 7 | H7: 8
A8: 1 | B8: =C21 -> 2202-01-197-16-01
D9: NIL
A17: izekf.kr fd;k tkrk gS fd inksa ds lanHkZ esa mi;qZDr lwpuk dh esjs }kjk O;fDrxr :Ik ls tkWp dj yh xbZ gSa vkSj bl lgh ik;k x;k gSA
G19: gLrk{kj dk;kZy;/;{k
B21: ctV gSM%& | C21: =Profile!$C$3 -> 2202-01-197-16-01

Sheet P-03
A1: izi=&3
C2: =Profile!$A$1 -> dk;kZy;& | E2: ='rrr 08'!$D$4 -> eq[; CykWd f'k{kk vf/kdkjh] lexz f'k{kk] chdkusj
A3: foHkkx esa miyC/k dEI;wVlZ@loZj ,oa fdjk;s ij fy;s x;s dEI;wVlZ dh lwpuk
C4: osru en%& | F4: =Profile!$C$3 -> 2202-01-197-16-01 | H4: =Profile!$A$8 -> ihMh [kkrk la[;k %& | I4: =Profile!$C$8 -> 762
A5: =Profile!$A$13 -> foHkkx dk uke %& | C5: =Profile!$G$2 -> izkjfEHkd f'k{kk foHkkx | H5: =Profile!$F$3 -> vkWfQl vkbZMh | I5: =Profile!$F$4 -> 1451
A6: Ø-la- | B6: ys[kks dk 'kh"kZ | C6: jkT; fuf/k@dsUnzh; lgk;rk | D6: dk;kZy; dk uke | E6: foHkkxh; | G6: fdjk;s ij fy, x;s dEI;wVjlZ
E7: dEI;wVj@loZj la[;k | F7: fizUVj la[;k | G7: e'khufon eSu Lka[;k | H7: okf"kZd Hkkj lgL= :i;ks esa | I7: foRr foHkkx dh vkbZMh ,oa fnukWd
A8: 1 | B8: 2 | C8: 3 | D8: 4 | E8: 5 | F8: 6 | G8: 7 | H8: 8 | I8: 9
A9: 1 | B9: =$F$4 -> 2202-01-197-16-01 | C9: jkT; fuf/k | E9: 0 | F9: 0 | G9: 0 | H9: 0 | I9: 0
D11: NIL
A18: izekf.kr fd;k tkrk gS fd inksa ds lanHkZ esa mi;qZDr lwpuk dh esjs }kjk O;fDrxr :Ik ls tkWp dj yh xbZ gSa vkSj bl lgh ik;k x;k gSA
H20: gLrk{kj dk;kZy;/;{k

Sheet P-05
A1: izi=&4¼c½
B2: =Profile!$A$1 -> dk;kZy;& | D2: =Profile!$C$1 -> eq[; CykWd f'k{kk vf/kdkjh] lexz f'k{kk] chdkusj
A3: foHkkx }kjk fdjk;s ij fy, x;s okguksa dh lwph | H3: =Profile!$A$8 -> ihMh [kkrk la[;k %& | I3: =Profile!$C$8 -> 762
A4: =Profile!$A$13 -> foHkkx dk uke %& | C4: =Profile!$G$2 -> izkjfEHkd f'k{kk foHkkx | H4: =Profile!$F$3 -> vkWfQl vkbZMh | I4: =Profile!$F$4 -> 1451
A5: Ø-la- | B5: ys[kks dk 'kh"kZ | C5: jkT; fuf/k@dsUnzh; lgk;rk | D5: dk;kZy; dk uke | E5: okguks dk fooj.k | H5: fiNys foRrh; o"kZ esa O;; dh xbZ jkf'k¼:i;s lgL= esa½ | I5: foRr foHkkx dh vkbZMh ,oa fnukWd
E6: okgu dk izdkj thi@dkj@vU; | F6: Js.kh¼jkT;@lEHkkx@ftyk@LFkkuh; Lrjh; | G6: dqy la[;k
A7: 1 | B7: 2 | C7: 3 | D7: 4 | E7: 5 | F7: 6 | G7: 7 | H7: 8 | I7: 9
A8: 1 | B8: =C17 -> 2202-01-197-16-01
D9: NIL
A14: izekf.kr fd;k tkrk gS fd inksa ds lanHkZ esa mi;qZDr lwpuk dh esjs }kjk O;fDrxr :Ik ls tkWp dj yh xbZ gSa vkSj bl lgh ik;k x;k gSA
H16: gLrk{kj dk;kZy;/;{k
B17: ctV gSM%& | C17: =Profile!$C$3 -> 2202-01-197-16-01

Sheet P-1B
A1: izi=&1¼c½
B2: =Profile!$A$1 -> dk;kZy;& | D2: =Profile!$C$1 -> eq[; CykWd f'k{kk vf/kdkjh] lexz f'k{kk] chdkusj | H2: =Profile!$A$8 -> ihMh [kkrk la[;k %& | I2: =Profile!$C$8 -> 762
A3: v- fu;fer dk;Z izHkkfjr Loh—r inksa dk fooj.k
A4: =Profile!$A$13 -> foHkkx dk uke %& | C4: =Profile!$G$2 -> izkjfEHkd f'k{kk foHkkx | H4: =Profile!$F$3 -> vkWfQl vkbZMh | I4: =Profile!$F$4 -> 1451
A5: Ø-la- | B5: ys[kks dk 'kh"kZ | C5: jkT; fuf/k@dsUnzh; lgk;rk | D5: inuke | E5: ysoy uEcj | F5: fjDr inksa dh la[;k | G5: fu;qfDr dk izdkj | H5: la[;k | I5: dqy okf"kZdh Hkkj¼#i;ksa esa½
G6: 1- dkfeZd foHkkx ds ifji= ds vuqlkj 2- rnFkZ vLFkkbZ fu;qfDr 3- iqufu;qfDr 4- ,tsUlh ds ek/;e ls 5- izR;{k lafoank 6- vU;
A7: 1 | B7: 2 | C7: 3 | D7: 4 | E7: 5 | F7: 6 | G7: 7 | H7: 8 | I7: 9
A8: 1 | B8: =$C$19 -> 2202-01-197-16-01
A9: 2
A10: 3
D11: NIL
F15: =SUM(F8:F14) -> 0 | G15: =SUM(G8:G14) -> 0 | H15: =SUM(H8:H14) -> 0 | I15: =SUM(I8:I14) -> 0
A16: izekf.kr fd;k tkrk gS fd inksa ds lanHkZ esa mi;qZDr lwpuk dh esjs }kjk O;fDrxr :Ik ls tkWp dj yh xbZ gSa vkSj bl lgh ik;k x;k gSA
H18: gLrk{kj dk;kZy;/;{k
B19: ctV gSM%& | C19: =Profile!$C$3 -> 2202-01-197-16-01

Sheet rrr10
A1: izi= 10 | J1: ctV gSM | K1: =Profile!$C$3 -> 2202-01-197-16-01
A2: vk; dk foLr`r ctV vuqeku forh; o"kZ ---------------------¼1vizSy ls 31ekpZ rd½ dk | K2: MhMhvks dksM | L2: =Profile!$G$43 -> 1451 | M2: =Profile!$K$44 -> LVsV Q.M
A3: dk;kZy; & | C3: =Profile!$D$44 -> eq[; CykWd f'k{kk vf/kdkjh] lexz f'k{kk] chdkusj | K3: =Profile!$A$8 -> ihMh [kkrk la[;k %& | M3: =Profile!$C$8 -> 762
A4: dk;kZy; v/;{k MhMhvks uke %& | D4: =Profile!$G$4 -> euh"kk vjksM+k | H4: =Profile!$I$4 -> 1234567890 | J4: foHkkx dk uke %& | L4: =Profile!$G$2 -> izkjfEHkd f'k{kk foHkkx | N4: j lgL=ksa esa
A5: Øe l[;k | B5: ys[kk dk 'kh"kZ nh?kZ 'kh"kZ@ minh?kZ 'kh"kZ@ y?kq'kh"kZ@ mi'kh"kZ | C5: okLrfod O;; vkadM+s ¼xr iwoZ rhu o"kksZ ds½ | F5: =Profile!$H$19 -> 2024-25 | G5: okLrfod vk; vkadM+s | J5: vxLr ls ekpZ rd dk laHkkfor vk; ¼pkyw o"kZ½ | K5: la'kksf/kr vuqeku ¼pkyw o"kZ½ 8$10 | L5: vk; O;; ds vuqeku ckcr ¼vkxkeh o"kZ½ | M5: o`f)¼$½ ;k deh¼&½
C6: ='rrr 09'!D7 -> 2022-23 | D6: ='rrr 09'!E7 -> 2023-24 | E6: 2023-2024 | F6: ='rrr 09'!$G$7 -> vk; O;; ds vuqeku ckcr~ pkyw o"kZ vkoaVu | G6: vxLr ls ekpZ rd ¼xr o"kZ½ | H6: viszy ls tqykbZ rd ¼pkyw o"kZ½ | I6: dkye 7 o 8 dk ;ksx | M6: 6 vkSj 11 esa | N6: 9 vkSj 11 esa | O6: 11 vkSj 12 esa
A7: 1 | B7: 2 | C7: 3 | D7: 4 | E7: 5 | F7: 6 | G7: 7 | H7: 8 | I7: 9 | J7: 10 | K7: 11 | L7: 12 | M7: 13 | N7: 14 | O7: 15
B8: 0075&00&105&12&01 Hkwfe vf/kxzg.k ls vk; | C8: =Profile!F21 -> 0 | D8: =Profile!G21 -> 0 | E8: =Profile!H21 -> 0 | F8: =K8 -> 0 | G8: =Profile!I21 -> 0 | H8: =Profile!J21 -> 0 | I8: =G8+H8 -> 0 | J8: =Profile!K21 -> 0 | K8: =H8+J8 -> 0 | L8: =Profile!L21 -> 0
B9: 0202&01&101&01&00 Qhl] ekU;rk 'kqYd ls vk; | C9: =Profile!F22 -> 0 | D9: =Profile!G22 -> 0 | E9: =Profile!H22 -> 0 | F9: =K9 -> 0 | G9: =Profile!I22 -> 0 | H9: =Profile!J22 -> 0 | I9: =G9+H9 -> 0 | J9: =Profile!K22 -> 0 | K9: =H9+J9 -> 0 | L9: =Profile!L22 -> 0
B10: 0202&01&101&02&01 fofo/k | C10: =Profile!F23 -> 0 | D10: =Profile!G23 -> 0 | E10: =Profile!H23 -> 0 | F10: 0 | G10: =Profile!I23 -> 0 | H10: =Profile!J23 -> 0 | I10: 0 | J10: =Profile!K23 -> 0 | K10: 0 | L10: =Profile!L23 -> 0
B11: 0202&01&101&02&03 va'knku ls vk; | C11: =Profile!F24 -> 0 | D11: =Profile!G24 -> 0 | E11: =Profile!H24 -> 0 | F11: 0 | G11: =Profile!I24 -> 0 | H11: =Profile!J24 -> 0 | I11: 0 | J11: =Profile!K24 -> 0 | K11: 0 | L11: =Profile!L24 -> 0
B12: 0049&04&801&01&01 C;kt ls vk; | C12: =Profile!F25 -> 0 | D12: =Profile!G25 -> 0 | E12: =Profile!H25 -> 0 | F12: 0 | G12: =Profile!I25 -> 0 | H12: =Profile!J25 -> 0 | I12: 0 | J12: =Profile!K25 -> 0 | K12: 0 | L12: =Profile!L25 -> 0
B13: vU; | C13: =Profile!F26 -> 0 | D13: =Profile!G26 -> 0 | E13: =Profile!H26 -> 0 | F13: 0 | G13: =Profile!I26 -> 0 | H13: =Profile!J26 -> 0 | I13: 0 | J13: =Profile!K26 -> 0 | K13: 0 | L13: =Profile!L26 -> 0
B14: ;ksx | C14: =C13+C10+C9+C8+C11+C12 -> 0 | D14: =D13+D10+D9+D8+D11+D12 -> 0 | E14: 0 | F14: =F13+F10+F9+F8+F11+F12 -> 0 | G14: =G13+G10+G9+G8+G11+G12 -> 0 | H14: =H13+H10+H9+H8+H11+H12 -> 0 | I14: =I13+I10+I9+I8+I11+I12 -> 0 | J14: =J13+J10+J9+J8+J11+J12 -> 0 | K14: =K13+K10+K9+K8+K11+K12 -> 0 | L14: =L13+L10+L9+L8+L11+L12 -> 0
H18: =Profile!G6 -> eksgEen vtht HkkVh | L18: =Profile!A3 -> eq[; CykWd f'k{kk vf/kdkjh
H19: =Profile!$I$6 -> 9460701805 | L19: =Profile!A4 -> lexz f'k{kk
G20: rS;kj drkZ %& | H20: ='rrr 08'!J294 -> gtkjh jke rMZ | L20: =Profile!A5 -> chdkusj
H21: ='rrr 08'!J295 -> 9667576332 | L21: =Profile!$F$4 -> 1451

Sheet L-1-2 (hidden)
B1: =Profile!A44 -> dk;kZy; %& | C1: =Profile!D44 -> eq[; CykWd f'k{kk vf/kdkjh] lexz f'k{kk] chdkusj
A2: v/;kid ysoy&1 o ysoy&2 Lohd`r] dk;Zjr o fjDr inks dk fooj.k | F2: =Profile!C3 -> 2202-01-197-16-01
A3: en 2202 ukWu Iyku | C3: o"kZ | D3: =Profile!O44 -> RE 2024-2025 | E3: o vkxkeh o"kZ | G3: =Profile!N43 -> BE 202-2026
A4: ys[kk 'kh"kZd ¼foLr`r 'kh"kZ½ | B4: en | C4: in uke | D4: fo"k; | E4: Lohd`r | F4: dk;Zjr | G4: fjDr | H4: Lohd`r ;ksx
A5: vjktif=r | B5: =F2 -> 2202-01-197-16-01 | C5: v/;kid ysoy&1 | D5: & | E5: 0 | F5: 0 | G5: =E5-F5 -> 0 | H5: =E5+E7+E6 -> 0
A6: vjktif=r | B6: =B5 -> 2202-01-197-16-01 | C6: v/;kid ysoy&1 | D6: & | E6: 0 | F6: 0 | G6: =E6-F6 -> 0
A7: vjktif=r | B7: =B6 -> 2202-01-197-16-01 | C7: v/;kid ysoy&1 | D7: & | E7: 0 | F7: 0 | G7: =E7-F7 -> 0
A8: vjktif=r | B8: =B5 -> 2202-01-197-16-01 | C8: v/;kid ysoy&2 | D8: vaxzsth | E8: 0 | F8: 0 | G8: =E8-F8 -> 0 | H8: =E8+E9+E10+E11+E12+E13 -> 0
A9: vjktif=r | B9: =B5 -> 2202-01-197-16-01 | D9: fgUnh | E9: 0 | F9: 0 | G9: 0
A10: vjktif=r | B10: =B9 -> 2202-01-197-16-01 | D10: xf.kr@foKku | E10: 0 | F10: 0 | G10: 0
A11: vjktif=r | B11: =B10 -> 2202-01-197-16-01 | D11: lkekftd foKku | E11: 0 | F11: 0 | G11: 0
A12: vjktif=r | B12: =B11 -> 2202-01-197-16-01 | D12: iatkch | E12: 0 | F12: 0 | G12: 0
A13: vjktif=r | B13: =B12 -> 2202-01-197-16-01 | D13: laLd`r | E13: 0 | F13: 0 | G13: 0
A14: dqy | E14: =E5+E7+E8+E9+E10+E11+E12+E13+E6 -> 0 | F14: =F5+F7+F8+F9+F10+F11+F12+F13+F6 -> 0 | G14: 0 | H14: 0
B16: =Profile!C3 -> 2202-01-197-16-01 | F16: =#REF! -> 
F17: =#REF! ->  | G17: =#REF! ->  | H17: =#REF! -> 
F18: =#REF! ->  | G18: =#REF! ->  | H18: =#REF! -> 

Sheet CHALAN (hidden)
G1: pkyku fooj.k
A2: fo|ky; dk uke & | D2: jktdh; mPp ek/;fed fo|ky; pkSxkbZa Vksad
A3: ys[kk 'kh"kZd& | C3: 2202 | D3: lkekU; f'k{kk | G3: vkWfQl vkbZMh& | H3: 27306
C4: 2 | D4: ek/;fed f'k{kk
C5: 109 | D5: jktdh; mPp ek/;fed fo|ky;
C6: 27 | D6: yM+dksa ds fo|ky;
C7: 1 | D7: yM+dksa ds fo|ky;
A9: ekax la[;k | C9: 24 | G9: Ldhe dk uke | H9: LVsV Q.M
A11: Ø- la- | B11: pkyu uEcj o fnukad | C11: vizsy 19 ls ekpZ 20 | G11: pkyu uEcj o fnukad | H11: vxLr 19 ls ekpZ 20 | L11: pkyu uEcj o fnukad | M11: vizsy 20 ls tqykbZ 20
C12: f'k{k.k Qhl ,oa vU; Qhlsa | D12: vuqi;ksxh lkekuksa ls vk; | E12: vf/kd Hkqxrku ls olwyh | F12: fofo/k | H12: f'k{k.k Qhl ,oa vU; Qhlsa | I12: vuqi;ksxh lkekuksa ls vk; | J12: vf/kd Hkqxrku ls olwyh | K12: fofo/k | M12: f'k{k.k Qhl ,oa vU; Qhlsa | N12: vuqi;ksxh lkekuksa ls vk; | O12: vf/kd Hkqxrku ls olwyh | P12: fofo/k
C13: 10 | D13: 20 | E13: 30 | F13: 40 | H13: 50 | I13: 60 | J13: 70 | K13: 80 | M13: 90 | N13: 100 | O13: 110 | P13: 120
B28: TOTAL | C28: 10 | D28: 20 | E28: 30 | F28: 40 | H28: 50 | I28: 60 | J28: 70 | K28: 80 | M28: 90 | N28: 100 | O28: 110 | P28: 120
M30: =Profile!A3 -> eq[; CykWd f'k{kk vf/kdkjh
M31: =Profile!A4 -> lexz f'k{kk
M32: =Profile!A5 -> chdkusj
M33: =Profile!$F$4 -> 1451

Sheet retier
A1: =Profile!A44 -> dk;kZy; %& | D1: =Profile!D44 -> eq[; CykWd f'k{kk vf/kdkjh] lexz f'k{kk] chdkusj
A2: izi= 12 , | G2: ctV gSM | H2: =Profile!$C$3 -> 2202-01-197-16-01
A3: osru J`a[kyk 1 ls 6 rd lsokfuo`r gksus okys dkfeZd dk fooj.k
A4: en 2202 ukWu Iyku | D4: o"kZ | E4: =Profile!O44 -> RE 2024-2025 | F4: o vkxkeh o"kZ | H4: =Profile!M44 -> 2026&2027
A5: Ø-la | B5: ctV en | C5: deZpkjh dk uke | D5: osru Ja`[kyk | E5: ossru ysoy | F5: in uke | G5: lsokfuo`r fnukad | H5: lsokfuo`r deZpkjh dh lsokfuo`fr ds le; ns; mikftZr vodk'k | I5: dkfeZd dk lsokfuo`fr ds le; ewy osru | J5: lsokfuo`r deZpkjh dh jde
A6: 1 | B6: Iyku | J6: =H6*I6/30 -> 0
A7: 2 | B7: ukWu Iyku ckfydk | J7: =H7*I7/30 -> 0
A8: 3 | B8: ukWu Iyku | J8: 0
A9: 4 | B9: ukWu Iyku | J9: 0
C11: =Profile!C3 -> 2202-01-197-16-01 | H11: =Profile!A3 -> eq[; CykWd f'k{kk vf/kdkjh
H12: =Profile!A4 -> lexz f'k{kk | I12: =Profile!B4 -> 0
H13: =Profile!A5 -> chdkusj | I13: =Profile!B5 -> 0
H14: =Profile!$F$4 -> 1451

Sheet List ALL EMP
B1: uke dk;kZy;& | C1: =Profile!$C$1 -> eq[; CykWd f'k{kk vf/kdkjh] lexz f'k{kk] chdkusj
B2: ihMh gSM ls osru Hkqxrku dkfeZdksa dh lwph | D2: vkWfQl vkbZMh& | E2: =Profile!$F$4 -> 1451
B3: ys[kk 'kh"kZd& | C3: =Profile!C3 -> 2202-01-197-16-01 | D3: =Profile!$A$8 -> ihMh [kkrk la[;k %& | E3: =Profile!$C$8 -> 762
B4: =Profile!$A$16 -> orZeku o"kZ %& | C4: =Profile!$C$16 -> 2025-26 | D4: ekax la[;k%& | E4: =Profile!$C$11 -> 24
B5: =Profile!$A$13 -> foHkkx dk uke %& | C5: =Profile!$G$2 -> izkjfEHkd f'k{kk foHkkx
A6: Ø-la- | B6: uke dkfeZd | C6: in uke | D6: thih,Q@,uih,l@izku uEcj@,uvkbZlh vkbZMh | E6: ekfld ekuns;
A7: 1 | B7: 2 | C7: 3 | D7: 4 | E7: 5
A8: 1 | B8: AJAY KUMAR NAYAK | D8: 5255786 | E8: 17800
A9: =A8+1 -> 2 | B9: AMMANA RAM SIDHU | C9: PANCHAYAT SHIKSHAK | D9: 5299810 | E9: 17800
A10: =A9+1 -> 3 | B10: ANJU BALA SHARMA | C10: KANISHATH SHIKSHAK | D10: 5255802 | E10: 17800
A11: 4 | B11: ANTU RAM SHARMA | C11: PANCHAYAT SHIKSHAK | D11: 5299804 | E11: 11000
A12: 5 | B12: ARUN KUMAR | C12: PANCHAYAT SHIKSHAK | D12: 5301043 | E12: 17800
A13: 6 | B13: BAJARANG LAL DHAKA | C13: PANCHAYAT SHIKSHAK | D13: 5302719 | E13: 11000
A14: 7 | B14: BAJRANG SINGH | C14: KANISHATH SHIKSHAK | D14: 5255794 | E14: 17800
A15: 8 | B15: BALRAM GODARA | C15: PANCHAYAT SHIKSHAK | D15: 5299784 | E15: 17800
A16: 9 | B16: BALRAM SAHAL | C16: PANCHAYAT SHIKSHAK | D16: 5300942 | E16: 17800
A17: 10 | B17: BALWANT SINGH | C17: PANCHAYAT SHIKSHAK | D17: 5301039 | E17: 17800
A18: 11 | B18: BHANWAR LAL PALIWAL | C18: PANCHAYAT SHIKSHAK | D18: 5299531 | E18: 17800
A19: 12 | B19: BHURA RAM JAT_5255831 | C19: KANISHATH SHIKSHAK | D19: 5255831 | E19: 17800
A20: 13 | B20: CHANDVEER SINGH | C20: PANCHAYAT SHIKSHAK | D20: 5301077 | E20: 11000
A21: 14 | B21: CHETAN PRAKASH BARUPAL | C21: PANCHAYAT SHIKSHAK | D21: 5301079 | E21: 17800
A22: 15 | B22: CHITRA SHARMA_5299779 | C22: PANCHAYAT SHIKSHAK | D22: 5299779 | E22: 17800
A23: 16 | B23: DEEWAN DAN | C23: PANCHAYAT SHIKSHAK | D23: 5296217 | E23: 17800
A24: 17 | B24: GAJENDER KUMAR | C24: PANCHAYAT SHIKSHAK | D24: 5299828 | E24: 17800
A25: 18 | B25: GANESHA RAM | C25: KANISHATH SHIKSHAK | D25: 5255804 | E25: 17800
A26: 19 | B26: GIRISH CHAND GOYAL | C26: PANCHAYAT SHIKSHAK | D26: 5301061 | E26: 11000
A27: 20 | B27: GOPAL RAM | C27: PANCHAYAT SHIKSHAK | D27: 5301913 | E27: 17800
A28: 21 | B28: GOPI CHAND SAHARAN | C28: PANCHAYAT SHIKSHAK | D28: 5300911 | E28: 11000
A29: 22 | B29: HANUMAN RAM | C29: PANCHAYAT SHIKSHAK | D29: 5301024 | E29: 11000
A30: 23 | B30: HARAMANA RAM MEGHWAL | C30: PANCHAYAT SHIKSHAK | D30: 5299799 | E30: 17800
A31: 24 | B31: HAZEE SHAH | C31: PANCHAYAT SHIKSHAK | D31: 5301053 | E31: 17800
A32: 25 | B32: INDRA BADDER | C32: PANCHAYAT SHIKSHAK | D32: 5299825 | E32: 11000
A33: 26 | B33: INDRAJ BHADU | C33: PANCHAYAT SHIKSHAK | D33: 5300943 | E33: 17800
A34: 27 | B34: JAGDEESH GODARA | C34: PANCHAYAT SHIKSHAK | D34: 5301069 | E34: 17800
A35: 28 | B35: JETHA RAM NAI | C35: KANISHATH SHIKSHAK | D35: 5255793 | E35: 17800
A36: 29 | B36: KARNI SINGH | C36: PANCHAYAT SHIKSHAK | D36: 5301082 | E36: 17800
A37: 30 | B37: KAUSHALYA | C37: KANISHATH SHIKSHAK | D37: 5255825 | E37: 17800
A38: 31 | B38: KESAR DEVI | C38: KANISHATH SHIKSHAK | D38: 5255791 | E38: 17800
A39: 32 | B39: KHINYA RAM GODARA_5299844 | C39: PANCHAYAT SHIKSHAK | D39: 5299844 | E39: 11000
A40: 33 | B40: KIRAN KUMARI | C40: PANCHAYAT SHIKSHAK | D40: 5301057 | E40: 11000
A41: 34 | B41: KIRPAL DAN_5299836 | C41: PANCHAYAT SHIKSHAK | E41: 11000
A42: 35 | B42: KISHNA RAM | C42: PANCHAYAT SHIKSHAK | D42: 5301022 | E42: 11000
A43: 36 | B43: KRIPAL DAN | C43: PANCHAYAT SHIKSHAK | D43: 5299836 | E43: 17800
A44: 37 | B44: KRISHANA DONGIWALA_5255792 | C44: KANISHATH SHIKSHAK | D44: 5255792 | E44: 17800
A45: 38 | B45: KUSHALA RAM SARAN_5312500 | C45: PANCHAYAT SHIKSHAK | E45: 17800
A46: 39 | B46: LALCHAND MOOND | C46: PANCHAYAT SHIKSHAK | D46: 5300886 | E46: 17800
A47: 40 | B47: LOKENDER SINGH JODHA_5306417 | C47: PANCHAYAT SHIKSHAK | E47: 17800
A48: 41 | B48: MANGILAL MEGHWAL | C48: KANISHATH SHIKSHAK | D48: 5255807 | E48: 17800
A49: 42 | B49: MANJU KAUSHIK | C49: PANCHAYAT SHIKSHAK | D49: 5301066 | E49: 17800
A50: 43 | B50: MANOJ KUMAR SUTHAR | C50: PANCHAYAT SHIKSHAK | D50: 5301013 | E50: 17800
A51: 44 | B51: MEENAKSHI | C51: PANCHAYAT SHIKSHAK | D51: 5301044 | E51: 17800
A52: 45 | B52: MUKESH SAIN | C52: PANCHAYAT SHIKSHAK | D52: 5301057 | E52: 11000
A53: 46 | B53: MUSHTAK AHMED | C53: KANISHATH SHIKSHAK | D53: 5255788 | E53: 17800
A54: 47 | B54: NAND KISHOR KARELA | C54: PANCHAYAT SHIKSHAK | D54: 5301037 | E54: 17800
A55: 48 | B55: NAND KISHOR SHARMA | C55: PANCHAYAT SHIKSHAK | D55: 5301036 | E55: 17800
A56: 49 | B56: NARAYAN RAM_5301072 | C56: PANCHAYAT SHIKSHAK | D56: 5301077 | E56: 17800
A57: 50 | B57: PAPPURAM MEGHWAL | C57: KANISHATH SHIKSHAK | D57: 5255800 | E57: 17800
A58: 51 | B58: PARMESHWARI PRAJAPAT_5301027 | C58: PANCHAYAT SHIKSHAK | D58: 5301027 | E58: 17800
A59: 52 | B59: POONAM CHAND MEGHWAL_5299538 | C59: PANCHAYAT SHIKSHAK | D59: 5299538 | E59: 11000
A60: 53 | B60: PRABHA KIRADOO_5306670 | C60: PANCHAYAT SHIKSHAK | E60: 17800
A61: 54 | B61: PRAKASH CHAND GOYAL | C61: PANCHAYAT SHIKSHAK | D61: 5301002 | E61: 17800
A62: 55 | B62: PUKHRAJ SHARMA | C62: PANCHAYAT SHIKSHAK | D62: 5296153 | E62: 17800
A63: 56 | B63: PUSHPLATA CHOUDHARY_5304422 | C63: PANCHAYAT SHIKSHAK | E63: 17800
A64: 57 | B64: RADHA UPADHYAY | C64: KANISHATH SHIKSHAK | D64: 5255790 | E64: 17800
A65: 58 | B65: RADHE SHYAM | C65: PANCHAYAT SHIKSHAK | D65: 5301055 | E65: 11000
A66: 59 | B66: RADHE SHYAM PALIWAL | C66: PANCHAYAT SHIKSHAK | E66: 17800
A67: 60 | B67: RAJA RAM | C67: PANCHAYAT SHIKSHAK | D67: 5299533 | E67: 17800
A68: 61 | B68: RAM SUKH MEGHWAL_5322949 | C68: PANCHAYAT SHIKSHAK | E68: 11000
A69: 62 | B69: RAMAN LAL BISSA_5311506 | C69: PANCHAYAT SHIKSHAK | D69: 5301048 | E69: 11000
A70: 63 | B70: RAMESH BITHU_5304329 | C70: PANCHAYAT SHIKSHAK | E70: 17800
A71: 64 | B71: RAMESHWAR LAL_5301035 | C71: PANCHAYAT SHIKSHAK | D71: 5301035 | E71: 17800
A72: 65 | B72: RATAN LAL | C72: PANCHAYAT SHIKSHAK | D72: 5300839 | E72: 17800
A73: =A72+1 -> 66 | B73: RAVINDER JAIN | C73: PANCHAYAT SHIKSHAK | D73: 5301042 | E73: 17800
A74: 67 | B74: RIKTAKMAL SHARMA | C74: PANCHAYAT SHIKSHAK | D74: 5300877 | E74: 17800
A75: 68 | B75: SARLA CHOUDHARY | C75: KANISHATH SHIKSHAK | D75: 5255803 | E75: 17800
A76: 69 | B76: SAROJ PARIK | C76: KANISHATH SHIKSHAK | D76: 5255798 | E76: 17800
A77: 70 | B77: SHANKAR LAL JYANI | C77: PANCHAYAT SHIKSHAK | D77: 5300940 | E77: 17800
A78: 71 | B78: SHIV KUMAR BHATI_5301030 | C78: PANCHAYAT SHIKSHAK | D78: 5301030 | E78: 17800
A79: 72 | B79: SHIVNARAYAN MOOND | C79: KANISHATH SHIKSHAK | D79: 5255783 | E79: 17800
A80: 73 | B80: SOHAN SINGH | C80: PANCHAYAT SHIKSHAK | D80: 5301903 | E80: 11000
A81: 74 | B81: SUBASH CHANDER GODARA | C81: PANCHAYAT SHIKSHAK | D81: 5299817 | E81: 17800
A82: 75 | B82: SUBHASH NAYAK_5317766 | C82: PANCHAYAT SHIKSHAK | E82: 11000
A83: 76 | B83: SUMITRA KASWA | C83: PANCHAYAT SHIKSHAK | D83: 5299536 | E83: 17800
A84: 77 | B84: SUNITA SHARMA | C84: PANCHAYAT SHIKSHAK | D84: 5299522 | E84: 17800
A85: 78 | B85: SURENDER KUMAR KUKNA | C85: PANCHAYAT SHIKSHAK | D85: 5301064 | E85: 17800
A86: 79 | B86: VIJAY KUMAR_5307505 | C86: PANCHAYAT SHIKSHAK | E86: 11000
A87: 80 | B87: VIJAYPAL GODARA_5320450 | C87: PANCHAYAT SHIKSHAK | E87: 11000
A88: 81 | B88: VIJAYPAL JYANI | C88: PANCHAYAT SHIKSHAK | D88: 5300934 | E88: 17800
A89: 82 | B89: ZUBBER MOHAMMAD SHAH_5315244 | C89: PANCHAYAT SHIKSHAK | E89: 11000
A90: 83 | B90: BHAIRA RAM | C90: Teacher Level-2 | D90: RJBI202309078023 | E90: 23700
A91: 84 | B91: BHAWANA KANWAR | C91: Teacher Level-1 | D91: RJBI202309040350 | E91: 23700
A92: 85 | B92: BUDHRAM | C92: TEACHER | D92: RJBI202309557196 | E92: 23700
A93: 86 | B93: DEVENDRA SINGH | C93: Teacher Level-1 (Special Education) | D93: RJBI202209032389 | E93: 23700
A94: 87 | B94: HANSA KUMARI SWAMI | C94: Teacher Level-2 | D94: RJBI202309065691 | E94: 23700
A95: 88 | B95: JYOTI RATHORE | C95: TEACHER | D95: RJBI202309066458 | E95: 23700
A96: 89 | B96: KHERUNISHA | C96: Teacher Level-2 | D96: RJBI202309065639 | E96: 23700
A97: 90 | B97: KHUSHBOO YADAV | C97: Teacher Level-2 | D97: RJBI202309073471 | E97: 23700
A98: 91 | B98: MANJU BALA | C98: Teacher Level-1 (Special Education) | D98: RJBI202209028546 | E98: 23700
A99: 92 | B99: MONIKA | C99: Teacher Level-2 | D99: RJBI202309050858 | E99: 23700
A100: 93 | B100: MOOL SINGH | C100: TEACHER | D100: RJBI202309073384 | E100: 23700
A101: 94 | B101: PINKY | C101: Teacher Level-1 | D101: RJBI202309083154 | E101: 23700
A102: 95 | B102: POOJA | C102: Teacher Level-2 | D102: RJBI202309045038 | E102: 23700
A103: 96 | B103: PREETI TOGASIA | C103: Teacher Level-1 | D103: RJBI202309039848 | E103: 23700
A104: 97 | B104: PRITI KUMARI | C104: Teacher Level-2 | D104: RJBI202309063488 | E104: 23700
A105: 98 | B105: PRITI SINGH | C105: Teacher Level-2 | D105: RJBI202409103538 | E105: 23700
A106: 99 | B106: PUSHPA KUMARI | C106: TEACHER | D106: RJBI202309072187 | E106: 23700
A107: 100 | B107: RAJANI MOYAL | C107: TEACHER | D107: RJBI202209013008 | E107: 23700
A108: 101 | B108: RAKESH GODARA | C108: Teacher Level-1 | D108: RJBI202209029520 | E108: 23700
A109: 102 | B109: RAM CHRAN MAN | C109: TEACHER | D109: RJBI202309052725 | E109: 23700
A110: 103 | B110: SUNILA NEHRA | C110: Teacher Level-1 | D110: RJBI202309056985 | E110: 23700
A111: 104 | B111: VIMLA MEENA | C111: Teacher Level-2 | D111: RJBI202309074987 | E111: 23700
A112: 105 | B112: VIMLA MEGHWAL | C112: TEACHER | D112: RJBI202309072138 | E112: 23700
A113: 106 | B113: JAIPAL HUDDA | C113: Teacher Level-2 (Special Education) | D113: RJBI202309050864 | E113: 23700
A114: 107 | B114: ANITA SHARMA | C114: v/;kid | D114: RJBI201709025912 | E114: 42700
A115: 108 | B115: ANITA YADAV | C115: v/;kid | D115: RJGA201235035721 | E115: 47900
A116: 109 | B116: ARPANA YADAV | C116: v/;kid | D116: RJJL201921009195 | E116: 38000
A117: 110 | B117: ARUNA SWAMI | C117: v/;kid | D117: RJBI201309018501 | E117: 46500
A118: 111 | B118: ASHA KUMARI | C118: v/;kid | D118: RJBM201905006981 | E118: 38000
A119: 112 | B119: ASHOK KUMAR TANWAR | C119: v/;kid | D119: RJBI199509008339 | E119: 75400
A120: 113 | B120: BABITA SHARMA | C120: v/;kid | D120: RJRA201231034753 | E120: 47900
A121: 114 | B121: BABULAL KUMHAR | C121: v/;kid | D121: RJBI201209020700 | E121: 47900
A122: 115 | B122: BABURAM DANWA | C122: v/;kid | D122: RJBI200509009391 | E122: 61300
A123: 116 | B123: BAJRANG LAL KUMHAR | C123: v/;kid | D123: RJBI201709001567 | E123: 50800
A124: 117 | B124: BASANT KUMAR GIRI | C124: v/;kid | D124: RJBI201809009748 | E124: 39100
A125: 118 | B125: BHARTI PUROHIT | C125: v/;kid | D125: RJBI200109000410 | E125: 49300
A126: 119 | B126: CHNDU KUMARI | C126: v/;kid | D126: RJBI201209019224 | E126: 47900
A127: 120 | B127: CHUNNA SARAN | C127: 'kk-f'k- | D127: RJBI201509034080 | E127: 42700
A128: 121 | B128: DEEPA BAMNIYA | C128: v/;kid | D128: RJBI201209031330 | E128: 47900
A129: 122 | B129: DEVENDER KUMAR GAHALOT | C129: v/;kid | D129: RJBI201309026808 | E129: 47900
A130: 123 | B130: DURGA OJHA | C130: v/;kid | D130: RJBI201909003344 | E130: 38000
A131: 124 | B131: FIZA FATMA | C131: v/;kid | D131: RJBI201709020349 | E131: 39100
A132: 125 | B132: GANESH NARAYAN HARITWAL | C132: v/;kid | D132: RJBI202009025005 | E132: 35800
A133: 126 | B133: GAUTAM JAJRA | C133: v/;kid | D133: RJBI201209022599 | E133: 47900
A134: 127 | B134: INDU BALA | C134: v/;kid | D134: RJBI201909033830 | E134: 36900
A135: 128 | B135: JAGDISH PRASAD | C135: v/;kid | D135: RJJL201221024594 | E135: 42700
A136: 129 | B136: KAMLA NAYAK | C136: v/;kid | D136: RJJS200720011537 | E136: 52300
A137: =A136+1 -> 130 | B137: KAUSHALYA SAINI | C137: v/;kid | D137: RJBM201905011981 | E137: 38000
A138: 131 | B138: KAVITA RANI | C138: v/;kid | D138: RJBI200809006536 | E138: 50800
A139: 132 | B139: KAVITA YADAV | C139: v/;kid | D139: RJBM201905011901 | E139: 36900
A140: 133 | B140: KHUSHBOO | C140: v/;kid | D140: RJBM200705007645 | E140: 52300
A141: 134 | B141: KRISHAN KUMAR KHATRI | C141: v/;kid | D141: RJBI199509008763 | E141: 75400
A142: 135 | B142: LALITA PARIHAR | C142: v/;kid | D142: RJBI201209019214 | E142: 47900
A143: 136 | B143: LALITA SANKHALA | C143: v/;kid | D143: RJBI201909016012 | E143: 38000
A144: 137 | B144: LAXMAN SINGH SANKHLA | C144: v/;kid | D144: RJBI200509015139 | E144: 61300
A145: 138 | B145: LAXMI BENIWAL | C145: v/;kid | D145: RJBI201709041566 | E145: 42700
A146: 139 | B146: LEKHNATH SIDH | C146: v/;kid | D146: RJBI202009025020 | E146: 35800
A147: 140 | B147: MANGI LAL | C147: v/;kid | D147: RJJS200720011017 | E147: 52300
A148: 141 | B148: MANJU CHAUDHARI | C148: v/;kid | D148: RJBI201709025922 | E148: 42700
A149: 142 | B149: MEENA PUNJABI | C149: v/;kid | D149: RJBI199609003728 | E149: 67000
A150: 143 | B150: MINAKSHI | C150: v/;kid | D150: RJBI201509005231 | E150: 45100
A151: 144 | B151: MINAKSHI SANKHLA | C151: v/;kid | D151: RJJO200725006788 | E151: 52300
A152: 145 | B152: MINAXI TANWAR | C152: v/;kid | D152: RJJL201921002461 | E152: 38000
A153: 146 | B153: MUKTA RANI | C153: 'kk-f'k- | D153: RJBI201709039550 | E153: 45100
A154: 147 | B154: ONKAR SINGH RATHORE | C154: v/;kid | D154: RJBI199309008951 | E154: 71100
A155: 148 | B155: PRAVEEN SINGH SHEKHAWAT | C155: v/;kid | D155: RJJL201521004887 | E155: 45100
A156: 149 | B156: PUNAM KUMARI RAO | C156: v/;kid | D156: RJBI201709037445 | E156: 42700
A157: 150 | B157: RAJA RAM | C157: v/;kid | D157: RJBM200705007810 | E157: 52300
A158: 151 | B158: RAJENDRA KUMAR JANAGAL | C158: v/;kid | D158: RJBI200809002855 | E158: 50800
A159: 152 | B159: RAJLAXMI MODI | C159: v/;kid | D159: RJBM200705003128 | E159: 52300
A160: 153 | B160: RAKHI DADHICH | C160: v/;kid | D160: RJBI201309034482 | E160: 46500
A161: 154 | B161: RAM DAYAL JAKHAR | C161: v/;kid | D161: RJBI201509031406 | E161: 45100
A162: 155 | B162: RENU KUMARI | C162: v/;kid | D162: RJBI201709020304 | E162: 39100
A163: 156 | B163: RUCHI BHARDWAJ | C163: v/;kid | D163: RJBI201809047210 | E163: 38000
A164: 157 | B164: RUPALI TYAGI | C164: v/;kid | D164: RJBI201909014914 | E164: 38000
A165: 158 | B165: SAHI RAM | C165: v/;kid | D165: RJJW20122200570 | E165: 47900
A166: 159 | B166: SANJANA TANWAR | C166: v/;kid | D166: RJBI201809008928 | E166: 39100
A167: 160 | B167: SARITA SHARMA | C167: v/;kid | D167: RJBI201209019229 | E167: 47900
A168: 161 | B168: SAZIDA JOIYA | C168: v/;kid | D168: RJBI201209028116 | E168: 47900
A169: 162 | B169: SHISHRAM DHAYAL | C169: v/;kid | D169: RJBI199709011109 | E169: 69000
A170: 163 | B170: SHOBHANA | C170: v/;kid | D170: RJBI201709021435 | E170: 39100
A171: 164 | B171: SITARAM | C171: v/;kid | D171: RJBI200809012267 | E171: 50800
A172: 165 | B172: SULOCHANA | C172: v/;kid | D172: RJBI200809048981 | E172: 50800
A173: 166 | B173: SUMAN RAMAVAT | C173: v/;kid | D173: RJBI200809012629 | E173: 50800
A174: 167 | B174: SUNITA CHOUDHARY | C174: v/;kid | D174: RJBI201209028120 | E174: 47900
A175: 168 | B175: SURENDER SINGH | C175: v/;kid | D175: RJBI201709038693 | E175: 38000
A176: 169 | B176: SUSHEEL KUMAR SHARMA | C176: v/;kid | D176: RJBI202109001584 | E176: 34800
A177: 170 | B177: VISHNU KUMAR CHANDAN | C177: v/;kid | D177: RJBI201209049614 | E177: 47900
